Workbook

Sheet Texte für Angebote (hidden)
D1: In den weißen Feldern können sie den Text individuell eingeben.
D2: Dieser wird beim Textangebot angedruckt.
D3: Sie haben für jedes System 10 Zeilen zur Verfügung.
A4: Keranova | B4: 1 | C4: =A4&B4 -> Keranova1 | D4: Schiedel Keranova Anlage
A5: Keranova | B5: 2 | C5: Keranova2 | D5: Fangsanierung (Querschnittsanpassung) mit keramischen Profilrohren in FU-Ausführung.
A6: Keranova | B6: 3 | C6: Keranova3 | D6: Errichten eines universellen Keramiksystems, Schiedel Keranova, durch Einbau in den
A7: Keranova | B7: 4 | C7: Keranova4 | D7: vorhandenen Rauchfangschacht, bei welchem die einzelnen Rohrelemente mit keramischen
A8: Keranova | B8: 5 | C8: Keranova5 | D8: Muffen verbunden werden. Keranova ist für alle Heizsysteme und alle Heizmedien (Gas,
A9: Keranova | B9: 6 | C9: Keranova6 | D9: Öl, feste Brennstoffe) geeignet, sowie GW3- getestet und zertifiziert. Das bedeutet Feuchte-
A10: Keranova | B10: 7 | C10: Keranova7 | D10: unempfindlichkeit auch nach einem eventuellen Rußbrand.
A11: Keranova | B11: 8 | C11: Keranova8 | D11: 30 Jahre Garantie.
A12: Keranova | B12: 9 | C12: Keranova9
A13: Keranova | B13: 10 | C13: Keranova10 | D13: Preis der gesamten Anlage inklusive Zubehör und Montage:
A14: Kerastar | B14: 1 | C14: Kerastar1 | D14: Schiedel Kerastar Anlage
A15: Kerastar | B15: 2 | C15: Kerastar2 | D15: Doppelwandsystem mit dem Innenrohr aus Keramik, der Außenmantel ist
A16: Kerastar | B16: 3 | C16: Kerastar3 | D16: in Edelstahl (1.4301/0,4 mm) ausgeführt.
A17: Kerastar | B17: 4 | C17: Kerastar4 | D17: Zwischen der Außen- und Innenwandung ist werksmäßig eine 60 mm dicke Dämmstoffschicht
A18: Kerastar | B18: 5 | C18: Kerastar5 | D18: aus hochwertiger Mineralfaser fugendicht eingebracht.
A19: Kerastar | B19: 6 | C19: Kerastar6 | D19: Feuchtigkeitsunempfindlich für Öl- und Gasfeuerstätten, für Festbrennstofffeuerstätten, geeignet
A20: Kerastar | B20: 7 | C20: Kerastar7 | D20: für den Unterdruckbetrieb.
A21: Kerastar | B21: 8 | C21: Kerastar8 | D21: 30 Jahre Garantie.
A22: Kerastar | B22: 9 | C22: Kerastar9
A23: Kerastar | B23: 10 | C23: Kerastar10 | D23: Preis der gesamten Anlage inklusive Zubehör und Montage:
A24: ICS | B24: 1 | C24: ICS1 | D24: Schiedel ICS 0,6 mm Anlage
A25: ICS | B25: 2 | C25: ICS2 | D25: Doppelwandiges Schiedel Edelstahlsystem "ICS" aus isolierten, mehrschaligen
A26: ICS | B26: 3 | C26: ICS3 | D26: Kaminbauelementen; feuchtigkeitsunempfindlich für Öl- und Gasfeuerstätten, geeignet für
A27: ICS | B27: 4 | C27: ICS4 | D27: alle Brennstoffe (Gas, Öl, feste Brennstoffe) im Unter- und Überdruckbetrieb. Industriell
A28: ICS | B28: 5 | C28: ICS5 | D28: gefertigtes, doppelwandiges starres System in Elementbauweise aus hochwertigem,
A29: ICS | B29: 6 | C29: ICS6 | D29: rostfreiem Edelstahl, Werkstoffnummer 1.4404 innen und 1.4301 außen, zwischen
A30: ICS | B30: 7 | C30: ICS7 | D30: der Außen- und Innenwand ist werksmäßig eine 25 mm dicke Dämmstoffschicht aus
A31: ICS | B31: 8 | C31: ICS8 | D31: hochdichter Mineralfaser fugendicht eingebracht.
A32: ICS | B32: 9 | C32: ICS9 | D32: 10 Jahre Garantie.
A33: ICS | B33: 10 | C33: ICS10 | D33: Preis der gesamten Anlage inklusive Zubehör und Montage:
A34: IC5- | B34: 1 | C34: IC5-1 | D34: Schiedel IC5 0,6 mm Anlage
A35: IC5- | B35: 2 | C35: IC5-2 | D35: Doppelwandiges Schiedel Edelstahlsystem "ICS" aus isolierten, mehrschaligen
A36: IC5- | B36: 3 | C36: IC5-3 | D36: Kaminbauelementen; feuchtigkeitsunempfindlich für Öl- und Gasfeuerstätten, geeignet für
A37: IC5- | B37: 4 | C37: IC5-4 | D37: alle Brennstoffe (Gas, Öl, feste Brennstoffe) im Unter- und Überdruckbetrieb. Industriell
A38: IC5- | B38: 5 | C38: IC5-5 | D38: gefertigtes, doppelwandiges starres System in Elementbauweise aus hochwertigem,
A39: IC5- | B39: 6 | C39: IC5-6 | D39: rostfreiem Edelstahl, Werkstoffnummer 1.4404 innen und 1.4301 außen, zwischen
A40: IC5- | B40: 7 | C40: IC5-7 | D40: der Außen- und Innenwand ist werksmäßig eine 50 mm dicke Dämmstoffschicht aus
A41: IC5- | B41: 8 | C41: IC5-8 | D41: hochdichter Mineralfaser fugendicht eingebracht.
A42: IC5- | B42: 9 | C42: IC5-9 | D42: 10 Jahre Garantie.
A43: IC5- | B43: 10 | C43: IC5-10 | D43: Preis der gesamten Anlage inklusive Zubehör und Montage:
A44: IC5-1- | B44: 1 | C44: IC5-1-1 | D44: Schiedel IC5-1mm Anlage
A45: IC5-1- | B45: 2 | C45: IC5-1-2 | D45: Doppelwandiges Schiedel Edelstahlsystem "ICS" aus isolierten, mehrschaligen
A46: IC5-1- | B46: 3 | C46: IC5-1-3 | D46: Kaminbauelementen; feuchtigkeitsunempfindlich für Öl- und Gasfeuerstätten, geeignet für
A47: IC5-1- | B47: 4 | C47: IC5-1-4 | D47: alle Brennstoffe (Gas, Öl, feste Brennstoffe) im Unter- und Überdruckbetrieb. Industriell
A48: IC5-1- | B48: 5 | C48: IC5-1-5 | D48: gefertigtes, doppelwandiges starres System in Elementbauweise aus hochwertigem,
A49: IC5-1- | B49: 6 | C49: IC5-1-6 | D49: rostfreiem Edelstahl, Werkstoffnummer 1.4404 innen (1 mm) und 1.4301 außen (0,6 mm), zwischen
A50: IC5-1- | B50: 7 | C50: IC5-1-7 | D50: der Außen- und Innenwand ist werksmäßig eine 50 mm dicke Dämmstoffschicht aus
A51: IC5-1- | B51: 8 | C51: IC5-1-8 | D51: hochdichter Mineralfaser fugendicht eingebracht.
A52: IC5-1- | B52: 9 | C52: IC5-1-9 | D52: 10 Jahre Garantie.
A53: IC5-1- | B53: 10 | C53: IC5-1-10 | D53: Preis der gesamten Anlage inklusive Zubehör und Montage:
A54: Prima Plus 0,6 | B54: 1 | C54: Prima Plus 0,61 | D54: Schiedel Prima Plus 0,6 mm Anlage
A55: Prima Plus 0,6 | B55: 2 | C55: Prima Plus 0,62 | D55: Fangsanierung (Querschnittsanpassung) mit Edelstahlrohren in FU-Ausführung. Anpassung
A56: Prima Plus 0,6 | B56: 3 | C56: Prima Plus 0,63 | D56: durch Errichten eines einwandigen Edelstahlrauchfanges der Marke Schiedel mit dem System
A57: Prima Plus 0,6 | B57: 4 | C57: Prima Plus 0,64 | D57: PrimaPlus, mit 0,6 mm Wandstärke,
A58: Prima Plus 0,6 | B58: 5 | C58: Prima Plus 0,65 | D58: bestehend aus Edelstahlrohren und -formstücken mit der Werkstoffnummer 1.4404
A59: Prima Plus 0,6 | B59: 6 | C59: Prima Plus 0,66 | D59: durch Einbau in den vorhandenen Rauchfangschacht, bei welchem die
A60: Prima Plus 0,6 | B60: 7 | C60: Prima Plus 0,67 | D60: einzelnen Rohrelemente mit der patentierten Steckverbindung verbunden werden; geeignet
A61: Prima Plus 0,6 | B61: 8 | C61: Prima Plus 0,68 | D61: für alle Brennstoffe (Gas, Öl, feste Brennstofffe) im Unterdruck- und Überdruckbetrieb.
A62: Prima Plus 0,6 | B62: 9 | C62: Prima Plus 0,69 | D62: 10 Jahre Garantie.
A63: Prima Plus 0,6 | B63: 10 | C63: Prima Plus 0,610 | D63: Preis der gesamten Anlage inklusive Zubehör und Montage:
A64: Prima Plus 1,0 | B64: 1 | C64: Prima Plus 1,01 | D64: Schiedel Prima Plus 1mm Anlage
A65: Prima Plus 1,0 | B65: 2 | C65: Prima Plus 1,02 | D65: Fangsanierung (Querschnittsanpassung) mit Edelstahlrohren in FU-Ausführung. Anpassung
A66: Prima Plus 1,0 | B66: 3 | C66: Prima Plus 1,03 | D66: durch Errichten eines einwandigen Edelstahlrauchfanges der Marke Schiedel mit dem System
A67: Prima Plus 1,0 | B67: 4 | C67: Prima Plus 1,04 | D67: PrimaPlus, mit 1,0 mm Wandstärke,
A68: Prima Plus 1,0 | B68: 5 | C68: =A68&B68 -> Prima Plus 1,05 | D68: bestehend aus Edelstahlrohren und -formstücken mit der Werkstoffnummer 1.4404
A69: Prima Plus 1,0 | B69: 6 | C69: Prima Plus 1,06 | D69: durch Einbau in den vorhandenen Rauchfangschacht, bei welchem die
A70: Prima Plus 1,0 | B70: 7 | C70: Prima Plus 1,07 | D70: einzelnen Rohrelemente mit der patentierten Steckverbindung verbunden werden; geeignet
A71: Prima Plus 1,0 | B71: 8 | C71: Prima Plus 1,08 | D71: für alle Brennstoffe (Gas, Öl, feste Brennstofffe) im Unterdruck- und Überdruckbetrieb.
A72: Prima Plus 1,0 | B72: 9 | C72: Prima Plus 1,09 | D72: 10 Jahre Garantie.
A73: Prima Plus 1,0 | B73: 10 | C73: Prima Plus 1,010 | D73: Preis der gesamten Anlage inklusive Zubehör und Montage:
A74: Progasflex | B74: 1 | C74: Progasflex1 | D74: Schiedel Progas Flex Anlage
A75: Progasflex | B75: 2 | C75: Progasflex2 | D75: Errichten einer Fangsanierung mit Kunststoffrohren in FU-Ausführung (flexible
A76: Progasflex | B76: 3 | C76: Progasflex3 | D76: Kunststoffabgasleitung) der Marke Schiedel ProGasFlex, in einem bestehenden Schornstein,
A77: Progasflex | B77: 4 | C77: Progasflex4 | D77: bestehend aus PVDF (Polyvinylidenflourid)-rohren und -formstücken, zur
A78: Progasflex | B78: 5 | C78: Progasflex5 | D78: Querschnitsverminderung, bei welchem die einzelnen Rohrelemente miteinander
A79: Progasflex | B79: 6 | C79: Progasflex6 | D79: verschweißt bzw. mit Einsteckmuffen verbunden werden; max. Abgastemeratur 160°, inkl.
A80: Progasflex | B80: 7 | C80: Progasflex7 | D80: Hinterlüftung mit Befestigungen und Abstandhaltern für den Überdruck- und den
A81: Progasflex | B81: 8 | C81: Progasflex8 | D81: Unterdruckbetrieb geeignet.
A82: Progasflex | B82: 9 | C82: Progasflex9
A83: Progasflex | B83: 10 | C83: Progasflex10 | D83: Preis der gesamten Anlage inklusive Zubehör und Montage:
A84: Leichtbauschacht | B84: 1 | C84: Leichtbauschacht1 | D84: Schiedel Leichtbauschacht
A85: Leichtbauschacht | B85: 2 | C85: Leichtbauschacht2 | D85: Schacht aus 45 mm starken Vermiculit-Platten
A86: Leichtbauschacht | B86: 3 | C86: Leichtbauschacht3 | D86: Feuerwiederstandsklasse F90
A87: Leichtbauschacht | B87: 4 | C87: Leichtbauschacht4
A88: Leichtbauschacht | B88: 5 | C88: Leichtbauschacht5
A89: Leichtbauschacht | B89: 6 | C89: Leichtbauschacht6
A90: Leichtbauschacht | B90: 7 | C90: Leichtbauschacht7
A91: Leichtbauschacht | B91: 8 | C91: Leichtbauschacht8
A92: Leichtbauschacht | B92: 9 | C92: Leichtbauschacht9
A93: Leichtbauschacht | B93: 10 | C93: Leichtbauschacht10 | D93: Preis der gesamten Anlage inklusive Zubehör und Montage:
A94: ProgasPP | B94: 1 | C94: =A94&B94 -> ProgasPP1 | D94: Schiedel Progas PP Anlage
A95: ProgasPP | B95: 2 | C95: ProgasPP2 | D95: Errichten einer Fangsanierung mit Kunststoffrohren in FU-Ausführung (flexible
A96: ProgasPP | B96: 3 | C96: ProgasPP3 | D96: Kunststoffabgasleitung) der Marke Schiedel ProGasPP, in einem bestehenden Schornstein,
A97: ProgasPP | B97: 4 | C97: ProgasPP4 | D97: hergestellt aus Polypropylen-rohren und -formstücken, zur
A98: ProgasPP | B98: 5 | C98: ProgasPP5
A99: ProgasPP | B99: 6 | C99: ProgasPP6 | D99: Max. Abgastemeratur 120°, inkl.
A100: ProgasPP | B100: 7 | C100: ProgasPP7 | D100: Hinterlüftung mit Befestigungen und Abstandhaltern für den Überdruck- und den
A101: ProgasPP | B101: 8 | C101: ProgasPP8 | D101: Unterdruckbetrieb geeignet.
A102: ProgasPP | B102: 9 | C102: ProgasPP9
A103: ProgasPP | B103: 10 | C103: ProgasPP10 | D103: Preis der gesamten Anlage inklusive Zubehör und Montage:
A104: Permeter | B104: 1 | C104: Permeter1 | D104: Schiedel Permeter Anlage
A105: Permeter | B105: 2 | C105: Permeter2 | D105: Doppelwandiges Schiedel Edelstahlsystem "Permeter" aus isolierten, mehrschaligen
A106: Permeter | B106: 3 | C106: Permeter3 | D106: Kaminbauelementen; feuchtigkeitsunempfindlich für Öl- und Gasfeuerstätten, geeignet für
A107: Permeter | B107: 4 | C107: Permeter4 | D107: alle Brennstoffe (Gas, Öl, feste Brennstoffe) im Unterdruckbetrieb. Industriell
A108: Permeter | B108: 5 | C108: Permeter5 | D108: gefertigtes, doppelwandiges starres System in Elementbauweise aus hochwertigem,
A109: Permeter | B109: 6 | C109: Permeter6 | D109: rostfreiem Edelstahl, Werkstoffnummer 1.4521 innen. Der Außenmantel besteht aus pulver-
A110: Permeter | B110: 7 | C110: Permeter7 | D110: beschichtetem Stahl und übernimmt die statischen Lasten. Zwischen der Außen- und
A111: Permeter | B111: 8 | C111: Permeter8 | D111: Innenwand ist werksmäßig eine 25 mm dicke Dämmstoffschicht aus hochdichter
A112: Permeter | B112: 9 | C112: Permeter9 | D112: Mineralfaser fugendicht eingebracht.
A113: Permeter | B113: 10 | C113: Permeter10 | D113: Preis der gesamten Anlage inklusive Zubehör und Montage:
A114: Permeter_Smooth | B114: 1 | C114: =A114&B114 -> Permeter_Smooth1 | D114: Schiedel Permeter Anlage
A115: Permeter_Smooth | B115: 2 | C115: Permeter_Smooth2 | D115: Doppelwandiges, klemmbandlose Schiedel Edelstahlsystem "Permeter" aus isolierten, mehrschaligen
A116: Permeter_Smooth | B116: 3 | C116: Permeter_Smooth3 | D116: Kaminbauelementen; feuchtigkeitsunempfindlich für Öl- und Gasfeuerstätten, geeignet für
A117: Permeter_Smooth | B117: 4 | C117: Permeter_Smooth4 | D117: alle Brennstoffe (Gas, Öl, feste Brennstoffe) im Unterdruckbetrieb. Industriell
A118: Permeter_Smooth | B118: 5 | C118: Permeter_Smooth5 | D118: gefertigtes, doppelwandiges starres System in Elementbauweise aus hochwertigem,
A119: Permeter_Smooth | B119: 6 | C119: Permeter_Smooth6 | D119: rostfreiem Edelstahl, Werkstoffnummer 1.4521 innen. Der Außenmantel besteht aus pulver-
A120: Permeter_Smooth | B120: 7 | C120: Permeter_Smooth7 | D120: beschichtetem Stahl und übernimmt die statischen Lasten. Zwischen der Außen- und
A121: Permeter_Smooth | B121: 8 | C121: Permeter_Smooth8 | D121: Innenwand ist werksmäßig eine 25 mm dicke Dämmstoffschicht aus hochdichter
A122: Permeter_Smooth | B122: 9 | C122: Permeter_Smooth9 | D122: Mineralfaser fugendicht eingebracht.
A123: Permeter_Smooth | B123: 10 | C123: Permeter_Smooth10 | D123: Preis der gesamten Anlage inklusive Zubehör und Montage:
A124: Absolut | B124: 1 | C124: =A124&B124 -> Absolut1 | D124: Schiedel Absolut Anlage
A125: Absolut | B125: 2 | C125: Absolut2 | D125: Fangsystem für nasse und trockene Betriebsweise, Temperaturklasse T400,
A126: Absolut | B126: 3 | C126: Absolut3 | D126: MS.keram.Fangsys.T400/FU/BW kondensatdicht
A127: Absolut | B127: 4 | C127: Absolut4 | D127: Fangsystem für nasse und trockene Betriebsweise, Temperaturklasse T400,
A128: Absolut | B128: 5 | C128: Absolut5 | D128: feuchtigkeitsunempfindlich (FU), Brennwert geeignet (BW) bestehend aus
A129: Absolut | B129: 6 | C129: Absolut6 | D129: kondensatdichten isostatisch verpressten Innenrohren mit Muffenverbindung (k+d-
A130: Absolut | B130: 7 | C130: Absolut7 | D130: Wert </= 2,0 g/h/m2) und plan geschliffenen Compound Mantelstein mit integrierter
A131: Absolut | B131: 8 | C131: Absolut8 | D131: Wärmedämmung (Erfüllt die Dichtheitsanforderungen eines Passivhauses).
A132: Absolut | B132: 9 | C132: Absolut9 | D132: Fangsystem geeignet für den Anschluss einer Brennwertfeuerstätte in
A133: Absolut | B133: 10 | C133: Absolut10 | D133: raumluftunabh. Betriebsweise im Gegenstrombetrieb.
A134: SIH | B134: 1 | C134: =A134&B134 -> SIH1 | D134: Schiedel SIH Anlage
A135: SIH | B135: 2 | C135: SIH2 | D135: MS.keram.Fangsystem T400/FU hinterlüftet
A136: SIH | B136: 3 | C136: SIH3 | D136: Fangsystem für nasse und trockene Betriebsweise, Temperaturklasse T400,
A137: SIH | B137: 4 | C137: SIH4 | D137: feuchtigkeitsunempfindlich (FU), für alle Brennstoffe geeignet, bestehend aus
A138: SIH | B138: 5 | C138: SIH5 | D138: kondensatdichten Schamotte Innenrohren mit Nut und Federverbindung,
A139: SIH | B139: 6 | C139: SIH6 | D139: Mineralfaserdämmung und Leichtbetonmanelstein, Liefern und versetzen nach
A140: SIH | B140: 7 | C140: SIH7 | D140: Hersteller - Richtlinien.
A141: SIH | B141: 8 | C141: SIH8
A142: SIH | B142: 9 | C142: SIH9
A143: SIH | B143: 10 | C143: SIH10
A144: AbsolutTL | B144: 1 | C144: AbsolutTL1 | D144: Schiedel Absolut mit Thermoluftzug Anlage
A145: AbsolutTL | B145: 2 | C145: AbsolutTL2 | D145: Fangsystem für nasse und trockene Betriebsweise, Temperaturklasse T400,
A146: AbsolutTL | B146: 3 | C146: AbsolutTL3 | D146: MS.keram.Fangsys.T400/FU/BW kondensatdicht
A147: AbsolutTL | B147: 4 | C147: AbsolutTL4 | D147: Fangsystem für nasse und trockene Betriebsweise, Temperaturklasse T400,
A148: AbsolutTL | B148: 5 | C148: AbsolutTL5 | D148: feuchtigkeitsunempfindlich (FU), Brennwert geeignet (BW) bestehend aus
A149: AbsolutTL | B149: 6 | C149: AbsolutTL6 | D149: kondensatdichten isostatisch verpressten Innenrohren mit Muffenverbindung (k+d-
A150: AbsolutTL | B150: 7 | C150: AbsolutTL7 | D150: Wert </= 2,0 g/h/m2) und plan geschliffenen Compound Mantelstein mit integrierter
A151: AbsolutTL | B151: 8 | C151: AbsolutTL8 | D151: Wärmedämmung (Erfüllt die Dichtheitsanforderungen eines Passivhauses).
A152: AbsolutTL | B152: 9 | C152: AbsolutTL9 | D152: Fangsystem geeignet für den Anschluss einer Brennwertfeuerstätte in
A153: AbsolutTL | B153: 10 | C153: AbsolutTL10 | D153: raumluftunabh. Betriebsweise im Gegenstrombetrieb.

Sheet Eingabe
J1: =A60 -> 0
N3: =IF(Firma!$B$10="",$O$3,Firma!$B$10) -> 6002 | O3: 6002
K4: Musterkunde
K6: Musterstraße
K7: 4542 | L7: Nußbach
K8: PLZ | L8: Ort
K10: Herr Muster
K11: Ansprechpartner
K13: Tel.Nr. | N13: Fax.Nr.
K14: Bauvorhaben
K18: PLZ | L18: Ort
O19: =$O$20 -> 0
K20: Konditionen / Lohn | N20: Nettorabatt | O20: 0
K22: Rabatt 1 | M22: 0 | N22: Rabatt 2 | O22: 0
K23: Stunden | N23: € per Std. | O23: 0
K24: Kilometer | N24: € per km | O24: 0
K25: Pauschale | N25: € per P. | O25: 0
K27: Bel.Nr.: | N27: MwSt | O27: 0.2
K28: Belegart: | Q28: 1
A31: CD-Version | O31: =IF(A31="CD-Version",Hinweise_CD!N3,Hinweise!N3) -> CD-Version 20240101
A60: 0

Sheet Hinweise (hidden)
G1: 23
B3: Das neue Angebots- und Bestellprogramm von Schiedel | N3: Version V1 2024
B5: Hinweise
B8: Installation: | C8: Das Programm wird automatisch durch die setup.exe auf Ihrem PC
C9: (Pfad = c:\Schiedel-A\Kaminprofi\ ....) und auf dem Desktop installiert.
C10: Achtung: Die Excel-Makros müssen aktiviert sein (Extras-Makro-Sicherheit-mittel oder niedrig einstellen!)
C11: Wenn Sie mittel einstellen, müssen Sie bei jedem Start die Makros aktivieren,
C12: Wenn Sie hoch einstellen, werden die Makros bei jedem Start automatisch aktiviert.
C13: Zusätzlich zum Programm wird auch ein Ordner (Schiedel-Angebote) für die gespeicherten Angebote installiert.
C14: Bei jeder Neuinstallation sollen die Firmendaten (im Button "Firmendaten") überprüft bzw. eingegeben werden.
B16: PDF-Mailen: | C16: Um Bestellungen und Angebote zu mailen, empfehlen wir FreePdf zu verwenden.
C17: Dieses freie Programm können Sie im Internet downloaden. | I17: http://shbox.de/fpxpdownload.htm
B19: Update: | C19: Im Internet, auf der Schiedel Homepage - Servicebereich, steht immer die neueste Programmversion zur Verfügung !
C20: Achtung: bei einem Programmupdate darf das Programm nicht geöffnet sein. Bitte schließen Sie das Programm vor dem Update.
B22: Voraussetzung: | C22: Microsoft Windows 2000, NT, XP, Vista (2007)
C23: Microsoft Officepaket (ab MS Office 2007 und e-Mail-Programm MS Outlook oder Lotus Notes)
C24: Bestellungen können nur mit MS Outlook oder Lotus Notes automatisch gemailt werden.
C25: Die Mail-Einstellungen können jederzeit in der Maske "Firmendaten" geändert werden.
C27: Achtung: Die Makro-Sicherheitseinstellungen sind auf Mittel oder Niedrig einzustellen!
C28: Vorgehensweise bei:
C29: Office 2003: Extras - Makro - Sicherheit - Mittel oder Niedrig auswählen.
C30: Wenn Sie Mittel auswählen, werden Sie gefragt ob Sie die Makros akzeptieren - mit ja bestätigen !
C31: Wenn Sie Niedrig auswählen wird das Programm automatisch mit den Makros gestartet.
C32: ab Office 2007: Schaltfläche Office - Excel Optionen - Vertrauensstellungscenter -
C33: Einstellungen für das Vertrauensstellungcenter - Einstellungen für Makros - alle Makros aktivieren
C34: oder alle Makros mit Benachrichtigung deaktivieren auswählen.
C35: Wenn Sie Makros mit Benachrichtigung deaktivieren auswählen, dann sind bei jedem Neustart die Makros zu aktivieren.
B37: Stammdaten: | C37: Kundenstamm: | E37: Neuanlage eines Kunden erfolgt in der Eingabe-Maske.
E38: Sie können diesen Kunden in Ihrem Kundenstamm speichern - Button "Kunde speichern" drücken !
E39: Der Kunde muss im Kundenstamm erfasst sein, damit dieser im Programm ausgewählt werden kann.
E40: Der Kundenstamm ist ein Bestandteil des Programms.
E41: Bei einem Programmupdate wird der abgespeicherte Kundenstamm automatisch in das
E42: Programm importiert. (4997 Kunden können erfasst werden)
C44: Firmendaten: | E44: Eingabe der Firmen- und Sachbearbeiter-Daten (bei einem Programmupdate werden diese
E45: Eingaben übernommen).
E46: Bitte wählen Sie das auf Ihrem Computer eingestellte Mailprogramm aus.
E47: Lieferantenstamm: | G47: Sie haben die Möglichkeit im abgespeicherten Angebot, für die Materialbestellung,
G48: Lieferanten vorzubelegen (nach einem Programmupdate müssen diese Lieferanten
G49: neu eingegeben werden).
C51: Montage-Belegtexte: | E51: Alle weißen Felder sind frei definierbare Montage- und Belegtexte.
B53: Eingabemaske: | C53: Bauvorhaben: | E53: Eingabe der Baustellen-Anschrift.
C54: Konditionen/Lohn: | E54: Eingabe von zwei Rabatten. Die Berechnungsgrundlage für den zweiten Rabatt ist
E55: Brutto abzg. erster Rabatt.
E56: Montageleistungen können in Stunden, Kilometer oder in einer Pauschale eingegeben werden.
E57: (Achtung: Montagetext vorher eingeben!)
C58: BelegNr: | E58: Individuelle Eingabe einer Belegnummer.
C59: Belegart: | E59: Kalkulation, Angebot oder Auftragsbestätigung.
E60: Durch klicken auf ein Produkt-Logo öffnet sich die jeweilige Eingabemaske.
B62: Produktmasken: | C62: Auswahlfelder: | E62: Geben sie die notwendigen Daten in den Auswahlfeldern ein.
C63: Kalkulation Anlage: | E63: Nach erfolgter Auswahl werden die Artikel durch klicken auf "Kalkulation" in die Tabelle
E64: Kalkulation generiert.
C65: Einzelteileingabe: | E65: Der Typ mit dem entsprechenden Ø wird ohne Mengenvorgaben in die Tabelle Kalkulation generiert.
D67: Nach jeder Kalkulation das Angebot speichern oder nach Ausdruck zur Eingabe zurückkehren!
B69: Kalkulation: | C69: Kalkulation speichern: | E69: Die Kalkulation (Angebot) wird als kleine Excel-Datei automatisch gespeichert.
E70: In dieser Datei können alle Felder geändert werden.
E71: Das Angebot wird automatisch mit "Namen des Kunden" , "Bauvorhaben" , "Ort des BVH" ,
E72: "Tagesdatum" und eine fortlaufende "Nummer" in den Pfad gespeichert:
D73: C:\Schiedel-A\Kaminprofi\Schiedel-Angebote\....... .xlsm
E74: Selbstverständlich können sie später die Angebote manuell in einem Pfad Ihrer Wahl abspeichern.
C76: Stückliste erweitern: | E76: Hier können zusätzliche Artkel ausgewählt werden.
C77: Druckansicht: | E77: Der Ausdruck sollte immer über die Druckansicht erfolgen, da damit auch eine erweiterte
E78: Stückliste auf die ausgewählten Artikel gefiltert wird.
C79: Bestellung: | E79: Automatische Bestellgenerierung an das Schiedel Kunden-Center oder Lieferanten Ihrer Wahl.
E80: Die Lieferanten können Sie in der Tabelle "Firmendaten" mit dem Button "Lieferanten" erfassen.
B82: Bestellung: | C82: Schiedel-KC: | E82: Auswahl des Schiedel Kunden-Centers oder Lieferanten.
C83: Versandart: | E83: Die Versandart Zustellung Händlerlager oder Zustellung Baustelle auswählen.
C84: Liefertermin: | E84: In diesem Feld kann ein Datum oder andere Informationen (z.B. KW 15) eingegeben werden.
E85: Die Bestellung kann ausgedruckt, gefaxt oder gemailt werden.
C86: Bestellung mailen: | E86: Die Bestellung wird an das definierte Kunden-Center oder Lieferanten als Mail-Anhang vorbereitet.
B88: Eigenes Firmenlogo einfügen: | E88: Es besteht die Möglichkeit, für Angebote, die gespeichert werden, ein eigenes Logo einzufügen,
E89: das dann bei allen gespeicherten Angeboten erscheint.
C90: Vorgehensweise: | E90: Öffnen Sie im Explorer - Pfad: C:\Schiedel-A\Kaminprofi\
E91: die Datei "Kalkulation-Muster.xlsm.
E92: Heben Sie den Blattschutz auf.
E93: Ersetzen Sie das Schiedel-Logo durch Ihr Eigenes.
E94: Anschließend Blatschutz wieder aktivieren (ohne Kennwort), speichen und schließen.
E95: Es sollten ansonsten keine weiteren Änderungen vorgenommen werden.
E96: Wichtig: Wird eine neues Update durchgeführt, so ist dieser Vorgang wieder neu zu machen!
B98: Rechtlicher Hinweis: | E98: Schiedel kann dem Baustoff-Fachhandel die in dieser Software dargestellten
E99: Angebote gemäß den Geschäfts- und Lieferbedingungen von Schiedel unterbreiten.
E100: Preise ab Werk zzgl. MwSt.
E101: Gültig ab 1. Jänner 2024

Sheet Kingfire (hidden)
F3: =Daten!$X$412 -> KINGFIRE CLASSICO S | N3: =F3 -> KINGFIRE CLASSICO S
F5: Typ KINGFIRE
F7: Höhe des Elementes
F9: Aufpreis für Black Adition (Classico und Rondo)
F11: Elektr. Abbrandsteuerung
F14: KINGFIRE ZUBEHÖR
F15: Feuerwürfel - Anzünder
F17: Montageset KINGFIRE
F19: Dämmset
F21: Thermo-Fußplatte
F23: Sockelerhöhung 14 cm
F25: Blendrahmen
F27: Haftbrücke "maxit multi 280"
F29: Oberflächenspachtel "maxit multi 292"
F31: Lüftungsgitter

Sheet Service (hidden)
H3: 1. | I3: Lieferservice für Lagerware
I4: Bei Bestellung bis 11.00 Uhr stellen wir die Ware bis übernächsten Arbeitstag im Laufe des Tages
I5: (7.00 - 18.00 Uhr) an die angegebene Lieferadresse zu.
H6: 2. | I6: Mindermengenzuschlag für Bestellungen unter € 250,00 Nettowarenwert | P6: .....€ 35,00
H7: 3. | I7: Zustellung auf Baustelle, je Abladestelle | P7: .... € 115,00
H9: 4. | I9: Palettenentladegebühr je Pal/Hub | P9: .....€ 7,50
I10: enfällt nur, wenn ein Abladen durch den Kunden vorab vereinbart wurde
H11: 5. | I11: Paketdienst (für nicht bruchgefährdete Kleinteile) bei Bestellung bis 12 Uhr, Zustellung am Folgetag
K12: bis 17.00 Uhr | M12: bis 12.00 Uhr | O12: bis 10.00 Uhr
I13: Gewicht bis 8,0 kg | K13: ....€ 15,00 | M13: ....€ 35,00 | O13: ....€ 66,00
I14: Gewicht bis 20,0 kg | K14: ....€ 22,00 | M14: ....€ 52,00 | O14: ....€ 74,00
I15: Gewicht bis 31,5 kg | K15: ....€ 32,00 | M15: ....€ 62,00 | O15: ....€ 80,00
H17: 6. | I17: Gültig für Zustellungen innerhalb Österreichs
H18: 7. | I18: Expressaufschlag bei Bestellung bis 11.00 Uhr - Zustellung am Folgetag je Kaminanlage
K19: bis 10.00 Uhr | M19: bis 12.00 Uhr | O19: bis 16.00 Uhr
K20: ....€ 80,00 | M20: ....€ 65,00 | O20: ....€ 50,00
I21: **Terminzustellungen bis 9.00 bzw. bis 12.00 Uhr, nicht in allen Regionen möglich. Sonderfahrten auf Anfrage.
H22: 4. | I22: Zustellung KINGFIRE | P22: ….€ 265,00
I23: Verhebung KINGFIRE Betonschacht (mit LKW Ladekran PK29002) | P23: ….€ 220,00
B29: Hermann Herbst | D29: Gerhard EICHER | I29: Miran Gavric | K29: Ing. Andreas Neuhold | N29: Klaus Humer
B30: Stmk. Süd/Ost + Bgld. Süd | D30: Stmk. Nord/West + Kärnten | I30: Salzburg + Tirol + Vorarlberg | K30: Südost-Österreich | N30: Anwendungstechnik
B31: Tel + Mobil: 0664 2429495 | D31: Tel + Mobil: 0664 5447698 | I31: Tel + Mobil: 0664 5111649 | K31: Tel + Mobil: 06645456617 | N31: Tel : 050 6161 172
B32: Mail: hermann.herbst@schiedel.com | D32: Mail: gerhard.eicher@schiedel.com | I32: Mail: miran.gavric@schiedel.com | K32: Mail: andreas.neuhold@schiedel.com | N32: Mail: klaus.humer@schiedel.com
B34: Peter Herzog | D34: Manfred Rainer | K34: Ing. Manfred Ritt | N34: Martin Messing
B35: NÖ West | D35: OÖ West + Süd | K35: Nordwest-Österreich | N35: Anwendungstechnik
B36: Tel + Mobil: 0664 4265562 | D36: Tel + Mobil: 0664 1813380 | K36: Tel + Mobil: 0664 8155601 | N36: Tel : 050 6161 176
B37: Mail: peter.herzog@schiedel.com | D37: Mail: manfred.rainer@schiedel.com | K37: Mail: manfred.ritt@schiedel.com | N37: Mail: martin.messing@schiedel.com
B39: Michael Strommer | D39: Reinhold Kamberger
B40: NÖ Süd + Bgld. Nord | D40: OÖ Ost + Nord + NÖ West
B41: Tel + Mobil: 0664 3948321 | D41: Tel + Mobil: 0664 8155622
B42: Mail: michael.strommer@schiedel.com | D42: Mail: reinhold.kamberger@schiedel.com

Sheet Service SAN (hidden)
H3: 1. | I3: Lieferservice bei Baustellen bis 11 Uhr stellen wir die Ware bis übernächsten Arbeitstag
I4: im Laufe des Tages (7.00 18.00) an die angegebene Lieferadresse zu.
H5: 2. | I5: Mindermengenzuschlag
I6: Bei Bestellungen unter € 250,-- (Netto Warenwert) | P6: .....€ 35,00
H7: 3. | I7: Zustellung auf Baustelle je Abladestelle | P7: .....€ 115,00
H9: 4. | I9: Paketdienst (für nicht bruchgefährdete Kleinteile)
I10: bei Bestellung bis 12 Uhr, Zustellung am Folgetag
L11: bis 17.00 Uhr | N11: bis 12.00 Uhr | P11: bis 10.00 Uhr
J12: Gewicht bis 8,0 kg | L12: ....€ 15,00 | N12: ....€ 35,00 | P12: ....€ 66,00
J13: Gewicht bis 20,0 kg | L13: ....€ 22,00 | N13: ....€ 52,00 | P13: ....€ 74,00
J14: Gewicht bis 31,5 kg | L14: ....€ 32,00 | N14: ....€ 62,00 | P14: ....€ 80,00
H18: 5. | I18: Gültig für Zustellungen innerhalb Österreichs
H19: 6. | I19: Expressaufschlag bei Bestellungen bis 11.00 Uhr - Zustellung am Folgetag je Kaminanlage
P20: .... € 80,00
P21: .... € 65,00
P22: .... € 50,00
B29: Herbert Buchberger | D29: Wolfgang Dworczak | I29: Ing. Andreas Neuhold | K29: Martin Messing | N29: Johanna Hacker
B30: Ktn., Stmk, Bgld, Wien | D30: Keyaccount Objektgeschäft Stahl | I30: Südost-Österreich | K30: Anwendungstechnik | N30: Eva Maria Pühringer-Weigerstorfer
B31: Tel + Mobil: 0664 2420363 | D31: Österreich & Verkaufsrepräsentant | I31: Tel + Mobil: 06645456617 | K31: Sanierungs-Systeme | N31: Tel: 050 6161 400
B32: Mail: herbert.buchberger@schiedel.com | D32: Niederösterreich N/O | I32: Mail: andreas.neuhold@schiedel.com | K32: Tel + Mobil: 0664 4367145 | N32: Fax: 050 6161 444
D33: Tel + Mobil: 0664 8155624 | K33: Mail: martin.messing@schiedel.com | N33: Mail: bestellung@schiedel.com
B34: Kurt Trawöger | D34: Mail: wolfgang.dworczak@schiedel.com | I34: Ing. Manfred Ritt
B35: OÖ, Sbg., Triol, Vbg. | I35: Nordwest-Österreich
B36: Tel + Mobil: 0664 8155635 | I36: Tel + Mobil: 0664 8155601
B37: Mail: kurt.trawoeger@schiedel.com | I37: Mail: manfred.ritt@schiedel.com

Sheet Kaminauswahl (hidden)
U2: =IF(Z8=2,"SIH-S",IF(Z9=2,"SIH-S",IF(Z10=2,"SIH-S",IF(Z11=2,"AbsolutTL",IF(Z12=2,"SIH-S",IF(Z13=2,"AbsolutTL",IF(Z14=2,"AbsolutTL","Absolut"))))))) -> AbsolutTL
R4: Kaminkalkulator
S6: Brennstoff | U6: Feuerstätte | W6: Energiebedarf
R7: Öl/Gas | S7: FALSE | T7: Brennwertgerät | U7: FALSE | V7: 0 - 50 kWh/m2 .a | W7: TRUE
T8: konventionelle Heizkessel | U8: FALSE | V8: > 50 kWh/m2 .a | W8: FALSE | X8: =IF(U8=TRUE,1,0) -> 0 | Y8: =IF(W8=TRUE,1,0) -> 0 | Z8: =X8+Y8 -> 0
R9: Holz | S9: FALSE | T9: Scheitholz/Hackschnitzel-Kessel | U9: FALSE | X9: =IF(U9=TRUE,1,0) -> 0 | Y9: =IF(W8=TRUE,1,0) -> 0 | Z9: 0
T10: Kaminofen Kachelofen | U10: FALSE | X10: =IF(U10=TRUE,1,0) -> 0 | Y10: =IF($W$8=TRUE,1,0) -> 0 | Z10: 0
R11: Pellets | S11: FALSE | T11: Holz Raumruftunabhängig | U11: FALSE | X11: =IF(U11=TRUE,2,0) -> 0 | Z11: 0
R12: nicht bekannt | S12: TRUE | T12: Pelletsofen | U12: FALSE | X12: =IF(U12=TRUE,1,0) -> 0 | Y12: =IF(W8=TRUE,1,0) -> 0 | Z12: 0
T13: Pellets Raumruftunabhängig | U13: FALSE | X13: =IF(U13=TRUE,2,0) -> 0 | Z13: 0
X14: =IF(S12=TRUE,1,0) -> 1 | Y14: =IF(W7=TRUE,1,0) -> 1 | Z14: 2

Sheet AERA Bedarfslüftung (hidden)
F2: =Daten!$C$718 -> A E R A - B e d a r f s l ü f t u n g
F4: =Daten!$C$721 -> AERA passt die Frischluftmenge automatisch dem jeweiligen Bedarf raumweise an.
F6: Beginn des AERA-Schachtes ab:
F8: Kellerlösung
F10: Schachthöhe in m | AD10: BinImObergeschoss
F12: Zubehör:
F13: Zuluftset mit Einbaublock
F15: Zuluftset mit Rundrohr
F17: Abluftelemente für:
F19: Küche/HWR | L19: Bad/Dusche mit WC
F21: Schrankraum/Diele | L21: Bad/Dusche ohne WC
F23: Konstant | L23: WC
L25: Hygro-Stoßl. manuell
F27: Bohrkrone für Abluftanschluss
F29: Dachpaket
F31: UNI Anschlusspaket für Querverteilung
V35: =IF(AB33<0,"Bitte Anzahl der Abluftelemente kontrollieren!","") -> 
G104: AERA-Comfort

Sheet Hinweise_CD (hidden)
G1: 23
B3: Das neue Angebots- und Bestellprogramm von Schiedel | N3: CD-Version 20240101
B5: Hinweise
B8: Installation: | C8: Das Programm wird nicht installiert. Kann von der CD gestartet werden.
C9: Sie können das Programm auf einem Pfad Ihrer Wahl abspeichern.
C10: Achtung: Die Excel-Makros müssen aktiviert sein (Extras-Makro-Sicherheit-mittel oder niedrig einstellen!)
C11: Wenn Sie mittel einstellen, müssen Sie bei jedem Start die Makros aktivieren,
C12: Wenn Sie hoch einstellen, werden die Makros bei jedem Start automatisch aktiviert.
C13: Zusätzlich zum Programm wird auch ein Ordner (Schiedel-Angebote) für die gespeicherten Angebote installiert.
C14: Bei jeder Neuinstallation sollen die Firmendaten (im Button "Firmendaten") überprüft bzw. eingegeben werden.
B16: PDF-Mailen: | C16: Um Bestellungen und Angebote zu mailen, empfehlen wir FreePdf zu verwenden.
C17: Dieses freie Programm können Sie im Internet downloaden. | I17: http://shbox.de/fpxpdownload.htm
B19: Update: | C19: Im Internet, auf der Schiedel Homepage - Servicebereich, steht immer die neueste Programmversion zur Verfügung !
C20: Achtung: bei einem Programmupdate darf das Programm nicht geöffnet sein. Bitte schließen Sie das Programm vor dem Update.
B22: Voraussetzung: | C22: Microsoft Windows 2000, NT, XP, Vista (2007)
C23: Microsoft Officepaket (ab MS Office 2000 und e-Mail-Programm MS Outlook oder Lotus Notes)
C24: Bestellungen können nur mit MS Outlook oder Lotus Notes automatisch gemailt werden.
C25: Die Mail-Einstellungen können jederzeit in der Maske "Firmendaten" geändert werden.
C27: Achtung: Die Makro-Sicherheitseinstellungen sind auf Mittel oder Niedrig einzustellen!
C28: Vorgehensweise bei:
C29: Office 2000, XP oder 2003: Extras - Makro - Sicherheit - Mittel oder Niedrig auswählen.
C30: Wenn Sie Mittel auswählen, werden Sie gefragt ob Sie die Makros akzeptieren - mit ja bestätigen !
C31: Wenn Sie Niedrig auswählen wird das Programm automatisch mit den Makros gestartet.
C32: Office Vista (2007): Schaltfläche Office - Excel Optionen - Vertrauensstellungscenter -
C33: Einstellungen für das Vertrauensstellungcenter - Einstellungen für Makros - alle Makros aktivieren
C34: oder alle Makros mit Benachrichtigung deaktivieren auswählen.
C35: Wenn Sie Makros mit Benachrichtigung deaktivieren auswählen, dann sind bei jedem Neustart die Makros zu aktivieren.
B37: Stammdaten: | C37: Kundenstamm: | E37: Neuanlage eines Kunden erfolgt in der Eingabe-Maske.
E38: Sie können diesen Kunden in Ihrem Kundenstamm speichern - Button "Kunde speichern" drücken !
E39: Der Kunde muss im Kundenstamm erfasst sein, damit dieser im Programm ausgewählt werden kann.
E40: Der Kundenstamm ist ein Bestandteil des Programms.
E41: Bei einem Programmupdate wird der abgespeicherte Kundenstamm automatisch in das
E42: Programm importiert. (4997 Kunden können erfasst werden)
C44: Firmendaten: | E44: Eingabe der Firmen- und Sachbearbeiter-Daten (bei einem Programmupdate werden diese
E45: Eingaben übernommen).
E46: Bitte wählen Sie das auf Ihrem Computer eingestellte Mailprogramm aus.
E47: Lieferantenstamm: | G47: Sie haben die Möglichkeit im abgespeicherten Angebot, für die Materialbestellung,
G48: Lieferanten vorzubelegen (nach einem Programmupdate müssen diese Lieferanten
G49: neu eingegeben werden).
C51: Montage-Belegtexte: | E51: Alle weißen Felder sind frei definierbare Montage- und Belegtexte.
B53: Eingabemaske: | C53: Bauvorhaben: | E53: Eingabe der Baustellen-Anschrift.
C54: Konditionen/Lohn: | E54: Eingabe von zwei Rabatten. Die Berechnungsgrundlage für den zweiten Rabatt ist
E55: Brutto abzg. erster Rabatt.
E56: Montageleistungen können in Stunden, Kilometer oder in einer Pauschale eingegeben werden.
E57: (Achtung: Montagetext vorher eingeben!)
C58: BelegNr: | E58: Individuelle Eingabe einer Belegnummer.
C59: Belegart: | E59: Kalkulation, Angebot oder Auftragsbestätigung.
E60: Durch klicken auf ein Produkt-Logo öffnet sich die jeweilige Eingabemaske.
B62: Produktmasken: | C62: Auswahlfelder: | E62: Geben sie die notwendigen Daten in den Auswahlfeldern ein.
C63: Kalkulation Anlage: | E63: Nach erfolgter Auswahl werden die Artikel durch klicken auf "Kalkulation" in die Tabelle
E64: Kalkulation generiert.
C65: Einzelteileingabe: | E65: Der Typ mit dem entsprechenden Ø wird ohne Mengenvorgaben in die Tabelle Kalkulation generiert.
B67: Kalkulation: | C67: Stückliste erweitern: | E67: Hier können zusätzliche Artkel ausgewählt werden.
C68: Druckansicht: | E68: Der Ausdruck sollte immer über die Druckansicht erfolgen, da damit auch eine erweiterte
E69: Stückliste auf die ausgewählten Artikel gefiltert wird.
C70: Bestellung: | E70: Automatische Bestellgenerierung an das Schiedel Kunden-Center oder Lieferanten Ihrer Wahl.
E71: Die Lieferanten können Sie in der Tabelle "Firmendaten" mit dem Button "Lieferanten" erfassen.
B73: Rechtlicher Hinweis: | E73: Schiedel kann dem Baustoff-Fachhandel die in dieser Software dargestellten
E74: Angebote gemäß den Geschäfts- und Lieferbedingungen von Schiedel unterbreiten.
E75: Preise ab Werk zzgl. MwSt.
E76: Gültig ab 1. Januar 2024

Sheet Kundenstamm (hidden)
L1: Rabattgruppendefinitionen für PARAT | S1: 6002 | T1: =VLOOKUP(S1,T2:U2000,2,0) -> 1 | U1: -1 | W1: =IF(INDEX(Kundenstamm!$A$3:$J$5000,Kundenstamm!$T$2,2)="","",INDEX(Kundenstamm!$A$3:$J$5000,Kundenstamm!$T$2,2)) -> Musterkunde | AB1: Anschrift 1 | AC1: Anschrift 2 | AD1: Straße | AE1: PLZ | AF1: Ort | AG1: Ansprechpartner | AH1: Tel.Nr. | AI1: Fax.Nr.
A2: Ku.Nr. | B2: Anschrift 1 | C2: Anschrift 2 | D2: Straße | E2: PLZ | F2: Ort | G2: Ansprechpartner | H2: Tel.Nr. | I2: Fax.Nr. | J2: Handy | K2: E-Mail | S2: Kunden-Matchcode | T2: 1 | U2: =U1+1 -> 0 | V2: =INDEX(A3:A5000,T2,1) -> 6002 | W2: =IF(INDEX(Kundenstamm!$A$3:$J$5000,Kundenstamm!$T$2,3)="","",INDEX(Kundenstamm!$A$3:$J$5000,Kundenstamm!$T$2,3)) ->  | AB2: =Eingabe!K4 -> Musterkunde | AC2: =IF(Eingabe!K5="","",Eingabe!K5) ->  | AD2: =IF(Eingabe!K6="","",Eingabe!K6) -> Musterstraße | AE2: =IF(Eingabe!K7="","",Eingabe!K7) -> 4542 | AF2: =IF(Eingabe!L7="","",Eingabe!L7) -> Nußbach | AG2: =IF(Eingabe!K10="","",Eingabe!K10) -> Herr Muster | AH2: =IF(Eingabe!K12="","",Eingabe!K12) ->  | AI2: =IF(Eingabe!N12="","",Eingabe!N12) -> 
A3: 6002 | B3: Musterkunde | D3: Musterstraße | E3: 4542 | F3: Nußbach | G3: Herr Muster | S3: =IF(B3="","",B3&", "&F3&", "&G3) -> Musterkunde, Nußbach, Herr Muster | T3: =IF(A3="","",A3) -> 6002 | U3: =U2+1 -> 1 | W3: =IF(INDEX(Kundenstamm!$A$3:$J$5000,Kundenstamm!$T$2,4)="","",INDEX(Kundenstamm!$A$3:$J$5000,Kundenstamm!$T$2,4)) -> Musterstraße
A4: 6001 | B4: Schiedel Kaminsysteme GmbH | D4: Friedrich-Schiedel-Str. 2-6 | E4: 4542 | F4: Nußbach | S4: =IF(B4="","",B4&", "&F4&", "&G4) -> Schiedel Kaminsysteme GmbH, Nußbach, | T4: 6001 | U4: 2 | W4: =IF(INDEX(Kundenstamm!$A$3:$J$5000,Kundenstamm!$T$2,5)="","",INDEX(Kundenstamm!$A$3:$J$5000,Kundenstamm!$T$2,5)) -> 4542 | X4: =IF(INDEX(Kundenstamm!$A$3:$J$5000,Kundenstamm!$T$2,6)="","",INDEX(Kundenstamm!$A$3:$J$5000,Kundenstamm!$T$2,6)) -> Nußbach
U5: 3 | W5: PLZ | X5: Ort
U6: 4
U7: 5 | W7: =IF(INDEX(Kundenstamm!$A$3:$J$5000,Kundenstamm!$T$2,7)="","",INDEX(Kundenstamm!$A$3:$J$5000,Kundenstamm!$T$2,7)) -> Herr Muster
U8: 6 | W8: Ansprechpartner
T9: =IF(A9="","",A9) ->  | U9: 7 | W9: =IF(INDEX(Kundenstamm!$A$3:$J$5000,Kundenstamm!$T$2,8)="","",INDEX(Kundenstamm!$A$3:$J$5000,Kundenstamm!$T$2,8)) ->  | Z9: =IF(INDEX(Kundenstamm!$A$3:$J$5000,Kundenstamm!$T$2,9)="","",INDEX(Kundenstamm!$A$3:$J$5000,Kundenstamm!$T$2,9)) -> 
T10: =IF(A10="","",A10) ->  | U10: 8
U11: =U10+1 -> 9
U12: 10
U13: 11
U14: 12
U15: 13
U16: 14
U17: 15
U18: 16
U19: 17
U20: 18
U21: 19
U22: 20
U23: 21
U24: 22
U25: 23
U26: 24
U27: 25
U28: 26
U29: 27
U30: 28
U31: 29
U32: 30
U33: 31
U34: 32
U35: 33
U36: 34
U37: 35
U38: 36
U39: 37
U40: 38
U41: 39
U42: 40
U43: 41
U44: 42
U45: 43
U46: 44
U47: 45
U48: 46
U49: 47
U50: 48
U51: 49
U52: 50
U53: 51
U54: 52
U55: 53
U56: 54
U57: 55
U58: 56
U59: 57
U60: 58
U61: 59
U62: 60
U63: 61
U64: 62
U65: 63
U66: 64
U67: =U66+1 -> 65
S68: =IF(B68="","",B68&", "&F68&", "&G68) ->  | U68: 66
U69: 67
U70: 68
U71: 69
U72: 70
U73: 71
T74: =IF(A74="","",A74) ->  | U74: 72
U75: 73
U76: 74
U77: 75
U78: 76
U79: 77
U80: 78
U81: 79
U82: 80
U83: 81
U84: 82
U85: 83
U86: 84
U87: 85
U88: 86
U89: 87
U90: 88
U91: 89
U92: 90
U93: 91
U94: 92
U95: 93
U96: 94
U97: 95
U98: 96
U99: 97
U100: 98
U101: 99
U102: 100
U103: 101
U104: 102
U105: 103
U106: 104
U107: 105
U108: 106
U109: 107
U110: 108
U111: 109
U112: 110
U113: 111
U114: 112
U115: 113
U116: 114
U117: 115
U118: 116
U119: 117
U120: 118
U121: 119
U122: 120
U123: 121
U124: 122
U125: 123
U126: 124
U127: 125
U128: 126
U129: 127
U130: 128
U131: =U130+1 -> 129
S132: =IF(B132="","",B132&", "&F132&", "&G132) ->  | U132: 130
U133: 131
U134: 132
U135: 133
U136: 134
U137: 135
T138: =IF(A138="","",A138) ->  | U138: 136
U139: 137
U140: 138
U141: 139
U142: 140
U143: 141
U144: 142
U145: 143
U146: 144
U147: 145
U148: 146
U149: 147
U150: 148
U151: 149
U152: 150
U153: 151
U154: 152
U155: 153
U156: 154
U157: 155
U158: 156
U159: 157
U160: 158
U161: 159
U162: 160
U163: 161
U164: 162
U165: 163
U166: 164
U167: 165
U168: 166
U169: 167
U170: 168
U171: 169
U172: 170
U173: 171
U174: 172
U175: 173
U176: 174
U177: 175
U178: 176
U179: 177
U180: 178
U181: 179
U182: 180
U183: 181
U184: 182
U185: 183
U186: 184
U187: 185
U188: 186
U189: 187
U190: 188
U191: 189
U192: 190
U193: 191
U194: 192
U195: =U194+1 -> 193
S196: =IF(B196="","",B196&", "&F196&", "&G196) ->  | U196: 194
U197: 195
U198: 196
U199: 197
U200: 198
... 4300 more rows

Sheet Kerastar (hidden)
F2: =VLOOKUP(Daten!$U$5,Daten!$T:$AL,19,0) -> Typ Kerastar 180 | P2: =VLOOKUP(Daten!$U$5,Daten!$T:$U,2,0)&" "&VLOOKUP(Daten!$U$5,Daten!$T:$V,3,0) -> KERASTAR 180
F4: Lichter Ø mm
F6: Brennstoff | M6: Anpassung der Anlagenhöhe
F8: Anlagenhöhe in m | J8: 10 | M8: tatsächliche Anlagenhöhe | P8: =VLOOKUP(P2,Sortimente!G:P,10,0) -> 10.1515
F10: Wand- o. Bodenmontage | M10: Differenz +/- | P10: =P8-J8 -> 0.1515
F12: Putztüranschluss | M12: Anpassung durch Eingabe kürzerer Rohrelemente:
F14: Rauchrohranschluss RA
F16: RA-Höhe in m | N16: Rohr 330 mm
F18: RA-Verlängerung (KRS) | N18: Rohr 165 mm
F20: Anschlussrosette DW | G20: (schmal)
F22: Sparrenhalterung
F24: Dachdurchführung
F26: Regenhaube
F28: Wandabstand (>=50 mm)
F30: Wandhalterung statisch
F31: (inkl. 2 St. statischer Manschetten)
F33: WDS

Sheet AVANT (hidden)
F3: =VLOOKUP(Daten!$U$160,Daten!$T:$AL,19,0) -> Typ AVANT 14
F5: Lichter Ø cm
F7: Anlagenhöhe in m
F9: Fussausführung
F11: Rauchrohranschluss
F13: Avant Kopfbauteil
F14: (für bauseitige Verkleidung)
F16: Schiedel Kaminkopf
F20: Zubehör
F22: obere Putztür
F24: Kaminhalter
F26: Bewehrungs-Set

Sheet Folienanschlusspaket (hidden)

Sheet Texte (hidden)
D1: Variabler Text für Montagearbeiten
B3: 1.Zeile
B4: 2.Zeile
B5: 3.Zeile
B6: 4.Zeile
D10: Variabler Kopftext für Angebot
B12: 1.Zeile | D12: =IF(Eingabe!K10=0,"",IF(Eingabe!K10="","","Sehr geehrte(r) "&Eingabe!K10&",")) -> Sehr geehrte(r) Herr Muster,
B13: 2.Zeile | D13: wir bedanken uns für Ihre Anfrage und bieten Ihnen folgendes an:
B15: 1.u.2.Zeile | D15: Wir bedanken uns für Ihre Anfrage und bieten Ihnen folgendes an:
D16: Variabler Schlusstext für Angebot
B18: 1.Zeile
B19: 2.Zeile
B20: 3.Zeile | D20: Wir hoffen, dass Ihnen unser Angebot zusagt und freuen uns auf Ihren Auftrag.
B21: 4.Zeile | D21: Freundliche Grüße aus Nußbach
D22: Gültigkeit des Angebotes
B24: 1.Zeile | D24: Das Angebot ist ab Erstellung 6 Monate gültig, spätestens bis 31.12.2024.

Sheet Firma (hidden)
B1: INFO:
B2: In den Zeilen 5-10 tragen Sie bitte Ihre Firma, und den Zeilen 14-15 den Sachbearbeiter u. Tel.Nr., ein.
B4: Firmendaten (Briefkopf):
A5: Zeile 1 | B5: Name1
A6: Zeile 2 | B6: Name 2
A7: Zeile 3 | B7: PLZ und Ort
A8: Zeile 4 | B8: Tel. +43(0)
A9: Zeile 5 | B9: e-mail:
B13: Sachbearbeiter:
A14: Vorname/Name | B14: Sachbearbeiter | C14: =Eingabe!K4&" "&Eingabe!K15&" "&Eingabe!L17 -> Musterkunde
A15: Telefon | B15: 06.. …..
A16: Name 2
A44: 3 | B44: =INDEX(Firma!B46:B48,A44,1) -> nichts
A45: Mailprogramm
A46: Outlook | B46: Outlook
A47: Lotus Notes | B47: Lotus
A48: keines von Beiden | B48: nichts

Sheet Lieferanten (hidden)
A2: Lieferantenübersicht | D2: 1
A5: Nr. | B5: Name1 | C5: Name2 | D5: Straße | E5: PLZ | F5: Ort | G5: Telefon | H5: Fax | I5: e-Mail | J5: Matchcode
A6: 1 | B6: Schiedel Kaminsysteme | C6: Ges.mbH | D6: Friedrich Schiedel Str. 2-6 | E6: 4542 | F6: Nussbach | G6: Tel. 050 6161 | H6: Fax. 050 6161 444 | I6: bestellung@schiedel.at | J6: =B6&" "&E6&" "&F6 -> Schiedel Kaminsysteme 4542 Nussbach
A7: 2 | J7: =B7&" "&E7&" "&F7 -> 
A8: 3 | J8: =B8&" "&E8&" "&F8 -> 
A9: 4 | J9: =B9&" "&E9&" "&F9 -> 

Sheet Belegart (hidden)
A1: 2 | B1: =INDEX(A4:A8,A1,1) -> Angebot
A3: Belegart:
A4: Kalkulation
A5: Angebot
A6: Auftragsbestätigung

Sheet MULTI (hidden)
F3: =VLOOKUP(Daten!$U$169,Daten!$T:$AL,19,0) -> Typ MULTI 14
F5: Lichter Ø cm
F7: Anlagenhöhe in m
F9: Fussausführung
F11: Anschlussstein-Kombination
F13: Multi Kopfbauteil
F14: (für bauseitige Verkleidung)
F16: Schiedel Kaminkopf
F20: Zubehör
F22: obere Putztür
F24: Kaminhalter
F26: Bewehrungs-Set

Sheet Standardsicherung (hidden)

Sheet Multi_CE (hidden)

Sheet Explosionsklappe (hidden)

Sheet Musteranlage (hidden)
A1: =IF($J$1="Kerastar",Daten!$U$5,IF(J1="Absolut",Daten!$U$48,IF(J1="AbsolutTL",Daten!$U$47,IF($J$1="SIH",Daten!$U$179,IF($J$1="IBFS",Daten!$U$227,A2))))) -> ABSOLUT1814 | J1: Absolut | K1: =VLOOKUP(A1,Daten!T:AM,3,0) -> 1814
A2: =IF($J$1="AVANT",Daten!$U$160,IF($J$1="MULTI",Daten!$U$169,IF($J$1="Permeter",Daten!$U$247,IF($J$1="Permeter Smooth Air",Daten!$U$259,IF($J$1="ICS",Daten!$U$105,A3))))) ->  | H2: =VLOOKUP(A1,Daten!T:U,2,0) -> ABSOLUT | I2: =VLOOKUP(A1,Daten!$T:$AM,20,0) -> Schiedel ABSOLUT, ABS 1814 | L2: =IF(VLOOKUP(A1,Daten!$T:$Y,6,0)="","",VLOOKUP(A1,Daten!$T:$Y,6,0)) -> Zweischaliges Kaminsystem
A3: =IF($J$1="AbsolutParat",Daten!$U$327,IF($J$1="SIHParat",Daten!$U$374,IF($J$1="AvantParat",Daten!$U$454,IF($J$1="SBD",Daten!$U$471,IF($J$1="SBW",Daten!$U$483,IF($J$1="ProgasPP",Daten!$U$266,A4)))))) ->  | I3: =IF(H2="Kerastar",Daten!$F$403&", Außen Ø: "&Daten!$W$5,IF(H2="Permeter",Daten!$H$9&", Außen Ø: "&Daten!$W$247,IF($H$2="Absolut","Außenmaß: "&Daten!$AI$48,IF($H$2="AbsolutTL","Außenmaß: "&Daten!$AI$47,IF($H$2="SIH","Außenmaß: "&Daten!$W$179,IF($H$2="Avant","Außenmaß: "&Daten!$AI$160,IF($H$2="Multi","Außenmaß: "&Daten!$AI$169,R3))))))) -> Außenmaß: 36/65 cm | L3: =IF(VLOOKUP(A1,Daten!$T:$AA,8,0)=0,"",(VLOOKUP(A1,Daten!$T:$AA,8,0))) -> Compound-Mantelstein mit integrierter Wärmedämmung | R3: =IF(H2="ICS",Daten!$C$46&", Außen Ø: "&Daten!$W$105,IF(H2="IC5-",Daten!$C$46&", Außen Ø: "&Daten!$W$105,IF(H2="IC5-1-",Daten!$C$46&", Außen Ø: "&Daten!$W$105,IF($H$2="AERA","Außenmaß: "&Daten!$W$277,IF($H$2="SBD","Außenmaß: "&Daten!$W$471,IF($H$2="SBW","Außenmaß: "&Daten!$W$483,S3)))))) ->  | S3: =IF(H2="Absolut Parat","Außenmaß: "&Daten!$AI$327,IF(H2="SIH Parat","Außenmaß: "&Daten!$Z$374,IF(H2="Avant Parat","Außenmaß: "&Daten!$Z$427,IF(H2="Xpert","Außenmaß: "&Daten!$AI$496,IF(H2="XP2","Außenmaß: "&Daten!$AI$508,IF(H2="Xpress","Außenmaß: "&Daten!$AI$519,IF(H2="Leichtbauschacht","Außenmaß: "&Daten!W29&" mm",""))))))) -> 
A4: =IF($J$1="HP_5000",Daten!$U$1369,IF($J$1="Kingfire",Daten!$U$412,IF($J$1="Prima Plus",Daten!$U$1226,IF($J$1="Keranova",Daten!$U$18,IF($J$1="Progasflex",Daten!$U$98,IF($J$1="Leichtbauschacht",Daten!$U$29,"")))))) ->  | I4: =IF(J1="AERA","Beginn des Schachtes: ab "&Daten!$C$724,IF(Daten!$B$1120>1,"zus. "&Daten!B1119&" m Kaminaufsatz (je Zug)","")) ->  | L4: =IF(VLOOKUP(A1,Daten!$T:$AB,9,0)=0,"",(VLOOKUP(A1,Daten!$T:$AB,9,0))) -> und keramischem Profil-Innenrohr
N5: =IF(R5="","",IF(R5=1,"","(inkl. "&S5&" RA-Verlängerung)")) ->  | R5: =IF($H$2="Kerastar",Daten!$B$421,IF($H$2="IC5-",Daten!$B$10,IF($H$2="ICS",Daten!$B$10,IF($H$2="IC5-1-",Daten!$B$10,IF($H$2="Permeter",Daten!$B$10,""))))) ->  | S5: =IF($H$2="Kerastar",Daten!$C$421,IF($H$2="IC5-",Daten!$C$10,IF($H$2="ICS",Daten!$C$10,IF($H$2="IC5-1-",Daten!$C$10,IF($H$2="Permeter",Daten!$C$10,""))))) -> 
A7: Nr. | B7: Verkn. | H7: Rabatt- fähig | I7: Pos. | J7: Artikelbezeichnung | K7: Baulänge | L7: Artikelnummer | M7: Menge
A8: 0 | B8: =$A$1&Musteranlage!A8 -> ABSOLUT18140 | H8: =IF(L8="","",IF(L8=0,"J",IF(L8="Sonder","J",VLOOKUP(L8,sanschie!A:K,11,0)))) -> J | I8: =IF(ISNA(VLOOKUP($B8,Sortimente!D:G,2,0))=TRUE,"",VLOOKUP($B8,Sortimente!D:G,2,0)) -> P | L8: =IF(I8="","",VLOOKUP($B8,Sortimente!D:G,4,0)) -> Absolut1814 | M8: =IF(I8="","",IF(VLOOKUP(B8,Sortimente!D:L,9,0)=0,"",VLOOKUP(B8,Sortimente!D:L,9,0))) -> 
A9: 1 | B9: =$A$1&Musteranlage!A9 -> ABSOLUT18141 | H9: =IF(L9="","",IF(L9=0,"J",IF(L9="Sonder","J",VLOOKUP(L9,sanschie!A:K,11,0)))) -> J | I9: =IF(ISNA(VLOOKUP($B9,Sortimente!D:G,2,0))=TRUE,"",VLOOKUP($B9,Sortimente!D:G,2,0)) -> 0 | L9: =IF(I9="","",IF(VLOOKUP(B9,Sortimente!D:G,4,0)="",VLOOKUP(B9,Sortimente!D:H,5,0),VLOOKUP(B9,Sortimente!D:G,4,0))) -> 100025 | M9: =IF(I9="","",IF(VLOOKUP(B9,Sortimente!D:L,9,0)=0,"",VLOOKUP(B9,Sortimente!D:L,9,0))) -> 27
A10: 2 | B10: =$A$1&Musteranlage!A10 -> ABSOLUT18142 | H10: =IF(L10="","",IF(L10=0,"J",IF(L10="Sonder","J",VLOOKUP(L10,sanschie!A:K,11,0)))) -> J | I10: =IF(ISNA(VLOOKUP($B10,Sortimente!D:G,2,0))=TRUE,"",VLOOKUP($B10,Sortimente!D:G,2,0)) -> 0 | L10: =IF(I10="","",IF(VLOOKUP(B10,Sortimente!D:G,4,0)="",VLOOKUP(B10,Sortimente!D:H,5,0),VLOOKUP(B10,Sortimente!D:G,4,0))) -> 100040 | M10: =IF(I10="","",IF(VLOOKUP(B10,Sortimente!D:L,9,0)=0,"",VLOOKUP(B10,Sortimente!D:L,9,0))) -> 7
A11: 3 | B11: =$A$1&Musteranlage!A11 -> ABSOLUT18143 | H11: =IF(L11="","",IF(L11=0,"J",IF(L11="Sonder","J",VLOOKUP(L11,sanschie!A:K,11,0)))) -> J | I11: =IF(ISNA(VLOOKUP($B11,Sortimente!D:G,2,0))=TRUE,"",VLOOKUP($B11,Sortimente!D:G,2,0)) -> 0 | L11: =IF(I11="","",IF(VLOOKUP(B11,Sortimente!D:G,4,0)="",VLOOKUP(B11,Sortimente!D:H,5,0),VLOOKUP(B11,Sortimente!D:G,4,0))) -> 100038 | M11: =IF(I11="","",IF(VLOOKUP(B11,Sortimente!D:L,9,0)=0,"",VLOOKUP(B11,Sortimente!D:L,9,0))) -> 6
A12: 4 | B12: =$A$1&Musteranlage!A12 -> ABSOLUT18144 | H12: =IF(L12="","",IF(L12=0,"J",IF(L12="Sonder","J",VLOOKUP(L12,sanschie!A:K,11,0)))) -> J | I12: =IF(ISNA(VLOOKUP($B12,Sortimente!D:G,2,0))=TRUE,"",VLOOKUP($B12,Sortimente!D:G,2,0)) -> 0 | L12: =IF(I12="","",IF(VLOOKUP(B12,Sortimente!D:G,4,0)="",VLOOKUP(B12,Sortimente!D:H,5,0),VLOOKUP(B12,Sortimente!D:G,4,0))) -> 164355 | M12: =IF(I12="","",IF(VLOOKUP(B12,Sortimente!D:L,9,0)=0,"",VLOOKUP(B12,Sortimente!D:L,9,0))) -> 1
A13: 5 | B13: =$A$1&Musteranlage!A13 -> ABSOLUT18145 | H13: =IF(L13="","",IF(L13=0,"J",IF(L13="Sonder","J",VLOOKUP(L13,sanschie!A:K,11,0)))) -> J | I13: =IF(ISNA(VLOOKUP($B13,Sortimente!D:G,2,0))=TRUE,"",VLOOKUP($B13,Sortimente!D:G,2,0)) -> 0 | L13: =IF(I13="","",IF(VLOOKUP(B13,Sortimente!D:G,4,0)="",VLOOKUP(B13,Sortimente!D:H,5,0),VLOOKUP(B13,Sortimente!D:G,4,0))) -> 100120 | M13: =IF(I13="","",IF(VLOOKUP(B13,Sortimente!D:L,9,0)=0,"",VLOOKUP(B13,Sortimente!D:L,9,0))) -> 1
A14: 6 | B14: =$A$1&Musteranlage!A14 -> ABSOLUT18146 | H14: =IF(L14="","",IF(L14=0,"J",IF(L14="Sonder","J",VLOOKUP(L14,sanschie!A:K,11,0)))) -> J | I14: =IF(ISNA(VLOOKUP($B14,Sortimente!D:G,2,0))=TRUE,"",VLOOKUP($B14,Sortimente!D:G,2,0)) -> 0 | L14: =IF(I14="","",IF(VLOOKUP(B14,Sortimente!D:G,4,0)="",VLOOKUP(B14,Sortimente!D:H,5,0),VLOOKUP(B14,Sortimente!D:G,4,0))) -> 100118 | M14: =IF(I14="","",IF(VLOOKUP(B14,Sortimente!D:L,9,0)=0,"",VLOOKUP(B14,Sortimente!D:L,9,0))) -> 1
A15: 7 | B15: =$A$1&Musteranlage!A15 -> ABSOLUT18147 | H15: =IF(L15="","",IF(L15=0,"J",IF(L15="Sonder","J",VLOOKUP(L15,sanschie!A:K,11,0)))) -> J | I15: =IF(ISNA(VLOOKUP($B15,Sortimente!D:G,2,0))=TRUE,"",VLOOKUP($B15,Sortimente!D:G,2,0)) -> 0 | L15: =IF(I15="","",IF(VLOOKUP(B15,Sortimente!D:G,4,0)="",VLOOKUP(B15,Sortimente!D:H,5,0),VLOOKUP(B15,Sortimente!D:G,4,0))) -> 100131 | M15: =IF(I15="","",IF(VLOOKUP(B15,Sortimente!D:L,9,0)=0,"",VLOOKUP(B15,Sortimente!D:L,9,0))) -> 
A16: 8 | B16: =$A$1&Musteranlage!A16 -> ABSOLUT18148 | H16: =IF(L16="","",IF(L16=0,"J",IF(L16="Sonder","J",VLOOKUP(L16,sanschie!A:K,11,0)))) -> J | I16: =IF(ISNA(VLOOKUP($B16,Sortimente!D:G,2,0))=TRUE,"",VLOOKUP($B16,Sortimente!D:G,2,0)) -> 0 | L16: =IF(I16="","",IF(VLOOKUP(B16,Sortimente!D:G,4,0)="",VLOOKUP(B16,Sortimente!D:H,5,0),VLOOKUP(B16,Sortimente!D:G,4,0))) -> 100129 | M16: =IF(I16="","",IF(VLOOKUP(B16,Sortimente!D:L,9,0)=0,"",VLOOKUP(B16,Sortimente!D:L,9,0))) -> 
A17: 9 | B17: =$A$1&Musteranlage!A17 -> ABSOLUT18149 | H17: =IF(L17="","",IF(L17=0,"J",IF(L17="Sonder","J",VLOOKUP(L17,sanschie!A:K,11,0)))) -> J | I17: =IF(ISNA(VLOOKUP($B17,Sortimente!D:G,2,0))=TRUE,"",VLOOKUP($B17,Sortimente!D:G,2,0)) -> 0 | L17: =IF(I17="","",IF(VLOOKUP(B17,Sortimente!D:G,4,0)="",VLOOKUP(B17,Sortimente!D:H,5,0),VLOOKUP(B17,Sortimente!D:G,4,0))) -> 100002 | M17: =IF(I17="","",IF(VLOOKUP(B17,Sortimente!D:L,9,0)=0,"",VLOOKUP(B17,Sortimente!D:L,9,0))) -> 
A18: 10 | B18: =$A$1&Musteranlage!A18 -> ABSOLUT181410 | H18: =IF(L18="","",IF(L18=0,"J",IF(L18="Sonder","J",VLOOKUP(L18,sanschie!A:K,11,0)))) -> J | I18: =IF(ISNA(VLOOKUP($B18,Sortimente!D:G,2,0))=TRUE,"",VLOOKUP($B18,Sortimente!D:G,2,0)) -> 0 | L18: =IF(I18="","",IF(VLOOKUP(B18,Sortimente!D:G,4,0)="",VLOOKUP(B18,Sortimente!D:H,5,0),VLOOKUP(B18,Sortimente!D:G,4,0))) -> 100053 | M18: =IF(I18="","",IF(VLOOKUP(B18,Sortimente!D:L,9,0)=0,"",VLOOKUP(B18,Sortimente!D:L,9,0))) -> 
A19: 11 | B19: =$A$1&Musteranlage!A19 -> ABSOLUT181411 | H19: =IF(L19="","",IF(L19=0,"J",IF(L19="Sonder","J",VLOOKUP(L19,sanschie!A:K,11,0)))) -> J | I19: =IF(ISNA(VLOOKUP($B19,Sortimente!D:G,2,0))=TRUE,"",VLOOKUP($B19,Sortimente!D:G,2,0)) -> 0 | L19: =IF(I19="","",IF(VLOOKUP(B19,Sortimente!D:G,4,0)="",VLOOKUP(B19,Sortimente!D:H,5,0),VLOOKUP(B19,Sortimente!D:G,4,0))) -> 100058 | M19: =IF(I19="","",IF(VLOOKUP(B19,Sortimente!D:L,9,0)=0,"",VLOOKUP(B19,Sortimente!D:L,9,0))) -> 
A20: 12 | B20: =$A$1&Musteranlage!A20 -> ABSOLUT181412 | H20: =IF(L20="","",IF(L20=0,"J",IF(L20="Sonder","J",VLOOKUP(L20,sanschie!A:K,11,0)))) -> J | I20: =IF(ISNA(VLOOKUP($B20,Sortimente!D:G,2,0))=TRUE,"",VLOOKUP($B20,Sortimente!D:G,2,0)) -> 0 | L20: =IF(I20="","",IF(VLOOKUP(B20,Sortimente!D:G,4,0)="",VLOOKUP(B20,Sortimente!D:H,5,0),VLOOKUP(B20,Sortimente!D:G,4,0))) -> 100051 | M20: =IF(I20="","",IF(VLOOKUP(B20,Sortimente!D:L,9,0)=0,"",VLOOKUP(B20,Sortimente!D:L,9,0))) -> 1
A21: 13 | B21: =$A$1&Musteranlage!A21 -> ABSOLUT181413 | H21: =IF(L21="","",IF(L21=0,"J",IF(L21="Sonder","J",VLOOKUP(L21,sanschie!A:K,11,0)))) -> J | I21: =IF(ISNA(VLOOKUP($B21,Sortimente!D:G,2,0))=TRUE,"",VLOOKUP($B21,Sortimente!D:G,2,0)) -> 0 | L21: =IF(I21="","",IF(VLOOKUP(B21,Sortimente!D:G,4,0)="",VLOOKUP(B21,Sortimente!D:H,5,0),VLOOKUP(B21,Sortimente!D:G,4,0))) -> 100056 | M21: =IF(I21="","",IF(VLOOKUP(B21,Sortimente!D:L,9,0)=0,"",VLOOKUP(B21,Sortimente!D:L,9,0))) -> 
A22: 14 | B22: =$A$1&Musteranlage!A22 -> ABSOLUT181414 | H22: =IF(L22="","",IF(L22=0,"J",IF(L22="Sonder","J",VLOOKUP(L22,sanschie!A:K,11,0)))) -> J | I22: =IF(ISNA(VLOOKUP($B22,Sortimente!D:G,2,0))=TRUE,"",VLOOKUP($B22,Sortimente!D:G,2,0)) -> 0 | L22: =IF(I22="","",IF(VLOOKUP(B22,Sortimente!D:G,4,0)="",VLOOKUP(B22,Sortimente!D:H,5,0),VLOOKUP(B22,Sortimente!D:G,4,0))) -> 100070 | M22: =IF(I22="","",IF(VLOOKUP(B22,Sortimente!D:L,9,0)=0,"",VLOOKUP(B22,Sortimente!D:L,9,0))) -> 
A23: 15 | B23: =$A$1&Musteranlage!A23 -> ABSOLUT181415 | H23: =IF(L23="","",IF(L23=0,"J",IF(L23="Sonder","J",VLOOKUP(L23,sanschie!A:K,11,0)))) -> J | I23: =IF(ISNA(VLOOKUP($B23,Sortimente!D:G,2,0))=TRUE,"",VLOOKUP($B23,Sortimente!D:G,2,0)) -> 0 | L23: =IF(I23="","",IF(VLOOKUP(B23,Sortimente!D:G,4,0)="",VLOOKUP(B23,Sortimente!D:H,5,0),VLOOKUP(B23,Sortimente!D:G,4,0))) -> 100068 | M23: =IF(I23="","",IF(VLOOKUP(B23,Sortimente!D:L,9,0)=0,"",VLOOKUP(B23,Sortimente!D:L,9,0))) -> 
A24: 16 | B24: =$A$1&Musteranlage!A24 -> ABSOLUT181416 | H24: =IF(L24="","",IF(L24=0,"J",IF(L24="Sonder","J",VLOOKUP(L24,sanschie!A:K,11,0)))) -> J | I24: =IF(ISNA(VLOOKUP($B24,Sortimente!D:G,2,0))=TRUE,"",VLOOKUP($B24,Sortimente!D:G,2,0)) -> 0 | L24: =IF(I24="","",IF(VLOOKUP(B24,Sortimente!D:G,4,0)="",VLOOKUP(B24,Sortimente!D:H,5,0),VLOOKUP(B24,Sortimente!D:G,4,0))) -> 100075 | M24: =IF(I24="","",IF(VLOOKUP(B24,Sortimente!D:L,9,0)=0,"",VLOOKUP(B24,Sortimente!D:L,9,0))) -> 
A25: 17 | B25: =$A$1&Musteranlage!A25 -> ABSOLUT181417 | H25: =IF(L25="","",IF(L25=0,"J",IF(L25="Sonder","J",VLOOKUP(L25,sanschie!A:K,11,0)))) -> J | I25: =IF(ISNA(VLOOKUP($B25,Sortimente!D:G,2,0))=TRUE,"",VLOOKUP($B25,Sortimente!D:G,2,0)) -> 0 | L25: =IF(I25="","",IF(VLOOKUP(B25,Sortimente!D:G,4,0)="",VLOOKUP(B25,Sortimente!D:H,5,0),VLOOKUP(B25,Sortimente!D:G,4,0))) -> 100073 | M25: =IF(I25="","",IF(VLOOKUP(B25,Sortimente!D:L,9,0)=0,"",VLOOKUP(B25,Sortimente!D:L,9,0))) -> 
A26: 18 | B26: =$A$1&Musteranlage!A26 -> ABSOLUT181418 | H26: =IF(L26="","",IF(L26=0,"J",IF(L26="Sonder","J",VLOOKUP(L26,sanschie!A:K,11,0)))) -> J | I26: =IF(ISNA(VLOOKUP($B26,Sortimente!D:G,2,0))=TRUE,"",VLOOKUP($B26,Sortimente!D:G,2,0)) -> 0 | L26: =IF(I26="","",IF(VLOOKUP(B26,Sortimente!D:G,4,0)="",VLOOKUP(B26,Sortimente!D:H,5,0),VLOOKUP(B26,Sortimente!D:G,4,0))) -> 100197 | M26: =IF(I26="","",IF(VLOOKUP(B26,Sortimente!D:L,9,0)=0,"",VLOOKUP(B26,Sortimente!D:L,9,0))) -> 
A27: 19 | B27: =$A$1&Musteranlage!A27 -> ABSOLUT181419 | H27: =IF(L27="","",IF(L27=0,"J",IF(L27="Sonder","J",VLOOKUP(L27,sanschie!A:K,11,0)))) -> J | I27: =IF(ISNA(VLOOKUP($B27,Sortimente!D:G,2,0))=TRUE,"",VLOOKUP($B27,Sortimente!D:G,2,0)) -> 0 | L27: =IF(I27="","",IF(VLOOKUP(B27,Sortimente!D:G,4,0)="",VLOOKUP(B27,Sortimente!D:H,5,0),VLOOKUP(B27,Sortimente!D:G,4,0))) -> 100198 | M27: =IF(I27="","",IF(VLOOKUP(B27,Sortimente!D:L,9,0)=0,"",VLOOKUP(B27,Sortimente!D:L,9,0))) -> 
A28: 20 | B28: =$A$1&Musteranlage!A28 -> ABSOLUT181420 | H28: =IF(L28="","",IF(L28=0,"J",IF(L28="Sonder","J",VLOOKUP(L28,sanschie!A:K,11,0)))) -> J | I28: =IF(ISNA(VLOOKUP($B28,Sortimente!D:G,2,0))=TRUE,"",VLOOKUP($B28,Sortimente!D:G,2,0)) -> 0 | L28: =IF(I28="","",IF(VLOOKUP(B28,Sortimente!D:G,4,0)="",VLOOKUP(B28,Sortimente!D:H,5,0),VLOOKUP(B28,Sortimente!D:G,4,0))) -> 100199 | M28: =IF(I28="","",IF(VLOOKUP(B28,Sortimente!D:L,9,0)=0,"",VLOOKUP(B28,Sortimente!D:L,9,0))) -> 
A29: 21 | B29: =$A$1&Musteranlage!A29 -> ABSOLUT181421 | H29: =IF(L29="","",IF(L29=0,"J",IF(L29="Sonder","J",VLOOKUP(L29,sanschie!A:K,11,0)))) -> J | I29: =IF(ISNA(VLOOKUP($B29,Sortimente!D:G,2,0))=TRUE,"",VLOOKUP($B29,Sortimente!D:G,2,0)) -> 0 | L29: =IF(I29="","",IF(VLOOKUP(B29,Sortimente!D:G,4,0)="",VLOOKUP(B29,Sortimente!D:H,5,0),VLOOKUP(B29,Sortimente!D:G,4,0))) -> 100200 | M29: =IF(I29="","",IF(VLOOKUP(B29,Sortimente!D:L,9,0)=0,"",VLOOKUP(B29,Sortimente!D:L,9,0))) -> 
A30: 22 | B30: =$A$1&Musteranlage!A30 -> ABSOLUT181422 | H30: =IF(L30="","",IF(L30=0,"J",IF(L30="Sonder","J",VLOOKUP(L30,sanschie!A:K,11,0)))) -> J | I30: =IF(ISNA(VLOOKUP($B30,Sortimente!D:G,2,0))=TRUE,"",VLOOKUP($B30,Sortimente!D:G,2,0)) -> 0 | L30: =IF(I30="","",IF(VLOOKUP(B30,Sortimente!D:G,4,0)="",VLOOKUP(B30,Sortimente!D:H,5,0),VLOOKUP(B30,Sortimente!D:G,4,0))) -> 100201 | M30: =IF(I30="","",IF(VLOOKUP(B30,Sortimente!D:L,9,0)=0,"",VLOOKUP(B30,Sortimente!D:L,9,0))) -> 
A31: 23 | B31: =$A$1&Musteranlage!A31 -> ABSOLUT181423 | H31: =IF(L31="","",IF(L31=0,"J",IF(L31="Sonder","J",VLOOKUP(L31,sanschie!A:K,11,0)))) -> J | I31: =IF(ISNA(VLOOKUP($B31,Sortimente!D:G,2,0))=TRUE,"",VLOOKUP($B31,Sortimente!D:G,2,0)) -> 0 | L31: =IF(I31="","",IF(VLOOKUP(B31,Sortimente!D:G,4,0)="",VLOOKUP(B31,Sortimente!D:H,5,0),VLOOKUP(B31,Sortimente!D:G,4,0))) -> 100190 | M31: =IF(I31="","",IF(VLOOKUP(B31,Sortimente!D:L,9,0)=0,"",VLOOKUP(B31,Sortimente!D:L,9,0))) -> 
A32: 24 | B32: =$A$1&Musteranlage!A32 -> ABSOLUT181424 | H32: =IF(L32="","",IF(L32=0,"J",IF(L32="Sonder","J",VLOOKUP(L32,sanschie!A:K,11,0)))) -> J | I32: =IF(ISNA(VLOOKUP($B32,Sortimente!D:G,2,0))=TRUE,"",VLOOKUP($B32,Sortimente!D:G,2,0)) -> 0 | L32: =IF(I32="","",IF(VLOOKUP(B32,Sortimente!D:G,4,0)="",VLOOKUP(B32,Sortimente!D:H,5,0),VLOOKUP(B32,Sortimente!D:G,4,0))) -> 100191 | M32: =IF(I32="","",IF(VLOOKUP(B32,Sortimente!D:L,9,0)=0,"",VLOOKUP(B32,Sortimente!D:L,9,0))) -> 
A33: 25 | B33: =$A$1&Musteranlage!A33 -> ABSOLUT181425 | H33: =IF(L33="","",IF(L33=0,"J",IF(L33="Sonder","J",VLOOKUP(L33,sanschie!A:K,11,0)))) -> J | I33: =IF(ISNA(VLOOKUP($B33,Sortimente!D:G,2,0))=TRUE,"",VLOOKUP($B33,Sortimente!D:G,2,0)) -> 0 | L33: =IF(I33="","",IF(VLOOKUP(B33,Sortimente!D:G,4,0)="",VLOOKUP(B33,Sortimente!D:H,5,0),VLOOKUP(B33,Sortimente!D:G,4,0))) -> 101614 | M33: =IF(I33="","",IF(VLOOKUP(B33,Sortimente!D:L,9,0)=0,"",VLOOKUP(B33,Sortimente!D:L,9,0))) -> 
A34: 26 | B34: =$A$1&Musteranlage!A34 -> ABSOLUT181426 | H34: =IF(L34="","",IF(L34=0,"J",IF(L34="Sonder","J",VLOOKUP(L34,sanschie!A:K,11,0)))) -> J | I34: =IF(ISNA(VLOOKUP($B34,Sortimente!D:G,2,0))=TRUE,"",VLOOKUP($B34,Sortimente!D:G,2,0)) -> 0 | L34: =IF(I34="","",IF(VLOOKUP(B34,Sortimente!D:G,4,0)="",VLOOKUP(B34,Sortimente!D:H,5,0),VLOOKUP(B34,Sortimente!D:G,4,0))) -> 101615 | M34: =IF(I34="","",IF(VLOOKUP(B34,Sortimente!D:L,9,0)=0,"",VLOOKUP(B34,Sortimente!D:L,9,0))) -> 
A35: 27 | B35: =$A$1&Musteranlage!A35 -> ABSOLUT181427 | H35: =IF(L35="","",IF(L35=0,"J",IF(L35="Sonder","J",VLOOKUP(L35,sanschie!A:K,11,0)))) -> J | I35: =IF(ISNA(VLOOKUP($B35,Sortimente!D:G,2,0))=TRUE,"",VLOOKUP($B35,Sortimente!D:G,2,0)) -> 0 | L35: =IF(I35="","",IF(VLOOKUP(B35,Sortimente!D:G,4,0)="",VLOOKUP(B35,Sortimente!D:H,5,0),VLOOKUP(B35,Sortimente!D:G,4,0))) -> 101616 | M35: =IF(I35="","",IF(VLOOKUP(B35,Sortimente!D:L,9,0)=0,"",VLOOKUP(B35,Sortimente!D:L,9,0))) -> 
A36: 28 | B36: =$A$1&Musteranlage!A36 -> ABSOLUT181428 | H36: =IF(L36="","",IF(L36=0,"J",IF(L36="Sonder","J",VLOOKUP(L36,sanschie!A:K,11,0)))) -> J | I36: =IF(ISNA(VLOOKUP($B36,Sortimente!D:G,2,0))=TRUE,"",VLOOKUP($B36,Sortimente!D:G,2,0)) -> 0 | L36: =IF(I36="","",IF(VLOOKUP(B36,Sortimente!D:G,4,0)="",VLOOKUP(B36,Sortimente!D:H,5,0),VLOOKUP(B36,Sortimente!D:G,4,0))) -> 100196 | M36: =IF(I36="","",IF(VLOOKUP(B36,Sortimente!D:L,9,0)=0,"",VLOOKUP(B36,Sortimente!D:L,9,0))) -> 
A37: 29 | B37: =$A$1&Musteranlage!A37 -> ABSOLUT181429 | H37: =IF(L37="","",IF(L37=0,"J",IF(L37="Sonder","J",VLOOKUP(L37,sanschie!A:K,11,0)))) -> J | I37: =IF(ISNA(VLOOKUP($B37,Sortimente!D:G,2,0))=TRUE,"",VLOOKUP($B37,Sortimente!D:G,2,0)) -> 0 | L37: =IF(I37="","",IF(VLOOKUP(B37,Sortimente!D:G,4,0)="",VLOOKUP(B37,Sortimente!D:H,5,0),VLOOKUP(B37,Sortimente!D:G,4,0))) -> 101611 | M37: =IF(I37="","",IF(VLOOKUP(B37,Sortimente!D:L,9,0)=0,"",VLOOKUP(B37,Sortimente!D:L,9,0))) -> 
A38: 30 | B38: =$A$1&Musteranlage!A38 -> ABSOLUT181430 | H38: =IF(L38="","",IF(L38=0,"J",IF(L38="Sonder","J",VLOOKUP(L38,sanschie!A:K,11,0)))) -> J | I38: =IF(ISNA(VLOOKUP($B38,Sortimente!D:G,2,0))=TRUE,"",VLOOKUP($B38,Sortimente!D:G,2,0)) -> 0 | L38: =IF(I38="","",IF(VLOOKUP(B38,Sortimente!D:G,4,0)="",VLOOKUP(B38,Sortimente!D:H,5,0),VLOOKUP(B38,Sortimente!D:G,4,0))) -> 101612 | M38: =IF(I38="","",IF(VLOOKUP(B38,Sortimente!D:L,9,0)=0,"",VLOOKUP(B38,Sortimente!D:L,9,0))) -> 
A39: 31 | B39: =$A$1&Musteranlage!A39 -> ABSOLUT181431 | H39: =IF(L39="","",IF(L39=0,"J",IF(L39="Sonder","J",VLOOKUP(L39,sanschie!A:K,11,0)))) -> J | I39: =IF(ISNA(VLOOKUP($B39,Sortimente!D:G,2,0))=TRUE,"",VLOOKUP($B39,Sortimente!D:G,2,0)) -> 0 | L39: =IF(I39="","",IF(VLOOKUP(B39,Sortimente!D:G,4,0)="",VLOOKUP(B39,Sortimente!D:H,5,0),VLOOKUP(B39,Sortimente!D:G,4,0))) -> 100016 | M39: =IF(I39="","",IF(VLOOKUP(B39,Sortimente!D:L,9,0)=0,"",VLOOKUP(B39,Sortimente!D:L,9,0))) -> 
A40: 32 | B40: =$A$1&Musteranlage!A40 -> ABSOLUT181432 | H40: =IF(L40="","",IF(L40=0,"J",IF(L40="Sonder","J",VLOOKUP(L40,sanschie!A:K,11,0)))) -> J | I40: =IF(ISNA(VLOOKUP($B40,Sortimente!D:G,2,0))=TRUE,"",VLOOKUP($B40,Sortimente!D:G,2,0)) -> 0 | L40: =IF(I40="","",IF(VLOOKUP(B40,Sortimente!D:G,4,0)="",VLOOKUP(B40,Sortimente!D:H,5,0),VLOOKUP(B40,Sortimente!D:G,4,0))) -> 100018 | M40: =IF(I40="","",IF(VLOOKUP(B40,Sortimente!D:L,9,0)=0,"",VLOOKUP(B40,Sortimente!D:L,9,0))) -> 
A41: 33 | B41: =$A$1&Musteranlage!A41 -> ABSOLUT181433 | H41: =IF(L41="","",IF(L41=0,"J",IF(L41="Sonder","J",VLOOKUP(L41,sanschie!A:K,11,0)))) -> J | I41: =IF(ISNA(VLOOKUP($B41,Sortimente!D:G,2,0))=TRUE,"",VLOOKUP($B41,Sortimente!D:G,2,0)) -> 0 | L41: =IF(I41="","",IF(VLOOKUP(B41,Sortimente!D:G,4,0)="",VLOOKUP(B41,Sortimente!D:H,5,0),VLOOKUP(B41,Sortimente!D:G,4,0))) -> 100443 | M41: =IF(I41="","",IF(VLOOKUP(B41,Sortimente!D:L,9,0)=0,"",VLOOKUP(B41,Sortimente!D:L,9,0))) -> 
A42: 34 | B42: =$A$1&Musteranlage!A42 -> ABSOLUT181434 | H42: =IF(L42="","",IF(L42=0,"J",IF(L42="Sonder","J",VLOOKUP(L42,sanschie!A:K,11,0)))) -> J | I42: =IF(ISNA(VLOOKUP($B42,Sortimente!D:G,2,0))=TRUE,"",VLOOKUP($B42,Sortimente!D:G,2,0)) -> 0 | L42: =IF(I42="","",IF(VLOOKUP(B42,Sortimente!D:G,4,0)="",VLOOKUP(B42,Sortimente!D:H,5,0),VLOOKUP(B42,Sortimente!D:G,4,0))) -> 100442 | M42: =IF(I42="","",IF(VLOOKUP(B42,Sortimente!D:L,9,0)=0,"",VLOOKUP(B42,Sortimente!D:L,9,0))) -> 
A43: 35 | B43: =$A$1&Musteranlage!A43 -> ABSOLUT181435 | H43: =IF(L43="","",IF(L43=0,"J",IF(L43="Sonder","J",VLOOKUP(L43,sanschie!A:K,11,0)))) -> J | I43: =IF(ISNA(VLOOKUP($B43,Sortimente!D:G,2,0))=TRUE,"",VLOOKUP($B43,Sortimente!D:G,2,0)) -> 0 | L43: =IF(I43="","",IF(VLOOKUP(B43,Sortimente!D:G,4,0)="",VLOOKUP(B43,Sortimente!D:H,5,0),VLOOKUP(B43,Sortimente!D:G,4,0))) -> 100333 | M43: =IF(I43="","",IF(VLOOKUP(B43,Sortimente!D:L,9,0)=0,"",VLOOKUP(B43,Sortimente!D:L,9,0))) -> 
A44: 36 | B44: =$A$1&Musteranlage!A44 -> ABSOLUT181436 | H44: =IF(L44="","",IF(L44=0,"J",IF(L44="Sonder","J",VLOOKUP(L44,sanschie!A:K,11,0)))) -> J | I44: =IF(ISNA(VLOOKUP($B44,Sortimente!D:G,2,0))=TRUE,"",VLOOKUP($B44,Sortimente!D:G,2,0)) -> 0 | L44: =IF(I44="","",IF(VLOOKUP(B44,Sortimente!D:G,4,0)="",VLOOKUP(B44,Sortimente!D:H,5,0),VLOOKUP(B44,Sortimente!D:G,4,0))) -> 100332 | M44: =IF(I44="","",IF(VLOOKUP(B44,Sortimente!D:L,9,0)=0,"",VLOOKUP(B44,Sortimente!D:L,9,0))) -> 
A45: 37 | B45: =$A$1&Musteranlage!A45 -> ABSOLUT181437 | H45: =IF(L45="","",IF(L45=0,"J",IF(L45="Sonder","J",VLOOKUP(L45,sanschie!A:K,11,0)))) -> J | I45: =IF(ISNA(VLOOKUP($B45,Sortimente!D:G,2,0))=TRUE,"",VLOOKUP($B45,Sortimente!D:G,2,0)) -> 0 | L45: =IF(I45="","",IF(VLOOKUP(B45,Sortimente!D:G,4,0)="",VLOOKUP(B45,Sortimente!D:H,5,0),VLOOKUP(B45,Sortimente!D:G,4,0))) -> 100167 | M45: =IF(I45="","",IF(VLOOKUP(B45,Sortimente!D:L,9,0)=0,"",VLOOKUP(B45,Sortimente!D:L,9,0))) -> 
A46: 38 | B46: =$A$1&Musteranlage!A46 -> ABSOLUT181438 | H46: =IF(L46="","",IF(L46=0,"J",IF(L46="Sonder","J",VLOOKUP(L46,sanschie!A:K,11,0)))) -> J | I46: =IF(ISNA(VLOOKUP($B46,Sortimente!D:G,2,0))=TRUE,"",VLOOKUP($B46,Sortimente!D:G,2,0)) -> 0 | L46: =IF(I46="","",IF(VLOOKUP(B46,Sortimente!D:G,4,0)="",VLOOKUP(B46,Sortimente!D:H,5,0),VLOOKUP(B46,Sortimente!D:G,4,0))) -> 100165 | M46: =IF(I46="","",IF(VLOOKUP(B46,Sortimente!D:L,9,0)=0,"",VLOOKUP(B46,Sortimente!D:L,9,0))) -> 
A47: 39 | B47: =$A$1&Musteranlage!A47 -> ABSOLUT181439 | H47: =IF(L47="","",IF(L47=0,"J",IF(L47="Sonder","J",VLOOKUP(L47,sanschie!A:K,11,0)))) -> J | I47: =IF(ISNA(VLOOKUP($B47,Sortimente!D:G,2,0))=TRUE,"",VLOOKUP($B47,Sortimente!D:G,2,0)) -> 0 | L47: =IF(I47="","",IF(VLOOKUP(B47,Sortimente!D:G,4,0)="",VLOOKUP(B47,Sortimente!D:H,5,0),VLOOKUP(B47,Sortimente!D:G,4,0))) -> 100140 | M47: =IF(I47="","",IF(VLOOKUP(B47,Sortimente!D:L,9,0)=0,"",VLOOKUP(B47,Sortimente!D:L,9,0))) -> 
A48: 40 | B48: =$A$1&Musteranlage!A48 -> ABSOLUT181440 | H48: =IF(L48="","",IF(L48=0,"J",IF(L48="Sonder","J",VLOOKUP(L48,sanschie!A:K,11,0)))) -> J | I48: =IF(ISNA(VLOOKUP($B48,Sortimente!D:G,2,0))=TRUE,"",VLOOKUP($B48,Sortimente!D:G,2,0)) -> 0 | L48: =IF(I48="","",IF(VLOOKUP(B48,Sortimente!D:G,4,0)="",VLOOKUP(B48,Sortimente!D:H,5,0),VLOOKUP(B48,Sortimente!D:G,4,0))) -> 100138 | M48: =IF(I48="","",IF(VLOOKUP(B48,Sortimente!D:L,9,0)=0,"",VLOOKUP(B48,Sortimente!D:L,9,0))) -> 
A49: 41 | B49: =$A$1&Musteranlage!A49 -> ABSOLUT181441 | H49: =IF(L49="","",IF(L49=0,"J",IF(L49="Sonder","J",VLOOKUP(L49,sanschie!A:K,11,0)))) -> J | I49: =IF(ISNA(VLOOKUP($B49,Sortimente!D:G,2,0))=TRUE,"",VLOOKUP($B49,Sortimente!D:G,2,0)) -> 0 | L49: =IF(I49="","",IF(VLOOKUP(B49,Sortimente!D:G,4,0)="",VLOOKUP(B49,Sortimente!D:H,5,0),VLOOKUP(B49,Sortimente!D:G,4,0))) -> 100187 | M49: =IF(I49="","",IF(VLOOKUP(B49,Sortimente!D:L,9,0)=0,"",VLOOKUP(B49,Sortimente!D:L,9,0))) -> 
A50: 42 | B50: =$A$1&Musteranlage!A50 -> ABSOLUT181442 | H50: =IF(L50="","",IF(L50=0,"J",IF(L50="Sonder","J",VLOOKUP(L50,sanschie!A:K,11,0)))) -> J | I50: =IF(ISNA(VLOOKUP($B50,Sortimente!D:G,2,0))=TRUE,"",VLOOKUP($B50,Sortimente!D:G,2,0)) -> 0 | L50: =IF(I50="","",IF(VLOOKUP(B50,Sortimente!D:G,4,0)="",VLOOKUP(B50,Sortimente!D:H,5,0),VLOOKUP(B50,Sortimente!D:G,4,0))) -> 100185 | M50: =IF(I50="","",IF(VLOOKUP(B50,Sortimente!D:L,9,0)=0,"",VLOOKUP(B50,Sortimente!D:L,9,0))) -> 
A51: 43 | B51: =$A$1&Musteranlage!A51 -> ABSOLUT181443 | H51: =IF(L51="","",IF(L51=0,"J",IF(L51="Sonder","J",VLOOKUP(L51,sanschie!A:K,11,0)))) -> J | I51: =IF(ISNA(VLOOKUP($B51,Sortimente!D:G,2,0))=TRUE,"",VLOOKUP($B51,Sortimente!D:G,2,0)) -> 0 | L51: =IF(I51="","",IF(VLOOKUP(B51,Sortimente!D:G,4,0)="",VLOOKUP(B51,Sortimente!D:H,5,0),VLOOKUP(B51,Sortimente!D:G,4,0))) -> 108216 | M51: =IF(I51="","",IF(VLOOKUP(B51,Sortimente!D:L,9,0)=0,"",VLOOKUP(B51,Sortimente!D:L,9,0))) -> 1
A52: 44 | B52: =$A$1&Musteranlage!A52 -> ABSOLUT181444 | H52: =IF(L52="","",IF(L52=0,"J",IF(L52="Sonder","J",VLOOKUP(L52,sanschie!A:K,11,0)))) -> J | I52: =IF(ISNA(VLOOKUP($B52,Sortimente!D:G,2,0))=TRUE,"",VLOOKUP($B52,Sortimente!D:G,2,0)) -> 0 | L52: =IF(I52="","",IF(VLOOKUP(B52,Sortimente!D:G,4,0)="",VLOOKUP(B52,Sortimente!D:H,5,0),VLOOKUP(B52,Sortimente!D:G,4,0))) -> 100514 | M52: =IF(I52="","",IF(VLOOKUP(B52,Sortimente!D:L,9,0)=0,"",VLOOKUP(B52,Sortimente!D:L,9,0))) -> 
A53: 45 | B53: =$A$1&Musteranlage!A53 -> ABSOLUT181445 | H53: =IF(L53="","",IF(L53=0,"J",IF(L53="Sonder","J",VLOOKUP(L53,sanschie!A:K,11,0)))) -> J | I53: =IF(ISNA(VLOOKUP($B53,Sortimente!D:G,2,0))=TRUE,"",VLOOKUP($B53,Sortimente!D:G,2,0)) -> 0 | L53: =IF(I53="","",IF(VLOOKUP(B53,Sortimente!D:G,4,0)="",VLOOKUP(B53,Sortimente!D:H,5,0),VLOOKUP(B53,Sortimente!D:G,4,0))) -> 108333 | M53: =IF(I53="","",IF(VLOOKUP(B53,Sortimente!D:L,9,0)=0,"",VLOOKUP(B53,Sortimente!D:L,9,0))) -> 
A54: 46 | B54: =$A$1&Musteranlage!A54 -> ABSOLUT181446 | H54: =IF(L54="","",IF(L54=0,"J",IF(L54="Sonder","J",VLOOKUP(L54,sanschie!A:K,11,0)))) -> J | I54: =IF(ISNA(VLOOKUP($B54,Sortimente!D:G,2,0))=TRUE,"",VLOOKUP($B54,Sortimente!D:G,2,0)) -> 0 | L54: =IF(I54="","",IF(VLOOKUP(B54,Sortimente!D:G,4,0)="",VLOOKUP(B54,Sortimente!D:H,5,0),VLOOKUP(B54,Sortimente!D:G,4,0))) -> 108334 | M54: =IF(I54="","",IF(VLOOKUP(B54,Sortimente!D:L,9,0)=0,"",VLOOKUP(B54,Sortimente!D:L,9,0))) -> 
A55: 47 | B55: =$A$1&Musteranlage!A55 -> ABSOLUT181447 | H55: =IF(L55="","",IF(L55=0,"J",IF(L55="Sonder","J",VLOOKUP(L55,sanschie!A:K,11,0)))) -> J | I55: =IF(ISNA(VLOOKUP($B55,Sortimente!D:G,2,0))=TRUE,"",VLOOKUP($B55,Sortimente!D:G,2,0)) -> 0 | L55: =IF(I55="","",IF(VLOOKUP(B55,Sortimente!D:G,4,0)="",VLOOKUP(B55,Sortimente!D:H,5,0),VLOOKUP(B55,Sortimente!D:G,4,0))) -> 100203 | M55: =IF(I55="","",IF(VLOOKUP(B55,Sortimente!D:L,9,0)=0,"",VLOOKUP(B55,Sortimente!D:L,9,0))) -> 1
A56: 48 | B56: =$A$1&Musteranlage!A56 -> ABSOLUT181448 | H56: =IF(L56="","",IF(L56=0,"J",IF(L56="Sonder","J",VLOOKUP(L56,sanschie!A:K,11,0)))) -> J | I56: =IF(ISNA(VLOOKUP($B56,Sortimente!D:G,2,0))=TRUE,"",VLOOKUP($B56,Sortimente!D:G,2,0)) -> 0 | L56: =IF(I56="","",IF(VLOOKUP(B56,Sortimente!D:G,4,0)="",VLOOKUP(B56,Sortimente!D:H,5,0),VLOOKUP(B56,Sortimente!D:G,4,0))) -> 100020 | M56: =IF(I56="","",IF(VLOOKUP(B56,Sortimente!D:L,9,0)=0,"",VLOOKUP(B56,Sortimente!D:L,9,0))) -> 
A57: 49 | B57: =$A$1&Musteranlage!A57 -> ABSOLUT181449 | H57: =IF(L57="","",IF(L57=0,"J",IF(L57="Sonder","J",VLOOKUP(L57,sanschie!A:K,11,0)))) -> J | I57: =IF(ISNA(VLOOKUP($B57,Sortimente!D:G,2,0))=TRUE,"",VLOOKUP($B57,Sortimente!D:G,2,0)) -> 0 | L57: =IF(I57="","",IF(VLOOKUP(B57,Sortimente!D:G,4,0)="",VLOOKUP(B57,Sortimente!D:H,5,0),VLOOKUP(B57,Sortimente!D:G,4,0))) -> 100080 | M57: =IF(I57="","",IF(VLOOKUP(B57,Sortimente!D:L,9,0)=0,"",VLOOKUP(B57,Sortimente!D:L,9,0))) -> 
A58: 50 | B58: =$A$1&Musteranlage!A58 -> ABSOLUT181450 | H58: =IF(L58="","",IF(L58=0,"J",IF(L58="Sonder","J",VLOOKUP(L58,sanschie!A:K,11,0)))) -> J | I58: =IF(ISNA(VLOOKUP($B58,Sortimente!D:G,2,0))=TRUE,"",VLOOKUP($B58,Sortimente!D:G,2,0)) -> 0 | L58: =IF(I58="","",IF(VLOOKUP(B58,Sortimente!D:G,4,0)="",VLOOKUP(B58,Sortimente!D:H,5,0),VLOOKUP(B58,Sortimente!D:G,4,0))) -> 100079 | M58: =IF(I58="","",IF(VLOOKUP(B58,Sortimente!D:L,9,0)=0,"",VLOOKUP(B58,Sortimente!D:L,9,0))) -> 
A59: 51 | B59: =$A$1&Musteranlage!A59 -> ABSOLUT181451 | H59: =IF(L59="","",IF(L59=0,"J",IF(L59="Sonder","J",VLOOKUP(L59,sanschie!A:K,11,0)))) -> J | I59: =IF(ISNA(VLOOKUP($B59,Sortimente!D:G,2,0))=TRUE,"",VLOOKUP($B59,Sortimente!D:G,2,0)) -> 0 | L59: =IF(I59="","",IF(VLOOKUP(B59,Sortimente!D:G,4,0)="",VLOOKUP(B59,Sortimente!D:H,5,0),VLOOKUP(B59,Sortimente!D:G,4,0))) -> 101693 | M59: =IF(I59="","",IF(VLOOKUP(B59,Sortimente!D:L,9,0)=0,"",VLOOKUP(B59,Sortimente!D:L,9,0))) -> 
A60: 52 | B60: =$A$1&Musteranlage!A60 -> ABSOLUT181452 | H60: =IF(L60="","",IF(L60=0,"J",IF(L60="Sonder","J",VLOOKUP(L60,sanschie!A:K,11,0)))) -> J | I60: =IF(ISNA(VLOOKUP($B60,Sortimente!D:G,2,0))=TRUE,"",VLOOKUP($B60,Sortimente!D:G,2,0)) -> 0 | L60: =IF(I60="","",IF(VLOOKUP(B60,Sortimente!D:G,4,0)="",VLOOKUP(B60,Sortimente!D:H,5,0),VLOOKUP(B60,Sortimente!D:G,4,0))) -> 101691 | M60: =IF(I60="","",IF(VLOOKUP(B60,Sortimente!D:L,9,0)=0,"",VLOOKUP(B60,Sortimente!D:L,9,0))) -> 
A61: 53 | B61: =$A$1&Musteranlage!A61 -> ABSOLUT181453 | H61: =IF(L61="","",IF(L61=0,"J",IF(L61="Sonder","J",VLOOKUP(L61,sanschie!A:K,11,0)))) -> J | I61: =IF(ISNA(VLOOKUP($B61,Sortimente!D:G,2,0))=TRUE,"",VLOOKUP($B61,Sortimente!D:G,2,0)) -> 0 | L61: =IF(I61="","",IF(VLOOKUP(B61,Sortimente!D:G,4,0)="",VLOOKUP(B61,Sortimente!D:H,5,0),VLOOKUP(B61,Sortimente!D:G,4,0))) -> 108188 | M61: =IF(I61="","",IF(VLOOKUP(B61,Sortimente!D:L,9,0)=0,"",VLOOKUP(B61,Sortimente!D:L,9,0))) -> 
A62: 54 | B62: =$A$1&Musteranlage!A62 -> ABSOLUT181454 | H62: =IF(L62="","",IF(L62=0,"J",IF(L62="Sonder","J",VLOOKUP(L62,sanschie!A:K,11,0)))) -> J | I62: =IF(ISNA(VLOOKUP($B62,Sortimente!D:G,2,0))=TRUE,"",VLOOKUP($B62,Sortimente!D:G,2,0)) -> 0 | L62: =IF(I62="","",IF(VLOOKUP(B62,Sortimente!D:G,4,0)="",VLOOKUP(B62,Sortimente!D:H,5,0),VLOOKUP(B62,Sortimente!D:G,4,0))) -> 108187 | M62: =IF(I62="","",IF(VLOOKUP(B62,Sortimente!D:L,9,0)=0,"",VLOOKUP(B62,Sortimente!D:L,9,0))) -> 
A63: 55 | B63: =$A$1&Musteranlage!A63 -> ABSOLUT181455 | H63: =IF(L63="","",IF(L63=0,"J",IF(L63="Sonder","J",VLOOKUP(L63,sanschie!A:K,11,0)))) -> J | I63: =IF(ISNA(VLOOKUP($B63,Sortimente!D:G,2,0))=TRUE,"",VLOOKUP($B63,Sortimente!D:G,2,0)) -> 0 | L63: =IF(I63="","",IF(VLOOKUP(B63,Sortimente!D:G,4,0)="",VLOOKUP(B63,Sortimente!D:H,5,0),VLOOKUP(B63,Sortimente!D:G,4,0))) -> 100234 | M63: =IF(I63="","",IF(VLOOKUP(B63,Sortimente!D:L,9,0)=0,"",VLOOKUP(B63,Sortimente!D:L,9,0))) -> 
A64: 56 | B64: =$A$1&Musteranlage!A64 -> ABSOLUT181456 | H64: =IF(L64="","",IF(L64=0,"J",IF(L64="Sonder","J",VLOOKUP(L64,sanschie!A:K,11,0)))) -> J | I64: =IF(ISNA(VLOOKUP($B64,Sortimente!D:G,2,0))=TRUE,"",VLOOKUP($B64,Sortimente!D:G,2,0)) -> 0 | L64: =IF(I64="","",IF(VLOOKUP(B64,Sortimente!D:G,4,0)="",VLOOKUP(B64,Sortimente!D:H,5,0),VLOOKUP(B64,Sortimente!D:G,4,0))) -> 100021 | M64: =IF(I64="","",IF(VLOOKUP(B64,Sortimente!D:L,9,0)=0,"",VLOOKUP(B64,Sortimente!D:L,9,0))) -> 
A65: 57 | B65: =$A$1&Musteranlage!A65 -> ABSOLUT181457 | H65: =IF(L65="","",IF(L65=0,"J",IF(L65="Sonder","J",VLOOKUP(L65,sanschie!A:K,11,0)))) -> J | I65: =IF(ISNA(VLOOKUP($B65,Sortimente!D:G,2,0))=TRUE,"",VLOOKUP($B65,Sortimente!D:G,2,0)) -> 0 | L65: =IF(I65="","",IF(VLOOKUP(B65,Sortimente!D:G,4,0)="",VLOOKUP(B65,Sortimente!D:H,5,0),VLOOKUP(B65,Sortimente!D:G,4,0))) -> 100546 | M65: =IF(I65="","",IF(VLOOKUP(B65,Sortimente!D:L,9,0)=0,"",VLOOKUP(B65,Sortimente!D:L,9,0))) -> 
A66: 58 | B66: =$A$1&Musteranlage!A66 -> ABSOLUT181458 | H66: =IF(L66="","",IF(L66=0,"J",IF(L66="Sonder","J",VLOOKUP(L66,sanschie!A:K,11,0)))) -> J | I66: =IF(ISNA(VLOOKUP($B66,Sortimente!D:G,2,0))=TRUE,"",VLOOKUP($B66,Sortimente!D:G,2,0)) -> 0 | L66: =IF(I66="","",IF(VLOOKUP(B66,Sortimente!D:G,4,0)="",VLOOKUP(B66,Sortimente!D:H,5,0),VLOOKUP(B66,Sortimente!D:G,4,0))) -> 101832 | M66: =IF(I66="","",IF(VLOOKUP(B66,Sortimente!D:L,9,0)=0,"",VLOOKUP(B66,Sortimente!D:L,9,0))) -> 
A67: 59 | B67: =$A$1&Musteranlage!A67 -> ABSOLUT181459 | H67: =IF(L67="","",IF(L67=0,"J",IF(L67="Sonder","J",VLOOKUP(L67,sanschie!A:K,11,0)))) -> J | I67: =IF(ISNA(VLOOKUP($B67,Sortimente!D:G,2,0))=TRUE,"",VLOOKUP($B67,Sortimente!D:G,2,0)) -> 0 | L67: =IF(I67="","",IF(VLOOKUP(B67,Sortimente!D:G,4,0)="",VLOOKUP(B67,Sortimente!D:H,5,0),VLOOKUP(B67,Sortimente!D:G,4,0))) -> 149789 | M67: =IF(I67="","",IF(VLOOKUP(B67,Sortimente!D:L,9,0)=0,"",VLOOKUP(B67,Sortimente!D:L,9,0))) -> 
A68: 60 | B68: =$A$1&Musteranlage!A68 -> ABSOLUT181460 | H68: =IF(L68="","",IF(L68=0,"J",IF(L68="Sonder","J",VLOOKUP(L68,sanschie!A:K,11,0)))) -> J | I68: =IF(ISNA(VLOOKUP($B68,Sortimente!D:G,2,0))=TRUE,"",VLOOKUP($B68,Sortimente!D:G,2,0)) -> 0 | L68: =IF(I68="","",IF(VLOOKUP(B68,Sortimente!D:G,4,0)="",VLOOKUP(B68,Sortimente!D:H,5,0),VLOOKUP(B68,Sortimente!D:G,4,0))) -> 100096 | M68: =IF(I68="","",IF(VLOOKUP(B68,Sortimente!D:L,9,0)=0,"",VLOOKUP(B68,Sortimente!D:L,9,0))) -> 
A69: 61 | B69: =$A$1&Musteranlage!A69 -> ABSOLUT181461 | H69: =IF(L69="","",IF(L69=0,"J",IF(L69="Sonder","J",VLOOKUP(L69,sanschie!A:K,11,0)))) -> J | I69: =IF(ISNA(VLOOKUP($B69,Sortimente!D:G,2,0))=TRUE,"",VLOOKUP($B69,Sortimente!D:G,2,0)) -> 0 | L69: =IF(I69="","",IF(VLOOKUP(B69,Sortimente!D:G,4,0)="",VLOOKUP(B69,Sortimente!D:H,5,0),VLOOKUP(B69,Sortimente!D:G,4,0))) -> 108197 | M69: =IF(I69="","",IF(VLOOKUP(B69,Sortimente!D:L,9,0)=0,"",VLOOKUP(B69,Sortimente!D:L,9,0))) -> 
A70: 62 | B70: =$A$1&Musteranlage!A70 -> ABSOLUT181462 | H70: =IF(L70="","",IF(L70=0,"J",IF(L70="Sonder","J",VLOOKUP(L70,sanschie!A:K,11,0)))) -> J | I70: =IF(ISNA(VLOOKUP($B70,Sortimente!D:G,2,0))=TRUE,"",VLOOKUP($B70,Sortimente!D:G,2,0)) -> 0 | L70: =IF(I70="","",IF(VLOOKUP(B70,Sortimente!D:G,4,0)="",VLOOKUP(B70,Sortimente!D:H,5,0),VLOOKUP(B70,Sortimente!D:G,4,0))) -> 100214 | M70: =IF(I70="","",IF(VLOOKUP(B70,Sortimente!D:L,9,0)=0,"",VLOOKUP(B70,Sortimente!D:L,9,0))) -> 
A71: 63 | B71: =$A$1&Musteranlage!A71 -> ABSOLUT181463 | H71: =IF(L71="","",IF(L71=0,"J",IF(L71="Sonder","J",VLOOKUP(L71,sanschie!A:K,11,0)))) -> J | I71: =IF(ISNA(VLOOKUP($B71,Sortimente!D:G,2,0))=TRUE,"",VLOOKUP($B71,Sortimente!D:G,2,0)) -> 0 | L71: =IF(I71="","",IF(VLOOKUP(B71,Sortimente!D:G,4,0)="",VLOOKUP(B71,Sortimente!D:H,5,0),VLOOKUP(B71,Sortimente!D:G,4,0))) -> 100215 | M71: =IF(I71="","",IF(VLOOKUP(B71,Sortimente!D:L,9,0)=0,"",VLOOKUP(B71,Sortimente!D:L,9,0))) -> 
A72: 64 | B72: =$A$1&Musteranlage!A72 -> ABSOLUT181464 | H72: =IF(L72="","",IF(L72=0,"J",IF(L72="Sonder","J",VLOOKUP(L72,sanschie!A:K,11,0)))) -> J | I72: =IF(ISNA(VLOOKUP($B72,Sortimente!D:G,2,0))=TRUE,"",VLOOKUP($B72,Sortimente!D:G,2,0)) -> 0 | L72: =IF(I72="","",IF(VLOOKUP(B72,Sortimente!D:G,4,0)="",VLOOKUP(B72,Sortimente!D:H,5,0),VLOOKUP(B72,Sortimente!D:G,4,0))) -> 101867 | M72: =IF(I72="","",IF(VLOOKUP(B72,Sortimente!D:L,9,0)=0,"",VLOOKUP(B72,Sortimente!D:L,9,0))) -> 
A73: 65 | B73: =$A$1&Musteranlage!A73 -> ABSOLUT181465 | H73: =IF(L73="","",IF(L73=0,"J",IF(L73="Sonder","J",VLOOKUP(L73,sanschie!A:K,11,0)))) -> J | I73: =IF(ISNA(VLOOKUP($B73,Sortimente!D:G,2,0))=TRUE,"",VLOOKUP($B73,Sortimente!D:G,2,0)) -> 0 | L73: =IF(I73="","",IF(VLOOKUP(B73,Sortimente!D:G,4,0)="",VLOOKUP(B73,Sortimente!D:H,5,0),VLOOKUP(B73,Sortimente!D:G,4,0))) -> 101854 | M73: =IF(I73="","",IF(VLOOKUP(B73,Sortimente!D:L,9,0)=0,"",VLOOKUP(B73,Sortimente!D:L,9,0))) -> 
A74: 66 | B74: =$A$1&Musteranlage!A74 -> ABSOLUT181466 | H74: =IF(L74="","",IF(L74=0,"J",IF(L74="Sonder","J",VLOOKUP(L74,sanschie!A:K,11,0)))) -> J | I74: =IF(ISNA(VLOOKUP($B74,Sortimente!D:G,2,0))=TRUE,"",VLOOKUP($B74,Sortimente!D:G,2,0)) -> 0 | L74: =IF(I74="","",IF(VLOOKUP(B74,Sortimente!D:G,4,0)="",VLOOKUP(B74,Sortimente!D:H,5,0),VLOOKUP(B74,Sortimente!D:G,4,0))) -> 101855 | M74: =IF(I74="","",IF(VLOOKUP(B74,Sortimente!D:L,9,0)=0,"",VLOOKUP(B74,Sortimente!D:L,9,0))) -> 
A75: 67 | B75: =$A$1&Musteranlage!A75 -> ABSOLUT181467 | H75: =IF(L75="","",IF(L75=0,"J",IF(L75="Sonder","J",VLOOKUP(L75,sanschie!A:K,11,0)))) -> J | I75: =IF(ISNA(VLOOKUP($B75,Sortimente!D:G,2,0))=TRUE,"",VLOOKUP($B75,Sortimente!D:G,2,0)) -> 0 | L75: =IF(I75="","",IF(VLOOKUP(B75,Sortimente!D:G,4,0)="",VLOOKUP(B75,Sortimente!D:H,5,0),VLOOKUP(B75,Sortimente!D:G,4,0))) -> 101856 | M75: =IF(I75="","",IF(VLOOKUP(B75,Sortimente!D:L,9,0)=0,"",VLOOKUP(B75,Sortimente!D:L,9,0))) -> 
A76: 68 | B76: =$A$1&Musteranlage!A76 -> ABSOLUT181468 | H76: =IF(L76="","",IF(L76=0,"J",IF(L76="Sonder","J",VLOOKUP(L76,sanschie!A:K,11,0)))) -> J | I76: =IF(ISNA(VLOOKUP($B76,Sortimente!D:G,2,0))=TRUE,"",VLOOKUP($B76,Sortimente!D:G,2,0)) -> 0 | L76: =IF(I76="","",IF(VLOOKUP(B76,Sortimente!D:G,4,0)="",VLOOKUP(B76,Sortimente!D:H,5,0),VLOOKUP(B76,Sortimente!D:G,4,0))) -> 101857 | M76: =IF(I76="","",IF(VLOOKUP(B76,Sortimente!D:L,9,0)=0,"",VLOOKUP(B76,Sortimente!D:L,9,0))) -> 
A77: 69 | B77: =$A$1&Musteranlage!A77 -> ABSOLUT181469 | H77: =IF(L77="","",IF(L77=0,"J",IF(L77="Sonder","J",VLOOKUP(L77,sanschie!A:K,11,0)))) -> J | I77: =IF(ISNA(VLOOKUP($B77,Sortimente!D:G,2,0))=TRUE,"",VLOOKUP($B77,Sortimente!D:G,2,0)) -> 0 | L77: =IF(I77="","",IF(VLOOKUP(B77,Sortimente!D:G,4,0)="",VLOOKUP(B77,Sortimente!D:H,5,0),VLOOKUP(B77,Sortimente!D:G,4,0))) -> 101858 | M77: =IF(I77="","",IF(VLOOKUP(B77,Sortimente!D:L,9,0)=0,"",VLOOKUP(B77,Sortimente!D:L,9,0))) -> 
A78: 70 | B78: =$A$1&Musteranlage!A78 -> ABSOLUT181470 | H78: =IF(L78="","",IF(L78=0,"J",IF(L78="Sonder","J",VLOOKUP(L78,sanschie!A:K,11,0)))) -> J | I78: =IF(ISNA(VLOOKUP($B78,Sortimente!D:G,2,0))=TRUE,"",VLOOKUP($B78,Sortimente!D:G,2,0)) -> 0 | L78: =IF(I78="","",IF(VLOOKUP(B78,Sortimente!D:G,4,0)="",VLOOKUP(B78,Sortimente!D:H,5,0),VLOOKUP(B78,Sortimente!D:G,4,0))) -> 101859 | M78: =IF(I78="","",IF(VLOOKUP(B78,Sortimente!D:L,9,0)=0,"",VLOOKUP(B78,Sortimente!D:L,9,0))) -> 
A79: 71 | B79: =$A$1&Musteranlage!A79 -> ABSOLUT181471 | H79: =IF(L79="","",IF(L79=0,"J",IF(L79="Sonder","J",VLOOKUP(L79,sanschie!A:K,11,0)))) -> J | I79: =IF(ISNA(VLOOKUP($B79,Sortimente!D:G,2,0))=TRUE,"",VLOOKUP($B79,Sortimente!D:G,2,0)) -> 0 | L79: =IF(I79="","",IF(VLOOKUP(B79,Sortimente!D:G,4,0)="",VLOOKUP(B79,Sortimente!D:H,5,0),VLOOKUP(B79,Sortimente!D:G,4,0))) -> 101860 | M79: =IF(I79="","",IF(VLOOKUP(B79,Sortimente!D:L,9,0)=0,"",VLOOKUP(B79,Sortimente!D:L,9,0))) -> 
A80: 72 | B80: =$A$1&Musteranlage!A80 -> ABSOLUT181472 | H80: =IF(L80="","",IF(L80=0,"J",IF(L80="Sonder","J",VLOOKUP(L80,sanschie!A:K,11,0)))) ->  | I80: =IF(ISNA(VLOOKUP($B80,Sortimente!D:G,2,0))=TRUE,"",VLOOKUP($B80,Sortimente!D:G,2,0)) -> 0 | L80: =IF(I80="","",IF(VLOOKUP(B80,Sortimente!D:G,4,0)="",VLOOKUP(B80,Sortimente!D:H,5,0),VLOOKUP(B80,Sortimente!D:G,4,0))) ->  | M80: =IF(I80="","",IF(VLOOKUP(B80,Sortimente!D:L,9,0)=0,"",VLOOKUP(B80,Sortimente!D:L,9,0))) -> 
A81: 73 | B81: =$A$1&Musteranlage!A81 -> ABSOLUT181473 | H81: =IF(L81="","",IF(L81=0,"J",IF(L81="Sonder","J",VLOOKUP(L81,sanschie!A:K,11,0)))) -> J | I81: =IF(ISNA(VLOOKUP($B81,Sortimente!D:G,2,0))=TRUE,"",VLOOKUP($B81,Sortimente!D:G,2,0)) -> SO | L81: =IF(I81="","",IF(VLOOKUP(B81,Sortimente!D:G,4,0)="",VLOOKUP(B81,Sortimente!D:H,5,0),VLOOKUP(B81,Sortimente!D:G,4,0))) -> 102003 | M81: =IF(I81="","",IF(VLOOKUP(B81,Sortimente!D:L,9,0)=0,"",VLOOKUP(B81,Sortimente!D:L,9,0))) -> 
A82: 74 | B82: =$A$1&Musteranlage!A82 -> ABSOLUT181474 | H82: =IF(L82="","",IF(L82=0,"J",IF(L82="Sonder","J",VLOOKUP(L82,sanschie!A:K,11,0)))) -> J | I82: =IF(ISNA(VLOOKUP($B82,Sortimente!D:G,2,0))=TRUE,"",VLOOKUP($B82,Sortimente!D:G,2,0)) -> SO | L82: =IF(I82="","",IF(VLOOKUP(B82,Sortimente!D:G,4,0)="",VLOOKUP(B82,Sortimente!D:H,5,0),VLOOKUP(B82,Sortimente!D:G,4,0))) -> 102320 | M82: =IF(I82="","",IF(VLOOKUP(B82,Sortimente!D:L,9,0)=0,"",VLOOKUP(B82,Sortimente!D:L,9,0))) -> 
A83: 75 | B83: =$A$1&Musteranlage!A83 -> ABSOLUT181475 | H83: =IF(L83="","",IF(L83=0,"J",IF(L83="Sonder","J",VLOOKUP(L83,sanschie!A:K,11,0)))) ->  | I83: =IF(ISNA(VLOOKUP($B83,Sortimente!D:G,2,0))=TRUE,"",VLOOKUP($B83,Sortimente!D:G,2,0)) ->  | L83: =IF(I83="","",IF(VLOOKUP(B83,Sortimente!D:G,4,0)="",VLOOKUP(B83,Sortimente!D:H,5,0),VLOOKUP(B83,Sortimente!D:G,4,0))) ->  | M83: =IF(I83="","",IF(VLOOKUP(B83,Sortimente!D:L,9,0)=0,"",VLOOKUP(B83,Sortimente!D:L,9,0))) -> 
A84: 76 | B84: =$A$1&Musteranlage!A84 -> ABSOLUT181476 | H84: =IF(L84="","",IF(L84=0,"J",IF(L84="Sonder","J",VLOOKUP(L84,sanschie!A:K,11,0)))) ->  | I84: =IF(ISNA(VLOOKUP($B84,Sortimente!D:G,2,0))=TRUE,"",VLOOKUP($B84,Sortimente!D:G,2,0)) ->  | L84: =IF(I84="","",IF(VLOOKUP(B84,Sortimente!D:G,4,0)="",VLOOKUP(B84,Sortimente!D:H,5,0),VLOOKUP(B84,Sortimente!D:G,4,0))) ->  | M84: =IF(I84="","",IF(VLOOKUP(B84,Sortimente!D:L,9,0)=0,"",VLOOKUP(B84,Sortimente!D:L,9,0))) -> 
A85: 77 | B85: =$A$1&Musteranlage!A85 -> ABSOLUT181477 | H85: =IF(L85="","",IF(L85=0,"J",IF(L85="Sonder","J",VLOOKUP(L85,sanschie!A:K,11,0)))) ->  | I85: =IF(ISNA(VLOOKUP($B85,Sortimente!D:G,2,0))=TRUE,"",VLOOKUP($B85,Sortimente!D:G,2,0)) ->  | L85: =IF(I85="","",IF(VLOOKUP(B85,Sortimente!D:G,4,0)="",VLOOKUP(B85,Sortimente!D:H,5,0),VLOOKUP(B85,Sortimente!D:G,4,0))) ->  | M85: =IF(I85="","",IF(VLOOKUP(B85,Sortimente!D:L,9,0)=0,"",VLOOKUP(B85,Sortimente!D:L,9,0))) -> 
A86: 78 | B86: =$A$1&Musteranlage!A86 -> ABSOLUT181478 | H86: =IF(L86="","",IF(L86=0,"J",IF(L86="Sonder","J",VLOOKUP(L86,sanschie!A:K,11,0)))) ->  | I86: =IF(ISNA(VLOOKUP($B86,Sortimente!D:G,2,0))=TRUE,"",VLOOKUP($B86,Sortimente!D:G,2,0)) ->  | L86: =IF(I86="","",IF(VLOOKUP(B86,Sortimente!D:G,4,0)="",VLOOKUP(B86,Sortimente!D:H,5,0),VLOOKUP(B86,Sortimente!D:G,4,0))) ->  | M86: =IF(I86="","",IF(VLOOKUP(B86,Sortimente!D:L,9,0)=0,"",VLOOKUP(B86,Sortimente!D:L,9,0))) -> 
A87: 79 | B87: =$A$1&Musteranlage!A87 -> ABSOLUT181479 | H87: =IF(L87="","",IF(L87=0,"J",IF(L87="Sonder","J",VLOOKUP(L87,sanschie!A:K,11,0)))) ->  | I87: =IF(ISNA(VLOOKUP($B87,Sortimente!D:G,2,0))=TRUE,"",VLOOKUP($B87,Sortimente!D:G,2,0)) ->  | L87: =IF(I87="","",IF(VLOOKUP(B87,Sortimente!D:G,4,0)="",VLOOKUP(B87,Sortimente!D:H,5,0),VLOOKUP(B87,Sortimente!D:G,4,0))) ->  | M87: =IF(I87="","",IF(VLOOKUP(B87,Sortimente!D:L,9,0)=0,"",VLOOKUP(B87,Sortimente!D:L,9,0))) -> 
A88: 80 | B88: =$A$1&Musteranlage!A88 -> ABSOLUT181480 | H88: =IF(L88="","",IF(L88=0,"J",IF(L88="Sonder","J",VLOOKUP(L88,sanschie!A:K,11,0)))) ->  | I88: =IF(ISNA(VLOOKUP($B88,Sortimente!D:G,2,0))=TRUE,"",VLOOKUP($B88,Sortimente!D:G,2,0)) ->  | L88: =IF(I88="","",IF(VLOOKUP(B88,Sortimente!D:G,4,0)="",VLOOKUP(B88,Sortimente!D:H,5,0),VLOOKUP(B88,Sortimente!D:G,4,0))) ->  | M88: =IF(I88="","",IF(VLOOKUP(B88,Sortimente!D:L,9,0)=0,"",VLOOKUP(B88,Sortimente!D:L,9,0))) -> 
A89: 81 | B89: =$A$1&Musteranlage!A89 -> ABSOLUT181481 | H89: =IF(L89="","",IF(L89=0,"J",IF(L89="Sonder","J",VLOOKUP(L89,sanschie!A:K,11,0)))) ->  | I89: =IF(ISNA(VLOOKUP($B89,Sortimente!D:G,2,0))=TRUE,"",VLOOKUP($B89,Sortimente!D:G,2,0)) ->  | L89: =IF(I89="","",IF(VLOOKUP(B89,Sortimente!D:G,4,0)="",VLOOKUP(B89,Sortimente!D:H,5,0),VLOOKUP(B89,Sortimente!D:G,4,0))) ->  | M89: =IF(I89="","",IF(VLOOKUP(B89,Sortimente!D:L,9,0)=0,"",VLOOKUP(B89,Sortimente!D:L,9,0))) -> 
A90: 82 | B90: =$A$1&Musteranlage!A90 -> ABSOLUT181482 | H90: =IF(L90="","",IF(L90=0,"J",IF(L90="Sonder","J",VLOOKUP(L90,sanschie!A:K,11,0)))) ->  | I90: =IF(ISNA(VLOOKUP($B90,Sortimente!D:G,2,0))=TRUE,"",VLOOKUP($B90,Sortimente!D:G,2,0)) ->  | L90: =IF(I90="","",IF(VLOOKUP(B90,Sortimente!D:G,4,0)="",VLOOKUP(B90,Sortimente!D:H,5,0),VLOOKUP(B90,Sortimente!D:G,4,0))) ->  | M90: =IF(I90="","",IF(VLOOKUP(B90,Sortimente!D:L,9,0)=0,"",VLOOKUP(B90,Sortimente!D:L,9,0))) -> 
A91: 83 | B91: =$A$1&Musteranlage!A91 -> ABSOLUT181483 | H91: =IF(L91="","",IF(L91=0,"J",IF(L91="Sonder","J",VLOOKUP(L91,sanschie!A:K,11,0)))) ->  | I91: =IF(ISNA(VLOOKUP($B91,Sortimente!D:G,2,0))=TRUE,"",VLOOKUP($B91,Sortimente!D:G,2,0)) ->  | L91: =IF(I91="","",IF(VLOOKUP(B91,Sortimente!D:G,4,0)="",VLOOKUP(B91,Sortimente!D:H,5,0),VLOOKUP(B91,Sortimente!D:G,4,0))) ->  | M91: =IF(I91="","",IF(VLOOKUP(B91,Sortimente!D:L,9,0)=0,"",VLOOKUP(B91,Sortimente!D:L,9,0))) -> 
A92: 84 | B92: =$A$1&Musteranlage!A92 -> ABSOLUT181484 | H92: =IF(L92="","",IF(L92=0,"J",IF(L92="Sonder","J",VLOOKUP(L92,sanschie!A:K,11,0)))) ->  | I92: =IF(ISNA(VLOOKUP($B92,Sortimente!D:G,2,0))=TRUE,"",VLOOKUP($B92,Sortimente!D:G,2,0)) ->  | L92: =IF(I92="","",IF(VLOOKUP(B92,Sortimente!D:G,4,0)="",VLOOKUP(B92,Sortimente!D:H,5,0),VLOOKUP(B92,Sortimente!D:G,4,0))) ->  | M92: =IF(I92="","",IF(VLOOKUP(B92,Sortimente!D:L,9,0)=0,"",VLOOKUP(B92,Sortimente!D:L,9,0))) -> 
A93: 85 | B93: =$A$1&Musteranlage!A93 -> ABSOLUT181485 | H93: =IF(L93="","",IF(L93=0,"J",IF(L93="Sonder","J",VLOOKUP(L93,sanschie!A:K,11,0)))) ->  | I93: =IF(ISNA(VLOOKUP($B93,Sortimente!D:G,2,0))=TRUE,"",VLOOKUP($B93,Sortimente!D:G,2,0)) ->  | L93: =IF(I93="","",IF(VLOOKUP(B93,Sortimente!D:G,4,0)="",VLOOKUP(B93,Sortimente!D:H,5,0),VLOOKUP(B93,Sortimente!D:G,4,0))) ->  | M93: =IF(I93="","",IF(VLOOKUP(B93,Sortimente!D:L,9,0)=0,"",VLOOKUP(B93,Sortimente!D:L,9,0))) -> 
A94: 86 | B94: =$A$1&Musteranlage!A94 -> ABSOLUT181486 | H94: =IF(L94="","",IF(L94=0,"J",IF(L94="Sonder","J",VLOOKUP(L94,sanschie!A:K,11,0)))) ->  | I94: =IF(ISNA(VLOOKUP($B94,Sortimente!D:G,2,0))=TRUE,"",VLOOKUP($B94,Sortimente!D:G,2,0)) ->  | L94: =IF(I94="","",IF(VLOOKUP(B94,Sortimente!D:G,4,0)="",VLOOKUP(B94,Sortimente!D:H,5,0),VLOOKUP(B94,Sortimente!D:G,4,0))) ->  | M94: =IF(I94="","",IF(VLOOKUP(B94,Sortimente!D:L,9,0)=0,"",VLOOKUP(B94,Sortimente!D:L,9,0))) -> 
A95: 87 | B95: =$A$1&Musteranlage!A95 -> ABSOLUT181487 | H95: =IF(L95="","",IF(L95=0,"J",IF(L95="Sonder","J",VLOOKUP(L95,sanschie!A:K,11,0)))) ->  | I95: =IF(ISNA(VLOOKUP($B95,Sortimente!D:G,2,0))=TRUE,"",VLOOKUP($B95,Sortimente!D:G,2,0)) ->  | L95: =IF(I95="","",IF(VLOOKUP(B95,Sortimente!D:G,4,0)="",VLOOKUP(B95,Sortimente!D:H,5,0),VLOOKUP(B95,Sortimente!D:G,4,0))) ->  | M95: =IF(I95="","",IF(VLOOKUP(B95,Sortimente!D:L,9,0)=0,"",VLOOKUP(B95,Sortimente!D:L,9,0))) -> 
A96: 88 | B96: =$A$1&Musteranlage!A96 -> ABSOLUT181488 | H96: =IF(L96="","",IF(L96=0,"J",IF(L96="Sonder","J",VLOOKUP(L96,sanschie!A:K,11,0)))) ->  | I96: =IF(ISNA(VLOOKUP($B96,Sortimente!D:G,2,0))=TRUE,"",VLOOKUP($B96,Sortimente!D:G,2,0)) ->  | L96: =IF(I96="","",IF(VLOOKUP(B96,Sortimente!D:G,4,0)="",VLOOKUP(B96,Sortimente!D:H,5,0),VLOOKUP(B96,Sortimente!D:G,4,0))) ->  | M96: =IF(I96="","",IF(VLOOKUP(B96,Sortimente!D:L,9,0)=0,"",VLOOKUP(B96,Sortimente!D:L,9,0))) -> 
A97: 89 | B97: =$A$1&Musteranlage!A97 -> ABSOLUT181489 | H97: =IF(L97="","",IF(L97=0,"J",IF(L97="Sonder","J",VLOOKUP(L97,sanschie!A:K,11,0)))) ->  | I97: =IF(ISNA(VLOOKUP($B97,Sortimente!D:G,2,0))=TRUE,"",VLOOKUP($B97,Sortimente!D:G,2,0)) ->  | L97: =IF(I97="","",IF(VLOOKUP(B97,Sortimente!D:G,4,0)="",VLOOKUP(B97,Sortimente!D:H,5,0),VLOOKUP(B97,Sortimente!D:G,4,0))) ->  | M97: =IF(I97="","",IF(VLOOKUP(B97,Sortimente!D:L,9,0)=0,"",VLOOKUP(B97,Sortimente!D:L,9,0))) -> 
A98: 90 | B98: =$A$1&Musteranlage!A98 -> ABSOLUT181490 | H98: =IF(L98="","",IF(L98=0,"J",IF(L98="Sonder","J",VLOOKUP(L98,sanschie!A:K,11,0)))) ->  | I98: =IF(ISNA(VLOOKUP($B98,Sortimente!D:G,2,0))=TRUE,"",VLOOKUP($B98,Sortimente!D:G,2,0)) ->  | L98: =IF(I98="","",IF(VLOOKUP(B98,Sortimente!D:G,4,0)="",VLOOKUP(B98,Sortimente!D:H,5,0),VLOOKUP(B98,Sortimente!D:G,4,0))) ->  | M98: =IF(I98="","",IF(VLOOKUP(B98,Sortimente!D:L,9,0)=0,"",VLOOKUP(B98,Sortimente!D:L,9,0))) -> 
A99: 91 | B99: =$A$1&Musteranlage!A99 -> ABSOLUT181491 | H99: =IF(L99="","",IF(L99=0,"J",IF(L99="Sonder","J",VLOOKUP(L99,sanschie!A:K,11,0)))) ->  | I99: =IF(ISNA(VLOOKUP($B99,Sortimente!D:G,2,0))=TRUE,"",VLOOKUP($B99,Sortimente!D:G,2,0)) ->  | L99: =IF(I99="","",IF(VLOOKUP(B99,Sortimente!D:G,4,0)="",VLOOKUP(B99,Sortimente!D:H,5,0),VLOOKUP(B99,Sortimente!D:G,4,0))) ->  | M99: =IF(I99="","",IF(VLOOKUP(B99,Sortimente!D:L,9,0)=0,"",VLOOKUP(B99,Sortimente!D:L,9,0))) -> 
A100: 92 | B100: =$A$1&Musteranlage!A100 -> ABSOLUT181492 | H100: =IF(L100="","",IF(L100=0,"J",IF(L100="Sonder","J",VLOOKUP(L100,sanschie!A:K,11,0)))) ->  | I100: =IF(ISNA(VLOOKUP($B100,Sortimente!D:G,2,0))=TRUE,"",VLOOKUP($B100,Sortimente!D:G,2,0)) ->  | L100: =IF(I100="","",IF(VLOOKUP(B100,Sortimente!D:G,4,0)="",VLOOKUP(B100,Sortimente!D:H,5,0),VLOOKUP(B100,Sortimente!D:G,4,0))) ->  | M100: =IF(I100="","",IF(VLOOKUP(B100,Sortimente!D:L,9,0)=0,"",VLOOKUP(B100,Sortimente!D:L,9,0))) -> 
A101: 93 | B101: =$A$1&Musteranlage!A101 -> ABSOLUT181493 | H101: =IF(L101="","",IF(L101=0,"J",IF(L101="Sonder","J",VLOOKUP(L101,sanschie!A:K,11,0)))) ->  | I101: =IF(ISNA(VLOOKUP($B101,Sortimente!D:G,2,0))=TRUE,"",VLOOKUP($B101,Sortimente!D:G,2,0)) ->  | L101: =IF(I101="","",IF(VLOOKUP(B101,Sortimente!D:G,4,0)="",VLOOKUP(B101,Sortimente!D:H,5,0),VLOOKUP(B101,Sortimente!D:G,4,0))) ->  | M101: =IF(I101="","",IF(VLOOKUP(B101,Sortimente!D:L,9,0)=0,"",VLOOKUP(B101,Sortimente!D:L,9,0))) -> 
A102: 94 | B102: =$A$1&Musteranlage!A102 -> ABSOLUT181494 | H102: =IF(L102="","",IF(L102=0,"J",IF(L102="Sonder","J",VLOOKUP(L102,sanschie!A:K,11,0)))) ->  | I102: =IF(ISNA(VLOOKUP($B102,Sortimente!D:G,2,0))=TRUE,"",VLOOKUP($B102,Sortimente!D:G,2,0)) ->  | L102: =IF(I102="","",IF(VLOOKUP(B102,Sortimente!D:G,4,0)="",VLOOKUP(B102,Sortimente!D:H,5,0),VLOOKUP(B102,Sortimente!D:G,4,0))) ->  | M102: =IF(I102="","",IF(VLOOKUP(B102,Sortimente!D:L,9,0)=0,"",VLOOKUP(B102,Sortimente!D:L,9,0))) -> 
A103: 95 | B103: =$A$1&Musteranlage!A103 -> ABSOLUT181495 | H103: =IF(L103="","",IF(L103=0,"J",IF(L103="Sonder","J",VLOOKUP(L103,sanschie!A:K,11,0)))) ->  | I103: =IF(ISNA(VLOOKUP($B103,Sortimente!D:G,2,0))=TRUE,"",VLOOKUP($B103,Sortimente!D:G,2,0)) ->  | L103: =IF(I103="","",IF(VLOOKUP(B103,Sortimente!D:G,4,0)="",VLOOKUP(B103,Sortimente!D:H,5,0),VLOOKUP(B103,Sortimente!D:G,4,0))) ->  | M103: =IF(I103="","",IF(VLOOKUP(B103,Sortimente!D:L,9,0)=0,"",VLOOKUP(B103,Sortimente!D:L,9,0))) -> 
A104: 96 | B104: =$A$1&Musteranlage!A104 -> ABSOLUT181496 | H104: =IF(L104="","",IF(L104=0,"J",IF(L104="Sonder","J",VLOOKUP(L104,sanschie!A:K,11,0)))) ->  | I104: =IF(ISNA(VLOOKUP($B104,Sortimente!D:G,2,0))=TRUE,"",VLOOKUP($B104,Sortimente!D:G,2,0)) ->  | L104: =IF(I104="","",IF(VLOOKUP(B104,Sortimente!D:G,4,0)="",VLOOKUP(B104,Sortimente!D:H,5,0),VLOOKUP(B104,Sortimente!D:G,4,0))) ->  | M104: =IF(I104="","",IF(VLOOKUP(B104,Sortimente!D:L,9,0)=0,"",VLOOKUP(B104,Sortimente!D:L,9,0))) -> 
A105: 97 | B105: =$A$1&Musteranlage!A105 -> ABSOLUT181497 | H105: =IF(L105="","",IF(L105=0,"J",IF(L105="Sonder","J",VLOOKUP(L105,sanschie!A:K,11,0)))) ->  | I105: =IF(ISNA(VLOOKUP($B105,Sortimente!D:G,2,0))=TRUE,"",VLOOKUP($B105,Sortimente!D:G,2,0)) ->  | L105: =IF(I105="","",IF(VLOOKUP(B105,Sortimente!D:G,4,0)="",VLOOKUP(B105,Sortimente!D:H,5,0),VLOOKUP(B105,Sortimente!D:G,4,0))) ->  | M105: =IF(I105="","",IF(VLOOKUP(B105,Sortimente!D:L,9,0)=0,"",VLOOKUP(B105,Sortimente!D:L,9,0))) -> 
A106: 98 | B106: =$A$1&Musteranlage!A106 -> ABSOLUT181498 | H106: =IF(L106="","",IF(L106=0,"J",IF(L106="Sonder","J",VLOOKUP(L106,sanschie!A:K,11,0)))) ->  | I106: =IF(ISNA(VLOOKUP($B106,Sortimente!D:G,2,0))=TRUE,"",VLOOKUP($B106,Sortimente!D:G,2,0)) ->  | L106: =IF(I106="","",IF(VLOOKUP(B106,Sortimente!D:G,4,0)="",VLOOKUP(B106,Sortimente!D:H,5,0),VLOOKUP(B106,Sortimente!D:G,4,0))) ->  | M106: =IF(I106="","",IF(VLOOKUP(B106,Sortimente!D:L,9,0)=0,"",VLOOKUP(B106,Sortimente!D:L,9,0))) -> 
A107: 99 | B107: =$A$1&Musteranlage!A107 -> ABSOLUT181499 | H107: =IF(L107="","",IF(L107=0,"J",IF(L107="Sonder","J",VLOOKUP(L107,sanschie!A:K,11,0)))) ->  | I107: =IF(ISNA(VLOOKUP($B107,Sortimente!D:G,2,0))=TRUE,"",VLOOKUP($B107,Sortimente!D:G,2,0)) ->  | L107: =IF(I107="","",IF(VLOOKUP(B107,Sortimente!D:G,4,0)="",VLOOKUP(B107,Sortimente!D:H,5,0),VLOOKUP(B107,Sortimente!D:G,4,0))) ->  | M107: =IF(I107="","",IF(VLOOKUP(B107,Sortimente!D:L,9,0)=0,"",VLOOKUP(B107,Sortimente!D:L,9,0))) -> 
A108: 100 | B108: =$A$1&Musteranlage!A108 -> ABSOLUT1814100 | H108: =IF(L108="","",IF(L108=0,"J",IF(L108="Sonder","J",VLOOKUP(L108,sanschie!A:K,11,0)))) ->  | I108: =IF(ISNA(VLOOKUP($B108,Sortimente!D:G,2,0))=TRUE,"",VLOOKUP($B108,Sortimente!D:G,2,0)) ->  | L108: =IF(I108="","",IF(VLOOKUP(B108,Sortimente!D:G,4,0)="",VLOOKUP(B108,Sortimente!D:H,5,0),VLOOKUP(B108,Sortimente!D:G,4,0))) ->  | M108: =IF(I108="","",IF(VLOOKUP(B108,Sortimente!D:L,9,0)=0,"",VLOOKUP(B108,Sortimente!D:L,9,0))) -> 
A109: 101 | B109: =$A$1&Musteranlage!A109 -> ABSOLUT1814101 | H109: =IF(L109="","",IF(L109=0,"J",IF(L109="Sonder","J",VLOOKUP(L109,sanschie!A:K,11,0)))) ->  | I109: =IF(ISNA(VLOOKUP($B109,Sortimente!D:G,2,0))=TRUE,"",VLOOKUP($B109,Sortimente!D:G,2,0)) ->  | L109: =IF(I109="","",IF(VLOOKUP(B109,Sortimente!D:G,4,0)="",VLOOKUP(B109,Sortimente!D:H,5,0),VLOOKUP(B109,Sortimente!D:G,4,0))) ->  | M109: =IF(I109="","",IF(VLOOKUP(B109,Sortimente!D:L,9,0)=0,"",VLOOKUP(B109,Sortimente!D:L,9,0))) -> 
A110: 102 | B110: =$A$1&Musteranlage!A110 -> ABSOLUT1814102 | H110: =IF(L110="","",IF(L110=0,"J",IF(L110="Sonder","J",VLOOKUP(L110,sanschie!A:K,11,0)))) ->  | I110: =IF(ISNA(VLOOKUP($B110,Sortimente!D:G,2,0))=TRUE,"",VLOOKUP($B110,Sortimente!D:G,2,0)) ->  | L110: =IF(I110="","",IF(VLOOKUP(B110,Sortimente!D:G,4,0)="",VLOOKUP(B110,Sortimente!D:H,5,0),VLOOKUP(B110,Sortimente!D:G,4,0))) ->  | M110: =IF(I110="","",IF(VLOOKUP(B110,Sortimente!D:L,9,0)=0,"",VLOOKUP(B110,Sortimente!D:L,9,0))) -> 
A111: 103 | B111: =$A$1&Musteranlage!A111 -> ABSOLUT1814103 | H111: =IF(L111="","",IF(L111=0,"J",IF(L111="Sonder","J",VLOOKUP(L111,sanschie!A:K,11,0)))) ->  | I111: =IF(ISNA(VLOOKUP($B111,Sortimente!D:G,2,0))=TRUE,"",VLOOKUP($B111,Sortimente!D:G,2,0)) ->  | L111: =IF(I111="","",IF(VLOOKUP(B111,Sortimente!D:G,4,0)="",VLOOKUP(B111,Sortimente!D:H,5,0),VLOOKUP(B111,Sortimente!D:G,4,0))) ->  | M111: =IF(I111="","",IF(VLOOKUP(B111,Sortimente!D:L,9,0)=0,"",VLOOKUP(B111,Sortimente!D:L,9,0))) -> 
A112: 104 | B112: =$A$1&Musteranlage!A112 -> ABSOLUT1814104 | H112: =IF(L112="","",IF(L112=0,"J",IF(L112="Sonder","J",VLOOKUP(L112,sanschie!A:K,11,0)))) ->  | I112: =IF(ISNA(VLOOKUP($B112,Sortimente!D:G,2,0))=TRUE,"",VLOOKUP($B112,Sortimente!D:G,2,0)) ->  | L112: =IF(I112="","",IF(VLOOKUP(B112,Sortimente!D:G,4,0)="",VLOOKUP(B112,Sortimente!D:H,5,0),VLOOKUP(B112,Sortimente!D:G,4,0))) ->  | M112: =IF(I112="","",IF(VLOOKUP(B112,Sortimente!D:L,9,0)=0,"",VLOOKUP(B112,Sortimente!D:L,9,0))) -> 
A113: 105 | B113: =$A$1&Musteranlage!A113 -> ABSOLUT1814105 | H113: =IF(L113="","",IF(L113=0,"J",IF(L113="Sonder","J",VLOOKUP(L113,sanschie!A:K,11,0)))) ->  | I113: =IF(ISNA(VLOOKUP($B113,Sortimente!D:G,2,0))=TRUE,"",VLOOKUP($B113,Sortimente!D:G,2,0)) ->  | L113: =IF(I113="","",IF(VLOOKUP(B113,Sortimente!D:G,4,0)="",VLOOKUP(B113,Sortimente!D:H,5,0),VLOOKUP(B113,Sortimente!D:G,4,0))) ->  | M113: =IF(I113="","",IF(VLOOKUP(B113,Sortimente!D:L,9,0)=0,"",VLOOKUP(B113,Sortimente!D:L,9,0))) -> 
A114: 106 | B114: =$A$1&Musteranlage!A114 -> ABSOLUT1814106 | H114: =IF(L114="","",IF(L114=0,"J",IF(L114="Sonder","J",VLOOKUP(L114,sanschie!A:K,11,0)))) ->  | I114: =IF(ISNA(VLOOKUP($B114,Sortimente!D:G,2,0))=TRUE,"",VLOOKUP($B114,Sortimente!D:G,2,0)) ->  | L114: =IF(I114="","",IF(VLOOKUP(B114,Sortimente!D:G,4,0)="",VLOOKUP(B114,Sortimente!D:H,5,0),VLOOKUP(B114,Sortimente!D:G,4,0))) ->  | M114: =IF(I114="","",IF(VLOOKUP(B114,Sortimente!D:L,9,0)=0,"",VLOOKUP(B114,Sortimente!D:L,9,0))) -> 
A115: 107 | B115: =$A$1&Musteranlage!A115 -> ABSOLUT1814107 | H115: =IF(L115="","",IF(L115=0,"J",IF(L115="Sonder","J",VLOOKUP(L115,sanschie!A:K,11,0)))) ->  | I115: =IF(ISNA(VLOOKUP($B115,Sortimente!D:G,2,0))=TRUE,"",VLOOKUP($B115,Sortimente!D:G,2,0)) ->  | L115: =IF(I115="","",IF(VLOOKUP(B115,Sortimente!D:G,4,0)="",VLOOKUP(B115,Sortimente!D:H,5,0),VLOOKUP(B115,Sortimente!D:G,4,0))) ->  | M115: =IF(I115="","",IF(VLOOKUP(B115,Sortimente!D:L,9,0)=0,"",VLOOKUP(B115,Sortimente!D:L,9,0))) -> 
A116: 108 | B116: =$A$1&Musteranlage!A116 -> ABSOLUT1814108 | H116: =IF(L116="","",IF(L116=0,"J",IF(L116="Sonder","J",VLOOKUP(L116,sanschie!A:K,11,0)))) ->  | I116: =IF(ISNA(VLOOKUP($B116,Sortimente!D:G,2,0))=TRUE,"",VLOOKUP($B116,Sortimente!D:G,2,0)) ->  | L116: =IF(I116="","",IF(VLOOKUP(B116,Sortimente!D:G,4,0)="",VLOOKUP(B116,Sortimente!D:H,5,0),VLOOKUP(B116,Sortimente!D:G,4,0))) ->  | M116: =IF(I116="","",IF(VLOOKUP(B116,Sortimente!D:L,9,0)=0,"",VLOOKUP(B116,Sortimente!D:L,9,0))) -> 
A117: 109 | B117: =$A$1&Musteranlage!A117 -> ABSOLUT1814109 | H117: =IF(L117="","",IF(L117=0,"J",IF(L117="Sonder","J",VLOOKUP(L117,sanschie!A:K,11,0)))) ->  | I117: =IF(ISNA(VLOOKUP($B117,Sortimente!D:G,2,0))=TRUE,"",VLOOKUP($B117,Sortimente!D:G,2,0)) ->  | L117: =IF(I117="","",IF(VLOOKUP(B117,Sortimente!D:G,4,0)="",VLOOKUP(B117,Sortimente!D:H,5,0),VLOOKUP(B117,Sortimente!D:G,4,0))) ->  | M117: =IF(I117="","",IF(VLOOKUP(B117,Sortimente!D:L,9,0)=0,"",VLOOKUP(B117,Sortimente!D:L,9,0))) -> 
A118: 110 | B118: =$A$1&Musteranlage!A118 -> ABSOLUT1814110 | H118: =IF(L118="","",IF(L118=0,"J",IF(L118="Sonder","J",VLOOKUP(L118,sanschie!A:K,11,0)))) ->  | I118: =IF(ISNA(VLOOKUP($B118,Sortimente!D:G,2,0))=TRUE,"",VLOOKUP($B118,Sortimente!D:G,2,0)) ->  | L118: =IF(I118="","",IF(VLOOKUP(B118,Sortimente!D:G,4,0)="",VLOOKUP(B118,Sortimente!D:H,5,0),VLOOKUP(B118,Sortimente!D:G,4,0))) ->  | M118: =IF(I118="","",IF(VLOOKUP(B118,Sortimente!D:L,9,0)=0,"",VLOOKUP(B118,Sortimente!D:L,9,0))) -> 
A119: 111 | B119: =$A$1&Musteranlage!A119 -> ABSOLUT1814111 | H119: =IF(L119="","",IF(L119=0,"J",IF(L119="Sonder","J",VLOOKUP(L119,sanschie!A:K,11,0)))) ->  | I119: =IF(ISNA(VLOOKUP($B119,Sortimente!D:G,2,0))=TRUE,"",VLOOKUP($B119,Sortimente!D:G,2,0)) ->  | L119: =IF(I119="","",IF(VLOOKUP(B119,Sortimente!D:G,4,0)="",VLOOKUP(B119,Sortimente!D:H,5,0),VLOOKUP(B119,Sortimente!D:G,4,0))) ->  | M119: =IF(I119="","",IF(VLOOKUP(B119,Sortimente!D:L,9,0)=0,"",VLOOKUP(B119,Sortimente!D:L,9,0))) -> 
A120: 112 | B120: =$A$1&Musteranlage!A120 -> ABSOLUT1814112 | H120: =IF(L120="","",IF(L120=0,"J",IF(L120="Sonder","J",VLOOKUP(L120,sanschie!A:K,11,0)))) ->  | I120: =IF(ISNA(VLOOKUP($B120,Sortimente!D:G,2,0))=TRUE,"",VLOOKUP($B120,Sortimente!D:G,2,0)) ->  | L120: =IF(I120="","",IF(VLOOKUP(B120,Sortimente!D:G,4,0)="",VLOOKUP(B120,Sortimente!D:H,5,0),VLOOKUP(B120,Sortimente!D:G,4,0))) ->  | M120: =IF(I120="","",IF(VLOOKUP(B120,Sortimente!D:L,9,0)=0,"",VLOOKUP(B120,Sortimente!D:L,9,0))) -> 
A121: 113 | B121: =$A$1&Musteranlage!A121 -> ABSOLUT1814113 | H121: =IF(L121="","",IF(L121=0,"J",IF(L121="Sonder","J",VLOOKUP(L121,sanschie!A:K,11,0)))) ->  | I121: =IF(ISNA(VLOOKUP($B121,Sortimente!D:G,2,0))=TRUE,"",VLOOKUP($B121,Sortimente!D:G,2,0)) ->  | L121: =IF(I121="","",IF(VLOOKUP(B121,Sortimente!D:G,4,0)="",VLOOKUP(B121,Sortimente!D:H,5,0),VLOOKUP(B121,Sortimente!D:G,4,0))) ->  | M121: =IF(I121="","",IF(VLOOKUP(B121,Sortimente!D:L,9,0)=0,"",VLOOKUP(B121,Sortimente!D:L,9,0))) -> 
A122: 114 | B122: =$A$1&Musteranlage!A122 -> ABSOLUT1814114 | H122: =IF(L122="","",IF(L122=0,"J",IF(L122="Sonder","J",VLOOKUP(L122,sanschie!A:K,11,0)))) ->  | I122: =IF(ISNA(VLOOKUP($B122,Sortimente!D:G,2,0))=TRUE,"",VLOOKUP($B122,Sortimente!D:G,2,0)) ->  | L122: =IF(I122="","",IF(VLOOKUP(B122,Sortimente!D:G,4,0)="",VLOOKUP(B122,Sortimente!D:H,5,0),VLOOKUP(B122,Sortimente!D:G,4,0))) ->  | M122: =IF(I122="","",IF(VLOOKUP(B122,Sortimente!D:L,9,0)=0,"",VLOOKUP(B122,Sortimente!D:L,9,0))) -> 
A123: 115 | B123: =$A$1&Musteranlage!A123 -> ABSOLUT1814115 | H123: =IF(L123="","",IF(L123=0,"J",IF(L123="Sonder","J",VLOOKUP(L123,sanschie!A:K,11,0)))) ->  | I123: =IF(ISNA(VLOOKUP($B123,Sortimente!D:G,2,0))=TRUE,"",VLOOKUP($B123,Sortimente!D:G,2,0)) ->  | L123: =IF(I123="","",IF(VLOOKUP(B123,Sortimente!D:G,4,0)="",VLOOKUP(B123,Sortimente!D:H,5,0),VLOOKUP(B123,Sortimente!D:G,4,0))) ->  | M123: =IF(I123="","",IF(VLOOKUP(B123,Sortimente!D:L,9,0)=0,"",VLOOKUP(B123,Sortimente!D:L,9,0))) -> 
A124: 116 | B124: =$A$1&Musteranlage!A124 -> ABSOLUT1814116 | H124: =IF(L124="","",IF(L124=0,"J",IF(L124="Sonder","J",VLOOKUP(L124,sanschie!A:K,11,0)))) ->  | I124: =IF(ISNA(VLOOKUP($B124,Sortimente!D:G,2,0))=TRUE,"",VLOOKUP($B124,Sortimente!D:G,2,0)) ->  | L124: =IF(I124="","",IF(VLOOKUP(B124,Sortimente!D:G,4,0)="",VLOOKUP(B124,Sortimente!D:H,5,0),VLOOKUP(B124,Sortimente!D:G,4,0))) ->  | M124: =IF(I124="","",IF(VLOOKUP(B124,Sortimente!D:L,9,0)=0,"",VLOOKUP(B124,Sortimente!D:L,9,0))) -> 
A125: 117 | B125: =$A$1&Musteranlage!A125 -> ABSOLUT1814117 | H125: =IF(L125="","",IF(L125=0,"J",IF(L125="Sonder","J",VLOOKUP(L125,sanschie!A:K,11,0)))) ->  | I125: =IF(ISNA(VLOOKUP($B125,Sortimente!D:G,2,0))=TRUE,"",VLOOKUP($B125,Sortimente!D:G,2,0)) ->  | L125: =IF(I125="","",IF(VLOOKUP(B125,Sortimente!D:G,4,0)="",VLOOKUP(B125,Sortimente!D:H,5,0),VLOOKUP(B125,Sortimente!D:G,4,0))) ->  | M125: =IF(I125="","",IF(VLOOKUP(B125,Sortimente!D:L,9,0)=0,"",VLOOKUP(B125,Sortimente!D:L,9,0))) -> 
A126: 118 | B126: =$A$1&Musteranlage!A126 -> ABSOLUT1814118 | H126: =IF(L126="","",IF(L126=0,"J",IF(L126="Sonder","J",VLOOKUP(L126,sanschie!A:K,11,0)))) ->  | I126: =IF(ISNA(VLOOKUP($B126,Sortimente!D:G,2,0))=TRUE,"",VLOOKUP($B126,Sortimente!D:G,2,0)) ->  | L126: =IF(I126="","",IF(VLOOKUP(B126,Sortimente!D:G,4,0)="",VLOOKUP(B126,Sortimente!D:H,5,0),VLOOKUP(B126,Sortimente!D:G,4,0))) ->  | M126: =IF(I126="","",IF(VLOOKUP(B126,Sortimente!D:L,9,0)=0,"",VLOOKUP(B126,Sortimente!D:L,9,0))) -> 
A127: 119 | B127: =$A$1&Musteranlage!A127 -> ABSOLUT1814119 | H127: =IF(L127="","",IF(L127=0,"J",IF(L127="Sonder","J",VLOOKUP(L127,sanschie!A:K,11,0)))) ->  | I127: =IF(ISNA(VLOOKUP($B127,Sortimente!D:G,2,0))=TRUE,"",VLOOKUP($B127,Sortimente!D:G,2,0)) ->  | L127: =IF(I127="","",IF(VLOOKUP(B127,Sortimente!D:G,4,0)="",VLOOKUP(B127,Sortimente!D:H,5,0),VLOOKUP(B127,Sortimente!D:G,4,0))) ->  | M127: =IF(I127="","",IF(VLOOKUP(B127,Sortimente!D:L,9,0)=0,"",VLOOKUP(B127,Sortimente!D:L,9,0))) -> 
A128: 120 | B128: =$A$1&Musteranlage!A128 -> ABSOLUT1814120 | H128: =IF(L128="","",IF(L128=0,"J",IF(L128="Sonder","J",VLOOKUP(L128,sanschie!A:K,11,0)))) ->  | I128: =IF(ISNA(VLOOKUP($B128,Sortimente!D:G,2,0))=TRUE,"",VLOOKUP($B128,Sortimente!D:G,2,0)) ->  | L128: =IF(I128="","",IF(VLOOKUP(B128,Sortimente!D:G,4,0)="",VLOOKUP(B128,Sortimente!D:H,5,0),VLOOKUP(B128,Sortimente!D:G,4,0))) ->  | M128: =IF(I128="","",IF(VLOOKUP(B128,Sortimente!D:L,9,0)=0,"",VLOOKUP(B128,Sortimente!D:L,9,0))) -> 
A129: 121 | B129: =$A$1&Musteranlage!A129 -> ABSOLUT1814121 | H129: =IF(L129="","",IF(L129=0,"J",IF(L129="Sonder","J",VLOOKUP(L129,sanschie!A:K,11,0)))) ->  | I129: =IF(ISNA(VLOOKUP($B129,Sortimente!D:G,2,0))=TRUE,"",VLOOKUP($B129,Sortimente!D:G,2,0)) ->  | L129: =IF(I129="","",IF(VLOOKUP(B129,Sortimente!D:G,4,0)="",VLOOKUP(B129,Sortimente!D:H,5,0),VLOOKUP(B129,Sortimente!D:G,4,0))) ->  | M129: =IF(I129="","",IF(VLOOKUP(B129,Sortimente!D:L,9,0)=0,"",VLOOKUP(B129,Sortimente!D:L,9,0))) -> 
A130: 122 | B130: =$A$1&Musteranlage!A130 -> ABSOLUT1814122 | H130: =IF(L130="","",IF(L130=0,"J",IF(L130="Sonder","J",VLOOKUP(L130,sanschie!A:K,11,0)))) ->  | I130: =IF(ISNA(VLOOKUP($B130,Sortimente!D:G,2,0))=TRUE,"",VLOOKUP($B130,Sortimente!D:G,2,0)) ->  | L130: =IF(I130="","",IF(VLOOKUP(B130,Sortimente!D:G,4,0)="",VLOOKUP(B130,Sortimente!D:H,5,0),VLOOKUP(B130,Sortimente!D:G,4,0))) ->  | M130: =IF(I130="","",IF(VLOOKUP(B130,Sortimente!D:L,9,0)=0,"",VLOOKUP(B130,Sortimente!D:L,9,0))) -> 
A131: 123 | B131: =$A$1&Musteranlage!A131 -> ABSOLUT1814123 | H131: =IF(L131="","",IF(L131=0,"J",IF(L131="Sonder","J",VLOOKUP(L131,sanschie!A:K,11,0)))) ->  | I131: =IF(ISNA(VLOOKUP($B131,Sortimente!D:G,2,0))=TRUE,"",VLOOKUP($B131,Sortimente!D:G,2,0)) ->  | L131: =IF(I131="","",IF(VLOOKUP(B131,Sortimente!D:G,4,0)="",VLOOKUP(B131,Sortimente!D:H,5,0),VLOOKUP(B131,Sortimente!D:G,4,0))) ->  | M131: =IF(I131="","",IF(VLOOKUP(B131,Sortimente!D:L,9,0)=0,"",VLOOKUP(B131,Sortimente!D:L,9,0))) -> 
A132: 124 | B132: =$A$1&Musteranlage!A132 -> ABSOLUT1814124 | H132: =IF(L132="","",IF(L132=0,"J",IF(L132="Sonder","J",VLOOKUP(L132,sanschie!A:K,11,0)))) ->  | I132: =IF(ISNA(VLOOKUP($B132,Sortimente!D:G,2,0))=TRUE,"",VLOOKUP($B132,Sortimente!D:G,2,0)) ->  | L132: =IF(I132="","",IF(VLOOKUP(B132,Sortimente!D:G,4,0)="",VLOOKUP(B132,Sortimente!D:H,5,0),VLOOKUP(B132,Sortimente!D:G,4,0))) ->  | M132: =IF(I132="","",IF(VLOOKUP(B132,Sortimente!D:L,9,0)=0,"",VLOOKUP(B132,Sortimente!D:L,9,0))) -> 
A133: 125 | B133: =$A$1&Musteranlage!A133 -> ABSOLUT1814125 | H133: =IF(L133="","",IF(L133=0,"J",IF(L133="Sonder","J",VLOOKUP(L133,sanschie!A:K,11,0)))) ->  | I133: =IF(ISNA(VLOOKUP($B133,Sortimente!D:G,2,0))=TRUE,"",VLOOKUP($B133,Sortimente!D:G,2,0)) ->  | L133: =IF(I133="","",IF(VLOOKUP(B133,Sortimente!D:G,4,0)="",VLOOKUP(B133,Sortimente!D:H,5,0),VLOOKUP(B133,Sortimente!D:G,4,0))) ->  | M133: =IF(I133="","",IF(VLOOKUP(B133,Sortimente!D:L,9,0)=0,"",VLOOKUP(B133,Sortimente!D:L,9,0))) -> 
A134: 126 | B134: =$A$1&Musteranlage!A134 -> ABSOLUT1814126 | H134: =IF(L134="","",IF(L134=0,"J",IF(L134="Sonder","J",VLOOKUP(L134,sanschie!A:K,11,0)))) ->  | I134: =IF(ISNA(VLOOKUP($B134,Sortimente!D:G,2,0))=TRUE,"",VLOOKUP($B134,Sortimente!D:G,2,0)) ->  | L134: =IF(I134="","",IF(VLOOKUP(B134,Sortimente!D:G,4,0)="",VLOOKUP(B134,Sortimente!D:H,5,0),VLOOKUP(B134,Sortimente!D:G,4,0))) ->  | M134: =IF(I134="","",IF(VLOOKUP(B134,Sortimente!D:L,9,0)=0,"",VLOOKUP(B134,Sortimente!D:L,9,0))) -> 
A135: 127 | B135: =$A$1&Musteranlage!A135 -> ABSOLUT1814127 | H135: =IF(L135="","",IF(L135=0,"J",IF(L135="Sonder","J",VLOOKUP(L135,sanschie!A:K,11,0)))) ->  | I135: =IF(ISNA(VLOOKUP($B135,Sortimente!D:G,2,0))=TRUE,"",VLOOKUP($B135,Sortimente!D:G,2,0)) ->  | L135: =IF(I135="","",IF(VLOOKUP(B135,Sortimente!D:G,4,0)="",VLOOKUP(B135,Sortimente!D:H,5,0),VLOOKUP(B135,Sortimente!D:G,4,0))) ->  | M135: =IF(I135="","",IF(VLOOKUP(B135,Sortimente!D:L,9,0)=0,"",VLOOKUP(B135,Sortimente!D:L,9,0))) -> 
A136: 128 | B136: =$A$1&Musteranlage!A136 -> ABSOLUT1814128 | H136: =IF(L136="","",IF(L136=0,"J",IF(L136="Sonder","J",VLOOKUP(L136,sanschie!A:K,11,0)))) ->  | I136: =IF(ISNA(VLOOKUP($B136,Sortimente!D:G,2,0))=TRUE,"",VLOOKUP($B136,Sortimente!D:G,2,0)) ->  | L136: =IF(I136="","",IF(VLOOKUP(B136,Sortimente!D:G,4,0)="",VLOOKUP(B136,Sortimente!D:H,5,0),VLOOKUP(B136,Sortimente!D:G,4,0))) ->  | M136: =IF(I136="","",IF(VLOOKUP(B136,Sortimente!D:L,9,0)=0,"",VLOOKUP(B136,Sortimente!D:L,9,0))) -> 
A137: 129 | B137: =$A$1&Musteranlage!A137 -> ABSOLUT1814129 | H137: =IF(L137="","",IF(L137=0,"J",IF(L137="Sonder","J",VLOOKUP(L137,sanschie!A:K,11,0)))) ->  | I137: =IF(ISNA(VLOOKUP($B137,Sortimente!D:G,2,0))=TRUE,"",VLOOKUP($B137,Sortimente!D:G,2,0)) ->  | L137: =IF(I137="","",IF(VLOOKUP(B137,Sortimente!D:G,4,0)="",VLOOKUP(B137,Sortimente!D:H,5,0),VLOOKUP(B137,Sortimente!D:G,4,0))) ->  | M137: =IF(I137="","",IF(VLOOKUP(B137,Sortimente!D:L,9,0)=0,"",VLOOKUP(B137,Sortimente!D:L,9,0))) -> 
A138: 130 | B138: =$A$1&Musteranlage!A138 -> ABSOLUT1814130 | H138: =IF(L138="","",IF(L138=0,"J",IF(L138="Sonder","J",VLOOKUP(L138,sanschie!A:K,11,0)))) ->  | I138: =IF(ISNA(VLOOKUP($B138,Sortimente!D:G,2,0))=TRUE,"",VLOOKUP($B138,Sortimente!D:G,2,0)) ->  | L138: =IF(I138="","",IF(VLOOKUP(B138,Sortimente!D:G,4,0)="",VLOOKUP(B138,Sortimente!D:H,5,0),VLOOKUP(B138,Sortimente!D:G,4,0))) ->  | M138: =IF(I138="","",IF(VLOOKUP(B138,Sortimente!D:L,9,0)=0,"",VLOOKUP(B138,Sortimente!D:L,9,0))) -> 
A139: 131 | B139: =$A$1&Musteranlage!A139 -> ABSOLUT1814131 | H139: =IF(L139="","",IF(L139=0,"J",IF(L139="Sonder","J",VLOOKUP(L139,sanschie!A:K,11,0)))) ->  | I139: =IF(ISNA(VLOOKUP($B139,Sortimente!D:G,2,0))=TRUE,"",VLOOKUP($B139,Sortimente!D:G,2,0)) ->  | L139: =IF(I139="","",IF(VLOOKUP(B139,Sortimente!D:G,4,0)="",VLOOKUP(B139,Sortimente!D:H,5,0),VLOOKUP(B139,Sortimente!D:G,4,0))) ->  | M139: =IF(I139="","",IF(VLOOKUP(B139,Sortimente!D:L,9,0)=0,"",VLOOKUP(B139,Sortimente!D:L,9,0))) -> 
A140: 132 | B140: =$A$1&Musteranlage!A140 -> ABSOLUT1814132 | H140: =IF(L140="","",IF(L140=0,"J",IF(L140="Sonder","J",VLOOKUP(L140,sanschie!A:K,11,0)))) ->  | I140: =IF(ISNA(VLOOKUP($B140,Sortimente!D:G,2,0))=TRUE,"",VLOOKUP($B140,Sortimente!D:G,2,0)) ->  | L140: =IF(I140="","",IF(VLOOKUP(B140,Sortimente!D:G,4,0)="",VLOOKUP(B140,Sortimente!D:H,5,0),VLOOKUP(B140,Sortimente!D:G,4,0))) ->  | M140: =IF(I140="","",IF(VLOOKUP(B140,Sortimente!D:L,9,0)=0,"",VLOOKUP(B140,Sortimente!D:L,9,0))) -> 
A141: 133 | B141: =$A$1&Musteranlage!A141 -> ABSOLUT1814133 | H141: =IF(L141="","",IF(L141=0,"J",IF(L141="Sonder","J",VLOOKUP(L141,sanschie!A:K,11,0)))) ->  | I141: =IF(ISNA(VLOOKUP($B141,Sortimente!D:G,2,0))=TRUE,"",VLOOKUP($B141,Sortimente!D:G,2,0)) ->  | L141: =IF(I141="","",IF(VLOOKUP(B141,Sortimente!D:G,4,0)="",VLOOKUP(B141,Sortimente!D:H,5,0),VLOOKUP(B141,Sortimente!D:G,4,0))) ->  | M141: =IF(I141="","",IF(VLOOKUP(B141,Sortimente!D:L,9,0)=0,"",VLOOKUP(B141,Sortimente!D:L,9,0))) -> 
A142: 134 | B142: =$A$1&Musteranlage!A142 -> ABSOLUT1814134 | H142: =IF(L142="","",IF(L142=0,"J",IF(L142="Sonder","J",VLOOKUP(L142,sanschie!A:K,11,0)))) ->  | I142: =IF(ISNA(VLOOKUP($B142,Sortimente!D:G,2,0))=TRUE,"",VLOOKUP($B142,Sortimente!D:G,2,0)) ->  | L142: =IF(I142="","",IF(VLOOKUP(B142,Sortimente!D:G,4,0)="",VLOOKUP(B142,Sortimente!D:H,5,0),VLOOKUP(B142,Sortimente!D:G,4,0))) ->  | M142: =IF(I142="","",IF(VLOOKUP(B142,Sortimente!D:L,9,0)=0,"",VLOOKUP(B142,Sortimente!D:L,9,0))) -> 
H143: =IF(L143="","",IF(L143="Sonder","J",VLOOKUP(L143,sanschie!A:K,11,0))) -> 
H144: =IF(L144="","",IF(L144="Sonder","J",VLOOKUP(L144,sanschie!A:K,11,0))) -> 
H145: =IF(L145="","",IF(L145="Sonder","J",VLOOKUP(L145,sanschie!A:K,11,0))) -> 
H146: =IF(L146="","",IF(L146="Sonder","J",VLOOKUP(L146,sanschie!A:K,11,0))) -> 
H147: =IF(L147="","",IF(L147="Sonder","J",VLOOKUP(L147,sanschie!A:K,11,0))) -> 

Sheet AbsolutTL (hidden)
F2: =IF(ISNA(VLOOKUP(Daten!$U$47,Daten!$T:$AL,19,0))=TRUE,"bitte Licher Ø cm auswählen!",(VLOOKUP(Daten!$U$47,Daten!$T:$AL,19,0))) -> Typ Absolut 18TL
F4: Lichter Ø cm
F6: Anlagenhöhe in m
F8: Fussausführung
F10: Rauchrohranschluss | I10: (bei komb., kleiner Ø)
F12: zusätzlicher RA | I12: (bei komb., großer Ø)
F14: Abdeckplatte
F15: Fertige Kaminkopflösungen
F20: Zubehör für Energiesparen
F22: Absolut Thermokomponenten
F24: Folienanschluss
F26: LAS Zuluft-Adapter | I26: (für Thermo-Luftzug)
F28: Zubehör für Statik
F29: Bewehrungs-Set
F31: Kaminhalter
F32: Sonstiges Zubehör
F33: Anschlussadapter | I33: (nur für Ø12 und Ø14)
F35: obere Revisionstür | I35: (für Thermo-Luftzug)
F37: Zugbegrenzer + Explosionsklappe
F39: Wanddurchführung | I39: (IgnisProtect)
F41: obere Putztür | H41: (bei zweizügigen, für beide Züge)
F43: Regenhaube | H43: (bei zweizügigen, für beide Züge)

Sheet Keranova (hidden)
P2: =VLOOKUP(Daten!$U$18,Daten!$T:$U,2,0)&" "&VLOOKUP(Daten!$U$18,Daten!$T:$V,3,0) -> Keranova 160
F3: =VLOOKUP(Daten!$U$18,Daten!$T:$AL,19,0) -> Typ Keranova 160
F6: =Vokabel!$A$54 -> Lichter Ø mm
F8: =Vokabel!$A$55 -> Betriebsweise
F10: =Vokabel!$A$56 -> Brennstoff | M10: =Vokabel!$A$75 -> Anpassung der Anlagenhöhe
F12: =Vokabel!$A$29 -> Kaminhöhe in m | J12: 7 | M12: =Vokabel!$A$89 -> tatsächliche Rohrhöhe | P12: =VLOOKUP(P2,Sortimente!G:P,10,0) -> 7.481
M13: =Vokabel!$A$77 -> Differenz +/- | P13: =P12-J12 -> 0.481
F14: =Vokabel!$A$59 -> Rauchrohranschluss RA | M14: =Vokabel!$A$87 -> (14 cm für Mündung vorsehen!)
M15: =Vokabel!$A$78 -> Anpassung durch Eingabe kürzerer Rohrelemente:
F16: =Vokabel!$A$85 -> Doppelwandfutter in mm
F18: =Vokabel!$A$58 -> Putztüranschluss | N18: =Vokabel!$A$88 -> Rohr 660 mm
F20: =Vokabel!$A$86 -> Putztür
F22: =Vokabel!$A$68 -> Regenhaube
A60: 1

Sheet Progasflex (hidden)
P2: =VLOOKUP(Daten!U98,Daten!$T:$U,2,0)&" "&VLOOKUP(Daten!U98,Daten!$T:$V,3,0) -> ProgasFlex 75
F3: =VLOOKUP(Daten!$U$98,Daten!$T:$AL,19,0) -> Typ PGF 75
F6: =Vokabel!$A$54 -> Lichter Ø mm
A60: 1

Sheet ProGasPP (hidden)
P2: =VLOOKUP(Daten!U98,Daten!$T:$U,2,0)&" "&VLOOKUP(Daten!U98,Daten!$T:$V,3,0) -> ProgasFlex 75
F3: =VLOOKUP(Daten!$U$98,Daten!$T:$AL,19,0) -> Typ PGF 75
F6: =Vokabel!$A$54 -> Lichter Ø mm
F8: System
F10: Schachtabdeckung aus:
F12: =Vokabel!$A$29 -> Kaminhöhe in m | J12: 10
F14: =Vokabel!$A$58 -> Putztüranschluss
F16: =Vokabel!$A$86 -> Putztür
F18: =Vokabel!$A$56 -> Brennstoff
A60: 1

Sheet LEICHTBAUSCHACHT (hidden)
F3: =VLOOKUP(Daten!$U$29,Daten!T:AL,19,0) -> Leichtbauschacht 130x130 (innen)
F5: Schiedel Systemzuordnung
F7: Innenmaß mm
M8: Abnehmbar | O8: =J9+M9+((J11+M11)/2)&" Meter" -> 10 Meter
F9: Längenelemente 1000 mm | J9: 10 | O9: ="Schachthöhe = "&O8 -> Schachthöhe = 10 Meter
M10: Abnehmbar
F11: Längenelemente 500 mm
F13: Grundplatte
F15: Wandhalter (für Schacht)
F17: Dachdurchführung (für Schacht)
F19: Sparrenhalter (für Schacht)
F21: Abdeckplatte
F22: (für bauseitige Verkleidung)
F24: Stülpkopf Alu
F27: Schachtarretierung für DW Rohr
F28: (bei Übergang EW - DW)
A60: 1

Sheet PRIMA PLUS (hidden)
P2: =VLOOKUP(Daten!$U$1226,Daten!$T:$U,2,0)&" "&VLOOKUP(Daten!$U$1226,Daten!$T:$V,3,0) -> PRIMA PLUS 0,6 150
F3: =VLOOKUP(Daten!$U$1226,Daten!$T:$AL,19,0) -> Typ PPL 150 / 0,6
F5: =Vokabel!$A$54 -> Lichter Ø mm
F7: =Vokabel!$A$56 -> Brennstoff
F9: =Vokabel!$A$55 -> Betriebsweise | M9: =Vokabel!$A$75 -> Anpassung der Anlagenhöhe
F11: =Vokabel!$A$29 -> Kaminhöhe in m | J11: 9.9 | M11: =Vokabel!$A$89 -> tatsächliche Rohrhöhe | P11: =VLOOKUP(P2,Sortimente!G:P,10,0) -> 9.923
M12: =Vokabel!$A$77 -> Differenz +/- | P12: =P11-J11 -> 0.023
F13: Beginn der Anlage | M13: =Vokabel!$A$90 -> (10 cm für Mündung vorsehen!)
M14: =Vokabel!$A$78 -> Anpassung durch Eingabe kürzerer Rohrelemente:
F15: =Vokabel!$A$59 -> Rauchrohranschluss RA
F17: Anschlussart | N17: =Vokabel!$A$422 -> Rohr 450 mm
N18: =Vokabel!$A$92 -> Rohr 200 mm
F19: =Vokabel!$A$58 -> Putztüranschluss
F21: =Vokabel!$A$86 -> Putztür
F23: =Vokabel!$A$68 -> Regenhaube
F25: Blitzschutzanschluss
F27: WDS
F29: =Vokabel!$A$74 -> Verbindungsleitung
A62: 1

Sheet Daten (hidden)
T1: 1 | U1: =INDEX(V2,T1,1) -> Montage | V1: =INDEX(X2,T1,1) -> Versetzleistung für | W1: =INDEX(Y2:Y8,T1,1) -> 0
B2: für ICS | C2: 1 | E2: 1 | F2: =INDEX(E4:E5,E2,1) -> Unterdruck | G2: 1 | H2: =INDEX(G4:G6,G2,1) -> Schwarz | M2: 1 | N2: =INDEX(N4:N29,M2,1) -> 1 | T2: Montage | U2: Montage | V2: Montage | W2: 272 mm | X2: Versetzleistung für | AL2: =V2 -> Montage | AM2: Versetzleistung für Schiedel | BR2: Kerastar 140 | BS2: Gesamthöhe | BU2: m | BV2: =ROUND(BV3/1000,2) -> 1.36 | BX2: =ROUND(BX3/1000,2) -> 1.52 | BZ2: =ROUND(BZ3/1000,2) -> 1.69 | CB2: =ROUND(CB3/1000,2) -> 1.85 | CD2: =ROUND(CD3/1000,2) -> 2.02 | CF2: =ROUND(CF3/1000,2) -> 2.19 | CH2: =ROUND(CH3/1000,2) -> 2.35 | CJ2: =ROUND(CJ3/1000,2) -> 2.52 | CL2: =ROUND(CL3/1000,2) -> 2.69 | CY2: ICS 080 | CZ2: Gesamthöhe | DB2: m | DC2: =ROUND(DC3/1000,2) -> 0.41 | DE2: =ROUND(DE3/1000,2) -> 0.62 | DG2: =ROUND(DG3/1000,2) -> 0.87 | DI2: =ROUND(DI3/1000,2) -> 1.07 | DK2: =ROUND(DK3/1000,2) -> 1.37 | DM2: =ROUND(DM3/1000,2) -> 1.57 | DO2: =ROUND(DO3/1000,2) -> 1.82
B3: =Vokabel!$A$207 -> nicht bekannt | C3: =INDEX(B3:B7,C2,1) -> nicht bekannt | D3: =IF($F$2=Vokabel!$A$221,Vokabel!$A$208,Vokabel!$A$207) -> nicht bekannt | E3: ICS | G3: Permeter Farbe | J3: 1 | K3: =INDEX(J5:J6,J3,1) -> Nein | M3: Systemzuordnung | BU3: mm | BV3: =BV9+BV10+BV11+BV12+BV13+BV14 -> 1356 | BX3: =BX9+BX10+BX11+BX12+BX13+BX14 -> 1522 | BZ3: =BZ9+BZ10+BZ11+BZ12+BZ13+BZ14 -> 1687 | CB3: =CB9+CB10+CB11+CB12+CB13+CB14 -> 1853 | CD3: =CD9+CD10+CD11+CD12+CD13+CD14 -> 2022 | CF3: =CF9+CF10+CF11+CF12+CF13+CF14 -> 2188 | CH3: =CH9+CH10+CH11+CH12+CH13+CH14 -> 2353 | CJ3: =CJ9+CJ10+CJ11+CJ12+CJ13+CJ14 -> 2519 | CL3: =CL9+CL10+CL11+CL12+CL13+CL14 -> 2688 | CY3: Anschlusshöhe | DB3: mm | DC3: =DC7+DC9+DC11+DC12+DC13+DC10 -> 414 | DE3: =DE7+DE9+DE11+DE12+DE13+DE10 -> 619 | DG3: =DG7+DG9+DG11+DG12+DG13+DG10 -> 869 | DI3: =DI7+DI9+DI11+DI12+DI13+DI10 -> 1074 | DK3: =DK7+DK9+DK11+DK12+DK13+DK10 -> 1369 | DM3: =DM7+DM9+DM11+DM12+DM13+DM10 -> 1574 | DO3: =DO7+DO9+DO11+DO12+DO13+DO10 -> 1824
B4: =Vokabel!$A$208 -> Gas | E4: =Vokabel!$A$220 -> Unterdruck | G4: Schwarz | J4: =U29 -> Leichtbauschacht130x130 | L4: 1 | M4: Nein | N4: 1 | CY4: (=vom 1.Rohr bis mitte Anschluss) | DA4: Achsmaße
B5: =Vokabel!$A$209 -> Öl | E5: =IF($V$171=405,Vokabel!$A$220,IF($V$171=455,Vokabel!$A$220,IF($V$171=505,Vokabel!$A$220,IF($V$171=555,Vokabel!$A$220,IF($V$171=605,Vokabel!$A$220,IF($V$171=655,Vokabel!$A$220,IF($V$171=705,Vokabel!$A$220,Vokabel!$A$221))))))) -> Überdruck | G5: Grau | J5: Nein | L5: 2 | M5: PRIMAPLUS 80 | N5: 3 | O5: 180 | T5: 3 | U5: =INDEX(T6:T12,T5,1) -> KERASTAR180 | V5: =INDEX(V6:V12,T5,1) -> 180 | W5: =INDEX(W6:W12,T5,1) -> 314 mm | BR5: Anschlusshöhe | CY5: T-Stück 85° | DA5: 126
B6: =Vokabel!$A$210 -> Festbrennstoff | C6: =IF($F$2=Vokabel!$A$221,Vokabel!$A$209,Vokabel!$A$210) -> Festbrennstoff | G6: Weiß | J6: Ja | L6: 3 | M6: PRIMAPLUS 100 | N6: 4 | O6: 200 | T6: =U6&V6 -> KERASTAR140 | U6: KERASTAR | V6: 140 | W6: 272 mm | X6: Schiedel KERASTAR Ø | Y6: Dreischaliges Edelstahl-Kaminsystem mit | AA6: keramischem Profil-Innenrohr in Elementbauweise | AB6: und keramischer Steckverbindung | AL6: ="Typ Kerastar " &V6 -> Typ Kerastar 140 | AM6: =X6&" "& V6&" mm" -> Schiedel KERASTAR Ø 140 mm | AN6: =$C$65 -> 62 | BR6: (=vom UK.Sockel/OK WK bis mitte Anschluss) | CY6: T-Stück 90° | DA6: 126
B7: =Vokabel!$A$211 -> Holz-Pellets | C7: =IF($F$2=Vokabel!$A$221,Vokabel!$A$209,Vokabel!$A$211) -> Holz-Pellets | L7: 4 | M7: PRIMAPLUS 113 | N7: 5 | O7: 220 | T7: KERASTAR160 | U7: KERASTAR | V7: 160 | W7: 294 mm | X7: Schiedel KERASTAR Ø | Y7: Dreischaliges Edelstahl-Kaminsystem mit | AA7: keramischem Profil-Innenrohr in Elementbauweise | AB7: und keramischer Steckverbindung | AL7: Typ Kerastar 160 | AM7: Schiedel KERASTAR Ø 160 mm | AN7: 62 | CY7: T-Stück-mitte RA 45° | DA7: 218 | DC7: =IF($C$17="90°",$DA6,IF($C$17="85°",$DA5,$DA7)) -> 126 | DE7: =IF($C$17="90°",$DA6,IF($C$17="85°",$DA5,$DA7)) -> 126 | DG7: =IF($C$17="90°",$DA6,IF($C$17="85°",$DA5,$DA7)) -> 126 | DI7: =IF($C$17="90°",$DA6,IF($C$17="85°",$DA5,$DA7)) -> 126 | DK7: =IF($C$17="90°",$DA6,IF($C$17="85°",$DA5,$DA7)) -> 126 | DM7: =IF($C$17="90°",$DA6,IF($C$17="85°",$DA5,$DA7)) -> 126 | DO7: =IF($C$17="90°",$DA6,IF($C$17="85°",$DA5,$DA7)) -> 126
L8: 5 | M8: PRIMAPLUS 120 | N8: 6 | O8: 240 | T8: KERASTAR180 | U8: KERASTAR | V8: 180 | W8: 314 mm | X8: Schiedel KERASTAR Ø | Y8: Dreischaliges Edelstahl-Kaminsystem mit | AA8: keramischem Profil-Innenrohr in Elementbauweise | AB8: und keramischer Steckverbindung | AL8: Typ Kerastar 180 | AM8: Schiedel KERASTAR Ø 180 mm | AN8: 62 | BR8: T-Stück mitte RA | BS8: 90° | BT8: 45° | CZ8: rund | DA8: eckig
G9: 1 | H9: =INDEX(G11:G14,G9,1) -> Boden Grundplatte | J9: 1 | K9: =INDEX(J11:J12,J9,1) -> Nein | L9: 6 | M9: PRIMAPLUS 130 | N9: 6 | O9: 240 | T9: KERASTAR200 | U9: KERASTAR | V9: 200 | W9: 338 mm | X9: Schiedel KERASTAR Ø | Y9: Dreischaliges Edelstahl-Kaminsystem mit | AA9: keramischem Profil-Innenrohr in Elementbauweise | AB9: und keramischer Steckverbindung | AL9: Typ Kerastar 200 | AM9: Schiedel KERASTAR Ø 200 mm | AN9: 62 | BR9: T-Stück-mitte RA | BS9: 340 | BT9: 108 | BU9: =IF($B$413=2,$BT9,$BS9) -> 340 | BV9: =$BU9 -> 340 | BX9: =$BU9 -> 340 | BZ9: =$BU9 -> 340 | CB9: =$BU9 -> 340 | CD9: =$BU9 -> 340 | CF9: =$BU9 -> 340 | CH9: =$BU9 -> 340 | CJ9: =$BU9 -> 340 | CL9: =$BU9 -> 340 | CY9: Inspektionselement | CZ9: 288 | DA9: gibt es nicht | DC9: =$CZ9 -> 288 | DE9: =$CZ9 -> 288 | DG9: =$CZ9 -> 288 | DI9: =$CZ9 -> 288 | DK9: =$CZ9 -> 288 | DM9: =$CZ9 -> 288 | DO9: =$CZ9 -> 288
B10: 1 | C10: =INDEX(Daten!B12:B15,B10,1) -> Nein | E10: 1 | F10: =INDEX(E12:E13,E10,1) -> 1 | G10: Permeter Fußteil | J10: Grundplatte | L10: 7 | M10: PRIMAPLUS 140 | N10: 6 | O10: 240 | T10: KERASTAR250 | U10: KERASTAR | V10: 250 | W10: 391 mm | X10: Schiedel KERASTAR Ø | Y10: Dreischaliges Edelstahl-Kaminsystem mit | AA10: keramischem Profil-Innenrohr in Elementbauweise | AB10: und keramischer Steckverbindung | AL10: Typ Kerastar 250 | AM10: Schiedel KERASTAR Ø 250 mm | AN10: 62 | BR10: Inspektionselement | BV10: 666 | BX10: 666 | BZ10: 666 | CB10: 666 | CD10: 666 | CF10: 666 | CH10: 666 | CJ10: 666 | CL10: 666 | CY10: Sockel | CZ10: Bodenmont. | DA10: =IF($B$47=1,1045,IF($B$47=3,300,IF($B$47=4,95,0))) -> 0 | DC10: =$DA10 -> 0 | DE10: =$DA10 -> 0 | DG10: =$DA10 -> 0 | DI10: =$DA10 -> 0 | DK10: =$DA10 -> 0 | DM10: =$DA10 -> 0 | DO10: =$DA10 -> 0
B11: RA-Verlängerungen ICS und Permeter | E11: Putztüranschluss ICS und Permeter | G11: Boden Grundplatte | J11: Nein | L11: 8 | M11: PRIMAPLUS 150 | N11: 7 | O11: 250 | T11: KERASTAR300 | U11: KERASTAR | V11: 300 | W11: 450 mm | X11: Schiedel KERASTAR Ø | Y11: Dreischaliges Edelstahl-Kaminsystem mit | AA11: keramischem Profil-Innenrohr in Elementbauweise | AB11: und keramischer Steckverbindung | AL11: Typ Kerastar 300 | AM11: Schiedel KERASTAR Ø 300 mm | AN11: 62 | BR11: Sockel - Höhe | BS11: =IF($E$403=1,44,IF($E$403=2,350,IF($E$403=3,369,IF($E$403=4,190,0)))) -> 350 | BV11: =$BS11 -> 350 | BX11: =$BS11 -> 350 | BZ11: =$BS11 -> 350 | CB11: =$BS11 -> 350 | CD11: =$BS11 -> 350 | CF11: =$BS11 -> 350 | CH11: =$BS11 -> 350 | CJ11: =$BS11 -> 350 | CL11: =$BS11 -> 350 | CY11: Rohrelement 955 | DA11: 955 | DB11: 0 | DC11: =$DA11*DB11 -> 0 | DD11: 0 | DE11: =$DA11*DD11 -> 0 | DF11: 0 | DG11: =$DA11*DF11 -> 0 | DH11: 0 | DI11: =$DA11*DH11 -> 0 | DJ11: 1 | DK11: =$DA11*DJ11 -> 955 | DL11: 1 | DM11: =$DA11*DL11 -> 955 | DN11: 1 | DO11: =$DA11*DN11 -> 955
B12: =Vokabel!$A$125 -> Nein | E12: 1 | G12: =H12 -> Boden Fußteil AL seitlich | H12: =IF(Daten!$T$247>=7,"","Boden Fußteil AL seitlich") -> Boden Fußteil AL seitlich | J12: Ja | L12: 9 | M12: PRIMAPLUS 160 | N12: 8 | O12: 270 | T12: KERASTAR400 | U12: KERASTAR | V12: 400 | W12: 550 mm | X12: Schiedel KERASTAR Ø | Y12: Dreischaliges Edelstahl-Kaminsystem mit | AA12: keramischem Profil-Innenrohr in Elementbauweise | AB12: und keramischer Steckverbindung | AL12: Typ Kerastar 400 | AM12: Schiedel KERASTAR Ø 400 mm | AN12: 62 | BS12: 133021614 | BT12: 166 | BU12: 0 | BV12: =BT12*BU12 -> 0 | BW12: 1 | BX12: =BT12*BW12 -> 166 | BY12: 0 | BZ12: =BT12*BY12 -> 0 | CA12: 1 | CB12: =$BT$12*CA12 -> 166 | CC12: 0 | CD12: =$BT$12*CC12 -> 0 | CE12: 1 | CF12: =$BT$12*CE12 -> 166 | CG12: 0 | CH12: =$BT$12*CG12 -> 0 | CI12: 1 | CJ12: =$BT$12*CI12 -> 166 | CK12: 0 | CL12: =$BT$12*CK12 -> 0 | CY12: Rohrelement 455 | DA12: 455 | DB12: 0 | DC12: =$DA12*DB12 -> 0 | DD12: 0 | DE12: =$DA12*DD12 -> 0 | DF12: 1 | DG12: =$DA12*DF12 -> 455 | DH12: 1 | DI12: =$DA12*DH12 -> 455 | DJ12: 0 | DK12: =$DA12*DJ12 -> 0 | DL12: 0 | DM12: =$DA12*DL12 -> 0 | DN12: 1 | DO12: =$DA12*DN12 -> 455
B13: =Vokabel!$A$289 -> 205 mm | E13: 2 | G13: =H13 -> Boden Fußteil AL unten | H13: =IF(Daten!$T$247>=7,"","Boden Fußteil AL unten") -> Boden Fußteil AL unten | L13: 10 | M13: PRIMAPLUS 180 | N13: 9 | O13: 280 | BS13: 133026614 | BT13: 666 | BU13: 0 | BV13: =BT13*BU13 -> 0 | BW13: 0 | BX13: =BT13*BW13 -> 0 | BY13: 0 | BZ13: =BT13*BY13 -> 0 | CA13: 0 | CB13: =$BT$13*CA13 -> 0 | CC13: 1 | CD13: =$BT$13*CC13 -> 666 | CE13: 1 | CF13: =$BT$13*CE13 -> 666 | CG13: 1 | CH13: =$BT$13*CG13 -> 666 | CI13: 1 | CJ13: =$BT$13*CI13 -> 666 | CK13: 2 | CL13: =$BT$13*CK13 -> 1332 | CY13: Rohrelement 205 | DA13: 205 | DB13: 0 | DC13: =$DA13*DB13 -> 0 | DD13: 1 | DE13: =$DA13*DD13 -> 205 | DF13: 0 | DG13: =$DA13*DF13 -> 0 | DH13: 1 | DI13: =$DA13*DH13 -> 205 | DJ13: 0 | DK13: =$DA13*DJ13 -> 0 | DL13: 1 | DM13: =$DA13*DL13 -> 205 | DN13: 0 | DO13: =$DA13*DN13 -> 0
B14: =Vokabel!$A$290 -> 455 mm | G14: Wandmotage | L14: 11 | M14: PRIMAPLUS 200 | N14: 10 | O14: 290 | BS14: 133023314 | BT14: 331 | BU14: 0 | BV14: =BT14*BU14 -> 0 | BW14: 0 | BX14: =BT14*BW14 -> 0 | BY14: 1 | BZ14: =BT14*BY14 -> 331 | CA14: 1 | CB14: =$BT$14*CA14 -> 331 | CC14: 0 | CD14: =$BT$14*CC14 -> 0 | CF14: =$BT$14*CE14 -> 0 | CG14: 1 | CH14: =$BT$14*CG14 -> 331 | CI14: 1 | CJ14: =$BT$14*CI14 -> 331 | CK14: 0 | CL14: =$BT$14*CK14 -> 0
B15: =Vokabel!$A$291 -> 955 mm | J15: 1 | K15: =INDEX(J17:J18,J15,1) -> Nein | L15: 12 | M15: PRIMAPLUS 230 | N15: 11 | O15: 300 | BR15: Wandmontage - Höhe | BS15: 44
G16: 1 | H16: =INDEX(Daten!G18:G24,G16,1) -> Nein | J16: Sparrenhalter | L16: 13 | M16: PRIMAPLUS 250 | N16: 11 | O16: 300 | CY16: ICS 100 | CZ16: Gesamthöhe | DB16: m | DC16: =ROUND(DC17/1000,2) -> 0.41 | DE16: =ROUND(DE17/1000,2) -> 0.62 | DG16: =ROUND(DG17/1000,2) -> 0.87 | DI16: =ROUND(DI17/1000,2) -> 1.07 | DK16: =ROUND(DK17/1000,2) -> 1.37 | DM16: =ROUND(DM17/1000,2) -> 1.57 | DO16: =ROUND(DO17/1000,2) -> 1.82
B17: 1 | C17: =INDEX(Daten!B19:B22,B17,0) -> 90° | E17: 1 | F17: =INDEX(Daten!E19:E21,E17,1) -> Nein | G17: Wandhalterverlängerungen Permeter | J17: Nein | L17: 14 | BR17: Kerastar 160 | BS17: Gesamthöhe | BU17: m | BV17: =ROUND(CL18/1000,2) -> 2.69 | BX17: =ROUND(BX18/1000,2) -> 1.52 | BZ17: =ROUND(BZ18/1000,2) -> 1.69 | CB17: =ROUND(CB18/1000,2) -> 1.85 | CD17: =ROUND(CD18/1000,2) -> 2.02 | CF17: =ROUND(CF18/1000,2) -> 2.19 | CH17: =ROUND(CH18/1000,2) -> 2.35 | CJ17: =ROUND(CJ18/1000,2) -> 2.52 | CL17: =ROUND(CL18/1000,2) -> 2.69 | CY17: Anschlusshöhe | DB17: mm | DC17: =DC21+DC23+DC25+DC26+DC27+DC24 -> 414 | DE17: =DE21+DE23+DE25+DE26+DE27+DE24 -> 619 | DG17: =DG21+DG23+DG25+DG26+DG27+DG24 -> 869 | DI17: =DI21+DI23+DI25+DI26+DI27+DI24 -> 1074 | DK17: =DK21+DK23+DK25+DK26+DK27+DK24 -> 1369 | DM17: =DM21+DM23+DM25+DM26+DM27+DM24 -> 1574 | DO17: =DO21+DO23+DO25+DO26+DO27+DO24 -> 1824
B18: RA bei ICS und Permeter | E18: Regenhaube für ICS | G18: =Vokabel!$A$125 -> Nein | J18: Ja | L18: 15 | M18: ICS 80 | N18: 3 | O18: 180 | T18: 3 | U18: =INDEX(Daten!$T$19:$T$24,T18,1) -> Keranova160 | BU18: mm | BV18: =BV24+BV25+BV26+BV27+BV28+BV29 -> 1356 | BX18: =BX24+BX25+BX26+BX27+BX28+BX29 -> 1522 | BZ18: =BZ24+BZ25+BZ26+BZ27+BZ28+BZ29 -> 1687 | CB18: =CB24+CB25+CB26+CB27+CB28+CB29 -> 1853 | CD18: =CD24+CD25+CD26+CD27+CD28+CD29 -> 2022 | CF18: =CF24+CF25+CF26+CF27+CF28+CF29 -> 2188 | CH18: =CH24+CH25+CH26+CH27+CH28+CH29 -> 2353 | CJ18: =CJ24+CJ25+CJ26+CJ27+CJ28+CJ29 -> 2519 | CL18: =CL24+CL25+CL26+CL27+CL28+CL29 -> 2688 | CY18: (=vom 1.Rohr bis mitte Anschluss) | DA18: Achsmaße
B19: 90° | E19: =Vokabel!$A$125 -> Nein | G19: =$AD$247 -> max. Abstand 135 mm | L19: 16 | M19: ICS 100 | N19: 4 | O19: 200 | T19: =U19&V19 -> Keranova120 | U19: Keranova | V19: 120 | X19: Schiedel KERANOVA Ø | Y19: Einwandiges Kamin-Sanierungssystem | AA19: aus Profilkeramik mit keramischer Steckverbindung | AL19: ="Typ Keranova " &V19 -> Typ Keranova 120 | AM19: =X19&" "& V19&" mm" -> Schiedel KERANOVA Ø 120 mm | AN19: =$C$65 -> 62 | CY19: T-Stück 85° | DA19: 126
B20: 85° | E20: =Vokabel!$A$124 -> Ja | G20: =$AE$247 -> max. Abstand 217 mm | J20: 1 | K20: =INDEX(J22:J23,J20,1) -> Nein | L20: 17 | M20: ICS 130 | N20: 6 | O20: 240 | T20: Keranova140 | U20: Keranova | V20: 140 | X20: Schiedel KERANOVA Ø | Y20: Einwandiges Kamin-Sanierungssystem | AA20: aus Profilkeramik mit keramischer Steckverbindung | AL20: Typ Keranova 140 | AM20: Schiedel KERANOVA Ø 140 mm | AN20: 62 | BR20: Anschlusshöhe | CY20: T-Stück 90° | DA20: 126
B21: 45° | E21: =IF(F21>300,"","mit Funkenschutzg.") -> mit Funkenschutzg. | F21: =V105 -> 80 | G21: =$AF$247 -> max. Abstand 312 mm | J21: Wandhalter | L21: 18 | M21: ICS 150 | N21: 8 | O21: 270 | T21: Keranova160 | U21: Keranova | V21: 160 | X21: Schiedel KERANOVA Ø | Y21: Einwandiges Kamin-Sanierungssystem | AA21: aus Profilkeramik mit keramischer Steckverbindung | AL21: Typ Keranova 160 | AM21: Schiedel KERANOVA Ø 160 mm | AN21: 62 | BR21: (=vom UK.Sockel/OK WK bis mitte Anschluss) | CY21: T-Stück-mitte RA 45° | DA21: 246 | DC21: =IF($C$17="90°",$DA20,IF($C$17="85°",$DA19,$DA21)) -> 126 | DE21: =IF($C$17="90°",$DA20,IF($C$17="85°",$DA19,$DA21)) -> 126 | DG21: =IF($C$17="90°",$DA20,IF($C$17="85°",$DA19,$DA21)) -> 126 | DI21: =IF($C$17="90°",$DA20,IF($C$17="85°",$DA19,$DA21)) -> 126 | DK21: =IF($C$17="90°",$DA20,IF($C$17="85°",$DA19,$DA21)) -> 126 | DM21: =IF($C$17="90°",$DA20,IF($C$17="85°",$DA19,$DA21)) -> 126 | DO21: =IF($C$17="90°",$DA20,IF($C$17="85°",$DA19,$DA21)) -> 126
B22: 90° mit PA-Anschluss | G22: =$AG$247 -> max. Abstand 440 mm | J22: Nein | L22: 19 | M22: ICS 180 | N22: 9 | O22: 280 | T22: Keranova180 | U22: Keranova | V22: 180 | X22: Schiedel KERANOVA Ø | Y22: Einwandiges Kamin-Sanierungssystem | AA22: aus Profilkeramik mit keramischer Steckverbindung | AL22: Typ Keranova 180 | AM22: Schiedel KERANOVA Ø 180 mm | AN22: 62 | CZ22: rund | DA22: eckig
G23: =$AH$247 -> max. Abstand 500 mm | J23: Ja | L23: 20 | M23: ICS 200 | N23: 10 | O23: 300 | T23: Keranova200 | U23: Keranova | V23: 200 | X23: Schiedel KERANOVA Ø | Y23: Einwandiges Kamin-Sanierungssystem | AA23: aus Profilkeramik mit keramischer Steckverbindung | AL23: Typ Keranova 200 | AM23: Schiedel KERANOVA Ø 200 mm | AN23: 62 | BR23: T-Stück mitte RA | BS23: 90° | BT23: 45° | CY23: Inspektionselement | CZ23: 288 | DA23: gibt es nicht | DC23: =$CZ23 -> 288 | DE23: =$CZ23 -> 288 | DG23: =$CZ23 -> 288 | DI23: =$CZ23 -> 288 | DK23: =$CZ23 -> 288 | DM23: =$CZ23 -> 288 | DO23: =$CZ23 -> 288
B24: 1 | C24: =INDEX(B26:B31,B24,1) -> Nein | E24: 1 | F24: =INDEX(E26:E29,E24,1) -> Nein | G24: =$AI$247 -> max. Abstand 562 mm | L24: 21 | M24: ICS 250 | N24: 11 | O24: 350 | T24: Keranova250 | U24: Keranova | V24: 250 | X24: Schiedel KERANOVA Ø | Y24: Einwandiges Kamin-Sanierungssystem | AA24: aus Profilkeramik mit keramischer Steckverbindung | AL24: Typ Keranova 250 | AM24: Schiedel KERANOVA Ø 250 mm | AN24: 62 | BR24: T-Stück-mitte RA | BS24: 340 | BT24: 116 | BU24: =IF($B$413=2,$BT24,$BS24) -> 340 | BV24: =$BU24 -> 340 | BX24: =$BU24 -> 340 | BZ24: =$BU24 -> 340 | CB24: =$BU24 -> 340 | CD24: =$BU24 -> 340 | CF24: =$BU24 -> 340 | CH24: =$BU24 -> 340 | CJ24: =$BU24 -> 340 | CL24: =$BU24 -> 340 | CY24: Sockel | CZ24: Bodenmont. | DA24: =IF($B$47=1,1045,IF($B$47=3,300,IF($B$47=4,95,0))) -> 0 | DC24: =$DA24 -> 0 | DE24: =$DA24 -> 0 | DG24: =$DA24 -> 0 | DI24: =$DA24 -> 0 | DK24: =$DA24 -> 0 | DM24: =$DA24 -> 0 | DO24: =$DA24 -> 0
B25: Wandhalterverlängerungen ICS | E25: Anschlussrosette für ICS und Permeter | J25: 1 | K25: =INDEX(J27:J28,J25,1) -> Nein | L25: 22 | BR25: Inspektionselement | BV25: 666 | BX25: 666 | BZ25: 666 | CB25: 666 | CD25: 666 | CF25: 666 | CH25: 666 | CJ25: 666 | CL25: 666 | CY25: Rohrelement 955 | DA25: 955 | DB25: 0 | DC25: =$DA25*DB25 -> 0 | DD25: 0 | DE25: =$DA25*DD25 -> 0 | DF25: 0 | DG25: =$DA25*DF25 -> 0 | DH25: 0 | DI25: =$DA25*DH25 -> 0 | DJ25: 1 | DK25: =$DA25*DJ25 -> 955 | DL25: 1 | DM25: =$DA25*DL25 -> 955 | DN25: 1 | DO25: =$DA25*DN25 -> 955
B26: =Vokabel!$A$125 -> Nein | E26: Nein | J26: Abdeckplatte | L26: 23 | BR26: Sockel - Höhe | BS26: =IF($E$403=1,44,IF($E$403=2,350,IF($E$403=3,369,IF($E$403=4,190,0)))) -> 350 | BV26: =$BS26 -> 350 | BX26: =$BS26 -> 350 | BZ26: =$BS26 -> 350 | CB26: =$BS26 -> 350 | CD26: =$BS26 -> 350 | CF26: =$BS26 -> 350 | CH26: =$BS26 -> 350 | CJ26: =$BS26 -> 350 | CL26: =$BS26 -> 350 | CY26: Rohrelement 455 | DA26: 455 | DB26: 0 | DC26: =$DA26*DB26 -> 0 | DD26: 0 | DE26: =$DA26*DD26 -> 0 | DF26: 1 | DG26: =$DA26*DF26 -> 455 | DH26: 1 | DI26: =$DA26*DH26 -> 455 | DJ26: 0 | DK26: =$DA26*DJ26 -> 0 | DL26: 0 | DM26: =$DA26*DL26 -> 0 | DN26: 1 | DO26: =$DA26*DN26 -> 455
B27: =$AD$105 -> max. Abstand 100 mm | C27: Wandhalter klein | E27: 1 | G27: 1 | H27: =INDEX(G29:G32,G27,1) -> Mündungsabschluss | J27: Nein | L27: 24 | M27: PROGASFLEX 75 | N27: 1 | O27: 130 | BS27: 133021616 | BT27: 166 | BU27: 0 | BV27: =BT27*BU27 -> 0 | BW27: 1 | BX27: =BT27*BW27 -> 166 | BY27: 0 | BZ27: =BT27*BY27 -> 0 | CA27: 1 | CB27: =BT27*CA27 -> 166 | CC27: 0 | CD27: =BT27*CC27 -> 0 | CE27: 1 | CF27: =$BT$27*CE27 -> 166 | CG27: 0 | CH27: =$BT$27*CG27 -> 0 | CI27: 1 | CJ27: =$BT$27*CI27 -> 166 | CK27: 0 | CL27: =$BT$27*CK27 -> 0 | CY27: Rohrelement 205 | DA27: 205 | DB27: 0 | DC27: =$DA27*DB27 -> 0 | DD27: 1 | DE27: =$DA27*DD27 -> 205 | DF27: 0 | DG27: =$DA27*DF27 -> 0 | DH27: 1 | DI27: =$DA27*DH27 -> 205 | DJ27: 0 | DK27: =$DA27*DJ27 -> 0 | DL27: 1 | DM27: =$DA27*DL27 -> 205 | DN27: 0 | DO27: =$DA27*DN27 -> 0
B28: =$AE$105 -> max. Abstand 250 mm | C28: Verlängerung Wandhalter | E28: 2 | G28: Mündungsabschluss Permeter | J28: Ja | L28: 25 | M28: PROGASFLEX 90 | N28: 2 | O28: 150 | BS28: 133026616 | BT28: 666 | BU28: 0 | BV28: =BT28*BU28 -> 0 | BW28: 0 | BX28: =BT28*BW28 -> 0 | BY28: 0 | BZ28: =BT28*BY28 -> 0 | CA28: 0 | CB28: =BT28*CA28 -> 0 | CC28: 1 | CD28: =BT28*CC28 -> 666 | CE28: 1 | CF28: =$BT$28*CE28 -> 666 | CG28: 1 | CH28: =$BT$28*CG28 -> 666 | CI28: 1 | CJ28: =$BT$28*CI28 -> 666 | CK28: 2 | CL28: =$BT$28*CK28 -> 1332
B29: =$AF$105 -> max. Abstand 440 mm | C29: Verlängerung Wandhalter | E29: 3 | G29: Mündungsabschluss | L29: 26 | M29: PROGASFLEX 110 | N29: 3 | O29: 180 | T29: 1 | U29: =INDEX(T30:T40,$T29,1) -> Leichtbauschacht130x130 | V29: =INDEX(V30:V40,$T29,1) -> 130x130 | W29: =INDEX(W30:W40,$T29,1) -> 220x220 | BS29: 133023316 | BT29: 331 | BU29: 0 | BV29: =BT29*BU29 -> 0 | BW29: 0 | BX29: =BT29*BW29 -> 0 | BY29: 1 | BZ29: =BT29*BY29 -> 331 | CA29: 1 | CB29: =BT29*CA29 -> 331 | CC29: 0 | CD29: =BT29*CC29 -> 0 | CF29: =$BT$29*CE29 -> 0 | CG29: 1 | CH29: =$BT$29*CG29 -> 331 | CI29: 1 | CJ29: =$BT$29*CI29 -> 331 | CK29: 0 | CL29: =$BT$29*CK29 -> 0
B30: =$AG$105 -> max. Abstand 500 mm | C30: Verlängerung Wandhalter | G30: MA Inkl. Regenabdeckung | J30: 1 | K30: =INDEX(J32:J34,J30,1) -> Nein | S30: 130 | T30: =U30&V30 -> Leichtbauschacht130x130 | U30: Leichtbauschacht | V30: 130x130 | W30: 220x220 | X30: Schiedel LEICHTBAUSCHACHT | Y30: Schacht aus 45 mm starken Vermiculit-Platten | AA30: Feuerwiederstandsklasse F90 | AL30: ="Leichtbauschacht " &V30&" (innen)" -> Leichtbauschacht 130x130 (innen) | AM30: =X30&" "& V30&" mm (innen)" -> Schiedel LEICHTBAUSCHACHT 130x130 mm (innen) | AN30: =$C$65 -> 62 | BR30: Wandmontage - Höhe | BS30: 44 | CY30: ICS 130 | CZ30: Gesamthöhe | DB30: m | DC30: =ROUND(DC31/1000,2) -> 0.5 | DE30: =ROUND(DE31/1000,2) -> 0.7 | DG30: =ROUND(DG31/1000,2) -> 0.95 | DI30: =ROUND(DI31/1000,2) -> 1.16 | DK30: =ROUND(DK31/1000,2) -> 1.45 | DM30: =ROUND(DM31/1000,2) -> 1.66 | DO30: =ROUND(DO31/1000,2) -> 1.91
B31: =$AH$105 -> max. Abstand 700 mm | C31: Verlängerung Wandhalter | G31: MA inkl. RA u. Funkenfluggitter | J31: Stülpkopf Alu | S31: 150 | T31: Leichtbauschacht150x150 | U31: Leichtbauschacht | V31: 150x150 | W31: 240x240 | X31: Schiedel LEICHTBAUSCHACHT | Y31: Schacht aus 45 mm starken Vermiculit-Platten | AA31: Feuerwiederstandsklasse F90 | AL31: Leichtbauschacht 150x150 (innen) | AM31: Schiedel LEICHTBAUSCHACHT 150x150 mm (innen) | AN31: 62 | CY31: Anschlusshöhe | DB31: mm | DC31: =DC35+DC37+DC39+DC40+DC41+DC38 -> 497 | DE31: =DE35+DE37+DE39+DE40+DE41+DE38 -> 702 | DG31: =DG35+DG37+DG39+DG40+DG41+DG38 -> 952 | DI31: =DI35+DI37+DI39+DI40+DI41+DI38 -> 1157 | DK31: =DK35+DK37+DK39+DK40+DK41+DK38 -> 1452 | DM31: =DM35+DM37+DM39+DM40+DM41+DM38 -> 1657 | DO31: =DO35+DO37+DO39+DO40+DO41+DO38 -> 1907
J32: Nein | S32: 180 | T32: Leichtbauschacht180x180 | U32: Leichtbauschacht | V32: 180x180 | W32: 270x270 | X32: Schiedel LEICHTBAUSCHACHT | Y32: Schacht aus 45 mm starken Vermiculit-Platten | AA32: Feuerwiederstandsklasse F90 | AL32: Leichtbauschacht 180x180 (innen) | AM32: Schiedel LEICHTBAUSCHACHT 180x180 mm (innen) | AN32: 62 | BR32: Kerastar 180 | BS32: Gesamthöhe | BU32: m | BV32: =ROUND(BV33/1000,2) -> 1.36 | BX32: =ROUND(BX33/1000,2) -> 1.52 | BZ32: =ROUND(BZ33/1000,2) -> 1.69 | CB32: =ROUND(CB33/1000,2) -> 1.85 | CD32: =ROUND(CD33/1000,2) -> 2.02 | CF32: =ROUND(CF33/1000,2) -> 2.19 | CH32: =ROUND(CH33/1000,2) -> 2.35 | CJ32: =ROUND(CJ33/1000,2) -> 2.52 | CL32: =ROUND(CL33/1000,2) -> 2.69 | CY32: (=vom 1.Rohr bis mitte Anschluss) | DA32: Achsmaße
J33: Höhe 1,25 m | S33: 200 | T33: Leichtbauschacht200x200 | U33: Leichtbauschacht | V33: 200x200 | W33: 290x290 | X33: Schiedel LEICHTBAUSCHACHT | Y33: Schacht aus 45 mm starken Vermiculit-Platten | AA33: Feuerwiederstandsklasse F90 | AL33: Leichtbauschacht 200x200 (innen) | AM33: Schiedel LEICHTBAUSCHACHT 200x200 mm (innen) | AN33: 62 | BU33: mm | BV33: =BV39+BV40+BV41+BV42+BV43+BV44 -> 1356 | BX33: =BX39+BX40+BX41+BX42+BX43+BX44 -> 1522 | BZ33: =BZ39+BZ40+BZ41+BZ42+BZ43+BZ44 -> 1687 | CB33: =CB39+CB40+CB41+CB42+CB43+CB44 -> 1853 | CD33: =CD39+CD40+CD41+CD42+CD43+CD44 -> 2022 | CF33: =CF39+CF40+CF41+CF42+CF43+CF44 -> 2188 | CH33: =CH39+CH40+CH41+CH42+CH43+CH44 -> 2353 | CJ33: =CJ39+CJ40+CJ41+CJ42+CJ43+CJ44 -> 2519 | CL33: =CL39+CL40+CL41+CL42+CL43+CL44 -> 2688 | CY33: T-Stück 85° | DA33: 240
J34: Höhe 1,50 m | S34: 220 | T34: Leichtbauschacht220x220 | U34: Leichtbauschacht | V34: 220x220 | W34: 310x310 | X34: Schiedel LEICHTBAUSCHACHT | Y34: Schacht aus 45 mm starken Vermiculit-Platten | AA34: Feuerwiederstandsklasse F90 | AL34: Leichtbauschacht 220x220 (innen) | AM34: Schiedel LEICHTBAUSCHACHT 220x220 mm (innen) | AN34: 62 | CY34: T-Stück 90° | DA34: 209
B35: 1 | C35: =INDEX(Daten!B37:B42,B35,1) -> Nein | E35: 1 | F35: =INDEX(E37:E38,E35,1) -> Nein | G35: für Permeter | H35: 1 | S35: 240 | T35: Leichtbauschacht240x240 | U35: Leichtbauschacht | V35: 240x240 | W35: 330x330 | X35: Schiedel LEICHTBAUSCHACHT | Y35: Schacht aus 45 mm starken Vermiculit-Platten | AA35: Feuerwiederstandsklasse F90 | AL35: Leichtbauschacht 240x240 (innen) | AM35: Schiedel LEICHTBAUSCHACHT 240x240 mm (innen) | AN35: 62 | BR35: Anschlusshöhe | CY35: T-Stück-mitte RA 45° | DA35: 328 | DC35: =IF($C$17="90°",$DA34,IF($C$17="85°",$DA33,$DA35)) -> 209 | DE35: =IF($C$17="90°",$DA34,IF($C$17="85°",$DA33,$DA35)) -> 209 | DG35: =IF($C$17="90°",$DA34,IF($C$17="85°",$DA33,$DA35)) -> 209 | DI35: =IF($C$17="90°",$DA34,IF($C$17="85°",$DA33,$DA35)) -> 209 | DK35: =IF($C$17="90°",$DA34,IF($C$17="85°",$DA33,$DA35)) -> 209 | DM35: =IF($C$17="90°",$DA34,IF($C$17="85°",$DA33,$DA35)) -> 209 | DO35: =IF($C$17="90°",$DA34,IF($C$17="85°",$DA33,$DA35)) -> 209
B36: Dachdurchführung für ICS und Permeter | E36: Klemmband statisch und Permeter | G36: =IF($F$2=Vokabel!$A$221,Vokabel!$A$208,Vokabel!$A$207) -> nicht bekannt | H36: =INDEX(G36:G40,H35,1) -> nicht bekannt | S36: 250 | T36: Leichtbauschacht250x250 | U36: Leichtbauschacht | V36: 250x250 | W36: 340x340 | X36: Schiedel LEICHTBAUSCHACHT | Y36: Schacht aus 45 mm starken Vermiculit-Platten | AA36: Feuerwiederstandsklasse F90 | AL36: Leichtbauschacht 250x250 (innen) | AM36: Schiedel LEICHTBAUSCHACHT 250x250 mm (innen) | AN36: 62 | BR36: (=vom UK.Sockel/OK WK bis mitte Anschluss) | CZ36: rund | DA36: eckig
B37: Nein | E37: =Vokabel!$A$125 -> Nein | G37: =H37 -> Gas | H37: =IF(Daten!$T$247>=7,"","Gas") -> Gas | J37: 1 | K37: =INDEX(J39:J44,J37,1) -> Nein | S37: 270 | T37: Leichtbauschacht270x270 | U37: Leichtbauschacht | V37: 270x270 | W37: 360x360 | X37: Schiedel LEICHTBAUSCHACHT | Y37: Schacht aus 45 mm starken Vermiculit-Platten | AA37: Feuerwiederstandsklasse F90 | AL37: Leichtbauschacht 270x270 (innen) | AM37: Schiedel LEICHTBAUSCHACHT 270x270 mm (innen) | AN37: 62 | CY37: Inspektionselement | CZ37: 288 | DA37: gibt es nicht | DC37: =$CZ37 -> 288 | DE37: =$CZ37 -> 288 | DG37: =$CZ37 -> 288 | DI37: =$CZ37 -> 288 | DK37: =$CZ37 -> 288 | DM37: =$CZ37 -> 288 | DO37: =$CZ37 -> 288
B38: =C38 -> 0° | C38: =IF($U$105="IC5-700","Nein",IF($U$105="IC5-1-700","Nein","0°")) -> 0° | E38: =Vokabel!$A$124 -> Ja | G38: =H38 -> Öl | H38: =IF(Daten!$T$247>=7,"","Öl") -> Öl | J38: Schachtarretierung | S38: 280 | T38: Leichtbauschacht280x280 | U38: Leichtbauschacht | V38: 280x280 | W38: 370x370 | X38: Schiedel LEICHTBAUSCHACHT | Y38: Schacht aus 45 mm starken Vermiculit-Platten | AA38: Feuerwiederstandsklasse F90 | AL38: Leichtbauschacht 280x280 (innen) | AM38: Schiedel LEICHTBAUSCHACHT 280x280 mm (innen) | AN38: 62 | BR38: T-Stück mitte RA | BS38: 90° | BT38: 45° | CY38: Sockel | CZ38: Bodenmont. | DA38: =IF($B$47=1,1045,IF($B$47=3,300,IF($B$47=4,95,0))) -> 0 | DC38: =$DA38 -> 0 | DE38: =$DA38 -> 0 | DG38: =$DA38 -> 0 | DI38: =$DA38 -> 0 | DK38: =$DA38 -> 0 | DM38: =$DA38 -> 0 | DO38: =$DA38 -> 0
B39: =C39 -> 3° - 15° | C39: =IF($U$105="IC5-700","Nein",IF($U$105="IC5-1-700","Nein","3° - 15°")) -> 3° - 15° | G39: =IF($F$2=Vokabel!$A$221,Vokabel!$A$209,Vokabel!$A$210) -> Festbrennstoff | J39: Nein | S39: 300 | T39: Leichtbauschacht300x300 | U39: Leichtbauschacht | V39: 300x300 | W39: 390x390 | X39: Schiedel LEICHTBAUSCHACHT | Y39: Schacht aus 45 mm starken Vermiculit-Platten | AA39: Feuerwiederstandsklasse F90 | AL39: Leichtbauschacht 300x300 (innen) | AM39: Schiedel LEICHTBAUSCHACHT 300x300 mm (innen) | AN39: 62 | BR39: T-Stück-mitte RA | BS39: 340 | BT39: 124 | BU39: =IF($B$413=2,$BT39,$BS39) -> 340 | BV39: =$BU39 -> 340 | BX39: =$BU39 -> 340 | BZ39: =$BU39 -> 340 | CB39: =$BU39 -> 340 | CD39: =$BU39 -> 340 | CF39: =$BU39 -> 340 | CH39: =$BU39 -> 340 | CJ39: =$BU39 -> 340 | CL39: =$BU39 -> 340 | CY39: Rohrelement 955 | DA39: 955 | DB39: 0 | DC39: =$DA39*DB39 -> 0 | DD39: 0 | DE39: =$DA39*DD39 -> 0 | DF39: 0 | DG39: =$DA39*DF39 -> 0 | DH39: 0 | DI39: =$DA39*DH39 -> 0 | DJ39: 1 | DK39: =$DA39*DJ39 -> 955 | DL39: 1 | DM39: =$DA39*DL39 -> 955 | DN39: 1 | DO39: =$DA39*DN39 -> 955
B40: =C40 -> 16° - 25° | C40: =IF($U$105="IC5-700","Nein",IF($U$105="IC5-1-700","Nein","16° - 25°")) -> 16° - 25° | G40: =IF($F$2=Vokabel!$A$221,Vokabel!$A$209,Vokabel!$A$211) -> Holz-Pellets | J40: Ja | S40: 350 | T40: Leichtbauschacht350x350 | U40: Leichtbauschacht | V40: 350x350 | W40: 440x440 | X40: Schiedel LEICHTBAUSCHACHT | Y40: Schacht aus 45 mm starken Vermiculit-Platten | AA40: Feuerwiederstandsklasse F90 | AL40: Leichtbauschacht 350x350 (innen) | AM40: Schiedel LEICHTBAUSCHACHT 350x350 mm (innen) | AN40: 62 | BR40: Inspektionselement | BV40: 666 | BX40: 666 | BZ40: 666 | CB40: 666 | CD40: 666 | CF40: 666 | CH40: 666 | CJ40: 666 | CL40: 666 | CY40: Rohrelement 455 | DA40: 455 | DB40: 0 | DC40: =$DA40*DB40 -> 0 | DD40: 0 | DE40: =$DA40*DD40 -> 0 | DF40: 1 | DG40: =$DA40*DF40 -> 455 | DH40: 1 | DI40: =$DA40*DH40 -> 455 | DJ40: 0 | DK40: =$DA40*DJ40 -> 0 | DL40: 0 | DM40: =$DA40*DL40 -> 0 | DN40: 1 | DO40: =$DA40*DN40 -> 455
B41: =C41 -> 26° - 35° | C41: =IF($U$105="IC5-700","Nein",IF($U$105="IC5-1-700","Nein","26° - 35°")) -> 26° - 35° | BR41: Sockel - Höhe | BS41: =IF($E$403=1,44,IF($E$403=2,350,IF($E$403=3,369,IF($E$403=4,190,0)))) -> 350 | BV41: =$BS41 -> 350 | BX41: =$BS41 -> 350 | BZ41: =$BS41 -> 350 | CB41: =$BS41 -> 350 | CD41: =$BS41 -> 350 | CF41: =$BS41 -> 350 | CH41: =$BS41 -> 350 | CJ41: =$BS41 -> 350 | CL41: =$BS41 -> 350 | CY41: Rohrelement 205 | DA41: 205 | DB41: 0 | DC41: =$DA41*DB41 -> 0 | DD41: 1 | DE41: =$DA41*DD41 -> 205 | DF41: 0 | DG41: =$DA41*DF41 -> 0 | DH41: 1 | DI41: =$DA41*DH41 -> 205 | DJ41: 0 | DK41: =$DA41*DJ41 -> 0 | DL41: 1 | DM41: =$DA41*DL41 -> 205 | DN41: 0 | DO41: =$DA41*DN41 -> 0
B42: =C42 -> 36° - 45° | C42: =IF($U$105="IC5-700","Nein",IF($U$105="IC5-1-700","Nein","36° - 45°")) -> 36° - 45° | E42: 1 | F42: =INDEX(E44:E52,E42,1) -> Nein | BS42: 133021618 | BT42: 166 | BU42: 0 | BV42: =BT42*BU42 -> 0 | BW42: 1 | BX42: =BT42*BW42 -> 166 | BY42: 0 | BZ42: =BT42*BY42 -> 0 | CA42: 1 | CB42: =BT42*CA42 -> 166 | CC42: 0 | CD42: =BT42*CC42 -> 0 | CE42: 1 | CF42: =$BT$42*CE42 -> 166 | CG42: 0 | CH42: =$BT$42*CG42 -> 0 | CI42: 1 | CJ42: =$BT$42*CI42 -> 166 | CK42: 0 | CL42: =$BT$42*CK42 -> 0
E43: ICS _ Ignis Protect | F43: =INDEX(F44:F51,E42,1) -> 0 | BS43: 133026618 | BT43: 666 | BU43: 0 | BV43: =BT43*BU43 -> 0 | BW43: 0 | BX43: =BT43*BW43 -> 0 | BY43: 0 | BZ43: =BT43*BY43 -> 0 | CA43: 0 | CB43: =BT43*CA43 -> 0 | CC43: 1 | CD43: =BT43*CC43 -> 666 | CE43: 1 | CF43: =$BT$43*CE43 -> 666 | CG43: 1 | CH43: =$BT$43*CG43 -> 666 | CI43: 1 | CJ43: =$BT$43*CI43 -> 666 | CK43: 2 | CL43: =$BT$43*CK43 -> 1332
E44: Nein | BS44: 133023318 | BT44: 331 | BU44: 0 | BV44: =BT44*BU44 -> 0 | BW44: 0 | BX44: =BT44*BW44 -> 0 | BY44: 1 | BZ44: =BT44*BY44 -> 331 | CA44: 1 | CB44: =BT44*CA44 -> 331 | CC44: 0 | CD44: =BT44*CC44 -> 0 | CE44: 0 | CF44: =$BT$44*CE44 -> 0 | CG44: 1 | CH44: =$BT$44*CG44 -> 331 | CI44: 1 | CJ44: =$BT$44*CI44 -> 331 | CK44: 0 | CL44: =$BT$44*CK44 -> 0 | CY44: ICS 150 | CZ44: Gesamthöhe | DB44: m | DC44: =ROUND(DC45/1000,2) -> 0.51 | DE44: =ROUND(DE45/1000,2) -> 0.72 | DG44: =ROUND(DG45/1000,2) -> 0.97 | DI44: =ROUND(DI45/1000,2) -> 1.17 | DK44: =ROUND(DK45/1000,2) -> 1.47 | DM44: =ROUND(DM45/1000,2) -> 1.67 | DO44: =ROUND(DO45/1000,2) -> 1.92
E45: Wandstärke 100 mm | F45: =VLOOKUP(G45,sanschie!$A:$B,2,0) -> 101840 | G45: 101840 | BR45: Wandmontage - Höhe | BS45: 44 | CY45: Anschlusshöhe | DB45: mm | DC45: =DC49+DC51+DC53+DC54+DC55+DC52 -> 514 | DE45: =DE49+DE51+DE53+DE54+DE55+DE52 -> 719 | DG45: =DG49+DG51+DG53+DG54+DG55+DG52 -> 969 | DI45: =DI49+DI51+DI53+DI54+DI55+DI52 -> 1174 | DK45: =DK49+DK51+DK53+DK54+DK55+DK52 -> 1469 | DM45: =DM49+DM51+DM53+DM54+DM55+DM52 -> 1674 | DO45: =DO49+DO51+DO53+DO54+DO55+DO52 -> 1924
C46: =INDEX(Daten!C49:C54,B47,1) -> Wandmontage | E46: Wandstärke 150 mm | F46: =VLOOKUP(G46,sanschie!$A:$B,2,0) -> 101841 | G46: 101841 | CY46: (=vom 1.Rohr bis mitte Anschluss) | DA46: Achsmaße
B47: 2 | C47: =INDEX(Daten!B49:B54,B47,1) -> Wand | E47: Wandstärke 200 mm | F47: =VLOOKUP(G47,sanschie!$A:$B,2,0) -> 101842 | G47: 101842 | M47: 1 | N47: =INDEX(M49:M55,M47,1) -> Nein | S47: TL | T47: 4 | U47: =INDEX(Daten!$T$72:$T$92,T47,1) -> ABSOLUT18TL | V47: =INDEX(Daten!$V$72:$V$92,$T$47,1) -> 18TL | W47: =INDEX(W72:W92,$T$47,1) -> Ja | X47: =INDEX(X72:X92,T47,1) -> Schiedel ABSOLUT, ABS | Z47: =INDEX(Z72:Z92,$T$47,1) -> Ja | AC47: =INDEX(Daten!$AC$72:$AC$92,$T$47,1) -> J | AD47: =INDEX(Daten!AD72:AD92,$T$47,1) -> 18 | AE47: =INDEX(Daten!$AE$72:$AE$92,$T$47,1) -> 0 | AF47: =INDEX(Daten!$AF$72:$AF$92,$T$47,1) -> Ja | AG47: =INDEX(Daten!$AG$72:$AG$92,$T$47,1) -> 0 | AH47: =INDEX(Daten!AH72:AH92,$T$47,1) -> 0 | AI47: =INDEX(Daten!AI72:AI92,$T$47,1) -> 36/50 cm | AJ47: =INDEX(Daten!$AJ$72:$AJ$92,$T$47,1) -> 0 | AK47: =INDEX(AK72:AK92,$T$47,1) -> Nein | AO47: =INDEX(Daten!$AO$72:$AO$92,$T$47,1) -> J | AP47: =INDEX(Daten!$AP$72:$AP$92,$T$47,1) -> N | BR47: Kerastar 200 | BS47: Gesamthöhe | BU47: m | BV47: =ROUND(BV48/1000,2) -> 1.36 | BX47: =ROUND(BX48/1000,2) -> 1.52 | BZ47: =ROUND(BZ48/1000,2) -> 1.69 | CB47: =ROUND(CB48/1000,2) -> 1.85 | CD47: =ROUND(CD48/1000,2) -> 2.02 | CF47: =ROUND(CF48/1000,2) -> 2.19 | CH47: =ROUND(CH48/1000,2) -> 2.35 | CJ47: =ROUND(CJ48/1000,2) -> 2.52 | CL47: =ROUND(CL48/1000,2) -> 2.69 | CY47: T-Stück 85° | DA47: 240
B48: Fußteil für ICS | E48: Wandstärke 250 mm | F48: =VLOOKUP(G48,sanschie!$A:$B,2,0) -> 101843 | G48: 101843 | M48: Dachdurchführung | T48: 12 | U48: =INDEX(Daten!$T$50:$T$70,T48,1) -> ABSOLUT1814 | V48: =INDEX(Daten!$V$50:$V$70,$T$48,1) -> 1814 | W48: =INDEX(W50:W70,$T$48,1) -> Ja | X48: =INDEX(X50:X70,T48,1) -> Schiedel ABSOLUT, ABS | Z48: =INDEX(Z50:Z70,$T$48,1) -> Ja | AC48: =INDEX(Daten!$AC$50:$AC$70,$T$48,1) -> J | AD48: =INDEX(Daten!AD50:AD70,$T$48,1) -> 18 | AE48: =INDEX(Daten!$AE$50:$AE$70,$T$48,1) -> 14 | AG48: =INDEX(Daten!$AG$50:$AG$70,$T$48,1) -> 0 | AH48: =INDEX(Daten!AH50:AH70,$T$48,1) -> 18 | AI48: =INDEX(Daten!AI50:AI70,$T$48,1) -> 36/65 cm | AJ48: =INDEX(Daten!$AJ$50:$AJ$70,$T$48,1) -> 0 | AK48: =INDEX(AK50:AK70,$T$48,1) -> Ja | AO48: =INDEX(Daten!$AO$50:$AO$70,$T$48,1) -> N | AP48: =INDEX(Daten!$AP$50:$AP$70,$T$48,1) -> N | BU48: mm | BV48: =BV54+BV55+BV56+BV57+BV58+BV59 -> 1356 | BX48: =BX54+BX55+BX56+BX57+BX58+BX59 -> 1522 | BZ48: =BZ54+BZ55+BZ56+BZ57+BZ58+BZ59 -> 1687 | CB48: =CB54+CB55+CB56+CB57+CB58+CB59 -> 1853 | CD48: =CD54+CD55+CD56+CD57+CD58+CD59 -> 2022 | CF48: =CF54+CF55+CF56+CF57+CF58+CF59 -> 2188 | CH48: =CH54+CH55+CH56+CH57+CH58+CH59 -> 2353 | CJ48: =CJ54+CJ55+CJ56+CJ57+CJ58+CJ59 -> 2519 | CL48: =CL54+CL55+CL56+CL57+CL58+CL59 -> 2688 | CY48: T-Stück 90° | DA48: 209
B49: Boden Fußteil | C49: Bodenmontage-Fußteil | E49: Wandstärke 300 mm | F49: =VLOOKUP(G49,sanschie!$A:$B,2,0) -> 101844 | G49: 101844 | M49: Nein | T49: Verkn. | U49: System | V49: Ø | W49: K_Aufsatz | X49: Bezeichnung | Y49: System: Text1 | Z49: Thermo-Trennstein | AA49: System: Text2 | AB49: System: Text3 | AC49: Fertigfuß | AD49: Ø 1.Zug | AE49: Ø 2.Zug | AF49: Lüftung | AG49: RA45° | AH49: RA g.Z | AI49: Außenmaß | AJ49: FM-Bedarf | AK49: Grundpl.m.Abkant. | AL49: Typ | AM49: Sortiment und Typ | AN49: Fracht | AO49: Designfertigfuß | AP49: GP Niedrig | CY49: T-Stück-mitte RA 45° | DA49: 329 | DC49: =IF($C$17="90°",$DA48,IF($C$17="85°",$DA47,$DA49)) -> 209 | DE49: =IF($C$17="90°",$DA48,IF($C$17="85°",$DA47,$DA49)) -> 209 | DG49: =IF($C$17="90°",$DA48,IF($C$17="85°",$DA47,$DA49)) -> 209 | DI49: =IF($C$17="90°",$DA48,IF($C$17="85°",$DA47,$DA49)) -> 209 | DK49: =IF($C$17="90°",$DA48,IF($C$17="85°",$DA47,$DA49)) -> 209 | DM49: =IF($C$17="90°",$DA48,IF($C$17="85°",$DA47,$DA49)) -> 209 | DO49: =IF($C$17="90°",$DA48,IF($C$17="85°",$DA47,$DA49)) -> 209
B50: Wand | C50: Wandmontage | E50: Wandstärke 350 mm | F50: =VLOOKUP(G50,sanschie!$A:$B,2,0) -> 101845 | G50: 101845 | M50: Ja | N50: Schacht - Dachdurchführung | T50: =U50&V50 -> ABSOLUT12 | U50: ABSOLUT | V50: 12 | W50: Ja | X50: Schiedel ABSOLUT, ABS | Y50: Zweischaliges Kaminsystem | Z50: Ja | AA50: Compound-Mantelstein mit integrierter Wärmedämmung | AB50: und keramischem Profil-Innenrohr | AC50: J | AD50: 12 | AG50: Nein | AI50: 36/36 cm | AJ50: =IF($B$193<11.66,0,ROUNDUP(($B$193-11.33)/4,0)) -> 0 | AK50: Nein | AL50: ="Typ Absolut " &V50 -> Typ Absolut 12 | AM50: =X50&" "& V50 -> Schiedel ABSOLUT, ABS 12 | AN50: =IF($C$74<=400,$C$60,IF($C$74<=2500,$C$61,IF($C$74<=5000,$C$62,$C$63))) -> 62 | AO50: J | AP50: N | BR50: Anschlusshöhe | CZ50: rund | DA50: eckig
B51: Boden Teleskop | C51: Bodenmontage-Teleskopstütze | E51: Wandstärke 400 mm | F51: =VLOOKUP(G51,sanschie!$A:$B,2,0) -> 101846 | G51: 101846 | M51: =N51 -> Nein | N51: =IF($M$2>20,"Nein",IF($M$2<14,"Nein","ICS Dachdurchführung 0°")) -> Nein | T51: ABSOLUT14 | U51: ABSOLUT | V51: 14 | W51: Ja | X51: Schiedel ABSOLUT, ABS | Y51: Zweischaliges Kaminsystem | Z51: Ja | AA51: Compound-Mantelstein mit integrierter Wärmedämmung | AB51: und keramischem Profil-Innenrohr | AC51: J | AD51: 14 | AI51: 36/36 cm | AJ51: =IF($B$193<11.66,0,ROUNDUP(($B$193-11.33)/4,0)) -> 0 | AK51: Nein | AL51: Typ Absolut 14 | AM51: Schiedel ABSOLUT, ABS 14 | AN51: 62 | AO51: J | AP51: N | BR51: (=vom UK.Sockel/OK WK bis mitte Anschluss) | CY51: Inspektionselement | CZ51: 305 | DA51: gibt es nicht | DC51: =$CZ51 -> 305 | DE51: =$CZ51 -> 305 | DG51: =$CZ51 -> 305 | DI51: =$CZ51 -> 305 | DK51: =$CZ51 -> 305 | DM51: =$CZ51 -> 305 | DO51: =$CZ51 -> 305
B52: Grundplatte mit KA | C52: Bodenmontage-Grundplatte | M52: =N52 -> Nein | N52: =IF($M$2>20,"Nein",IF($M$2<14,"Nein","ICS Dachdurchführung 3°-15°")) -> Nein | T52: ABSOLUT16 | U52: ABSOLUT | V52: 16 | W52: Ja | X52: Schiedel ABSOLUT, ABS | Y52: Zweischaliges Kaminsystem | Z52: Ja | AA52: Compound-Mantelstein mit integrierter Wärmedämmung | AB52: und keramischem Profil-Innenrohr | AC52: J | AD52: 16 | AI52: 36/36 cm | AJ52: =IF($B$193<11.66,0,ROUNDUP(($B$193-11.33)/4,0)) -> 0 | AK52: Nein | AL52: Typ Absolut 16 | AM52: Schiedel ABSOLUT, ABS 16 | AN52: 62 | AO52: J | AP52: J | CY52: Sockel | CZ52: Bodenmont. | DA52: =IF($B$47=1,1045,IF($B$47=3,300,IF($B$47=4,95,0))) -> 0 | DC52: =$DA52 -> 0 | DE52: =$DA52 -> 0 | DG52: =$DA52 -> 0 | DI52: =$DA52 -> 0 | DK52: =$DA52 -> 0 | DM52: =$DA52 -> 0 | DO52: =$DA52 -> 0
B53: Boden Fußteil Ablauf unten | C53: Bodenmontage-Fußteil + Abl. | M53: =N53 -> Nein | N53: =IF($M$2>20,"Nein",IF($M$2<14,"Nein","ICS Dachdurchführung 16°-25°")) -> Nein | T53: ABSOLUT18 | U53: ABSOLUT | V53: 18 | W53: Ja | X53: Schiedel ABSOLUT, ABS | Y53: Zweischaliges Kaminsystem | Z53: Ja | AA53: Compound-Mantelstein mit integrierter Wärmedämmung | AB53: und keramischem Profil-Innenrohr | AC53: J | AD53: 18 | AI53: 36/36 cm | AJ53: =IF($B$193<11.66,0,ROUNDUP(($B$193-11.33)/4,0)) -> 0 | AK53: Nein | AL53: Typ Absolut 18 | AM53: Schiedel ABSOLUT, ABS 18 | AN53: 62 | AO53: J | AP53: J | BR53: T-Stück mitte RA | BS53: 90° | BT53: 45° | CY53: Rohrelement 955 | DA53: 955 | DB53: 0 | DC53: =$DA53*DB53 -> 0 | DD53: 0 | DE53: =$DA53*DD53 -> 0 | DF53: 0 | DG53: =$DA53*DF53 -> 0 | DH53: 0 | DI53: =$DA53*DH53 -> 0 | DJ53: 1 | DK53: =$DA53*DJ53 -> 955 | DL53: 1 | DM53: =$DA53*DL53 -> 955 | DN53: 1 | DO53: =$DA53*DN53 -> 955
B54: =IF($V$105>350,"","Boden Fußteil ohne Ablauf") -> Boden Fußteil ohne Ablauf | C54: =IF($V$105>350,"","Bodenmontage-Fußteil o. Abl.") -> Bodenmontage-Fußteil o. Abl. | M54: =N54 -> Nein | N54: =IF($M$2>20,"Nein",IF($M$2<14,"Nein","ICS Dachdurchführung 26°-35°")) -> Nein | T54: ABSOLUT20 | U54: ABSOLUT | V54: 20 | W54: Ja | X54: Schiedel ABSOLUT, ABS | Y54: Zweischaliges Kaminsystem | Z54: Ja | AA54: Compound-Mantelstein mit integrierter Wärmedämmung | AB54: und keramischem Profil-Innenrohr | AC54: J | AD54: 20 | AI54: 38/38 cm | AJ54: =IF($B$193<11.66,0,ROUNDUP(($B$193-11.33)/4,0)) -> 0 | AK54: Nein | AL54: Typ Absolut 20 | AM54: Schiedel ABSOLUT, ABS 20 | AN54: 62 | AO54: J | AP54: J | BR54: T-Stück-mitte RA | BS54: 340 | BT54: 130 | BU54: =IF($B$413=2,$BT54,$BS54) -> 340 | BV54: =$BU54 -> 340 | BX54: =$BU54 -> 340 | BZ54: =$BU54 -> 340 | CB54: =$BU54 -> 340 | CD54: =$BU54 -> 340 | CF54: =$BU54 -> 340 | CH54: =$BU54 -> 340 | CJ54: =$BU54 -> 340 | CL54: =$BU54 -> 340 | CY54: Rohrelement 455 | DA54: 455 | DB54: 0 | DC54: =$DA54*DB54 -> 0 | DD54: 0 | DE54: =$DA54*DD54 -> 0 | DF54: 1 | DG54: =$DA54*DF54 -> 455 | DH54: 1 | DI54: =$DA54*DH54 -> 455 | DJ54: 0 | DK54: =$DA54*DJ54 -> 0 | DL54: 0 | DM54: =$DA54*DL54 -> 0 | DN54: 1 | DO54: =$DA54*DN54 -> 455
M55: =N55 -> Nein | N55: =IF($M$2>20,"Nein",IF($M$2<14,"Nein","ICS Dachdurchführung 36°-45°")) -> Nein | T55: ABSOLUT25 | U55: ABSOLUT | V55: 25 | W55: Ja | X55: Schiedel ABSOLUT, ABS | Y55: Zweischaliges Kaminsystem | Z55: Ja | AA55: Compound-Mantelstein mit integrierter Wärmedämmung | AB55: und keramischem Profil-Innenrohr | AC55: J | AD55: 25 | AI55: 48/48 cm | AJ55: =IF($B$193<11.66,0,ROUNDUP(($B$193-11.33)/2,0)) -> 0 | AK55: Nein | AL55: Typ Absolut 25 | AM55: Schiedel ABSOLUT, ABS 25 | AN55: 62 | AO55: N | AP55: N | BR55: Inspektionselement | BV55: 666 | BX55: 666 | BZ55: 666 | CB55: 666 | CD55: 666 | CF55: 666 | CH55: 666 | CJ55: 666 | CL55: 666 | CY55: Rohrelement 205 | DA55: 205 | DB55: 0 | DC55: =$DA55*DB55 -> 0 | DD55: 1 | DE55: =$DA55*DD55 -> 205 | DF55: 0 | DG55: =$DA55*DF55 -> 0 | DH55: 1 | DI55: =$DA55*DH55 -> 205 | DJ55: 0 | DK55: =$DA55*DJ55 -> 0 | DL55: 1 | DM55: =$DA55*DL55 -> 205 | DN55: 0 | DO55: =$DA55*DN55 -> 0
T56: =U56&V56 -> ABSOLUT30 | U56: ABSOLUT | V56: 30 | W56: Nein | X56: Schiedel ABSOLUT, ABS | Y56: Zweischaliges Kaminsystem | Z56: Nein | AA56: Compound-Mantelstein mit integrierter Wärmedämmung | AB56: und keramischem Profil-Innenrohr | AC56: J | AD56: 30 | AI56: 55/55 cm | AJ56: =IF($B$193<11.66,0,ROUNDUP(($B$193-11.33)/1.66,0)) -> 0 | AK56: Nein | AL56: ="Typ Absolut " &V56 -> Typ Absolut 30 | AM56: =X56&" "& V56 -> Schiedel ABSOLUT, ABS 30 | AN56: 62 | AO56: N | AP56: N | BR56: Sockel - Höhe | BS56: =IF($E$403=1,44,IF($E$403=2,350,IF($E$403=3,369,IF($E$403=4,190,0)))) -> 350 | BV56: =$BS56 -> 350 | BX56: =$BS56 -> 350 | BZ56: =$BS56 -> 350 | CB56: =$BS56 -> 350 | CD56: =$BS56 -> 350 | CF56: =$BS56 -> 350 | CH56: =$BS56 -> 350 | CJ56: =$BS56 -> 350 | CL56: =$BS56 -> 350
B57: 3 | C57: =INDEX(Daten!C59:C64,B57,1) -> 62 | T57: =U57&V57 -> ABSOLUT40 | U57: ABSOLUT | V57: 40 | W57: Nein | X57: Schiedel ABSOLUT, ABS | Y57: Zweischaliges Kaminsystem | Z57: Nein | AA57: Compound-Mantelstein mit integrierter Wärmedämmung | AB57: und keramischem Profil-Innenrohr | AC57: J | AD57: 40 | AI57: 67/67 cm | AJ57: =IF($B$193<11.66,0,ROUNDUP(($B$193-11.33)/1.33,0)) -> 0 | AK57: Nein | AL57: ="Typ Absolut " &V57 -> Typ Absolut 40 | AM57: =X57&" "& V57 -> Schiedel ABSOLUT, ABS 40 | AN57: 62 | AO57: N | AP57: N | BS57: 133021620 | BT57: 166 | BU57: 0 | BV57: =BT57*BU57 -> 0 | BW57: 1 | BX57: =BT57*BW57 -> 166 | BY57: 0 | BZ57: =BT57*BY57 -> 0 | CA57: 1 | CB57: =BT57*CA57 -> 166 | CC57: 0 | CD57: =BT57*CC57 -> 0 | CE57: 1 | CF57: =$BT$57*CE57 -> 166 | CG57: 0 | CH57: =$BT$57*CG57 -> 0 | CI57: 1 | CJ57: =$BT$57*CI57 -> 166 | CK57: 0 | CL57: =$BT$57*CK57 -> 0
B58: Frachttabelle | AO58: N | AP58: N | BS58: 133026620 | BT58: 666 | BU58: 0 | BV58: =BT58*BU58 -> 0 | BW58: 0 | BX58: =BT58*BW58 -> 0 | BY58: 0 | BZ58: =BT58*BY58 -> 0 | CA58: 0 | CB58: =BT58*CA58 -> 0 | CC58: 1 | CD58: =BT58*CC58 -> 666 | CE58: 1 | CF58: =$BT$58*CE58 -> 666 | CG58: 1 | CH58: =$BT$58*CG58 -> 666 | CI58: 1 | CJ58: =$BT$58*CI58 -> 666 | CK58: 2 | CL58: =$BT$58*CK58 -> 1332 | CY58: ICS 180 | CZ58: Gesamthöhe | DB58: m | DC58: =ROUND(DC59/1000,2) -> 0.51 | DE58: =ROUND(DE59/1000,2) -> 0.72 | DG58: =ROUND(DG59/1000,2) -> 0.97 | DI58: =ROUND(DI59/1000,2) -> 1.17 | DK58: =ROUND(DK59/1000,2) -> 1.47 | DM58: =ROUND(DM59/1000,2) -> 1.67 | DO58: =ROUND(DO59/1000,2) -> 1.92
B59: Nein | E59: 1 | F59: =INDEX(F61:F76,$E59,1) -> 0 | G59: =INDEX(G61:G76,$E59,1) -> 0 | H59: =INDEX(H61:H76,$E59,1) -> 0 | L59: Kondition | M59: Kondition | T59: =U59&V59 -> ABSOLUT1614 | U59: ABSOLUT | V59: 1614 | W59: Ja | X59: Schiedel ABSOLUT, ABS | Y59: Zweischaliges Kaminsystem | Z59: Ja | AA59: Compound-Mantelstein mit integrierter Wärmedämmung | AB59: und keramischem Profil-Innenrohr | AC59: J | AD59: 16 | AE59: 14 | AH59: 16 | AI59: 36/65 cm | AJ59: =IF($B$193<11.66,0,ROUNDUP((($B$193-11.33)/4)*2,0)) -> 0 | AK59: Ja | AL59: ="Typ Absolut " &V59 -> Typ Absolut 1614 | AM59: =X59&" "& V59 -> Schiedel ABSOLUT, ABS 1614 | AN59: =IF($C$74<=400,$C$60,IF($C$74<=2500,$C$61,IF($C$74<=5000,$C$62,$C$63))) -> 62 | AO59: N | AP59: N | BS59: 133023320 | BT59: 331 | BU59: 0 | BV59: =BT59*BU59 -> 0 | BW59: 0 | BX59: =BT59*BW59 -> 0 | BY59: 1 | BZ59: =BT59*BY59 -> 331 | CA59: 1 | CB59: =BT59*CA59 -> 331 | CC59: 0 | CD59: =BT59*CC59 -> 0 | CE59: 0 | CF59: =$BT$59*CE59 -> 0 | CG59: 1 | CH59: =$BT$59*CG59 -> 331 | CI59: 1 | CJ59: =$BT$59*CI59 -> 331 | CK59: 0 | CL59: =$BT$59*CK59 -> 0 | CY59: Anschlusshöhe | DB59: mm | DC59: =DC63+DC65+DC67+DC68+DC69+DC66 -> 514 | DE59: =DE63+DE65+DE67+DE68+DE69+DE66 -> 719 | DG59: =DG63+DG65+DG67+DG68+DG69+DG66 -> 969 | DI59: =DI63+DI65+DI67+DI68+DI69+DI66 -> 1174 | DK59: =DK63+DK65+DK67+DK68+DK69+DK66 -> 1469 | DM59: =DM63+DM65+DM67+DM68+DM69+DM66 -> 1674 | DO59: =DO63+DO65+DO67+DO68+DO69+DO66 -> 1924
B60: 0 bis 400 kg -- 140 EUR | C60: 62 | E60: Code | F60: Name | G60: Name2 | H60: Tel.Nr. | I60: Mail: | K60: Systeme | L60: Kamin | M60: Zubehör | T60: ABSOLUT1812 | U60: ABSOLUT | V60: 1812 | W60: Ja | X60: Schiedel ABSOLUT, ABS | Y60: Zweischaliges Kaminsystem | Z60: Ja | AA60: Compound-Mantelstein mit integrierter Wärmedämmung | AB60: und keramischem Profil-Innenrohr | AC60: J | AD60: 18 | AE60: 12 | AG60: Nein | AH60: 18 | AI60: 36/65 cm | AJ60: 0 | AK60: Ja | AL60: Typ Absolut 1812 | AM60: Schiedel ABSOLUT, ABS 1812 | AN60: 62 | AO60: N | AP60: N | BR60: Wandmontage - Höhe | BS60: 44 | CY60: (=vom 1.Rohr bis mitte Anschluss) | DA60: Achsmaße
B61: 401 bis 2.500 kg -- 110 EUR | C61: 62 | E61: 00 | K61: ABSOLUT | T61: ABSOLUT1814 | U61: ABSOLUT | V61: 1814 | W61: Ja | X61: Schiedel ABSOLUT, ABS | Y61: Zweischaliges Kaminsystem | Z61: Ja | AA61: Compound-Mantelstein mit integrierter Wärmedämmung | AB61: und keramischem Profil-Innenrohr | AC61: J | AD61: 18 | AE61: 14 | AH61: 18 | AI61: 36/65 cm | AJ61: 0 | AK61: Ja | AL61: Typ Absolut 1814 | AM61: Schiedel ABSOLUT, ABS 1814 | AN61: 62 | AO61: N | AP61: N | CY61: T-Stück 85° | DA61: 240
B62: 2.501 bis 5.000 kg -- 160 EUR | C62: 62 | E62: 01 | F62: Hermann Herbst | G62: Verkaufsrepräsentant | H62: Telefon 0664 2429495 | I62: E-mail: hermann.herbst@schiedel.com | K62: ABSOLUTTL | T62: ABSOLUT1816 | U62: ABSOLUT | V62: 1816 | W62: Ja | X62: Schiedel ABSOLUT, ABS | Y62: Zweischaliges Kaminsystem | Z62: Ja | AA62: Compound-Mantelstein mit integrierter Wärmedämmung | AB62: und keramischem Profil-Innenrohr | AC62: J | AD62: 18 | AE62: 16 | AH62: 18 | AI62: 36/65 cm | AJ62: 0 | AK62: Ja | AL62: Typ Absolut 1816 | AM62: Schiedel ABSOLUT, ABS 1816 | AN62: 62 | AO62: N | AP62: N | BR62: Kerastar 250 | BS62: Gesamthöhe | BU62: m | BV62: =ROUND(BV63/1000,2) -> 1.36 | BX62: =ROUND(BX63/1000,2) -> 1.52 | BZ62: =ROUND(BZ63/1000,2) -> 1.69 | CB62: =ROUND(CB63/1000,2) -> 1.85 | CD62: =ROUND(CD63/1000,2) -> 2.02 | CF62: =ROUND(CF63/1000,2) -> 2.19 | CH62: =ROUND(CH63/1000,2) -> 2.35 | CJ62: =ROUND(CJ63/1000,2) -> 2.52 | CL62: =ROUND(CL63/1000,2) -> 2.69 | CY62: T-Stück 90° | DA62: 209
B63: über 5.000 kg -- 250 EUR | C63: 62 | E63: 02 | F63: Reinhart Schmölzer | G63: Verkaufsrepräsentant | H63: Telefon 0664 2867523 | I63: E-mail: reinhart.schmoelzer@schiedel.com | K63: KERASTAR | T63: ABSOLUT2014 | U63: ABSOLUT | V63: 2014 | W63: Ja | X63: Schiedel ABSOLUT, ABS | Y63: Zweischaliges Kaminsystem | Z63: Ja | AA63: Compound-Mantelstein mit integrierter Wärmedämmung | AB63: und keramischem Profil-Innenrohr | AC63: J | AD63: 20 | AE63: 14 | AH63: 20 | AI63: 38/71 cm | AJ63: 0 | AK63: Ja | AL63: Typ Absolut 2014 | AM63: Schiedel ABSOLUT, ABS 2014 | AN63: 62 | AO63: N | AP63: N | BU63: mm | BV63: =BV69+BV70+BV71+BV72+BV73+BV74 -> 1356 | BX63: =BX69+BX70+BX71+BX72+BX73+BX74 -> 1522 | BZ63: =BZ69+BZ70+BZ71+BZ72+BZ73+BZ74 -> 1687 | CB63: =CB69+CB70+CB71+CB72+CB73+CB74 -> 1853 | CD63: =CD69+CD70+CD71+CD72+CD73+CD74 -> 2022 | CF63: =CF69+CF70+CF71+CF72+CF73+CF74 -> 2188 | CH63: =CH69+CH70+CH71+CH72+CH73+CH74 -> 2353 | CJ63: =CJ69+CJ70+CJ71+CJ72+CJ73+CJ74 -> 2519 | CL63: =CL69+CL70+CL71+CL72+CL73+CL74 -> 2688 | CY63: T-Stück-mitte RA 45° | DA63: 322 | DC63: =IF($C$17="90°",$DA62,IF($C$17="85°",$DA61,$DA63)) -> 209 | DE63: =IF($C$17="90°",$DA62,IF($C$17="85°",$DA61,$DA63)) -> 209 | DG63: =IF($C$17="90°",$DA62,IF($C$17="85°",$DA61,$DA63)) -> 209 | DI63: =IF($C$17="90°",$DA62,IF($C$17="85°",$DA61,$DA63)) -> 209 | DK63: =IF($C$17="90°",$DA62,IF($C$17="85°",$DA61,$DA63)) -> 209 | DM63: =IF($C$17="90°",$DA62,IF($C$17="85°",$DA61,$DA63)) -> 209 | DO63: =IF($C$17="90°",$DA62,IF($C$17="85°",$DA61,$DA63)) -> 209
B64: per Kommission -- 65 EUR | C64: 62 | E64: 03 | F64: Ing. Achim Scheiber | G64: Verkaufsrepräsentant | H64: Telefon 0664 5166948 | I64: E-mail: achim.scheiber@schiedel.com | K64: Keranova | T64: ABSOLUT2016 | U64: ABSOLUT | V64: 2016 | W64: Ja | X64: Schiedel ABSOLUT, ABS | Y64: Zweischaliges Kaminsystem | Z64: Ja | AA64: Compound-Mantelstein mit integrierter Wärmedämmung | AB64: und keramischem Profil-Innenrohr | AC64: J | AD64: 20 | AE64: 16 | AH64: 20 | AI64: 38/71 cm | AJ64: 0 | AK64: Ja | AL64: Typ Absolut 2016 | AM64: Schiedel ABSOLUT, ABS 2016 | AN64: 62 | AO64: N | AP64: N | CZ64: rund | DA64: eckig
B65: Kerastar, Keranova | C65: 62 | E65: 05 | F65: Manfred Rainer | G65: Verkaufsrepräsentant | H65: Telefon 0664 1813380 | I65: E-mail: manfred.rainer@schiedel.com | K65: ProgasFlex | T65: ABSOLUT2018 | U65: ABSOLUT | V65: 2018 | W65: Ja | X65: Schiedel ABSOLUT, ABS | Y65: Zweischaliges Kaminsystem | Z65: Ja | AA65: Compound-Mantelstein mit integrierter Wärmedämmung | AB65: und keramischem Profil-Innenrohr | AC65: J | AD65: 20 | AE65: 18 | AH65: 20 | AI65: 38/71 cm | AJ65: 0 | AK65: Ja | AL65: Typ Absolut 2018 | AM65: Schiedel ABSOLUT, ABS 2018 | AN65: 62 | AO65: N | AP65: N | BR65: Anschlusshöhe | CY65: Inspektionselement | CZ65: 305 | DA65: gibt es nicht | DC65: =$CZ65 -> 305 | DE65: =$CZ65 -> 305 | DG65: =$CZ65 -> 305 | DI65: =$CZ65 -> 305 | DK65: =$CZ65 -> 305 | DM65: =$CZ65 -> 305 | DO65: =$CZ65 -> 305
E66: 06 | F66: Miran Gavric | G66: Verkaufsrepräsentant | H66: Telefon 0664 5111649 | I66: E-mail: miran.gavric@schiedel.com | K66: ICS | AO66: N | AP66: N | BR66: (=vom UK.Sockel/OK WK bis mitte Anschluss) | CY66: Sockel | CZ66: Bodenmont. | DA66: =IF($B$47=1,1045,IF($B$47=3,300,IF($B$47=4,95,0))) -> 0 | DC66: =$DA66 -> 0 | DE66: =$DA66 -> 0 | DG66: =$DA66 -> 0 | DI66: =$DA66 -> 0 | DK66: =$DA66 -> 0 | DM66: =$DA66 -> 0 | DO66: =$DA66 -> 0
E67: 07 | F67: Peter Herzog | G67: Verkaufsrepräsentant | H67: Telefon 0664 4265562 | I67: E-mail: peter.herzog@schiedel.com | K67: IC5- | T67: =U67&V67 -> ABSOLUT1414 | U67: ABSOLUT | V67: 1414 | W67: Ja | X67: Schiedel ABSOLUT, ABS | Y67: Zweischaliges Kaminsystem | Z67: Ja | AA67: Compound-Mantelstein mit integrierter Wärmedämmung | AB67: und keramischem Profil-Innenrohr | AC67: J | AD67: 14 | AE67: 14 | AI67: 36/65 cm | AJ67: =IF($B$193<11.66,0,ROUNDUP((($B$193-11.33)/4)*2,0)) -> 0 | AK67: Ja | AL67: ="Typ Absolut " &V67 -> Typ Absolut 1414 | AM67: =X67&" "& V67 -> Schiedel ABSOLUT, ABS 1414 | AN67: =IF($C$74<=400,$C$60,IF($C$74<=2500,$C$61,IF($C$74<=5000,$C$62,$C$63))) -> 62 | AO67: N | AP67: N | CY67: Rohrelement 955 | DA67: 955 | DB67: 0 | DC67: =$DA67*DB67 -> 0 | DD67: 0 | DE67: =$DA67*DD67 -> 0 | DF67: 0 | DG67: =$DA67*DF67 -> 0 | DH67: 0 | DI67: =$DA67*DH67 -> 0 | DJ67: 1 | DK67: =$DA67*DJ67 -> 955 | DL67: 1 | DM67: =$DA67*DL67 -> 955 | DN67: 1 | DO67: =$DA67*DN67 -> 955
B68: 1 | C68: =INDEX(Daten!B70:B71,B68,1) -> Ja | E68: 08 | F68: Norbert Travnicek | G68: Gebietsleiter Ost | H68: Telefon 0664 5447697 | I68: E-mail: norbert.travnicek@schiedel.com | K68: IC5-1- | T68: =U68&V68 -> ABSOLUT1616 | U68: ABSOLUT | V68: 1616 | W68: Ja | X68: Schiedel ABSOLUT, ABS | Y68: Zweischaliges Kaminsystem | Z68: Ja | AA68: Compound-Mantelstein mit integrierter Wärmedämmung | AB68: und keramischem Profil-Innenrohr | AC68: J | AD68: 16 | AE68: 16 | AI68: 36/65 cm | AJ68: =IF($B$193<11.66,0,ROUNDUP((($B$193-11.33)/4)*2,0)) -> 0 | AK68: Ja | AL68: ="Typ Absolut " &V68 -> Typ Absolut 1616 | AM68: =X68&" "& V68 -> Schiedel ABSOLUT, ABS 1616 | AN68: =IF($C$74<=400,$C$60,IF($C$74<=2500,$C$61,IF($C$74<=5000,$C$62,$C$63))) -> 62 | AO68: N | AP68: N | BR68: T-Stück mitte RA | BS68: 90° | BT68: 45° | CY68: Rohrelement 455 | DA68: 455 | DB68: 0 | DC68: =$DA68*DB68 -> 0 | DD68: 0 | DE68: =$DA68*DD68 -> 0 | DF68: 1 | DG68: =$DA68*DF68 -> 455 | DH68: 1 | DI68: =$DA68*DH68 -> 455 | DJ68: 0 | DK68: =$DA68*DJ68 -> 0 | DL68: 0 | DM68: =$DA68*DL68 -> 0 | DN68: 1 | DO68: =$DA68*DN68 -> 455
B69: Fracht | E69: 09 | F69: Reinhold Kamberger | G69: Verkaufsrepräsentant | H69: Telefon 0664 8155622 | I69: E-mail: reinhold.kamberger@schiedel.com | K69: AVANT | T69: =U69&V69 -> ABSOLUT1818 | U69: ABSOLUT | V69: 1818 | W69: Ja | X69: Schiedel ABSOLUT, ABS | Y69: Zweischaliges Kaminsystem | Z69: Ja | AA69: Compound-Mantelstein mit integrierter Wärmedämmung | AB69: und keramischem Profil-Innenrohr | AC69: J | AD69: 18 | AE69: 18 | AI69: 36/65 cm | AJ69: =IF($B$193<11.66,0,ROUNDUP((($B$193-11.33)/4)*2,0)) -> 0 | AK69: Ja | AL69: ="Typ Absolut " &V69 -> Typ Absolut 1818 | AM69: =X69&" "& V69 -> Schiedel ABSOLUT, ABS 1818 | AN69: =IF($C$74<=400,$C$60,IF($C$74<=2500,$C$61,IF($C$74<=5000,$C$62,$C$63))) -> 62 | AO69: N | AP69: N | BR69: T-Stück-mitte RA | BS69: 340 | BT69: 147 | BU69: =IF($B$413=2,$BT69,$BS69) -> 340 | BV69: =$BU69 -> 340 | BX69: =$BU69 -> 340 | BZ69: =$BU69 -> 340 | CB69: =$BU69 -> 340 | CD69: =$BU69 -> 340 | CF69: =$BU69 -> 340 | CH69: =$BU69 -> 340 | CJ69: =$BU69 -> 340 | CL69: =$BU69 -> 340 | CY69: Rohrelement 205 | DA69: 205 | DB69: 0 | DC69: =$DA69*DB69 -> 0 | DD69: 1 | DE69: =$DA69*DD69 -> 205 | DF69: 0 | DG69: =$DA69*DF69 -> 0 | DH69: 1 | DI69: =$DA69*DH69 -> 205 | DJ69: 0 | DK69: =$DA69*DJ69 -> 0 | DL69: 1 | DM69: =$DA69*DL69 -> 205 | DN69: 0 | DO69: =$DA69*DN69 -> 0
B70: Ja | E70: 10 | F70: Michael Strommer | G70: Verkaufsrepräsentant | H70: Telefon 0664 3948321 | I70: E-mail: michael.strommer@schiedel.com | K70: MULTI | T70: =U70&V70 -> ABSOLUT2020 | U70: ABSOLUT | V70: 2020 | W70: Ja | X70: Schiedel ABSOLUT, ABS | Y70: Zweischaliges Kaminsystem | Z70: Ja | AA70: Compound-Mantelstein mit integrierter Wärmedämmung | AB70: und keramischem Profil-Innenrohr | AC70: J | AD70: 20 | AE70: 20 | AI70: 36/65 cm | AJ70: =IF($B$193<11.66,0,ROUNDUP((($B$193-11.33)/4)*2,0)) -> 0 | AK70: Ja | AL70: ="Typ Absolut " &V70 -> Typ Absolut 2020 | AM70: =X70&" "& V70 -> Schiedel ABSOLUT, ABS 2020 | AN70: =IF($C$74<=400,$C$60,IF($C$74<=2500,$C$61,IF($C$74<=5000,$C$62,$C$63))) -> 62 | AO70: N | AP70: N | BR70: Inspektionselement | BV70: 666 | BX70: 666 | BZ70: 666 | CB70: 666 | CD70: 666 | CF70: 666 | CH70: 666 | CJ70: 666 | CL70: 666
B71: Nein | E71: 11 | F71: Thomas Ehn | G71: Verkaufsrepräsentant | H71: Telefon 0664 8155611 | I71: E-mail: thomas.ehn@schiedel.com | K71: SIHS | AO71: N | AP71: N | BR71: Sockel - Höhe | BS71: =IF($E$403=1,44,IF($E$403=2,350,IF($E$403=3,369,IF($E$403=4,190,0)))) -> 350 | BV71: =$BS71 -> 350 | BX71: =$BS71 -> 350 | BZ71: =$BS71 -> 350 | CB71: =$BS71 -> 350 | CD71: =$BS71 -> 350 | CF71: =$BS71 -> 350 | CH71: =$BS71 -> 350 | CJ71: =$BS71 -> 350 | CL71: =$BS71 -> 350
E72: 12 | F72: Hanns Michael Fuchs | G72: Verkaufsrepräsentant | H72: Telefon 0664 5447698 | I72: E-mail: michael.fuchs@schiedel.com | K72: IBFS | T72: ="ABSOLUT"&V72 -> ABSOLUT12TL | U72: ABSOLUTTL | V72: 12TL | W72: Ja | X72: Schiedel ABSOLUT, ABS | Y72: Zweischaliges Kaminsystem | Z72: Ja | AA72: Compound-Mantelstein mit integrierter Wärmedämmung | AB72: und keramischem Profil-Innenrohr | AC72: J | AD72: 12 | AF72: Ja | AG72: Nein | AI72: 36/50 cm | AJ72: =IF($B$193<11.66,0,ROUNDUP(($B$193-11.33)/4,0)) -> 0 | AK72: Nein | AL72: ="Typ Absolut " &V72 -> Typ Absolut 12TL | AM72: =X72&" "& V72 -> Schiedel ABSOLUT, ABS 12TL | AN72: =IF($C$74<=400,$C$60,IF($C$74<=2500,$C$61,IF($C$74<=5000,$C$62,$C$63))) -> 62 | AO72: J | AP72: N | BS72: 133021625 | BT72: 166 | BU72: 0 | BV72: =BT72*BU72 -> 0 | BW72: 1 | BX72: =BT72*BW72 -> 166 | BY72: 0 | BZ72: =BT72*BY72 -> 0 | CA72: 1 | CB72: =BT72*CA72 -> 166 | CC72: 0 | CD72: =BT72*CC72 -> 0 | CE72: 1 | CF72: =$BT$72*CE72 -> 166 | CG72: 0 | CH72: =$BT$72*CG72 -> 0 | CI72: 1 | CJ72: =$BT$72*CI72 -> 166 | CK72: 0 | CL72: =$BT$72*CK72 -> 0 | CY72: ICS 200 | CZ72: Gesamthöhe | DB72: m | DC72: =ROUND(DC73/1000,2) -> 0.56 | DE72: =ROUND(DE73/1000,2) -> 0.77 | DG72: =ROUND(DG73/1000,2) -> 1.02 | DI72: =ROUND(DI73/1000,2) -> 1.22 | DK72: =ROUND(DK73/1000,2) -> 1.52 | DM72: =ROUND(DM73/1000,2) -> 1.72 | DO72: =ROUND(DO73/1000,2) -> 1.97
B73: Typ | C73: Kg | D73: Fracht | E73: 13 | F73: Herbert Buchberger | G73: Verkaufsrepräsentant | H73: Telefon 0664 2420363 | I73: E-mail: herbert.buchberger@schiedel.com | K73: ZBFS | T73: ABSOLUT14TL | U73: ABSOLUTTL | V73: 14TL | W73: Ja | X73: Schiedel ABSOLUT, ABS | Y73: Zweischaliges Kaminsystem | Z73: Ja | AA73: Compound-Mantelstein mit integrierter Wärmedämmung | AB73: und keramischem Profil-Innenrohr | AC73: J | AD73: 14 | AF73: Ja | AI73: 36/50 cm | AJ73: =IF($B$193<11.66,0,ROUNDUP(($B$193-11.33)/4,0)) -> 0 | AK73: Nein | AL73: Typ Absolut 14TL | AM73: Schiedel ABSOLUT, ABS 14TL | AN73: 62 | AO73: J | AP73: N | BS73: 133026625 | BT73: 666 | BU73: 0 | BV73: =BT73*BU73 -> 0 | BW73: 0 | BX73: =BT73*BW73 -> 0 | BY73: 0 | BZ73: =BT73*BY73 -> 0 | CA73: 0 | CB73: =BT73*CA73 -> 0 | CC73: 1 | CD73: =BT73*CC73 -> 666 | CE73: 1 | CF73: =$BT$73*CE73 -> 666 | CG73: 1 | CH73: =$BT$73*CG73 -> 666 | CI73: 1 | CJ73: =$BT$73*CI73 -> 666 | CK73: 2 | CL73: =$BT$73*CK73 -> 1332 | CY73: Anschlusshöhe | DB73: mm | DC73: =DC77+DC79+DC81+DC82+DC83+DC80 -> 564 | DE73: =DE77+DE79+DE81+DE82+DE83+DE80 -> 769 | DG73: =DG77+DG79+DG81+DG82+DG83+DG80 -> 1019 | DI73: =DI77+DI79+DI81+DI82+DI83+DI80 -> 1224 | DK73: =DK77+DK79+DK81+DK82+DK83+DK80 -> 1519 | DM73: =DM77+DM79+DM81+DM82+DM83+DM80 -> 1724 | DO73: =DO77+DO79+DO81+DO82+DO83+DO80 -> 1974
B74: =Kalkulation!A17 -> ABSOLUT | C74: =SUBTOTAL(9,Kalkulation!F25:F180) -> 0 | D74: =IF(B74="AbsolutParatEZ",D78,IF(B74="AbsolutParatZZ",D78,IF(B74="SIHParat",D78,IF(B74="AvantParat",D78,D79)))) -> 75 | E74: 14 | F74: Johann Wellmann | G74: Verkaufsrepräsentant | H74: Telefon 0664 8155635 | I74: E-mail: johann.wellmann@schiedel.com | K74: SRS | T74: ABSOLUT16TL | U74: ABSOLUTTL | V74: 16TL | W74: Ja | X74: Schiedel ABSOLUT, ABS | Y74: Zweischaliges Kaminsystem | Z74: Ja | AA74: Compound-Mantelstein mit integrierter Wärmedämmung | AB74: und keramischem Profil-Innenrohr | AC74: J | AD74: 16 | AF74: Ja | AI74: 36/50 cm | AJ74: =IF($B$193<11.66,0,ROUNDUP(($B$193-11.33)/4,0)) -> 0 | AK74: Nein | AL74: Typ Absolut 16TL | AM74: Schiedel ABSOLUT, ABS 16TL | AN74: 62 | AO74: J | AP74: N | BS74: 133023325 | BT74: 331 | BU74: 0 | BV74: =BT74*BU74 -> 0 | BW74: 0 | BX74: =BT74*BW74 -> 0 | BY74: 1 | BZ74: =BT74*BY74 -> 331 | CA74: 1 | CB74: =BT74*CA74 -> 331 | CC74: 0 | CD74: =BT74*CC74 -> 0 | CE74: 0 | CF74: =$BT$74*CE74 -> 0 | CG74: 1 | CH74: =$BT$74*CG74 -> 331 | CI74: 1 | CJ74: =$BT$74*CI74 -> 331 | CK74: 0 | CL74: =$BT$74*CK74 -> 0 | CY74: (=vom 1.Rohr bis mitte Anschluss) | DA74: Achsmaße
E75: 15 | K75: AERA | T75: ABSOLUT18TL | U75: ABSOLUTTL | V75: 18TL | W75: Ja | X75: Schiedel ABSOLUT, ABS | Y75: Zweischaliges Kaminsystem | Z75: Ja | AA75: Compound-Mantelstein mit integrierter Wärmedämmung | AB75: und keramischem Profil-Innenrohr | AC75: J | AD75: 18 | AF75: Ja | AI75: 36/50 cm | AJ75: =IF($B$193<11.66,0,ROUNDUP(($B$193-11.33)/4,0)) -> 0 | AK75: Nein | AL75: Typ Absolut 18TL | AM75: Schiedel ABSOLUT, ABS 18TL | AN75: 62 | AO75: J | AP75: N | BR75: Wandmontage - Höhe | BS75: 44 | CY75: T-Stück 85° | DA75: 240
E76: 16 | K76: ABSOLUTPARAT | T76: ABSOLUT20TL | U76: ABSOLUTTL | V76: 20TL | W76: Ja | X76: Schiedel ABSOLUT, ABS | Y76: Zweischaliges Kaminsystem | Z76: Ja | AA76: Compound-Mantelstein mit integrierter Wärmedämmung | AB76: und keramischem Profil-Innenrohr | AC76: J | AD76: 20 | AF76: Ja | AI76: 38/54 cm | AJ76: =IF($B$193<11.66,0,ROUNDUP(($B$193-11.33)/4,0)) -> 0 | AK76: Nein | AL76: Typ Absolut 20TL | AM76: Schiedel ABSOLUT, ABS 20TL | AN76: 62 | AO76: J | AP76: N | CY76: T-Stück 90° | DA76: 209
B77: Typ | D77: Fracht | K77: SIHPARAT | T77: ABSOLUT25TL | U77: ABSOLUTTL | V77: 25TL | W77: Ja | X77: Schiedel ABSOLUT, ABS | Y77: Zweischaliges Kaminsystem | Z77: Ja | AA77: Compound-Mantelstein mit integrierter Wärmedämmung | AB77: und keramischem Profil-Innenrohr | AC77: N | AD77: 25 | AF77: Ja | AI77: 48/62 cm | AJ77: =IF($B$193<11.66,0,ROUNDUP(($B$193-11.33)/2,0)) -> 0 | AK77: Nein | AL77: Typ Absolut 25TL | AM77: Schiedel ABSOLUT, ABS 25TL | AN77: 62 | AO77: N | AP77: N | BR77: Kerastar 300 | BS77: Gesamthöhe | BU77: m | BV77: =ROUND(BV78/1000,2) -> 1.36 | BX77: =ROUND(BX78/1000,2) -> 1.52 | BZ77: =ROUND(BZ78/1000,2) -> 1.69 | CB77: =ROUND(CB78/1000,2) -> 1.85 | CD77: =ROUND(CD78/1000,2) -> 2.02 | CF77: =ROUND(CF78/1000,2) -> 2.19 | CH77: =ROUND(CH78/1000,2) -> 2.35 | CJ77: =ROUND(CJ78/1000,2) -> 2.52 | CL77: =ROUND(CL78/1000,2) -> 2.69 | CY77: T-Stück-mitte RA 45° | DA77: 378 | DC77: =IF($C$17="90°",$DA76,IF($C$17="85°",$DA75,$DA77)) -> 209 | DE77: =IF($C$17="90°",$DA76,IF($C$17="85°",$DA75,$DA77)) -> 209 | DG77: =IF($C$17="90°",$DA76,IF($C$17="85°",$DA75,$DA77)) -> 209 | DI77: =IF($C$17="90°",$DA76,IF($C$17="85°",$DA75,$DA77)) -> 209 | DK77: =IF($C$17="90°",$DA76,IF($C$17="85°",$DA75,$DA77)) -> 209 | DM77: =IF($C$17="90°",$DA76,IF($C$17="85°",$DA75,$DA77)) -> 209 | DO77: =IF($C$17="90°",$DA76,IF($C$17="85°",$DA75,$DA77)) -> 209
B78: Fracht für Parat | D78: 195 | K78: ADVANCE PARAT | T78: ABSOLUT30L | U78: ABSOLUTTL | V78: 30L | W78: Nein | X78: Schiedel ABSOLUT, ABS | Y78: Zweischaliges Kaminsystem | Z78: Nein | AA78: Compound-Mantelstein mit integrierter Wärmedämmung | AB78: und keramischem Profil-Innenrohr | AC78: N | AD78: 30 | AF78: Ja | AI78: 55/71 cm | AJ78: =IF($B$193<11.66,0,ROUNDUP(($B$193-11.33)/1.66,0)) -> 0 | AK78: Nein | AL78: Typ Absolut 30L | AM78: Schiedel ABSOLUT, ABS 30L | AN78: 62 | AO78: N | AP78: N | BU78: mm | BV78: =BV84+BV85+BV86+BV87+BV88+BV89 -> 1356 | BX78: =BX84+BX85+BX86+BX87+BX88+BX89 -> 1522 | BZ78: =BZ84+BZ85+BZ86+BZ87+BZ88+BZ89 -> 1687 | CB78: =CB84+CB85+CB86+CB87+CB88+CB89 -> 1853 | CD78: =CD84+CD85+CD86+CD87+CD88+CD89 -> 2022 | CF78: =CF84+CF85+CF86+CF87+CF88+CF89 -> 2188 | CH78: =CH84+CH85+CH86+CH87+CH88+CH89 -> 2353 | CJ78: =CJ84+CJ85+CJ86+CJ87+CJ88+CJ89 -> 2519 | CL78: =CL84+CL85+CL86+CL87+CL88+CL89 -> 2688 | CZ78: rund | DA78: eckig
B79: Fracht für alle anderen Kamine | D79: 75 | K79: SF PARAT | T79: ABSOLUT40L | U79: ABSOLUTTL | V79: 40L | W79: Nein | X79: Schiedel ABSOLUT, ABS | Y79: Zweischaliges Kaminsystem | Z79: Nein | AA79: Compound-Mantelstein mit integrierter Wärmedämmung | AB79: und keramischem Profil-Innenrohr | AC79: N | AD79: 40 | AF79: Ja | AI79: 67/86 cm | AJ79: =IF($B$193<11.66,0,ROUNDUP(($B$193-11.33)/1.33,0)) -> 0 | AK79: Nein | AL79: Typ Absolut 40L | AM79: Schiedel ABSOLUT, ABS 40L | AN79: 62 | AO79: N | AP79: N | CY79: Inspektionselement | CZ79: 355 | DA79: gibt es nicht | DC79: =$CZ79 -> 355 | DE79: =$CZ79 -> 355 | DG79: =$CZ79 -> 355 | DI79: =$CZ79 -> 355 | DK79: =$CZ79 -> 355 | DM79: =$CZ79 -> 355 | DO79: =$CZ79 -> 355
K80: AVANTPARAT | AO80: N | AP80: N | BR80: Anschlusshöhe | CY80: Sockel | CZ80: Bodenmont. | DA80: =IF($B$47=1,1045,IF($B$47=3,300,IF($B$47=4,95,0))) -> 0 | DC80: =$DA80 -> 0 | DE80: =$DA80 -> 0 | DG80: =$DA80 -> 0 | DI80: =$DA80 -> 0 | DK80: =$DA80 -> 0 | DM80: =$DA80 -> 0 | DO80: =$DA80 -> 0
K81: SBD | T81: ="ABSOLUT"&V81 -> ABSOLUT16TL14 | U81: ABSOLUTTL | V81: 16TL14 | W81: Ja | X81: Schiedel ABSOLUT, ABS | Y81: Zweischaliges Kaminsystem | Z81: Ja | AA81: Compound-Mantelstein mit integrierter Wärmedämmung | AB81: und keramischem Profil-Innenrohr | AC81: J | AD81: 16 | AE81: 14 | AF81: Ja | AH81: 16 | AI81: 36/83 cm | AJ81: =IF($B$193<11.66,0,ROUNDUP((($B$193-11.33)/4)*2,0)) -> 0 | AK81: Ja | AL81: ="Typ Absolut " &V81 -> Typ Absolut 16TL14 | AM81: =X81&" "& V81 -> Schiedel ABSOLUT, ABS 16TL14 | AN81: =IF($C$74<=400,$C$60,IF($C$74<=2500,$C$61,IF($C$74<=5000,$C$62,$C$63))) -> 62 | AO81: N | AP81: N | BR81: (=vom UK.Sockel/OK WK bis mitte Anschluss) | CY81: Rohrelement 955 | DA81: 955 | DB81: 0 | DC81: =$DA81*DB81 -> 0 | DD81: 0 | DE81: =$DA81*DD81 -> 0 | DF81: 0 | DG81: =$DA81*DF81 -> 0 | DH81: 0 | DI81: =$DA81*DH81 -> 0 | DJ81: 1 | DK81: =$DA81*DJ81 -> 955 | DL81: 1 | DM81: =$DA81*DL81 -> 955 | DN81: 1 | DO81: =$DA81*DN81 -> 955
K82: SBW | T82: ABSOLUT18TL12 | U82: ABSOLUTTL | V82: 18TL12 | W82: Ja | X82: Schiedel ABSOLUT, ABS | Y82: Zweischaliges Kaminsystem | Z82: Ja | AA82: Compound-Mantelstein mit integrierter Wärmedämmung | AB82: und keramischem Profil-Innenrohr | AC82: J | AD82: 18 | AE82: 12 | AF82: Ja | AG82: Nein | AH82: 18 | AI82: 36/83 cm | AJ82: 0 | AK82: Ja | AL82: Typ Absolut 18TL12 | AM82: Schiedel ABSOLUT, ABS 18TL12 | AN82: 62 | AO82: N | AP82: N | CY82: Rohrelement 455 | DA82: 455 | DB82: 0 | DC82: =$DA82*DB82 -> 0 | DD82: 0 | DE82: =$DA82*DD82 -> 0 | DF82: 1 | DG82: =$DA82*DF82 -> 455 | DH82: 1 | DI82: =$DA82*DH82 -> 455 | DJ82: 0 | DK82: =$DA82*DJ82 -> 0 | DL82: 0 | DM82: =$DA82*DL82 -> 0 | DN82: 1 | DO82: =$DA82*DN82 -> 455
K83: XPERT | T83: ABSOLUT18TL14 | U83: ABSOLUTTL | V83: 18TL14 | W83: Ja | X83: Schiedel ABSOLUT, ABS | Y83: Zweischaliges Kaminsystem | Z83: Ja | AA83: Compound-Mantelstein mit integrierter Wärmedämmung | AB83: und keramischem Profil-Innenrohr | AC83: J | AD83: 18 | AE83: 14 | AF83: Ja | AH83: 18 | AI83: 36/83 cm | AJ83: 0 | AK83: Nein | AL83: Typ Absolut 18TL14 | AM83: Schiedel ABSOLUT, ABS 18TL14 | AN83: 62 | AO83: N | AP83: N | BR83: T-Stück mitte RA | BS83: 90° | BT83: 45° | CY83: Rohrelement 205 | DA83: 205 | DB83: 0 | DC83: =$DA83*DB83 -> 0 | DD83: 1 | DE83: =$DA83*DD83 -> 205 | DF83: 0 | DG83: =$DA83*DF83 -> 0 | DH83: 1 | DI83: =$DA83*DH83 -> 205 | DJ83: 0 | DK83: =$DA83*DJ83 -> 0 | DL83: 1 | DM83: =$DA83*DL83 -> 205 | DN83: 0 | DO83: =$DA83*DN83 -> 0
K84: XP2 | T84: ABSOLUT18TL16 | U84: ABSOLUTTL | V84: 18TL16 | W84: Ja | X84: Schiedel ABSOLUT, ABS | Y84: Zweischaliges Kaminsystem | Z84: Ja | AA84: Compound-Mantelstein mit integrierter Wärmedämmung | AB84: und keramischem Profil-Innenrohr | AC84: J | AD84: 18 | AE84: 16 | AF84: Ja | AH84: 18 | AI84: 36/83 cm | AJ84: 0 | AK84: Ja | AL84: Typ Absolut 18TL16 | AM84: Schiedel ABSOLUT, ABS 18TL16 | AN84: 62 | AO84: N | AP84: N | BR84: T-Stück-mitte RA | BS84: 340 | BT84: 147 | BU84: =IF($B$413=2,$BT84,$BS84) -> 340 | BV84: =$BU84 -> 340 | BX84: =$BU84 -> 340 | BZ84: =$BU84 -> 340 | CB84: =$BU84 -> 340 | CD84: =$BU84 -> 340 | CF84: =$BU84 -> 340 | CH84: =$BU84 -> 340 | CJ84: =$BU84 -> 340 | CL84: =$BU84 -> 340
K85: Xpress | T85: ABSOLUT20TL14 | U85: ABSOLUTTL | V85: 20TL14 | W85: Ja | X85: Schiedel ABSOLUT, ABS | Y85: Zweischaliges Kaminsystem | Z85: Ja | AA85: Compound-Mantelstein mit integrierter Wärmedämmung | AB85: und keramischem Profil-Innenrohr | AC85: J | AD85: 20 | AE85: 14 | AF85: Ja | AH85: 20 | AI85: 38/88 cm | AJ85: 0 | AK85: Ja | AL85: Typ Absolut 20TL14 | AM85: Schiedel ABSOLUT, ABS 20TL14 | AN85: 62 | AO85: N | AP85: N | BR85: Inspektionselement | BV85: 666 | BX85: 666 | BZ85: 666 | CB85: 666 | CD85: 666 | CF85: 666 | CH85: 666 | CJ85: 666 | CL85: 666
T86: ABSOLUT20TL16 | U86: ABSOLUTTL | V86: 20TL16 | W86: Ja | X86: Schiedel ABSOLUT, ABS | Y86: Zweischaliges Kaminsystem | Z86: Ja | AA86: Compound-Mantelstein mit integrierter Wärmedämmung | AB86: und keramischem Profil-Innenrohr | AC86: J | AD86: 20 | AE86: 16 | AF86: Ja | AI86: 38/88 cm | AJ86: 0 | AK86: Ja | AL86: Typ Absolut 20TL16 | AM86: Schiedel ABSOLUT, ABS 20TL16 | AN86: 62 | AO86: N | AP86: N | BR86: Sockel - Höhe | BS86: =IF($E$403=1,44,IF($E$403=2,350,IF($E$403=3,369,IF($E$403=4,190,0)))) -> 350 | BV86: =$BS86 -> 350 | BX86: =$BS86 -> 350 | BZ86: =$BS86 -> 350 | CB86: =$BS86 -> 350 | CD86: =$BS86 -> 350 | CF86: =$BS86 -> 350 | CH86: =$BS86 -> 350 | CJ86: =$BS86 -> 350 | CL86: =$BS86 -> 350 | CY86: ICS 230 | CZ86: Gesamthöhe | DB86: m | DC86: =ROUND(DC87/1000,2) -> 0.56 | DE86: =ROUND(DE87/1000,2) -> 0.77 | DG86: =ROUND(DG87/1000,2) -> 1.02 | DI86: =ROUND(DI87/1000,2) -> 1.22 | DK86: =ROUND(DK87/1000,2) -> 1.52 | DM86: =ROUND(DM87/1000,2) -> 1.72 | DO86: =ROUND(DO87/1000,2) -> 1.97
T87: ABSOLUT20TL18 | U87: ABSOLUTTL | V87: 20TL18 | W87: Ja | X87: Schiedel ABSOLUT, ABS | Y87: Zweischaliges Kaminsystem | Z87: Ja | AA87: Compound-Mantelstein mit integrierter Wärmedämmung | AB87: und keramischem Profil-Innenrohr | AC87: J | AD87: 20 | AE87: 18 | AF87: Ja | AI87: 38/88 cm | AJ87: 0 | AK87: Ja | AL87: Typ Absolut 20TL18 | AM87: Schiedel ABSOLUT, ABS 20TL18 | AN87: 62 | AO87: N | AP87: N | BS87: 133021630 | BT87: 166 | BU87: 0 | BV87: =BT87*BU87 -> 0 | BW87: 1 | BX87: =BT87*BW87 -> 166 | BY87: 0 | BZ87: =BT87*BY87 -> 0 | CA87: 1 | CB87: =BT87*CA87 -> 166 | CC87: 0 | CD87: =BT87*CC87 -> 0 | CE87: 1 | CF87: =$BT$72*CE87 -> 166 | CG87: 0 | CH87: =$BT$72*CG87 -> 0 | CI87: 1 | CJ87: =$BT$72*CI87 -> 166 | CK87: 0 | CL87: =$BT$72*CK87 -> 0 | CY87: Anschlusshöhe | DB87: mm | DC87: =DC91+DC93+DC95+DC96+DC97+DC94 -> 564 | DE87: =DE91+DE93+DE95+DE96+DE97+DE94 -> 769 | DG87: =DG91+DG93+DG95+DG96+DG97+DG94 -> 1019 | DI87: =DI91+DI93+DI95+DI96+DI97+DI94 -> 1224 | DK87: =DK91+DK93+DK95+DK96+DK97+DK94 -> 1519 | DM87: =DM91+DM93+DM95+DM96+DM97+DM94 -> 1724 | DO87: =DO91+DO93+DO95+DO96+DO97+DO94 -> 1974
AO88: N | AP88: N | BS88: 133026630 | BT88: 666 | BU88: 0 | BV88: =BT88*BU88 -> 0 | BW88: 0 | BX88: =BT88*BW88 -> 0 | BY88: 0 | BZ88: =BT88*BY88 -> 0 | CA88: 0 | CB88: =BT88*CA88 -> 0 | CC88: 1 | CD88: =BT88*CC88 -> 666 | CE88: 1 | CF88: =$BT$73*CE88 -> 666 | CG88: 1 | CH88: =$BT$73*CG88 -> 666 | CI88: 1 | CJ88: =$BT$73*CI88 -> 666 | CK88: 2 | CL88: =$BT$73*CK88 -> 1332 | CY88: (=vom 1.Rohr bis mitte Anschluss) | DA88: Achsmaße
T89: ="ABSOLUT"&V89 -> ABSOLUT14TL14 | U89: ABSOLUTTL | V89: 14TL14 | W89: Ja | X89: Schiedel ABSOLUT, ABS | Y89: Zweischaliges Kaminsystem | Z89: Ja | AA89: Compound-Mantelstein mit integrierter Wärmedämmung | AB89: und keramischem Profil-Innenrohr | AC89: J | AD89: 14 | AE89: 14 | AF89: Ja | AI89: 36/83 cm | AJ89: =IF($B$193<11.66,0,ROUNDUP((($B$193-11.33)/4)*2,0)) -> 0 | AK89: Ja | AL89: ="Typ Absolut " &V89 -> Typ Absolut 14TL14 | AM89: =X89&" "& V89 -> Schiedel ABSOLUT, ABS 14TL14 | AN89: =IF($C$74<=400,$C$60,IF($C$74<=2500,$C$61,IF($C$74<=5000,$C$62,$C$63))) -> 62 | AO89: N | AP89: N | BS89: 133023330 | BT89: 331 | BU89: 0 | BV89: =BT89*BU89 -> 0 | BW89: 0 | BX89: =BT89*BW89 -> 0 | BY89: 1 | BZ89: =BT89*BY89 -> 331 | CA89: 1 | CB89: =BT89*CA89 -> 331 | CC89: 0 | CD89: =BT89*CC89 -> 0 | CE89: 0 | CF89: =$BT$74*CE89 -> 0 | CG89: 1 | CH89: =$BT$74*CG89 -> 331 | CI89: 1 | CJ89: =$BT$74*CI89 -> 331 | CK89: 0 | CL89: =$BT$74*CK89 -> 0 | CY89: T-Stück 85° | DA89: 240
T90: ="ABSOLUT"&V90 -> ABSOLUT16TL16 | U90: ABSOLUTTL | V90: 16TL16 | W90: Ja | X90: Schiedel ABSOLUT, ABS | Y90: Zweischaliges Kaminsystem | Z90: Ja | AA90: Compound-Mantelstein mit integrierter Wärmedämmung | AB90: und keramischem Profil-Innenrohr | AC90: J | AD90: 16 | AE90: 16 | AF90: Ja | AI90: 36/83 cm | AJ90: =IF($B$193<11.66,0,ROUNDUP((($B$193-11.33)/4)*2,0)) -> 0 | AK90: Ja | AL90: ="Typ Absolut " &V90 -> Typ Absolut 16TL16 | AM90: =X90&" "& V90 -> Schiedel ABSOLUT, ABS 16TL16 | AN90: =IF($C$74<=400,$C$60,IF($C$74<=2500,$C$61,IF($C$74<=5000,$C$62,$C$63))) -> 62 | AO90: N | AP90: N | BR90: Wandmontage - Höhe | BS90: 44 | CY90: T-Stück 90° | DA90: 209
T91: ="ABSOLUT"&V91 -> ABSOLUT18TL18 | U91: ABSOLUTTL | V91: 18TL18 | W91: Ja | X91: Schiedel ABSOLUT, ABS | Y91: Zweischaliges Kaminsystem | Z91: Ja | AA91: Compound-Mantelstein mit integrierter Wärmedämmung | AB91: und keramischem Profil-Innenrohr | AC91: J | AD91: 18 | AE91: 18 | AF91: Ja | AI91: 36/83 cm | AJ91: =IF($B$193<11.66,0,ROUNDUP((($B$193-11.33)/4)*2,0)) -> 0 | AK91: Ja | AL91: ="Typ Absolut " &V91 -> Typ Absolut 18TL18 | AM91: =X91&" "& V91 -> Schiedel ABSOLUT, ABS 18TL18 | AN91: =IF($C$74<=400,$C$60,IF($C$74<=2500,$C$61,IF($C$74<=5000,$C$62,$C$63))) -> 62 | AO91: N | AP91: N | CY91: T-Stück-mitte RA 45° | DA91: 393 | DC91: =IF($C$17="90°",$DA90,IF($C$17="85°",$DA89,$DA91)) -> 209 | DE91: =IF($C$17="90°",$DA90,IF($C$17="85°",$DA89,$DA91)) -> 209 | DG91: =IF($C$17="90°",$DA90,IF($C$17="85°",$DA89,$DA91)) -> 209 | DI91: =IF($C$17="90°",$DA90,IF($C$17="85°",$DA89,$DA91)) -> 209 | DK91: =IF($C$17="90°",$DA90,IF($C$17="85°",$DA89,$DA91)) -> 209 | DM91: =IF($C$17="90°",$DA90,IF($C$17="85°",$DA89,$DA91)) -> 209 | DO91: =IF($C$17="90°",$DA90,IF($C$17="85°",$DA89,$DA91)) -> 209
T92: ="ABSOLUT"&V92 -> ABSOLUT20TL20 | U92: ABSOLUTTL | V92: 20TL20 | W92: Ja | X92: Schiedel ABSOLUT, ABS | Y92: Zweischaliges Kaminsystem | Z92: Ja | AA92: Compound-Mantelstein mit integrierter Wärmedämmung | AB92: und keramischem Profil-Innenrohr | AC92: J | AD92: 20 | AE92: 20 | AF92: Ja | AI92: 36/83 cm | AJ92: =IF($B$193<11.66,0,ROUNDUP((($B$193-11.33)/4)*2,0)) -> 0 | AK92: Ja | AL92: ="Typ Absolut " &V92 -> Typ Absolut 20TL20 | AM92: =X92&" "& V92 -> Schiedel ABSOLUT, ABS 20TL20 | AN92: =IF($C$74<=400,$C$60,IF($C$74<=2500,$C$61,IF($C$74<=5000,$C$62,$C$63))) -> 62 | AO92: N | AP92: N | BR92: Kerastar 400 | BS92: Gesamthöhe | BU92: m | BV92: =ROUND(BV93/1000,2) -> 1.36 | BX92: =ROUND(BX93/1000,2) -> 1.52 | BZ92: =ROUND(BZ93/1000,2) -> 1.69 | CB92: =ROUND(CB93/1000,2) -> 1.85 | CD92: =ROUND(CD93/1000,2) -> 2.02 | CF92: =ROUND(CF93/1000,2) -> 2.19 | CH92: =ROUND(CH93/1000,2) -> 2.35 | CJ92: =ROUND(CJ93/1000,2) -> 2.52 | CL92: =ROUND(CL93/1000,2) -> 2.69 | CZ92: rund | DA92: eckig
BU93: mm | BV93: =BV99+BV100+BV101+BV102+BV103+BV104 -> 1356 | BX93: =BX99+BX100+BX101+BX102+BX103+BX104 -> 1522 | BZ93: =BZ99+BZ100+BZ101+BZ102+BZ103+BZ104 -> 1687 | CB93: =CB99+CB100+CB101+CB102+CB103+CB104 -> 1853 | CD93: =CD99+CD100+CD101+CD102+CD103+CD104 -> 2022 | CF93: =CF99+CF100+CF101+CF102+CF103+CF104 -> 2188 | CH93: =CH99+CH100+CH101+CH102+CH103+CH104 -> 2353 | CJ93: =CJ99+CJ100+CJ101+CJ102+CJ103+CJ104 -> 2519 | CL93: =CL99+CL100+CL101+CL102+CL103+CL104 -> 2688 | CY93: Inspektionselement | CZ93: 355 | DA93: gibt es nicht | DC93: =$CZ93 -> 355 | DE93: =$CZ93 -> 355 | DG93: =$CZ93 -> 355 | DI93: =$CZ93 -> 355 | DK93: =$CZ93 -> 355 | DM93: =$CZ93 -> 355 | DO93: =$CZ93 -> 355
CY94: Sockel | CZ94: Bodenmont. | DA94: =IF($B$47=1,1045,IF($B$47=3,300,IF($B$47=4,95,0))) -> 0 | DC94: =$DA94 -> 0 | DE94: =$DA94 -> 0 | DG94: =$DA94 -> 0 | DI94: =$DA94 -> 0 | DK94: =$DA94 -> 0 | DM94: =$DA94 -> 0 | DO94: =$DA94 -> 0
BR95: Anschlusshöhe | CY95: Rohrelement 955 | DA95: 955 | DB95: 0 | DC95: =$DA95*DB95 -> 0 | DD95: 0 | DE95: =$DA95*DD95 -> 0 | DF95: 0 | DG95: =$DA95*DF95 -> 0 | DH95: 0 | DI95: =$DA95*DH95 -> 0 | DJ95: 1 | DK95: =$DA95*DJ95 -> 955 | DL95: 1 | DM95: =$DA95*DL95 -> 955 | DN95: 1 | DO95: =$DA95*DN95 -> 955
BR96: (=vom UK.Sockel/OK WK bis mitte Anschluss) | CY96: Rohrelement 455 | DA96: 455 | DB96: 0 | DC96: =$DA96*DB96 -> 0 | DD96: 0 | DE96: =$DA96*DD96 -> 0 | DF96: 1 | DG96: =$DA96*DF96 -> 455 | DH96: 1 | DI96: =$DA96*DH96 -> 455 | DJ96: 0 | DK96: =$DA96*DJ96 -> 0 | DL96: 0 | DM96: =$DA96*DL96 -> 0 | DN96: 1 | DO96: =$DA96*DN96 -> 455
CY97: Rohrelement 205 | DA97: 205 | DB97: 0 | DC97: =$DA97*DB97 -> 0 | DD97: 1 | DE97: =$DA97*DD97 -> 205 | DF97: 0 | DG97: =$DA97*DF97 -> 0 | DH97: 1 | DI97: =$DA97*DH97 -> 205 | DJ97: 0 | DK97: =$DA97*DJ97 -> 0 | DL97: 1 | DM97: =$DA97*DL97 -> 205 | DN97: 0 | DO97: =$DA97*DN97 -> 0
T98: 1 | U98: =INDEX(T99:T101,T98,1) -> ProgasFlex 75 | BR98: T-Stück mitte RA | BS98: 90° | BT98: 45°
T99: ProgasFlex 75 | U99: ProgasFlex | V99: 75 | X99: Schiedel ProGasFlex Ø | Y99: Flexibles Abgasleitungssystem aus hochwertigem PVDF | AA99: für Öl- u. Gasfeuerstätten bis 160° C Abgastemperatur | AL99: ="Typ PGF " &V99 -> Typ PGF 75 | AM99: =X99&" "& V99&" mm" -> Schiedel ProGasFlex Ø 75 mm | AN99: =$C$64 -> 62 | BR99: T-Stück-mitte RA | BS99: 340 | BT99: 147 | BU99: =IF($B$413=2,$BT99,$BS99) -> 340 | BV99: =$BU99 -> 340 | BX99: =$BU99 -> 340 | BZ99: =$BU99 -> 340 | CB99: =$BU99 -> 340 | CD99: =$BU99 -> 340 | CF99: =$BU99 -> 340 | CH99: =$BU99 -> 340 | CJ99: =$BU99 -> 340 | CL99: =$BU99 -> 340
S100: gibt es nicht mehr | T100: ProgasFlex 90 | U100: ProgasFlex | V100: 90 | X100: Schiedel ProGasFlex Ø | Y100: Flexibles Abgasleitungssystem aus hochwertigem PVDF | AA100: für Öl- u. Gasfeuerstätten bis 160° C Abgastemperatur | AL100: ="Typ PGF " &V100 -> Typ PGF 90 | AM100: =X100&" "& V100&" mm" -> Schiedel ProGasFlex Ø 90 mm | AN100: =$C$64 -> 62 | BR100: Inspektionselement | BV100: 666 | BX100: 666 | BZ100: 666 | CB100: 666 | CD100: 666 | CF100: 666 | CH100: 666 | CJ100: 666 | CL100: 666 | CY100: ICS 250 | CZ100: Gesamthöhe | DB100: m | DC100: =ROUND(DC101/1000,2) -> 0.66 | DE100: =ROUND(DE101/1000,2) -> 0.87 | DG100: =ROUND(DG101/1000,2) -> 1.12 | DI100: =ROUND(DI101/1000,2) -> 1.32 | DK100: =ROUND(DK101/1000,2) -> 1.62 | DM100: =ROUND(DM101/1000,2) -> 1.82 | DO100: =ROUND(DO101/1000,2) -> 2.07
S101: gibt es nicht mehr | T101: ProgasFlex 110 | U101: ProgasFlex | V101: 110 | X101: Schiedel ProGasFlex Ø | Y101: Flexibles Abgasleitungssystem aus hochwertigem PVDF | AA101: für Öl- u. Gasfeuerstätten bis 160° C Abgastemperatur | AL101: ="Typ PGF " &V101 -> Typ PGF 110 | AM101: =X101&" "& V101&" mm" -> Schiedel ProGasFlex Ø 110 mm | AN101: =$C$64 -> 62 | BR101: Sockel - Höhe | BS101: =IF($E$403=1,44,IF($E$403=2,350,IF($E$403=3,369,IF($E$403=4,190,0)))) -> 350 | BV101: =$BS101 -> 350 | BX101: =$BS101 -> 350 | BZ101: =$BS101 -> 350 | CB101: =$BS101 -> 350 | CD101: =$BS101 -> 350 | CF101: =$BS101 -> 350 | CH101: =$BS101 -> 350 | CJ101: =$BS101 -> 350 | CL101: =$BS101 -> 350 | CY101: Anschlusshöhe | DB101: mm | DC101: =DC105+DC107+DC109+DC110+DC111+DC108 -> 664 | DE101: =DE105+DE107+DE109+DE110+DE111+DE108 -> 869 | DG101: =DG105+DG107+DG109+DG110+DG111+DG108 -> 1119 | DI101: =DI105+DI107+DI109+DI110+DI111+DI108 -> 1324 | DK101: =DK105+DK107+DK109+DK110+DK111+DK108 -> 1619 | DM101: =DM105+DM107+DM109+DM110+DM111+DM108 -> 1824 | DO101: =DO105+DO107+DO109+DO110+DO111+DO108 -> 2074
BS102: 133021640 | BT102: 166 | BU102: 0 | BV102: =BT102*BU102 -> 0 | BW102: 1 | BX102: =BT102*BW102 -> 166 | BY102: 0 | BZ102: =BT102*BY102 -> 0 | CA102: 1 | CB102: =BT102*CA102 -> 166 | CC102: 0 | CD102: =BT102*CC102 -> 0 | CE102: 1 | CF102: =$BT$72*CE102 -> 166 | CG102: 0 | CH102: =$BT$72*CG102 -> 0 | CI102: 1 | CJ102: =$BT$72*CI102 -> 166 | CK102: 0 | CL102: =$BT$72*CK102 -> 0 | CY102: (=vom 1.Rohr bis mitte Anschluss) | DA102: Achsmaße
BS103: 133026640 | BT103: 666 | BU103: 0 | BV103: =BT103*BU103 -> 0 | BW103: 0 | BX103: =BT103*BW103 -> 0 | BY103: 0 | BZ103: =BT103*BY103 -> 0 | CA103: 0 | CB103: =BT103*CA103 -> 0 | CC103: 1 | CD103: =BT103*CC103 -> 666 | CE103: 1 | CF103: =$BT$73*CE103 -> 666 | CG103: 1 | CH103: =$BT$73*CG103 -> 666 | CI103: 1 | CJ103: =$BT$73*CI103 -> 666 | CK103: 2 | CL103: =$BT$73*CK103 -> 1332 | CY103: T-Stück 85° | DA103: 235
B104: 1 | C104: =INDEX(Daten!B106:B107,B104,1) -> Unterdruck | E104: 3 | F104: =INDEX(Daten!E106:E110,E104,1) -> Festbrennstoff | G104: 3 | H104: =INDEX(G106:G109,G104,1) -> Metall | BS104: 133023340 | BT104: 331 | BU104: 0 | BV104: =BT104*BU104 -> 0 | BW104: 0 | BX104: =BT104*BW104 -> 0 | BY104: 1 | BZ104: =BT104*BY104 -> 331 | CA104: 1 | CB104: =BT104*CA104 -> 331 | CC104: 0 | CD104: =BT104*CC104 -> 0 | CE104: 0 | CF104: =$BT$74*CE104 -> 0 | CG104: 1 | CH104: =$BT$74*CG104 -> 331 | CI104: 1 | CJ104: =$BT$74*CI104 -> 331 | CK104: 0 | CL104: =$BT$74*CK104 -> 0 | CY104: T-Stück 90° | DA104: 209
B105: Ausführung Keranova | E105: Brennstoffe für Keranova: | G105: Schachtabdeckung ProGasPP | T105: 1 | U105: =INDEX(T107:T145,T105,1) -> ICS80 | V105: =INDEX(V107:V145,T105,1) -> 80 | W105: =INDEX(W107:W145,T105,1) -> 130 mm | AD105: =INDEX(AD107:AD145,$T105,1) -> max. Abstand 100 mm | AE105: =INDEX(AE107:AE145,$T105,1) -> max. Abstand 250 mm | AF105: =INDEX(AF107:AF145,$T105,1) -> max. Abstand 440 mm | AG105: =INDEX(AG107:AG145,$T105,1) -> max. Abstand 500 mm | AH105: =INDEX(AH107:AH145,$T105,1) -> max. Abstand 700 mm | BR105: Wandmontage - Höhe | BS105: 44 | CY105: T-Stück-mitte RA 45° | DA105: 413 | DC105: =IF($C$17="90°",$DA104,IF($C$17="85°",$DA103,$DA105)) -> 209 | DE105: =IF($C$17="90°",$DA104,IF($C$17="85°",$DA103,$DA105)) -> 209 | DG105: =IF($C$17="90°",$DA104,IF($C$17="85°",$DA103,$DA105)) -> 209 | DI105: =IF($C$17="90°",$DA104,IF($C$17="85°",$DA103,$DA105)) -> 209 | DK105: =IF($C$17="90°",$DA104,IF($C$17="85°",$DA103,$DA105)) -> 209 | DM105: =IF($C$17="90°",$DA104,IF($C$17="85°",$DA103,$DA105)) -> 209 | DO105: =IF($C$17="90°",$DA104,IF($C$17="85°",$DA103,$DA105)) -> 209
B106: =Vokabel!$A$220 -> Unterdruck | E106: =Vokabel!$A$208 -> Gas | G106: bitte auswählen! | H106: =V266 -> 60 | AD106: Wandhalter klein | AE106: Wandhalter Typ L1 | AF106: Wandhalter Typ L2 | AG106: Wandhalter Typ L3 | AH106: Wandhalter Typ L4 | CZ106: rund | DA106: eckig
B107: =IF($E$104=3,Vokabel!$A$220,IF($E$104=4,Vokabel!$A$220,Vokabel!$A$221)) -> Unterdruck | E107: =Vokabel!$A$209 -> Öl | G107: =IF(H106>110,"","Flex") -> Flex | T107: =U107&V107 -> ICS80 | U107: ICS | V107: 80 | W107: 130 mm | X107: Schiedel ICS Ø | Y107: Doppelwandiges Edelstahl-Kaminsystem | AA107: in Elementbauweise mit Steckmuffenverbindung | AB107: 25 mm Wärmedämmung und 0,6 mm Wandstärke | AD107: max. Abstand 100 mm | AE107: max. Abstand 250 mm | AF107: max. Abstand 440 mm | AG107: max. Abstand 500 mm | AH107: max. Abstand 700 mm | AL107: ="Typ ICS " &V107 -> Typ ICS 80 | AM107: =X107&" "& V107&" mm" -> Schiedel ICS Ø 80 mm | AN107: =$C$64 -> 62 | CY107: Inspektionselement | CZ107: 455 | DA107: gibt es nicht | DC107: =$CZ107 -> 455 | DE107: =$CZ107 -> 455 | DG107: =$CZ107 -> 455 | DI107: =$CZ107 -> 455 | DK107: =$CZ107 -> 455 | DM107: =$CZ107 -> 455 | DO107: =$CZ107 -> 455
E108: =Vokabel!$A$210 -> Festbrennstoff | G108: =IF($W$265=2,"","Metall") -> Metall | T108: ICS100 | U108: ICS | V108: 100 | W108: 150 mm | X108: Schiedel ICS Ø | Y108: Doppelwandiges Edelstahl-Kaminsystem | AA108: in Elementbauweise mit Steckmuffenverbindung | AB108: 25 mm Wärmedämmung und 0,6 mm Wandstärke | AD108: max. Abstand 100 mm | AE108: max. Abstand 250 mm | AF108: max. Abstand 440 mm | AG108: max. Abstand 500 mm | AH108: max. Abstand 700 mm | AL108: Typ ICS 100 | AM108: Schiedel ICS Ø 100 mm | AN108: 62 | BR108: Anschlusshöhen mitte Anschluss | CY108: Sockel | CZ108: Bodenmont. | DA108: =IF($B$47=1,1045,IF($B$47=3,300,IF($B$47=4,95,0))) -> 0 | DC108: =$DA108 -> 0 | DE108: =$DA108 -> 0 | DG108: =$DA108 -> 0 | DI108: =$DA108 -> 0 | DK108: =$DA108 -> 0 | DM108: =$DA108 -> 0 | DO108: =$DA108 -> 0
E109: =Vokabel!$A$211 -> Holz-Pellets | G109: =IF(H106>110,"",IF($W$265=2,"","Kunststoff")) -> Kunststoff | T109: ICS130 | U109: ICS | V109: 130 | W109: 180 mm | X109: Schiedel ICS Ø | Y109: Doppelwandiges Edelstahl-Kaminsystem | AA109: in Elementbauweise mit Steckmuffenverbindung | AB109: 25 mm Wärmedämmung und 0,6 mm Wandstärke | AD109: max. Abstand 100 mm | AE109: max. Abstand 250 mm | AF109: max. Abstand 440 mm | AG109: max. Abstand 500 mm | AH109: max. Abstand 700 mm | AL109: Typ ICS 130 | AM109: Schiedel ICS Ø 130 mm | AN109: 62 | BR109: =BS109 -> noch nicht bekannt | BS109: =INDEX($BR$111:$BR$120,$BR$110,1) -> noch nicht bekannt | CY109: Rohrelement 955 | DA109: 955 | DB109: 0 | DC109: =$DA109*DB109 -> 0 | DD109: 0 | DE109: =$DA109*DD109 -> 0 | DF109: 0 | DG109: =$DA109*DF109 -> 0 | DH109: 0 | DI109: =$DA109*DH109 -> 0 | DJ109: 1 | DK109: =$DA109*DJ109 -> 955 | DL109: 1 | DM109: =$DA109*DL109 -> 955 | DN109: 1 | DO109: =$DA109*DN109 -> 955
E110: nicht bekannt | T110: ICS150 | U110: ICS | V110: 150 | W110: 200 mm | X110: Schiedel ICS Ø | Y110: Doppelwandiges Edelstahl-Kaminsystem | AA110: in Elementbauweise mit Steckmuffenverbindung | AB110: 25 mm Wärmedämmung und 0,6 mm Wandstärke | AD110: max. Abstand 100 mm | AE110: max. Abstand 250 mm | AF110: max. Abstand 440 mm | AG110: max. Abstand 500 mm | AH110: max. Abstand 700 mm | AL110: Typ ICS 150 | AM110: Schiedel ICS Ø 150 mm | AN110: 62 | BR110: 10 | BS110: =Daten!$U$5 -> KERASTAR180 | CY110: Rohrelement 455 | DA110: 455 | DB110: 0 | DC110: =$DA110*DB110 -> 0 | DD110: 0 | DE110: =$DA110*DD110 -> 0 | DF110: 1 | DG110: =$DA110*DF110 -> 455 | DH110: 1 | DI110: =$DA110*DH110 -> 455 | DJ110: 0 | DK110: =$DA110*DJ110 -> 0 | DL110: 0 | DM110: =$DA110*DL110 -> 0 | DN110: 1 | DO110: =$DA110*DN110 -> 455
T111: ICS180 | U111: ICS | V111: 180 | W111: 230 mm | X111: Schiedel ICS Ø | Y111: Doppelwandiges Edelstahl-Kaminsystem | AA111: in Elementbauweise mit Steckmuffenverbindung | AB111: 25 mm Wärmedämmung und 0,6 mm Wandstärke | AD111: max. Abstand 100 mm | AE111: max. Abstand 250 mm | AF111: max. Abstand 440 mm | AG111: max. Abstand 500 mm | AH111: max. Abstand 700 mm | AL111: Typ ICS 180 | AM111: Schiedel ICS Ø 180 mm | AN111: 62 | BR111: =IF($BS$110="KERASTAR140",$BV$2,IF($BS$110="KERASTAR160",$BV$17,IF($BS$110="KERASTAR180",$BV$32,IF($BS$110="KERASTAR200",$BV$47,IF($BS$110="KERASTAR250",$BV$62,IF($BS$110="KERASTAR300",$BV$77,IF($BS$110="KERASTAR400",$BV$92,""))))))) -> 1.36 | CY111: Rohrelement 205 | DA111: 205 | DB111: 0 | DC111: =$DA111*DB111 -> 0 | DD111: 1 | DE111: =$DA111*DD111 -> 205 | DF111: 0 | DG111: =$DA111*DF111 -> 0 | DH111: 1 | DI111: =$DA111*DH111 -> 205 | DJ111: 0 | DK111: =$DA111*DJ111 -> 0 | DL111: 1 | DM111: =$DA111*DL111 -> 205 | DN111: 0 | DO111: =$DA111*DN111 -> 0
T112: ICS200 | U112: ICS | V112: 200 | W112: 250 mm | X112: Schiedel ICS Ø | Y112: Doppelwandiges Edelstahl-Kaminsystem | AA112: in Elementbauweise mit Steckmuffenverbindung | AB112: 25 mm Wärmedämmung und 0,6 mm Wandstärke | AD112: max. Abstand 114 mm | AE112: max. Abstand 250 mm | AF112: max. Abstand 440 mm | AG112: max. Abstand 500 mm | AH112: max. Abstand 700 mm | AL112: Typ ICS 200 | AM112: Schiedel ICS Ø 200 mm | AN112: 62 | BR112: =IF($BS$110="KERASTAR140",$BX$2,IF($BS$110="KERASTAR160",$BX$17,IF($BS$110="KERASTAR180",$BX$32,IF($BS$110="KERASTAR200",$BX$47,IF($BS$110="KERASTAR250",$BX$62,IF($BS$110="KERASTAR300",$BX$77,IF($BS$110="KERASTAR400",$BX$92,""))))))) -> 1.52
T113: ICS230 | U113: ICS | V113: 230 | W113: 280 mm | X113: Schiedel ICS Ø | Y113: Doppelwandiges Edelstahl-Kaminsystem | AA113: in Elementbauweise mit Steckmuffenverbindung | AB113: 25 mm Wärmedämmung und 0,6 mm Wandstärke | AD113: max. Abstand 114 mm | AE113: max. Abstand 250 mm | AF113: max. Abstand 440 mm | AG113: max. Abstand 500 mm | AH113: max. Abstand 700 mm | AL113: Typ ICS 230 | AM113: Schiedel ICS Ø 230 mm | AN113: 62 | BR113: =IF($BS$110="KERASTAR140",$BZ$2,IF($BS$110="KERASTAR160",$BZ$17,IF($BS$110="KERASTAR180",$BZ$32,IF($BS$110="KERASTAR200",$BZ$47,IF($BS$110="KERASTAR250",$BZ$62,IF($BS$110="KERASTAR300",$BZ$77,IF($BS$110="KERASTAR400",$BZ$92,""))))))) -> 1.69
T114: =U114&V114 -> ICS250 | U114: ICS | V114: 250 | W114: 300 mm | X114: Schiedel ICS Ø | Y114: Doppelwandiges Edelstahl-Kaminsystem | AA114: in Elementbauweise mit Steckmuffenverbindung | AB114: 25 mm Wärmedämmung und 0,6 mm Wandstärke | AD114: max. Abstand 114 mm | AE114: max. Abstand 220 mm | AF114: max. Abstand 370 mm | AG114: max. Abstand 470 mm | AH114: max. Abstand 670 mm | AL114: ="Typ ICS " &V114 -> Typ ICS 250 | AM114: =X114&" "& V114&" mm" -> Schiedel ICS Ø 250 mm | AN114: 62 | BR114: =IF($BS$110="KERASTAR140",$CB$2,IF($BS$110="KERASTAR160",$CB$17,IF($BS$110="KERASTAR180",$CB$32,IF($BS$110="KERASTAR200",$CB$47,IF($BS$110="KERASTAR250",$CB$62,IF($BS$110="KERASTAR300",$CB$77,IF($BS$110="KERASTAR400",$CB$92,""))))))) -> 1.85 | CY114: ICS300 | CZ114: Gesamthöhe | DB114: m | DC114: =ROUND(DC115/1000,2) -> 0.71 | DE114: =ROUND(DE115/1000,2) -> 0.91 | DG114: =ROUND(DG115/1000,2) -> 1.16 | DI114: =ROUND(DI115/1000,2) -> 1.37 | DK114: =ROUND(DK115/1000,2) -> 1.66 | DM114: =ROUND(DM115/1000,2) -> 1.87 | DO114: =ROUND(DO115/1000,2) -> 2.12
B115: 1 | C115: =INDEX(Daten!B117:B118,B115,1) -> 90° | E115: 2 | F115: =INDEX(Daten!E117:E120,E115,1) -> 1 | T115: ICS300 | U115: ICS | V115: 300 | W115: 350 mm | X115: Schiedel ICS Ø | Y115: Doppelwandiges Edelstahl-Kaminsystem | AA115: in Elementbauweise mit Steckmuffenverbindung | AB115: 25 mm Wärmedämmung und 0,6 mm Wandstärke | AD115: max. Abstand 114 mm | AE115: max. Abstand 220 mm | AF115: max. Abstand 370 mm | AG115: max. Abstand 470 mm | AH115: max. Abstand 670 mm | AL115: Typ ICS 300 | AM115: Schiedel ICS Ø 300 mm | AN115: 62 | BR115: =IF($BS$110="KERASTAR140",$CD$2,IF($BS$110="KERASTAR160",$CD$17,IF($BS$110="KERASTAR180",$CD$32,IF($BS$110="KERASTAR200",$CD$47,IF($BS$110="KERASTAR250",$CD$62,IF($BS$110="KERASTAR300",$CD$77,IF($BS$110="KERASTAR400",$CD$92,""))))))) -> 2.02 | CY115: Anschlusshöhe | DB115: mm | DC115: =DC119+DC121+DC123+DC124+DC125+DC122 -> 707 | DE115: =DE119+DE121+DE123+DE124+DE125+DE122 -> 912 | DG115: =DG119+DG121+DG123+DG124+DG125+DG122 -> 1162 | DI115: =DI119+DI121+DI123+DI124+DI125+DI122 -> 1367 | DK115: =DK119+DK121+DK123+DK124+DK125+DK122 -> 1662 | DM115: =DM119+DM121+DM123+DM124+DM125+DM122 -> 1867 | DO115: =DO119+DO121+DO123+DO124+DO125+DO122 -> 2117
B116: 1. Rauchrohranschl. Grad Keranova | E116: Rauchrohranschl. Für Keranova | T116: ICS350 | U116: ICS | V116: 350 | W116: 400 mm | X116: Schiedel ICS Ø | Y116: Doppelwandiges Edelstahl-Kaminsystem | AA116: in Elementbauweise mit Steckmuffenverbindung | AB116: 25 mm Wärmedämmung und 0,6 mm Wandstärke | AD116: max. Abstand 122 mm | AE116: max. Abstand 160 mm | AF116: max. Abstand 310 mm | AG116: max. Abstand 410 mm | AH116: max. Abstand 610 mm | AL116: Typ ICS 350 | AM116: Schiedel ICS Ø 350 mm | AN116: 62 | BR116: =IF($BS$110="KERASTAR140",$CF$2,IF($BS$110="KERASTAR160",$CF$17,IF($BS$110="KERASTAR180",$CF$32,IF($BS$110="KERASTAR200",$CF$47,IF($BS$110="KERASTAR250",$CF$62,IF($BS$110="KERASTAR300",$CF$77,IF($BS$110="KERASTAR400",$CF$92,""))))))) -> 2.19 | CY116: (=vom 1.Rohr bis mitte Anschluss) | DA116: Achsmaße
B117: 90° | E117: =Vokabel!$A$125 -> Nein | T117: ICS400 | U117: ICS | V117: 400 | W117: 450 mm | X117: Schiedel ICS Ø | Y117: Doppelwandiges Edelstahl-Kaminsystem | AA117: in Elementbauweise mit Steckmuffenverbindung | AB117: 25 mm Wärmedämmung und 0,6 mm Wandstärke | AD117: max. Abstand 122 mm | AE117: max. Abstand 160 mm | AF117: max. Abstand 310 mm | AG117: max. Abstand 410 mm | AH117: max. Abstand 610 mm | AL117: Typ ICS 400 | AM117: Schiedel ICS Ø 400 mm | AN117: 62 | BR117: =IF($BS$110="KERASTAR140",$CH$2,IF($BS$110="KERASTAR160",$CH$17,IF($BS$110="KERASTAR180",$CH$32,IF($BS$110="KERASTAR200",$CH$47,IF($BS$110="KERASTAR250",$CH$62,IF($BS$110="KERASTAR300",$CH$77,IF($BS$110="KERASTAR400",$CH$92,""))))))) -> 2.35 | CY117: T-Stück 85° | DA117: 246
B118: 45° | E118: 1 | T118: ICS450 | U118: ICS | V118: 450 | W118: 500 mm | X118: Schiedel ICS Ø | Y118: Doppelwandiges Edelstahl-Kaminsystem | AA118: in Elementbauweise mit Steckmuffenverbindung | AB118: 25 mm Wärmedämmung und 0,6 mm Wandstärke | AD118: max. Abstand 122 mm | AE118: max. Abstand 160 mm | AF118: max. Abstand 310 mm | AG118: max. Abstand 410 mm | AH118: max. Abstand 610 mm | AL118: Typ ICS 450 | AM118: Schiedel ICS Ø 450 mm | AN118: 62 | BR118: =IF($BS$110="KERASTAR140",$CJ$2,IF($BS$110="KERASTAR160",$CJ$17,IF($BS$110="KERASTAR180",$CJ$32,IF($BS$110="KERASTAR200",$CJ$47,IF($BS$110="KERASTAR250",$CJ$62,IF($BS$110="KERASTAR300",$CJ$77,IF($BS$110="KERASTAR400",$CJ$92,""))))))) -> 2.52 | CY118: T-Stück 90° | DA118: 222
E119: 2 | T119: ICS500 | U119: ICS | V119: 500 | W119: 550 mm | X119: Schiedel ICS Ø | Y119: Doppelwandiges Edelstahl-Kaminsystem | AA119: in Elementbauweise mit Steckmuffenverbindung | AB119: 25 mm Wärmedämmung und 0,6 mm Wandstärke | AD119: max. Abstand 122 mm | AE119: max. Abstand 160 mm | AF119: max. Abstand 310 mm | AG119: max. Abstand 410 mm | AH119: max. Abstand 610 mm | AL119: Typ ICS 500 | AM119: Schiedel ICS Ø 500 mm | AN119: 62 | BR119: =IF($BS$110="KERASTAR140",$CL$2,IF($BS$110="KERASTAR160",$CL$17,IF($BS$110="KERASTAR180",$CL$32,IF($BS$110="KERASTAR200",$CL$47,IF($BS$110="KERASTAR250",$CL$62,IF($BS$110="KERASTAR300",$CL$77,IF($BS$110="KERASTAR400",$CL$92,""))))))) -> 2.69 | BX119: RA-Verlängerung | CY119: T-Stück-mitte RA 45° | DA119: 472 | DC119: =IF($C$17="90°",$DA118,IF($C$17="85°",$DA117,$DA119)) -> 222 | DE119: =IF($C$17="90°",$DA118,IF($C$17="85°",$DA117,$DA119)) -> 222 | DG119: =IF($C$17="90°",$DA118,IF($C$17="85°",$DA117,$DA119)) -> 222 | DI119: =IF($C$17="90°",$DA118,IF($C$17="85°",$DA117,$DA119)) -> 222 | DK119: =IF($C$17="90°",$DA118,IF($C$17="85°",$DA117,$DA119)) -> 222 | DM119: =IF($C$17="90°",$DA118,IF($C$17="85°",$DA117,$DA119)) -> 222 | DO119: =IF($C$17="90°",$DA118,IF($C$17="85°",$DA117,$DA119)) -> 222
E120: 3 | T120: ICS600 | U120: ICS | V120: 600 | W120: 650 mm | X120: Schiedel ICS Ø | Y120: Doppelwandiges Edelstahl-Kaminsystem | AA120: in Elementbauweise mit Steckmuffenverbindung | AB120: 25 mm Wärmedämmung und 0,6 mm Wandstärke | AD120: max. Abstand 122 mm | AE120: max. Abstand 160 mm | AF120: max. Abstand 310 mm | AG120: max. Abstand 410 mm | AH120: max. Abstand 610 mm | AL120: Typ ICS 600 | AM120: Schiedel ICS Ø 600 mm | AN120: 62 | BR120: =Vokabel!$A$408 -> noch nicht bekannt | BX120: Rohrbedarf bei Anschlußhöhe | BZ120: manuelle Nachjustierung (beim Rohr 330 oder 665) | CZ120: rund | DA120: eckig
T121: ICS700 | U121: ICS | V121: 700 | W121: 750 mm | X121: Schiedel ICS Ø | Y121: Doppelwandiges Edelstahl-Kaminsystem | AA121: in Elementbauweise mit Steckmuffenverbindung | AB121: 25 mm Wärmedämmung und 0,6 mm Wandstärke | AD121: max. Abstand 122 mm | AE121: max. Abstand 160 mm | AF121: max. Abstand 310 mm | AG121: max. Abstand 410 mm | AH121: max. Abstand 610 mm | AL121: Typ ICS 700 | AM121: Schiedel ICS Ø 700 mm | AN121: 62 | CY121: Inspektionselement | CZ121: 485 | DA121: gibt es nicht | DC121: =$CZ121 -> 485 | DE121: =$CZ121 -> 485 | DG121: =$CZ121 -> 485 | DI121: =$CZ121 -> 485 | DK121: =$CZ121 -> 485 | DM121: =$CZ121 -> 485 | DO121: =$CZ121 -> 485
B122: 2 | C122: =INDEX(B124:B126,B122,1) -> 1 | E122: 1 | F122: =INDEX(E124:E126,E122,1) -> Nein | CB122: A-NR. | CY122: Sockel | CZ122: Bodenmont. | DA122: =IF($B$47=1,1039,IF($B$47=3,300,IF($B$47=4,95,0))) -> 0 | DC122: =$DA122 -> 0 | DE122: =$DA122 -> 0 | DG122: =$DA122 -> 0 | DI122: =$DA122 -> 0 | DK122: =$DA122 -> 0 | DM122: =$DA122 -> 0 | DO122: =$DA122 -> 0
B123: Putzöffnungen für Keranova | E123: Doppelwandfutter bei Keranova | T123: =U123&V123 -> IC5-150 | U123: IC5- | V123: 150 | W123: 250 mm | X123: Schiedel IC5 Ø | Y123: Doppelwandiges Edelstahl-Kaminsystem | AA123: in Elementbauweise mit Steckmuffenverbindung | AB123: 50 mm Wärmedämmung und 0,6 mm Wandstärke | AD123: max. Abstand 114 mm | AE123: max. Abstand 250 mm | AF123: max. Abstand 440 mm | AG123: max. Abstand 500 mm | AH123: max. Abstand 700 mm | AL123: ="Typ IC5-" &V123 -> Typ IC5-150 | AM123: =X123&" "& V123&" mm" -> Schiedel IC5 Ø 150 mm | AN123: =$C$64 -> 62 | BR123: =$BS$110 -> KERASTAR180 | BS123: =IF(BR123="KERASTAR140",$CO$124,IF(BR123="KERASTAR160",$CO$125,IF(BR123="KERASTAR180",$CO$126,IF(BR123="KERASTAR200",$CO$127,IF(BR123="KERASTAR250",$CO$128,IF(BR123="KERASTAR300",$CO$129,IF(BR123="KERASTAR400",$CO$130,""))))))) -> 101448 | BT123: =$BR$111 -> 1.36 | BU123: =$BU$12 -> 0 | BX123: =IF($BR$110=10,0,VLOOKUP($BR$109,BT123:BU131,2,0)) -> 0 | BY123: =IF($B$421=2,1,0) -> 0 | BZ123: =Kerastar!$P$18 -> 0 | CB123: =BS123 -> 101448 | CC123: =SUM(BX123:BZ123) -> 0 | CO123: Neue Nr. | CP123: alte Nr. | CY123: Rohrelement 955 | DA123: 955 | DB123: 0 | DC123: =$DA123*DB123 -> 0 | DD123: 0 | DE123: =$DA123*DD123 -> 0 | DF123: 0 | DG123: =$DA123*DF123 -> 0 | DH123: 0 | DI123: =$DA123*DH123 -> 0 | DJ123: 1 | DK123: =$DA123*DJ123 -> 955 | DL123: 1 | DM123: =$DA123*DL123 -> 955 | DN123: 1 | DO123: =$DA123*DN123 -> 955
B124: =Vokabel!$A$125 -> Nein | E124: =Vokabel!$A$125 -> Nein | K124: Wandhalterverlängerungen für Kerastar - Tabelle für Textangebot | O124: Wandhalterverlängerungen für TecnoStar - Tabelle für Textangebot | T124: =U124&V124 -> IC5-180 | U124: IC5- | V124: 180 | W124: 280 mm | X124: Schiedel IC5 Ø | Y124: Doppelwandiges Edelstahl-Kaminsystem | AA124: in Elementbauweise mit Steckmuffenverbindung | AB124: 50 mm Wärmedämmung und 0,6 mm Wandstärke | AD124: max. Abstand 114 mm | AE124: max. Abstand 250 mm | AF124: max. Abstand 440 mm | AG124: max. Abstand 500 mm | AH124: max. Abstand 700 mm | AL124: ="Typ IC5-" &V124 -> Typ IC5-180 | AM124: =X124&" "& V124&" mm" -> Schiedel IC5 Ø 180 mm | AN124: =$C$64 -> 62 | BR124: KERASTAR180 | BS124: =$BS$123 -> 101448 | BT124: =$BR$112 -> 1.52 | BU124: =$BW$12 -> 1 | BW124: Meter | BY124: =BY123*166/1000 -> 0 | CM124: Kerastar | CN124: 140 | CO124: 101446 | CP124: 133021614 | CY124: Rohrelement 455 | DA124: 455 | DB124: 0 | DC124: =$DA124*DB124 -> 0 | DD124: 0 | DE124: =$DA124*DD124 -> 0 | DF124: 1 | DG124: =$DA124*DF124 -> 455 | DH124: 1 | DI124: =$DA124*DH124 -> 455 | DJ124: 0 | DK124: =$DA124*DJ124 -> 0 | DL124: 0 | DM124: =$DA124*DL124 -> 0 | DN124: 1 | DO124: =$DA124*DN124 -> 455
B125: 1 | E125: =IF($U$18="Keranova120",Vokabel!$A$409,IF($U$18="Keranova140",Vokabel!$A$410,IF($U$18="Keranova160",Vokabel!$A$411,IF($U$18="Keranova180",Vokabel!$A$412,IF($U$18="Keranova200",Vokabel!$A$413,IF($U$18="Keranova250",Vokabel!$A$414,"")))))) -> Doppelwandfutter Ø 150 | K125: Abstand: | L125: Typ Wandhalterverlängerung | M125: Typ Wandk. | O125: Abstand: | P125: Typ Wandhalterverlängerung | Q125: Typ Wandk. | T125: =U125&V125 -> IC5-200 | U125: IC5- | V125: 200 | W125: 300 mm | X125: Schiedel IC5 Ø | Y125: Doppelwandiges Edelstahl-Kaminsystem | AA125: in Elementbauweise mit Steckmuffenverbindung | AB125: 50 mm Wärmedämmung und 0,6 mm Wandstärke | AD125: max. Abstand 114 mm | AE125: max. Abstand 220 mm | AF125: max. Abstand 370 mm | AG125: max. Abstand 470 mm | AH125: max. Abstand 670 mm | AL125: ="Typ IC5-" &V125 -> Typ IC5-200 | AM125: =X125&" "& V125&" mm" -> Schiedel IC5 Ø 200 mm | AN125: =$C$64 -> 62 | BR125: KERASTAR180 | BS125: 101448 | BT125: =$BR$113 -> 1.69 | BU125: =$BY$12 -> 0 | CM125: Kerastar | CN125: 160 | CO125: 101447 | CP125: 133021616 | CY125: Rohrelement 205 | DA125: 205 | DB125: 0 | DC125: =$DA125*DB125 -> 0 | DD125: 1 | DE125: =$DA125*DD125 -> 205 | DF125: 0 | DG125: =$DA125*DF125 -> 0 | DH125: 1 | DI125: =$DA125*DH125 -> 205 | DJ125: 0 | DK125: =$DA125*DJ125 -> 0 | DL125: 1 | DM125: =$DA125*DL125 -> 205 | DN125: 0 | DO125: =$DA125*DN125 -> 0
B126: 2 | E126: =IF($U$18="Keranova120",Vokabel!$A$410,IF($U$18="Keranova140",Vokabel!$A$411,IF($U$18="Keranova160",Vokabel!$A$412,IF($U$18="Keranova180",Vokabel!$A$411,IF($U$18="Keranova200",Vokabel!$A$412,""))))) -> Doppelwandfutter Ø 180 | K126: 160 | L126: 280 | M126: 465 | O126: 60 | P126: 150 | Q126: 315 | T126: =U126&V126 -> IC5-250 | U126: IC5- | V126: 250 | W126: 350 mm | X126: Schiedel IC5 Ø | Y126: Doppelwandiges Edelstahl-Kaminsystem | AA126: in Elementbauweise mit Steckmuffenverbindung | AB126: 50 mm Wärmedämmung und 0,6 mm Wandstärke | AD126: max. Abstand 114 mm | AE126: max. Abstand 220 mm | AF126: max. Abstand 370 mm | AG126: max. Abstand 470 mm | AH126: max. Abstand 670 mm | AL126: ="Typ IC5-" &V126 -> Typ IC5-250 | AM126: =X126&" "& V126&" mm" -> Schiedel IC5 Ø 250 mm | AN126: =$C$64 -> 62 | BR126: KERASTAR180 | BS126: 101448 | BT126: =$BR$114 -> 1.85 | BU126: =$CA$12 -> 1 | CM126: Kerastar | CN126: 180 | CO126: 101448 | CP126: 133021618
K127: 215 | L127: 280 | M127: 519 | O127: 90 | P127: 150 | Q127: 315 | T127: =U127&V127 -> IC5-300 | U127: IC5- | V127: 300 | W127: 400 mm | X127: Schiedel IC5 Ø | Y127: Doppelwandiges Edelstahl-Kaminsystem | AA127: in Elementbauweise mit Steckmuffenverbindung | AB127: 50 mm Wärmedämmung und 0,6 mm Wandstärke | AD127: max. Abstand 122 mm | AE127: max. Abstand 160 mm | AF127: max. Abstand 370 mm | AG127: max. Abstand 470 mm | AH127: max. Abstand 610 mm | AL127: ="Typ IC5-" &V127 -> Typ IC5-300 | AM127: =X127&" "& V127&" mm" -> Schiedel IC5 Ø 300 mm | AN127: =$C$64 -> 62 | BR127: KERASTAR180 | BS127: 101448 | BT127: =$BR$115 -> 2.02 | BU127: =$CC$12 -> 0 | CM127: Kerastar | CN127: 200 | CO127: 101448 | CP127: 133021620
K128: 140 | L128: 280 | M128: 465 | O128: 110 | P128: 150 | Q128: 315 | T128: IC5-350 | U128: IC5- | V128: 350 | W128: 450 mm | X128: Schiedel IC5 Ø | Y128: Doppelwandiges Edelstahl-Kaminsystem | AA128: in Elementbauweise mit Steckmuffenverbindung | AB128: 50 mm Wärmedämmung und 0,6 mm Wandstärke | AD128: max. Abstand 122 mm | AE128: max. Abstand 160 mm | AF128: max. Abstand 310 mm | AG128: max. Abstand 410 mm | AH128: max. Abstand 610 mm | AL128: Typ IC5-350 | AM128: Schiedel IC5 Ø 350 mm | AN128: 62 | BR128: KERASTAR180 | BS128: 101448 | BT128: =$BR$116 -> 2.19 | BU128: =$CE$12 -> 1 | CM128: Kerastar | CN128: 250 | CO128: 101449 | CP128: 133021625 | CY128: ICS350 | CZ128: Gesamthöhe | DB128: m | DC128: =ROUND(DC129/1000,2) -> 0.78 | DE128: =ROUND(DE129/1000,2) -> 0.99 | DG128: =ROUND(DG129/1000,2) -> 1.24 | DI128: =ROUND(DI129/1000,2) -> 1.44 | DK128: =ROUND(DK129/1000,2) -> 1.74 | DM128: =ROUND(DM129/1000,2) -> 1.94 | DO128: =ROUND(DO129/1000,2) -> 2.19
K129: 195 | L129: 280 | M129: 519 | O129: 91 | P129: 280 | Q129: 465 | T129: IC5-400 | U129: IC5- | V129: 400 | W129: 500 mm | X129: Schiedel IC5 Ø | Y129: Doppelwandiges Edelstahl-Kaminsystem | AA129: in Elementbauweise mit Steckmuffenverbindung | AB129: 50 mm Wärmedämmung und 0,6 mm Wandstärke | AD129: max. Abstand 122 mm | AE129: max. Abstand 160 mm | AF129: max. Abstand 310 mm | AG129: max. Abstand 410 mm | AH129: max. Abstand 610 mm | AL129: Typ IC5-400 | AM129: Schiedel IC5 Ø 400 mm | AN129: 62 | BR129: KERASTAR180 | BS129: 101448 | BT129: =$BR$117 -> 2.35 | BU129: =$CG$12 -> 0 | CM129: Kerastar | CN129: 300 | CO129: 101450 | CP129: 133021630 | CY129: Anschlusshöhe | DB129: mm | DC129: =DC133+DC135+DC137+DC138+DC139+DC136 -> 782 | DE129: =DE133+DE135+DE137+DE138+DE139+DE136 -> 987 | DG129: =DG133+DG135+DG137+DG138+DG139+DG136 -> 1237 | DI129: =DI133+DI135+DI137+DI138+DI139+DI136 -> 1442 | DK129: =DK133+DK135+DK137+DK138+DK139+DK136 -> 1737 | DM129: =DM133+DM135+DM137+DM138+DM139+DM136 -> 1942 | DO129: =DO133+DO135+DO137+DO138+DO139+DO136 -> 2192
B130: 1 | C130: =INDEX(Daten!$B$132:$B$134,B130,1) -> Nein | E130: 1 | F130: =INDEX(Daten!E132:E133,E130,1) -> Nein | K130: 120 | L130: 280 | M130: 465 | O130: 140 | P130: 280 | Q130: 465 | T130: IC5-450 | U130: IC5- | V130: 450 | W130: 550 mm | X130: Schiedel IC5 Ø | Y130: Doppelwandiges Edelstahl-Kaminsystem | AA130: in Elementbauweise mit Steckmuffenverbindung | AB130: 50 mm Wärmedämmung und 0,6 mm Wandstärke | AD130: max. Abstand 122 mm | AE130: max. Abstand 160 mm | AF130: max. Abstand 310 mm | AG130: max. Abstand 410 mm | AH130: max. Abstand 610 mm | AL130: Typ IC5-450 | AM130: Schiedel IC5 Ø 450 mm | AN130: 62 | BR130: KERASTAR180 | BS130: 101448 | BT130: =$BR$118 -> 2.52 | BU130: =$CI$12 -> 1 | CM130: Kerastar | CN130: 400 | CO130: 101451 | CP130: 133021640 | CY130: (=vom 1.Rohr bis mitte Anschluss) | DA130: Achsmaße
B131: Putztüren Keranova und Progas | E131: Regenhaube | K131: 175 | L131: 280 | M131: 519 | O131: 145 | P131: 280 | Q131: 519 | T131: IC5-500 | U131: IC5- | V131: 500 | W131: 600 mm | X131: Schiedel IC5 Ø | Y131: Doppelwandiges Edelstahl-Kaminsystem | AA131: in Elementbauweise mit Steckmuffenverbindung | AB131: 50 mm Wärmedämmung und 0,6 mm Wandstärke | AD131: max. Abstand 122 mm | AE131: max. Abstand 160 mm | AF131: max. Abstand 310 mm | AG131: max. Abstand 410 mm | AH131: max. Abstand 610 mm | AL131: Typ IC5-500 | AM131: Schiedel IC5 Ø 500 mm | AN131: 62 | BR131: KERASTAR180 | BS131: 101448 | BT131: =$BR$119 -> 2.69 | BU131: =$CK$12 -> 0 | CM131: Kerastar | CN131: 140 | CO131: 101453 | CP131: 133023314 | CY131: T-Stück 85° | DA131: 270
B132: =Vokabel!$A$125 -> Nein | E132: =Vokabel!$A$125 -> Nein | K132: 100 | L132: 280 | M132: 465 | O132: 190 | P132: 280 | Q132: 465 | T132: IC5-600 | U132: IC5- | V132: 600 | W132: 700 mm | X132: Schiedel IC5 Ø | Y132: Doppelwandiges Edelstahl-Kaminsystem | AA132: in Elementbauweise mit Steckmuffenverbindung | AB132: 50 mm Wärmedämmung und 0,6 mm Wandstärke | AD132: max. Abstand 122 mm | AE132: max. Abstand 160 mm | AF132: max. Abstand 310 mm | AG132: max. Abstand 410 mm | AH132: max. Abstand 610 mm | AL132: Typ IC5-600 | AM132: Schiedel IC5 Ø 600 mm | AN132: 62 | BR132: KERASTAR180 | BS132: =IF(BR132="KERASTAR140",$CO$131,IF(BR132="KERASTAR160",$CO$132,IF(BR132="KERASTAR180",$CO$133,IF(BR132="KERASTAR200",$CO$134,IF(BR132="KERASTAR250",$CO$135,IF(BR132="KERASTAR300",$CO$136,IF(BR132="KERASTAR400",$CO$137,""))))))) -> 101455 | BT132: =$BR$111 -> 1.36 | BU132: =$BU$14 -> 0 | BX132: =IF($BR$110=10,1,VLOOKUP($BR$109,BT132:BU140,2,0)) -> 1 | BY132: =IF($B$421=3,1,0) -> 0 | BZ132: =Kerastar!$P$16 -> 0 | CB132: =BS132 -> 101455 | CC132: =SUM(BX132:BZ132) -> 1 | CM132: Kerastar | CN132: 160 | CO132: 101454 | CP132: 133023316 | CY132: T-Stück 90° | DA132: 247
B133: 1 | E133: =Vokabel!$A$124 -> Ja | K133: 155 | L133: 280 | M133: 519 | O133: 195 | P133: 280 | Q133: 519 | T133: IC5-700 | U133: IC5- | V133: 700 | W133: 800 mm | X133: Schiedel IC5 Ø | Y133: Doppelwandiges Edelstahl-Kaminsystem | AA133: in Elementbauweise mit Steckmuffenverbindung | AB133: 50 mm Wärmedämmung und 0,6 mm Wandstärke | AD133: max. Abstand 122 mm | AE133: max. Abstand 160 mm | AF133: max. Abstand 310 mm | AG133: max. Abstand 410 mm | AH133: max. Abstand 610 mm | AL133: Typ IC5-700 | AM133: Schiedel IC5 Ø 700 mm | AN133: 62 | BR133: KERASTAR180 | BS133: =$BS$132 -> 101455 | BT133: =$BR$112 -> 1.52 | BU133: =$BW$14 -> 0 | BW133: Meter | BY133: =BY132*331/1000 -> 0 | CM133: Kerastar | CN133: 180 | CO133: 101455 | CP133: 133023318 | CY133: T-Stück-mitte RA 45° | DA133: 530 | DC133: =IF($C$17="90°",$DA132,IF($C$17="85°",$DA131,$DA133)) -> 247 | DE133: =IF($C$17="90°",$DA132,IF($C$17="85°",$DA131,$DA133)) -> 247 | DG133: =IF($C$17="90°",$DA132,IF($C$17="85°",$DA131,$DA133)) -> 247 | DI133: =IF($C$17="90°",$DA132,IF($C$17="85°",$DA131,$DA133)) -> 247 | DK133: =IF($C$17="90°",$DA132,IF($C$17="85°",$DA131,$DA133)) -> 247 | DM133: =IF($C$17="90°",$DA132,IF($C$17="85°",$DA131,$DA133)) -> 247 | DO133: =IF($C$17="90°",$DA132,IF($C$17="85°",$DA131,$DA133)) -> 247
B134: 2 | K134: 85 | L134: 280 | M134: 519 | O134: 210 | P134: 280 | Q134: 465 | BR134: KERASTAR180 | BS134: 101455 | BT134: =$BR$113 -> 1.69 | BU134: =$BY$14 -> 1 | CM134: Kerastar | CN134: 200 | CO134: 101456 | CP134: 133023320 | CZ134: rund | DA134: eckig
K135: 285 | L135: 312 | M135: 628 | O135: 240 | P135: 280 | Q135: 465 | T135: =U135&V135 -> IC5-1-150 | U135: IC5-1- | V135: 150 | W135: 250 mm | X135: Schiedel IC5-1 Ø | Y135: Doppelwandiges Edelstahl-Kaminsystem | AA135: in Elementbauweise mit Steckmuffenverbindung | AB135: 50 mm Wärmedämmung und 1 mm Wandstärke | AD135: max. Abstand 114 mm | AE135: max. Abstand 250 mm | AF135: max. Abstand 440 mm | AG135: max. Abstand 500 mm | AH135: max. Abstand 700 mm | AL135: ="Typ IC5-1-" &V135 -> Typ IC5-1-150 | AM135: =X135&" "& V135&" mm" -> Schiedel IC5-1 Ø 150 mm | AN135: =$C$64 -> 62 | BR135: KERASTAR180 | BS135: 101455 | BT135: =$BR$114 -> 1.85 | BU135: =$CA$14 -> 1 | CM135: Kerastar | CN135: 250 | CO135: 101457 | CP135: 133023325 | CY135: Inspektionselement | CZ135: 535 | DA135: gibt es nicht | DC135: =$CZ135 -> 535 | DE135: =$CZ135 -> 535 | DG135: =$CZ135 -> 535 | DI135: =$CZ135 -> 535 | DK135: =$CZ135 -> 535 | DM135: =$CZ135 -> 535 | DO135: =$CZ135 -> 535
K136: 305 | L136: 430 | M136: 628 | O136: 245 | P136: 312 | Q136: 519 | T136: =U136&V136 -> IC5-1-180 | U136: IC5-1- | V136: 180 | W136: 280 mm | X136: Schiedel IC5-1 Ø | Y136: Doppelwandiges Edelstahl-Kaminsystem | AA136: in Elementbauweise mit Steckmuffenverbindung | AB136: 50 mm Wärmedämmung und 1 mm Wandstärke | AD136: max. Abstand 114 mm | AE136: max. Abstand 250 mm | AF136: max. Abstand 440 mm | AG136: max. Abstand 500 mm | AH136: max. Abstand 700 mm | AL136: ="Typ IC5-1-" &V136 -> Typ IC5-1-180 | AM136: =X136&" "& V136&" mm" -> Schiedel IC5-1 Ø 180 mm | AN136: =$C$64 -> 62 | BR136: KERASTAR180 | BS136: 101455 | BT136: =$BR$115 -> 2.02 | BU136: =$CC$14 -> 0 | CM136: Kerastar | CN136: 300 | CO136: 101458 | CP136: 133023330 | CY136: Sockel | CZ136: Bodenmont. | DA136: =IF($B$47=1,1039,IF($B$47=3,300,IF($B$47=4,95,0))) -> 0 | DC136: =$DA136 -> 0 | DE136: =$DA136 -> 0 | DG136: =$DA136 -> 0 | DI136: =$DA136 -> 0 | DK136: =$DA136 -> 0 | DM136: =$DA136 -> 0 | DO136: =$DA136 -> 0
B137: 1 | C137: =INDEX(Daten!B139:B140,B137,1) -> Gas | K137: 325 | L137: 430 | M137: 628 | O137: 255 | P137: 312 | Q137: 628 | T137: =U137&V137 -> IC5-1-200 | U137: IC5-1- | V137: 200 | W137: 300 mm | X137: Schiedel IC5-1 Ø | Y137: Doppelwandiges Edelstahl-Kaminsystem | AA137: in Elementbauweise mit Steckmuffenverbindung | AB137: 50 mm Wärmedämmung und 1 mm Wandstärke | AD137: max. Abstand 114 mm | AE137: max. Abstand 220 mm | AF137: max. Abstand 370 mm | AG137: max. Abstand 470 mm | AH137: max. Abstand 670 mm | AL137: ="Typ IC5-1-" &V137 -> Typ IC5-1-200 | AM137: =X137&" "& V137&" mm" -> Schiedel IC5-1 Ø 200 mm | AN137: =$C$64 -> 62 | BR137: KERASTAR180 | BS137: 101455 | BT137: =$BR$116 -> 2.19 | BU137: =$CE$14 -> 0 | CM137: Kerastar | CN137: 400 | CO137: 101459 | CP137: 133023340 | CY137: Rohrelement 955 | DA137: 955 | DB137: 0 | DC137: =$DA137*DB137 -> 0 | DD137: 0 | DE137: =$DA137*DD137 -> 0 | DF137: 0 | DG137: =$DA137*DF137 -> 0 | DH137: 0 | DI137: =$DA137*DH137 -> 0 | DJ137: 1 | DK137: =$DA137*DJ137 -> 955 | DL137: 1 | DM137: =$DA137*DL137 -> 955 | DN137: 1 | DO137: =$DA137*DN137 -> 955
B138: Brennstoffe für Progasflex: | E138: 1 | F138: =INDEX(Daten!$E$140:$E$142,E138,1) -> Nein | K138: 385 | L138: 430 | M138: 728 | O138: 260 | P138: 312 | Q138: 465 | T138: =U138&V138 -> IC5-1-250 | U138: IC5-1- | V138: 250 | W138: 350 mm | X138: Schiedel IC5-1 Ø | Y138: Doppelwandiges Edelstahl-Kaminsystem | AA138: in Elementbauweise mit Steckmuffenverbindung | AB138: 50 mm Wärmedämmung und 1 mm Wandstärke | AD138: max. Abstand 114 mm | AE138: max. Abstand 220 mm | AF138: max. Abstand 370 mm | AG138: max. Abstand 470 mm | AH138: max. Abstand 670 mm | AL138: ="Typ IC5-1-" &V138 -> Typ IC5-1-250 | AM138: =X138&" "& V138&" mm" -> Schiedel IC5-1 Ø 250 mm | AN138: =$C$64 -> 62 | BR138: KERASTAR180 | BS138: 101455 | BT138: =$BR$117 -> 2.35 | BU138: =$CG$14 -> 1 | CM138: Kerastar | CN138: 140 | CO138: 101460 | CP138: 133026614 | CY138: Rohrelement 455 | DA138: 455 | DB138: 0 | DC138: =$DA138*DB138 -> 0 | DD138: 0 | DE138: =$DA138*DD138 -> 0 | DF138: 1 | DG138: =$DA138*DF138 -> 455 | DH138: 1 | DI138: =$DA138*DH138 -> 455 | DJ138: 0 | DK138: =$DA138*DJ138 -> 0 | DL138: 0 | DM138: =$DA138*DL138 -> 0 | DN138: 1 | DO138: =$DA138*DN138 -> 455
B139: =Vokabel!$A$208 -> Gas | E139: Putzöffnungen Progas | K139: 265 | L139: 430 | M139: 628 | O139: 265 | P139: 312 | Q139: 519 | T139: =U139&V139 -> IC5-1-300 | U139: IC5-1- | V139: 300 | W139: 400 mm | X139: Schiedel IC5-1 Ø | Y139: Doppelwandiges Edelstahl-Kaminsystem | AA139: in Elementbauweise mit Steckmuffenverbindung | AB139: 50 mm Wärmedämmung und 1 mm Wandstärke | AD139: max. Abstand 122 mm | AE139: max. Abstand 160 mm | AF139: max. Abstand 370 mm | AG139: max. Abstand 470 mm | AH139: max. Abstand 610 mm | AL139: ="Typ IC5-1-" &V139 -> Typ IC5-1-300 | AM139: =X139&" "& V139&" mm" -> Schiedel IC5-1 Ø 300 mm | AN139: =$C$64 -> 62 | BR139: KERASTAR180 | BS139: 101455 | BT139: =$BR$118 -> 2.52 | BU139: =$CI$14 -> 1 | CM139: Kerastar | CN139: 160 | CO139: 101461 | CP139: 133026616 | CY139: Rohrelement 205 | DA139: 205 | DB139: 0 | DC139: =$DA139*DB139 -> 0 | DD139: 1 | DE139: =$DA139*DD139 -> 205 | DF139: 0 | DG139: =$DA139*DF139 -> 0 | DH139: 1 | DI139: =$DA139*DH139 -> 205 | DJ139: 0 | DK139: =$DA139*DJ139 -> 0 | DL139: 1 | DM139: =$DA139*DL139 -> 205 | DN139: 0 | DO139: =$DA139*DN139 -> 0
B140: =Vokabel!$A$209 -> Öl | E140: =Vokabel!$A$125 -> Nein | K140: 295 | L140: 430 | M140: 728 | O140: 295 | P140: 430 | Q140: 519 | T140: IC5-1-350 | U140: IC5-1- | V140: 350 | W140: 450 mm | X140: Schiedel IC5-1 Ø | Y140: Doppelwandiges Edelstahl-Kaminsystem | AA140: in Elementbauweise mit Steckmuffenverbindung | AB140: 50 mm Wärmedämmung und 1 mm Wandstärke | AD140: max. Abstand 122 mm | AE140: max. Abstand 160 mm | AF140: max. Abstand 310 mm | AG140: max. Abstand 410 mm | AH140: max. Abstand 610 mm | AL140: Typ IC5-1-350 | AM140: Schiedel IC5-1 Ø 350 mm | AN140: 62 | BR140: KERASTAR180 | BS140: 101455 | BT140: =$BR$119 -> 2.69 | BU140: =$CK$14 -> 0 | CM140: Kerastar | CN140: 180 | CO140: 101462 | CP140: 133026618
E141: 1 | K141: 405 | L141: 462 | M141: 728 | O141: 305 | P141: 430 | Q141: 628 | T141: IC5-1-400 | U141: IC5-1- | V141: 400 | W141: 500 mm | X141: Schiedel IC5-1 Ø | Y141: Doppelwandiges Edelstahl-Kaminsystem | AA141: in Elementbauweise mit Steckmuffenverbindung | AB141: 50 mm Wärmedämmung und 1 mm Wandstärke | AD141: max. Abstand 122 mm | AE141: max. Abstand 160 mm | AF141: max. Abstand 310 mm | AG141: max. Abstand 410 mm | AH141: max. Abstand 610 mm | AL141: Typ IC5-1-400 | AM141: Schiedel IC5-1 Ø 400 mm | AN141: 62 | BR141: KERASTAR180 | BS141: =IF(BR141="KERASTAR140",$CO$138,IF(BR141="KERASTAR160",$CO$139,IF(BR141="KERASTAR180",$CO$140,IF(BR141="KERASTAR200",$CO$141,IF(BR141="KERASTAR250",$CO$142,IF(BR141="KERASTAR300",$CO$143,IF(BR141="KERASTAR400",$CO$144,""))))))) -> 101462 | BT141: =$BR$111 -> 1.36 | BU141: =$BU$13 -> 0 | BX141: =IF($BR$110=10,0,VLOOKUP($BR$109,BT141:BU149,2,0)) -> 0 | BY141: =IF($B$421=4,1,0) -> 0 | CB141: =BS141 -> 101462 | CC141: =SUM(BX141:BZ141) -> 0 | CM141: Kerastar | CN141: 200 | CO141: 101463 | CP141: 133026620
B142: 1 | C142: =INDEX(B144:B145,B142,1) -> Unterdruck | E142: 2 | K142: 425 | L142: 462 | M142: 728 | O142: 315 | P142: 430 | Q142: 519 | T142: IC5-1-450 | U142: IC5-1- | V142: 450 | W142: 550 mm | X142: Schiedel IC5-1 Ø | Y142: Doppelwandiges Edelstahl-Kaminsystem | AA142: in Elementbauweise mit Steckmuffenverbindung | AB142: 50 mm Wärmedämmung und 1 mm Wandstärke | AD142: max. Abstand 122 mm | AE142: max. Abstand 160 mm | AF142: max. Abstand 310 mm | AG142: max. Abstand 410 mm | AH142: max. Abstand 610 mm | AL142: Typ IC5-1-450 | AM142: Schiedel IC5-1 Ø 450 mm | AN142: 62 | BR142: KERASTAR180 | BS142: =$BS$141 -> 101462 | BT142: =$BR$112 -> 1.52 | BU142: =$BW$13 -> 0 | BW142: Meter | BX142: =IF(BY141<>0,BX141*665/1000,0) -> 0 | BY142: =BY141*666/1000 -> 0 | CM142: Kerastar | CN142: 250 | CO142: 101464 | CP142: 133026625 | CY142: ICS400 | CZ142: Gesamthöhe | DB142: m | DC142: =ROUND(DC143/1000,2) -> 0.99 | DE142: =ROUND(DE143/1000,2) -> 1.2 | DG142: =ROUND(DG143/1000,2) -> 1.45 | DI142: =ROUND(DI143/1000,2) -> 1.65 | DK142: =ROUND(DK143/1000,2) -> 1.95 | DM142: =ROUND(DM143/1000,2) -> 2.15 | DO142: =ROUND(DO143/1000,2) -> 2.4
B143: Progasflex | K143: 365 | L143: 462 | M143: 728 | O143: 355 | P143: 430 | Q143: 628 | T143: IC5-1-500 | U143: IC5-1- | V143: 500 | W143: 600 mm | X143: Schiedel IC5-1 Ø | Y143: Doppelwandiges Edelstahl-Kaminsystem | AA143: in Elementbauweise mit Steckmuffenverbindung | AB143: 50 mm Wärmedämmung und 1 mm Wandstärke | AD143: max. Abstand 122 mm | AE143: max. Abstand 160 mm | AF143: max. Abstand 310 mm | AG143: max. Abstand 410 mm | AH143: max. Abstand 610 mm | AL143: Typ IC5-1-500 | AM143: Schiedel IC5-1 Ø 500 mm | AN143: 62 | BR143: KERASTAR180 | BS143: 101462 | BT143: =$BR$113 -> 1.69 | BU143: =$BY$13 -> 0 | BW143: Sum.Meter | BY143: =SUM(BY124,BY133,BY142) -> 0 | CM143: Kerastar | CN143: 300 | CO143: 101465 | CP143: 133026630 | CY143: Anschlusshöhe | DB143: mm | DC143: =DC147+DC149+DC151+DC152+DC153+DC150 -> 990 | DE143: =DE147+DE149+DE151+DE152+DE153+DE150 -> 1195 | DG143: =DG147+DG149+DG151+DG152+DG153+DG150 -> 1445 | DI143: =DI147+DI149+DI151+DI152+DI153+DI150 -> 1650 | DK143: =DK147+DK149+DK151+DK152+DK153+DK150 -> 1945 | DM143: =DM147+DM149+DM151+DM152+DM153+DM150 -> 2150 | DO143: =DO147+DO149+DO151+DO152+DO153+DO150 -> 2400
B144: =Vokabel!$A$220 -> Unterdruck | K144: 395 | L144: 462 | M144: 828 | O144: 375 | P144: 430 | Q144: 628 | T144: IC5-1-600 | U144: IC5-1- | V144: 600 | W144: 700 mm | X144: Schiedel IC5-1 Ø | Y144: Doppelwandiges Edelstahl-Kaminsystem | AA144: in Elementbauweise mit Steckmuffenverbindung | AB144: 50 mm Wärmedämmung und 1 mm Wandstärke | AD144: max. Abstand 122 mm | AE144: max. Abstand 160 mm | AF144: max. Abstand 310 mm | AG144: max. Abstand 410 mm | AH144: max. Abstand 610 mm | AL144: Typ IC5-1-600 | AM144: Schiedel IC5-1 Ø 600 mm | AN144: 62 | BR144: KERASTAR180 | BS144: 101462 | BT144: =$BR$114 -> 1.85 | BU144: =$CA$13 -> 0 | CM144: Kerastar | CN144: 400 | CO144: 101466 | CP144: 133026640 | CY144: (=vom 1.Rohr bis mitte Anschluss) | DA144: Achsmaße
B145: =Vokabel!$A$221 -> Überdruck | K145: 465 | L145: 630 | M145: 828 | O145: 356 | P145: 462 | Q145: 728 | T145: IC5-1-700 | U145: IC5-1- | V145: 700 | W145: 800 mm | X145: Schiedel IC5-1 Ø | Y145: Doppelwandiges Edelstahl-Kaminsystem | AA145: in Elementbauweise mit Steckmuffenverbindung | AB145: 50 mm Wärmedämmung und 1 mm Wandstärke | AD145: max. Abstand 122 mm | AE145: max. Abstand 160 mm | AF145: max. Abstand 310 mm | AG145: max. Abstand 410 mm | AH145: max. Abstand 610 mm | AL145: Typ IC5-1-700 | AM145: Schiedel IC5-1 Ø 700 mm | AN145: 62 | BR145: KERASTAR180 | BS145: 101462 | BT145: =$BR$115 -> 2.02 | BU145: =$CC$13 -> 1 | CY145: T-Stück 85° | DA145: 304
K146: 485 | L146: 630 | M146: 828 | O146: 405 | P146: 462 | Q146: 628 | BR146: KERASTAR180 | BS146: 101462 | BT146: =$BR$116 -> 2.19 | BU146: =$CE$13 -> 1 | CY146: T-Stück 90° | DA146: 285
K147: 505 | L147: 630 | M147: 828 | O147: 425 | P147: 462 | Q147: 628 | BR147: KERASTAR180 | BS147: 101462 | BT147: =$BR$117 -> 2.35 | BU147: =$CG$13 -> 1 | CY147: T-Stück-mitte RA 45° | DA147: 615 | DC147: =IF($C$17="90°",$DA146,IF($C$17="85°",$DA145,$DA147)) -> 285 | DE147: =IF($C$17="90°",$DA146,IF($C$17="85°",$DA145,$DA147)) -> 285 | DG147: =IF($C$17="90°",$DA146,IF($C$17="85°",$DA145,$DA147)) -> 285 | DI147: =IF($C$17="90°",$DA146,IF($C$17="85°",$DA145,$DA147)) -> 285 | DK147: =IF($C$17="90°",$DA146,IF($C$17="85°",$DA145,$DA147)) -> 285 | DM147: =IF($C$17="90°",$DA146,IF($C$17="85°",$DA145,$DA147)) -> 285 | DO147: =IF($C$17="90°",$DA146,IF($C$17="85°",$DA145,$DA147)) -> 285
K148: 525 | L148: 630 | M148: 828 | O148: 455 | P148: 630 | Q148: 728 | BR148: KERASTAR180 | BS148: 101462 | BT148: =$BR$118 -> 2.52 | BU148: =$CI$13 -> 1 | CZ148: rund | DA148: eckig
K149: 595 | L149: 662 | M149: 958 | O149: 505 | P149: 630 | Q149: 728 | BR149: KERASTAR180 | BS149: 101462 | BT149: =$BR$119 -> 2.69 | BU149: =$CK$13 -> 2 | CY149: Inspektionselement | CZ149: 705 | DA149: gibt es nicht | DC149: =$CZ149 -> 705 | DE149: =$CZ149 -> 705 | DG149: =$CZ149 -> 705 | DI149: =$CZ149 -> 705 | DK149: =$CZ149 -> 705 | DM149: =$CZ149 -> 705 | DO149: =$CZ149 -> 705
K150: 615 | L150: 662 | M150: 958 | O150: 555 | P150: 630 | Q150: 828 | CY150: Sockel | CZ150: Bodenmont. | DA150: =IF($B$47=1,1039,IF($B$47=3,300,IF($B$47=4,95,0))) -> 0 | DC150: =$DA150 -> 0 | DE150: =$DA150 -> 0 | DG150: =$DA150 -> 0 | DI150: =$DA150 -> 0 | DK150: =$DA150 -> 0 | DM150: =$DA150 -> 0 | DO150: =$DA150 -> 0
K151: 635 | L151: 662 | M151: 958 | O151: 475 | P151: 630 | Q151: 728 | CY151: Rohrelement 955 | DA151: 955 | DB151: 0 | DC151: =$DA151*DB151 -> 0 | DD151: 0 | DE151: =$DA151*DD151 -> 0 | DF151: 0 | DG151: =$DA151*DF151 -> 0 | DH151: 0 | DI151: =$DA151*DH151 -> 0 | DJ151: 1 | DK151: =$DA151*DJ151 -> 955 | DL151: 1 | DM151: =$DA151*DL151 -> 955 | DN151: 1 | DO151: =$DA151*DN151 -> 955
O152: 525 | P152: 630 | Q152: 728 | CY152: Rohrelement 455 | DA152: 455 | DB152: 0 | DC152: =$DA152*DB152 -> 0 | DD152: 0 | DE152: =$DA152*DD152 -> 0 | DF152: 1 | DG152: =$DA152*DF152 -> 455 | DH152: 1 | DI152: =$DA152*DH152 -> 455 | DJ152: 0 | DK152: =$DA152*DJ152 -> 0 | DL152: 0 | DM152: =$DA152*DL152 -> 0 | DN152: 1 | DO152: =$DA152*DN152 -> 455
O153: 585 | P153: 662 | Q153: 958 | CY153: Rohrelement 205 | DA153: 205 | DB153: 0 | DC153: =$DA153*DB153 -> 0 | DD153: 1 | DE153: =$DA153*DD153 -> 205 | DF153: 0 | DG153: =$DA153*DF153 -> 0 | DH153: 1 | DI153: =$DA153*DH153 -> 205 | DJ153: 0 | DK153: =$DA153*DJ153 -> 0 | DL153: 1 | DM153: =$DA153*DL153 -> 205 | DN153: 0 | DO153: =$DA153*DN153 -> 0
O154: 600 | P154: 662 | Q154: 958
B155: 1 | C155: =INDEX(B157:B160,B155,1) -> Nein | E155: 1 | F155: =INDEX(E157:E166,E155,1) -> Nein | O155: 605 | P155: 662 | Q155: 828
B156: WDS | E156: WDS Zuschnitte und Zubehör | O156: 625 | P156: 662 | Q156: 828 | CY156: ICS 450 | CZ156: Gesamthöhe | DB156: m | DC156: =ROUND(DC157/1000,2) -> 1.02 | DE156: =ROUND(DE157/1000,2) -> 1.22 | DG156: =ROUND(DG157/1000,2) -> 1.47 | DI156: =ROUND(DI157/1000,2) -> 1.68 | DK156: =ROUND(DK157/1000,2) -> 1.97 | DM156: =ROUND(DM157/1000,2) -> 2.18 | DO156: =ROUND(DO157/1000,2) -> 2.43
B157: Nein | E157: Nein | O157: 635 | P157: 662 | Q157: 958 | CY157: Anschlusshöhe | DB157: mm | DC157: =DC161+DC163+DC165+DC166+DC167+DC164 -> 1015 | DE157: =DE161+DE163+DE165+DE166+DE167+DE164 -> 1220 | DG157: =DG161+DG163+DG165+DG166+DG167+DG164 -> 1470 | DI157: =DI161+DI163+DI165+DI166+DI167+DI164 -> 1675 | DK157: =DK161+DK163+DK165+DK166+DK167+DK164 -> 1970 | DM157: =DM161+DM163+DM165+DM166+DM167+DM164 -> 2175 | DO157: =DO161+DO163+DO165+DO166+DO167+DO164 -> 2425
B158: =IF(C158="Nein","Nein",IF($A$164="Prima Plus300","Baulänge 400 mm",IF($C$164<300,"Baulänge 400 mm","Nein"))) -> Nein | C158: =IF($A$164="Kerastar250","Nein",IF($A$166>=300,"Nein",IF(A165="ICSIC5-250","Nein",IF($A$165="ICSIC5-1-250","Nein","")))) ->  | E158: =IF(B158="Nein","Nein","Enddeckel") -> Nein | CY158: (=vom 1.Rohr bis mitte Anschluss) | DA158: Achsmaße
B159: =IF(C159="Nein","Nein",IF($A$164="Prima Plus300","Baulänge 600 mm",IF($C$164<300,"Baulänge 600 mm","Nein"))) -> Nein | C159: =IF($A$164="Kerastar250","Nein",IF($A$166>=300,"Nein",IF(A165="ICSIC5-250","Nein",IF($A$165="ICSIC5-1-250","Nein","")))) ->  | E159: =IF(B158="Nein","Nein","Enddeckel Inneplatte") -> Nein | CY159: T-Stück 85° | DA159: 332
B160: =IF(C160="Nein","Nein",IF($A$164="Prima Plus300","Baulänge 1000 mm",IF($C$164<300,"Baulänge 1000 mm","Nein"))) -> Nein | C160: =IF($A$164="Kerastar250","Nein",IF($A$166>=300,"Nein",IF(A165="ICSIC5-250","Nein",IF($A$165="ICSIC5-1-250","Nein","")))) ->  | G160: Preiserhöhung 2018 | H160: Preis 2017 | I160: Preis 2017 | T160: 2 | U160: =INDEX(T162:T168,T160,1) -> AVANT14 | V160: =INDEX(V162:V167,$T$160,1) -> 14 | X160: =INDEX(X162:X167,T160,1) -> Schiedel AVANT | Y160: =INDEX(Y162:Y167,T160,1) -> Zweischaliges Kaminsystem | AD160: =INDEX(AD162:AD167,T160,1) -> 14 | AI160: =INDEX(AI162:AI167,$T$160,1) -> 36/36 cm | CY160: T-Stück 90° | DA160: 310
E161: =IF(B158="Nein","Nein","Lochausschnitt rund") -> Nein | F161: 152729a | G161: 0.019 | H161: 37.5 | I161: =ROUND(H161+(H161*G161),1) -> 38.2 | T161: Verkn. | U161: System | V161: Ø | X161: Bezeichnung | Y161: System: Text1 | Z161: Anwendung | AA161: System: Text2 | AB161: System: Text3 | AC161: Fertigfuß | AD161: Ø 1.Zug | AI161: Außenmaß | AJ161: FM-Bedarf | AL161: Typ | AM161: Sortiment und Typ | AN161: Fracht | CY161: T-Stück-mitte RA 45° | DA161: 675 | DC161: =IF($C$17="90°",$DA160,IF($C$17="85°",$DA159,$DA161)) -> 310 | DE161: =IF($C$17="90°",$DA160,IF($C$17="85°",$DA159,$DA161)) -> 310 | DG161: =IF($C$17="90°",$DA160,IF($C$17="85°",$DA159,$DA161)) -> 310 | DI161: =IF($C$17="90°",$DA160,IF($C$17="85°",$DA159,$DA161)) -> 310 | DK161: =IF($C$17="90°",$DA160,IF($C$17="85°",$DA159,$DA161)) -> 310 | DM161: =IF($C$17="90°",$DA160,IF($C$17="85°",$DA159,$DA161)) -> 310 | DO161: =IF($C$17="90°",$DA160,IF($C$17="85°",$DA159,$DA161)) -> 310
E162: =IF(B158="Nein","Nein","Lochausschnitt oval") -> Nein | F162: 152729b | G162: 0.019 | H162: 137.4 | I162: =ROUND(H162+(H162*G162),1) -> 140 | T162: =U162&V162 -> AVANT12 | U162: AVANT | V162: 12 | X162: Schiedel AVANT | Y162: Zweischaliges Kaminsystem | AA162: für optimale Abgasführung unter Überdruck | AB162: bei Brennwerttechnik | AC162: J | AD162: 12 | AI162: 28/28 cm | AL162: ="Typ AVANT " &V162 -> Typ AVANT 12 | AM162: =X162&" "& V162 -> Schiedel AVANT 12 | AN162: =IF($C$74<=400,$C$60,IF($C$74<=2500,$C$61,IF($C$74<=5000,$C$62,$C$63))) -> 62 | CZ162: rund | DA162: eckig
E163: =IF(B158="Nein","Nein","Zuschnitt auf Wunschlänge") -> Nein | F163: 152729c | G163: 0.019 | H163: 62.5 | I163: =ROUND(H163+(H163*G163),1) -> 63.7 | T163: AVANT14 | U163: AVANT | V163: 14 | X163: Schiedel AVANT | Y163: Zweischaliges Kaminsystem | AA163: für optimale Abgasführung unter Überdruck | AB163: bei Brennwerttechnik | AC163: J | AD163: 14 | AI163: 36/36 cm | AL163: Typ AVANT 14 | AM163: Schiedel AVANT 14 | AN163: 62 | CY163: Inspektionselement | CZ163: 705 | DA163: gibt es nicht | DC163: =$CZ163 -> 705 | DE163: =$CZ163 -> 705 | DG163: =$CZ163 -> 705 | DI163: =$CZ163 -> 705 | DK163: =$CZ163 -> 705 | DM163: =$CZ163 -> 705 | DO163: =$CZ163 -> 705
A164: =B164&C164 -> Absolut1814 | B164: =Musteranlage!$J$1 -> Absolut | C164: =Musteranlage!$K$1 -> 1814 | T164: AVANT16 | U164: AVANT | V164: 16 | X164: Schiedel AVANT | Y164: Zweischaliges Kaminsystem | AA164: für optimale Abgasführung unter Überdruck | AB164: bei Brennwerttechnik | AC164: J | AD164: 16 | AI164: 36/36 cm | AL164: Typ AVANT 16 | AM164: Schiedel AVANT 16 | AN164: 62 | CY164: Sockel | CZ164: Bodenmont. | DA164: =IF($B$47=1,1039,IF($B$47=3,300,IF($B$47=4,95,0))) -> 0 | DC164: =$DA164 -> 0 | DE164: =$DA164 -> 0 | DG164: =$DA164 -> 0 | DI164: =$DA164 -> 0 | DK164: =$DA164 -> 0 | DM164: =$DA164 -> 0 | DO164: =$DA164 -> 0
A165: =B164&B165 -> AbsolutICS80 | B165: =U105 -> ICS80 | E165: =IF(B158="Nein","Nein","Lochausschnitt rund mit Zuschnitt") -> Nein | T165: AVANT18 | U165: AVANT | V165: 18 | X165: Schiedel AVANT | Y165: Zweischaliges Kaminsystem | AA165: für optimale Abgasführung unter Überdruck | AB165: bei Brennwerttechnik | AC165: J | AD165: 18 | AI165: 40/40 cm | AL165: Typ AVANT 18 | AM165: Schiedel AVANT 18 | AN165: 62 | CY165: Rohrelement 955 | DA165: 955 | DB165: 0 | DC165: =$DA165*DB165 -> 0 | DD165: 0 | DE165: =$DA165*DD165 -> 0 | DF165: 0 | DG165: =$DA165*DF165 -> 0 | DH165: 0 | DI165: =$DA165*DH165 -> 0 | DJ165: 1 | DK165: =$DA165*DJ165 -> 955 | DL165: 1 | DM165: =$DA165*DL165 -> 955 | DN165: 1 | DO165: =$DA165*DN165 -> 955
A166: =IF(B164="ICS",C164,0) -> 0 | E166: =IF(B158="Nein","Nein","Lochausschnitt oval mit Zuschnitt") -> Nein | T166: AVANT20 | U166: AVANT | V166: 20 | X166: Schiedel AVANT | Y166: Zweischaliges Kaminsystem | AA166: für optimale Abgasführung unter Überdruck | AB166: bei Brennwerttechnik | AC166: J | AD166: 20 | AI166: 40/40 cm | AL166: Typ AVANT 20 | AM166: Schiedel AVANT 20 | AN166: 62 | CY166: Rohrelement 455 | DA166: 455 | DB166: 0 | DC166: =$DA166*DB166 -> 0 | DD166: 0 | DE166: =$DA166*DD166 -> 0 | DF166: 1 | DG166: =$DA166*DF166 -> 455 | DH166: 1 | DI166: =$DA166*DH166 -> 455 | DJ166: 0 | DK166: =$DA166*DJ166 -> 0 | DL166: 0 | DM166: =$DA166*DL166 -> 0 | DN166: 1 | DO166: =$DA166*DN166 -> 455
T167: AVANT25 | U167: AVANT | V167: 25 | X167: Schiedel AVANT | Y167: Zweischaliges Kaminsystem | AA167: für optimale Abgasführung unter Überdruck | AB167: bei Brennwerttechnik | AC167: J | AD167: 25 | AI167: 48/48 cm | AL167: Typ AVANT 25 | AM167: Schiedel AVANT 25 | AN167: 62 | CY167: Rohrelement 205 | DA167: 205 | DB167: 0 | DC167: =$DA167*DB167 -> 0 | DD167: 1 | DE167: =$DA167*DD167 -> 205 | DF167: 0 | DG167: =$DA167*DF167 -> 0 | DH167: 1 | DI167: =$DA167*DH167 -> 205 | DJ167: 0 | DK167: =$DA167*DJ167 -> 0 | DL167: 1 | DM167: =$DA167*DL167 -> 205 | DN167: 0 | DO167: =$DA167*DN167 -> 0
T169: 1 | U169: =INDEX(T171:T177,T169,1) -> MULTI14 | V169: =INDEX(V171:V175,$T$169,1) -> 14 | X169: =INDEX(X171:X175,T169,1) -> Schiedel MULTI | Y169: =INDEX(Y171:Y175,T169,1) -> Zweischaliges Kaminsystem | AD169: =INDEX(AD171:AD175,T169,1) -> 14 | AI169: =INDEX(AI171:AI175,$T$169,1) -> 36/36 cm
T170: Verkn. | U170: System | V170: Ø | X170: Bezeichnung | Y170: System: Text1 | Z170: Anwendung | AA170: System: Text2 | AB170: System: Text3 | AC170: Fertigfuß | AD170: Ø 1.Zug | AI170: Außenmaß | AJ170: FM-Bedarf | AL170: Typ | AM170: Sortiment und Typ | AN170: Fracht | CY170: ICS 500 | CZ170: Gesamthöhe | DB170: m | DC170: =ROUND(DC171/1000,2) -> 1.04 | DE170: =ROUND(DE171/1000,2) -> 1.25 | DG170: =ROUND(DG171/1000,2) -> 1.5 | DI170: =ROUND(DI171/1000,2) -> 1.7 | DK170: =ROUND(DK171/1000,2) -> 2 | DM170: =ROUND(DM171/1000,2) -> 2.2 | DO170: =ROUND(DO171/1000,2) -> 2.45
T171: =U171&V171 -> MULTI14 | U171: MULTI | V171: 14 | X171: Schiedel MULTI | Y171: Zweischaliges Kaminsystem | AA171: Das Luft-Abgas-System für den Gas-Etagenheizungen | AB171: im Mehrfamilienhaus für Abgasführung im Unterdruck | AC171: J | AD171: 14 | AI171: 36/36 cm | AL171: ="Typ MULTI " &V171 -> Typ MULTI 14 | AM171: =X171&" "& V171 -> Schiedel MULTI 14 | AN171: =IF($C$74<=400,$C$60,IF($C$74<=2500,$C$61,IF($C$74<=5000,$C$62,$C$63))) -> 62 | CY171: Anschlusshöhe | DB171: mm | DC171: =DC175+DC177+DC179+DC180+DC181+DC178 -> 1040 | DE171: =DE175+DE177+DE179+DE180+DE181+DE178 -> 1245 | DG171: =DG175+DG177+DG179+DG180+DG181+DG178 -> 1495 | DI171: =DI175+DI177+DI179+DI180+DI181+DI178 -> 1700 | DK171: =DK175+DK177+DK179+DK180+DK181+DK178 -> 1995 | DM171: =DM175+DM177+DM179+DM180+DM181+DM178 -> 2200 | DO171: =DO175+DO177+DO179+DO180+DO181+DO178 -> 2450
T172: =U172&V172 -> MULTI16 | U172: MULTI | V172: 16 | X172: Schiedel MULTI | Y172: Zweischaliges Kaminsystem | AA172: Das Luft-Abgas-System für den Gas-Etagenheizungen | AB172: im Mehrfamilienhaus für Abgasführung im Unterdruck | AC172: J | AD172: 16 | AI172: 36/36 cm | AL172: ="Typ MULTI " &V172 -> Typ MULTI 16 | AM172: =X172&" "& V172 -> Schiedel MULTI 16 | AN172: =IF($C$74<=400,$C$60,IF($C$74<=2500,$C$61,IF($C$74<=5000,$C$62,$C$63))) -> 62 | CY172: (=vom 1.Rohr bis mitte Anschluss) | DA172: Achsmaße
T173: =U173&V173 -> MULTI18 | U173: MULTI | V173: 18 | X173: Schiedel MULTI | Y173: Zweischaliges Kaminsystem | AA173: Das Luft-Abgas-System für den Gas-Etagenheizungen | AB173: im Mehrfamilienhaus für Abgasführung im Unterdruck | AC173: J | AD173: 18 | AI173: 40/40 cm | AL173: ="Typ MULTI " &V173 -> Typ MULTI 18 | AM173: =X173&" "& V173 -> Schiedel MULTI 18 | AN173: =IF($C$74<=400,$C$60,IF($C$74<=2500,$C$61,IF($C$74<=5000,$C$62,$C$63))) -> 62 | CY173: T-Stück 85° | DA173: 359
T174: =U174&V174 -> MULTI20 | U174: MULTI | V174: 20 | X174: Schiedel MULTI | Y174: Zweischaliges Kaminsystem | AA174: Das Luft-Abgas-System für den Gas-Etagenheizungen | AB174: im Mehrfamilienhaus für Abgasführung im Unterdruck | AC174: J | AD174: 20 | AI174: 40/40 cm | AL174: ="Typ MULTI " &V174 -> Typ MULTI 20 | AM174: =X174&" "& V174 -> Schiedel MULTI 20 | AN174: =IF($C$74<=400,$C$60,IF($C$74<=2500,$C$61,IF($C$74<=5000,$C$62,$C$63))) -> 62 | CY174: T-Stück 90° | DA174: 335
T175: =U175&V175 -> MULTI25 | U175: MULTI | V175: 25 | X175: Schiedel MULTI | Y175: Zweischaliges Kaminsystem | AA175: Das Luft-Abgas-System für den Gas-Etagenheizungen | AB175: im Mehrfamilienhaus für Abgasführung im Unterdruck | AC175: J | AD175: 25 | AI175: 48/48 cm | AL175: ="Typ MULTI " &V175 -> Typ MULTI 25 | AM175: =X175&" "& V175 -> Schiedel MULTI 25 | AN175: =IF($C$74<=400,$C$60,IF($C$74<=2500,$C$61,IF($C$74<=5000,$C$62,$C$63))) -> 62 | CY175: T-Stück-mitte RA 45° | DA175: 735 | DC175: =IF($C$17="90°",$DA174,IF($C$17="85°",$DA173,$DA175)) -> 335 | DE175: =IF($C$17="90°",$DA174,IF($C$17="85°",$DA173,$DA175)) -> 335 | DG175: =IF($C$17="90°",$DA174,IF($C$17="85°",$DA173,$DA175)) -> 335 | DI175: =IF($C$17="90°",$DA174,IF($C$17="85°",$DA173,$DA175)) -> 335 | DK175: =IF($C$17="90°",$DA174,IF($C$17="85°",$DA173,$DA175)) -> 335 | DM175: =IF($C$17="90°",$DA174,IF($C$17="85°",$DA173,$DA175)) -> 335 | DO175: =IF($C$17="90°",$DA174,IF($C$17="85°",$DA173,$DA175)) -> 335
C176: 1 | D176: =INDEX(B178:B180,C176,1) -> 1 | CZ176: rund | DA176: eckig
C177: Sprache | CY177: Inspektionselement | CZ177: 705 | DA177: gibt es nicht | DC177: =$CZ177 -> 705 | DE177: =$CZ177 -> 705 | DG177: =$CZ177 -> 705 | DI177: =$CZ177 -> 705 | DK177: =$CZ177 -> 705 | DM177: =$CZ177 -> 705 | DO177: =$CZ177 -> 705
B178: 1 | C178: Deutsch | CY178: Sockel | CZ178: Bodenmont. | DA178: =IF($B$47=1,1039,IF($B$47=3,300,IF($B$47=4,95,0))) -> 0 | DC178: =$DA178 -> 0 | DE178: =$DA178 -> 0 | DG178: =$DA178 -> 0 | DI178: =$DA178 -> 0 | DK178: =$DA178 -> 0 | DM178: =$DA178 -> 0 | DO178: =$DA178 -> 0
B179: 2 | C179: Französisch | T179: 3 | U179: =INDEX(T181:T217,T179,1) -> SIH18 | V179: =INDEX(Daten!V181:V217,$T$179,1) -> 18 | W179: =INDEX(Daten!W181:W217,$T$179,1) -> 36/36 cm | X179: =INDEX(X181:X217,T179,1) -> Schiedel SIH | Y179: =INDEX(Daten!Y181:Y217,T179,1) -> Dreischaliges Kaminsystem mit Keramik-Innenrohr | Z179: =INDEX(Daten!Z181:Z217,T179,1) -> Ja | AA179: =INDEX(Daten!AA181:AA217,T179,1) -> Geeignet für feste Brennstoffe (Abgastemeratur >= 160 °C) | AB179: =INDEX(Daten!AB181:AB217,T179,1) -> flüssige u. gasf. Brennstoffe (ausgen. Brennwertgerätbetrieb). | AC179: =INDEX(Daten!AC181:AC217,T179,1) -> Fertigfuß | AD179: =INDEX(Daten!AD181:AD217,T179,1) -> 0 | AE179: =INDEX(Daten!AE181:AE217,T179,1) -> 18 | AF179: =INDEX(Daten!AF181:AF217,T179,1) -> 0 | AG179: =INDEX(Daten!AG181:AG217,T179,1) ->  | AH179: =INDEX(Daten!AH181:AH217,T179,1) -> 0 | AI179: =INDEX(Daten!AI181:AI217,T179,1) -> 0 | AJ179: =INDEX(Daten!AJ181:AJ217,T179,1) -> Ja | AK179: =INDEX(Daten!AK181:AK217,T179,1) -> Ja | CY179: Rohrelement 955 | DA179: 955 | DB179: 0 | DC179: =$DA179*DB179 -> 0 | DD179: 0 | DE179: =$DA179*DD179 -> 0 | DF179: 0 | DG179: =$DA179*DF179 -> 0 | DH179: 0 | DI179: =$DA179*DH179 -> 0 | DJ179: 1 | DK179: =$DA179*DJ179 -> 955 | DL179: 1 | DM179: =$DA179*DL179 -> 955 | DN179: 1 | DO179: =$DA179*DN179 -> 955
B180: 3 | C180: Englisch | G180: SIP | I180: AVANT PARAT | T180: Verkn. | U180: System | V180: Ø | X180: Bezeichnung | Y180: System: Text1 | Z180: Kaminaufsatz | AA180: System: Text2 | AB180: System: Text3 | AC180: Fertigfuß 1 | AD180: Fertigfuß 2 | AE180: Ø 1.Zug | AF180: Ø 2.Zug | AG180: Lüftung | AH180: RA45° | AI180: RA g.Z | AJ180: FBK | AK180: FBK-Standard | CY180: Rohrelement 455 | DA180: 455 | DB180: 0 | DC180: =$DA180*DB180 -> 0 | DD180: 0 | DE180: =$DA180*DD180 -> 0 | DF180: 1 | DG180: =$DA180*DF180 -> 455 | DH180: 1 | DI180: =$DA180*DH180 -> 455 | DJ180: 0 | DK180: =$DA180*DJ180 -> 0 | DL180: 0 | DM180: =$DA180*DL180 -> 0 | DN180: 1 | DO180: =$DA180*DN180 -> 455
B181: 4 | G181: =IF($V$374=30,A196-0.1,IF($V$374="30L",A196-0.1,IF($V$374=35,196-0.1,IF($V$374="35L",A196-0.1,A196)))) -> 3 | I181: 4.07 | T181: =U181&V181 -> SIH14 | U181: SIH | V181: 14 | W181: 32/32 cm | X181: Schiedel SIH | Y181: Dreischaliges Kaminsystem mit Keramik-Innenrohr | Z181: Ja | AA181: Geeignet für feste Brennstoffe (Abgastemeratur >= 160 °C) | AB181: flüssige u. gasf. Brennstoffe (ausgen. Brennwertgerätbetrieb). | AC181: Fertigfuß | AE181: 14 | AJ181: Ja | AK181: Ja | AL181: ="Typ SIH " &V181 -> Typ SIH 14 | AM181: =X181&" "& V181 -> Schiedel SIH 14 | AN181: =IF($C$74<=400,$C$60,IF($C$74<=2500,$C$61,IF($C$74<=5000,$C$62,$C$63))) -> 62 | CY181: Rohrelement 205 | DA181: 205 | DB181: 0 | DC181: =$DA181*DB181 -> 0 | DD181: 1 | DE181: =$DA181*DD181 -> 205 | DF181: 0 | DG181: =$DA181*DF181 -> 0 | DH181: 1 | DI181: =$DA181*DH181 -> 205 | DJ181: 0 | DK181: =$DA181*DJ181 -> 0 | DL181: 1 | DM181: =$DA181*DL181 -> 205 | DN181: 0 | DO181: =$DA181*DN181 -> 0
B182: 5 | G182: 3.33 | I182: 4.4 | T182: SIH16 | U182: SIH | V182: 16 | W182: 32/32 cm | X182: Schiedel SIH | Y182: Dreischaliges Kaminsystem mit Keramik-Innenrohr | Z182: Ja | AA182: Geeignet für feste Brennstoffe (Abgastemeratur >= 160 °C) | AB182: flüssige u. gasf. Brennstoffe (ausgen. Brennwertgerätbetrieb). | AC182: Fertigfuß | AE182: 16 | AJ182: Ja | AK182: Ja | AL182: Typ SIH 16 | AM182: Schiedel SIH 16 | AN182: 62
B183: 6 | G183: 3.66 | I183: 4.73 | T183: SIH18 | U183: SIH | V183: 18 | W183: 36/36 cm | X183: Schiedel SIH | Y183: Dreischaliges Kaminsystem mit Keramik-Innenrohr | Z183: Ja | AA183: Geeignet für feste Brennstoffe (Abgastemeratur >= 160 °C) | AB183: flüssige u. gasf. Brennstoffe (ausgen. Brennwertgerätbetrieb). | AC183: Fertigfuß | AE183: 18 | AJ183: Ja | AK183: Ja | AL183: Typ SIH 18 | AM183: Schiedel SIH 18 | AN183: 62
B184: 7 | G184: 4 | I184: 5.07 | T184: SIH20 | U184: SIH | V184: 20 | W184: 36/36 cm | X184: Schiedel SIH | Y184: Dreischaliges Kaminsystem mit Keramik-Innenrohr | Z184: Ja | AA184: Geeignet für feste Brennstoffe (Abgastemeratur >= 160 °C) | AB184: flüssige u. gasf. Brennstoffe (ausgen. Brennwertgerätbetrieb). | AC184: Fertigfuß | AE184: 20 | AJ184: Ja | AK184: Ja | AL184: Typ SIH 20 | AM184: Schiedel SIH 20 | AN184: 62 | CY184: ICS 600 | CZ184: Gesamthöhe | DB184: m | DC184: =ROUND(DC185/1000,2) -> 1.09 | DE184: =ROUND(DE185/1000,2) -> 1.3 | DG184: =ROUND(DG185/1000,2) -> 1.55 | DI184: =ROUND(DI185/1000,2) -> 1.75 | DK184: =ROUND(DK185/1000,2) -> 2.05 | DM184: =ROUND(DM185/1000,2) -> 2.25 | DO184: =ROUND(DO185/1000,2) -> 2.5
G185: 4.33 | I185: 5.4 | T185: SIH25 | U185: SIH | V185: 25 | W185: 48/48 cm | X185: Schiedel SIH | Y185: Dreischaliges Kaminsystem mit Keramik-Innenrohr | Z185: Ja | AA185: Geeignet für feste Brennstoffe (Abgastemeratur >= 160 °C) | AB185: flüssige u. gasf. Brennstoffe (ausgen. Brennwertgerätbetrieb). | AC185: N | AE185: 25 | AJ185: Ja | AK185: Nein | AL185: Typ SIH 25 | AM185: Schiedel SIH 25 | AN185: 62 | CY185: Anschlusshöhe | DB185: mm | DC185: =DC189+DC191+DC193+DC194+DC195+DC192 -> 1090 | DE185: =DE189+DE191+DE193+DE194+DE195+DE192 -> 1295 | DG185: =DG189+DG191+DG193+DG194+DG195+DG192 -> 1545 | DI185: =DI189+DI191+DI193+DI194+DI195+DI192 -> 1750 | DK185: =DK189+DK191+DK193+DK194+DK195+DK192 -> 2045 | DM185: =DM189+DM191+DM193+DM194+DM195+DM192 -> 2250 | DO185: =DO189+DO191+DO193+DO194+DO195+DO192 -> 2500
G186: 4.66 | I186: 5.73 | T186: SIH30 | U186: SIH | V186: 30 | W186: 55/55 cm | X186: Schiedel SIH | Y186: Dreischaliges Kaminsystem mit Keramik-Innenrohr | Z186: Nein | AA186: Geeignet für feste Brennstoffe (Abgastemeratur >= 160 °C) | AB186: flüssige u. gasf. Brennstoffe (ausgen. Brennwertgerätbetrieb). | AC186: N | AE186: 30 | AJ186: Ja | AK186: Nein | AL186: Typ SIH 30 | AM186: Schiedel SIH 30 | AN186: 62 | CY186: (=vom 1.Rohr bis mitte Anschluss) | DA186: Achsmaße
G187: 5 | I187: 6.07 | CY187: T-Stück 85° | DA187: 414
G188: 5.33 | I188: 6.4 | T188: =U188&V188 -> SIH14L | U188: SIH | V188: 14L | W188: 32/46 cm | X188: Schiedel SIH | Y188: Dreischaliges Kaminsystem mit Keramik-Innenrohr | Z188: Nein | AA188: Geeignet für feste Brennstoffe (Abgastemeratur >= 160 °C) | AB188: flüssige u. gasf. Brennstoffe (ausgen. Brennwertgerätbetrieb). | AC188: N | AE188: 14 | AG188: Ja | AJ188: Ja | AK188: Ja | AL188: ="Typ SIH " &V188 -> Typ SIH 14L | AM188: =X188&" "& V188 -> Schiedel SIH 14L | AN188: =IF($C$74<=400,$C$60,IF($C$74<=2500,$C$61,IF($C$74<=5000,$C$62,$C$63))) -> 62 | CY188: T-Stück 90° | DA188: 385
G189: 5.66 | I189: 6.73 | T189: SIH16L | U189: SIH | V189: 16L | W189: 32/46 cm | X189: Schiedel SIH | Y189: Dreischaliges Kaminsystem mit Keramik-Innenrohr | Z189: Nein | AA189: Geeignet für feste Brennstoffe (Abgastemeratur >= 160 °C) | AB189: flüssige u. gasf. Brennstoffe (ausgen. Brennwertgerätbetrieb). | AC189: N | AE189: 16 | AG189: Ja | AJ189: Ja | AK189: Ja | AL189: Typ SIH 16L | AM189: Schiedel SIH 16L | AN189: 62 | CY189: T-Stück-mitte RA 45° | DA189: 855 | DC189: =IF($C$17="90°",$DA188,IF($C$17="85°",$DA187,$DA189)) -> 385 | DE189: =IF($C$17="90°",$DA188,IF($C$17="85°",$DA187,$DA189)) -> 385 | DG189: =IF($C$17="90°",$DA188,IF($C$17="85°",$DA187,$DA189)) -> 385 | DI189: =IF($C$17="90°",$DA188,IF($C$17="85°",$DA187,$DA189)) -> 385 | DK189: =IF($C$17="90°",$DA188,IF($C$17="85°",$DA187,$DA189)) -> 385 | DM189: =IF($C$17="90°",$DA188,IF($C$17="85°",$DA187,$DA189)) -> 385 | DO189: =IF($C$17="90°",$DA188,IF($C$17="85°",$DA187,$DA189)) -> 385
G190: 6 | I190: 7.07 | T190: SIH18L | U190: SIH | V190: 18L | W190: 36/50 cm | X190: Schiedel SIH | Y190: Dreischaliges Kaminsystem mit Keramik-Innenrohr | Z190: Nein | AA190: Geeignet für feste Brennstoffe (Abgastemeratur >= 160 °C) | AB190: flüssige u. gasf. Brennstoffe (ausgen. Brennwertgerätbetrieb). | AC190: N | AE190: 18 | AG190: Ja | AJ190: Ja | AK190: Ja | AL190: Typ SIH 18L | AM190: Schiedel SIH 18L | AN190: 62 | CZ190: rund | DA190: eckig
G191: 6.33 | I191: 7.4 | T191: SIH20L | U191: SIH | V191: 20L | W191: 36/50 cm | X191: Schiedel SIH | Y191: Dreischaliges Kaminsystem mit Keramik-Innenrohr | Z191: Nein | AA191: Geeignet für feste Brennstoffe (Abgastemeratur >= 160 °C) | AB191: flüssige u. gasf. Brennstoffe (ausgen. Brennwertgerätbetrieb). | AC191: N | AE191: 20 | AG191: Ja | AJ191: Ja | AK191: Ja | AL191: Typ SIH 20L | AM191: Schiedel SIH 20L | AN191: 62 | CY191: Inspektionselement | CZ191: 705 | DA191: gibt es nicht | DC191: =$CZ191 -> 705 | DE191: =$CZ191 -> 705 | DG191: =$CZ191 -> 705 | DI191: =$CZ191 -> 705 | DK191: =$CZ191 -> 705 | DM191: =$CZ191 -> 705 | DO191: =$CZ191 -> 705
A192: Absolut | C192: =Kalkulation!$A$17 -> ABSOLUT | G192: 6.66 | I192: 7.73 | T192: SIH25L | U192: SIH | V192: 25L | W192: 48/62 cm | X192: Schiedel SIH | Y192: Dreischaliges Kaminsystem mit Keramik-Innenrohr | Z192: Nein | AA192: Geeignet für feste Brennstoffe (Abgastemeratur >= 160 °C) | AB192: flüssige u. gasf. Brennstoffe (ausgen. Brennwertgerätbetrieb). | AC192: N | AE192: 25 | AG192: Ja | AJ192: Ja | AK192: Nein | AL192: Typ SIH 25L | AM192: Schiedel SIH 25L | AN192: 62 | CY192: Sockel | CZ192: Bodenmont. | DA192: =IF($B$47=1,1039,IF($B$47=3,300,IF($B$47=4,95,0))) -> 0 | DC192: =$DA192 -> 0 | DE192: =$DA192 -> 0 | DG192: =$DA192 -> 0 | DI192: =$DA192 -> 0 | DK192: =$DA192 -> 0 | DM192: =$DA192 -> 0 | DO192: =$DA192 -> 0
A193: 22 | B193: =IF(C193=0,INDEX(Daten!$A$196:$A$262,A193,1),C193) -> 10 | C193: =IF(C192="AbsolutTL",AbsolutTL!$P$6,Absolut!$P$6) -> 0 | G193: 7 | I193: 8.07 | T193: SIH30L | U193: SIH | V193: 30L | W193: 55/71 cm | X193: Schiedel SIH | Y193: Dreischaliges Kaminsystem mit Keramik-Innenrohr | Z193: Nein | AA193: Geeignet für feste Brennstoffe (Abgastemeratur >= 160 °C) | AB193: flüssige u. gasf. Brennstoffe (ausgen. Brennwertgerätbetrieb). | AC193: N | AE193: 30 | AG193: Ja | AJ193: Ja | AK193: Nein | AL193: Typ SIH 30L | AM193: Schiedel SIH 30L | AN193: 62 | CY193: Rohrelement 955 | DA193: 955 | DB193: 0 | DC193: =$DA193*DB193 -> 0 | DD193: 0 | DE193: =$DA193*DD193 -> 0 | DF193: 0 | DG193: =$DA193*DF193 -> 0 | DH193: 0 | DI193: =$DA193*DH193 -> 0 | DJ193: 1 | DK193: =$DA193*DJ193 -> 955 | DL193: 1 | DM193: =$DA193*DL193 -> 955 | DN193: 1 | DO193: =$DA193*DN193 -> 955
A194: 22 | B194: =IF(C194=0,INDEX(Daten!$A$196:$A$262,A194,1),C194) -> 10 | C194: =IF(C192="SIH",SIH!O6,IF(C192="AVANT",AVANT!$O$7,IF(C192="MULTI",MULTI!$O$7,0))) -> 0 | G194: 7.33 | I194: 8.4 | CY194: Rohrelement 455 | DA194: 455 | DB194: 0 | DC194: =$DA194*DB194 -> 0 | DD194: 0 | DE194: =$DA194*DD194 -> 0 | DF194: 1 | DG194: =$DA194*DF194 -> 455 | DH194: 1 | DI194: =$DA194*DH194 -> 455 | DJ194: 0 | DK194: =$DA194*DJ194 -> 0 | DL194: 0 | DM194: =$DA194*DL194 -> 0 | DN194: 1 | DO194: =$DA194*DN194 -> 455
A195: Anlagenhöhe | C195: =INDEX(Daten!$A$196:$A$244,A194,1) -> 10 | G195: 7.66 | I195: 8.73 | T195: =U195&V195 -> SIH1614 | U195: SIH | V195: 1614 | W195: 32/59 cm | X195: Schiedel SIH | Y195: Dreischaliges Kaminsystem mit Keramik-Innenrohr | Z195: Nein | AA195: Geeignet für feste Brennstoffe (Abgastemeratur >= 160 °C) | AB195: flüssige u. gasf. Brennstoffe (ausgen. Brennwertgerätbetrieb). | AC195: N | AE195: 16 | AF195: 14 | AI195: 16 | AJ195: Ja | AK195: Ja | AL195: ="Typ SIH " &V195 -> Typ SIH 1614 | AM195: =X195&" "& V195 -> Schiedel SIH 1614 | AN195: =IF($C$74<=400,$C$60,IF($C$74<=2500,$C$61,IF($C$74<=5000,$C$62,$C$63))) -> 62 | CY195: Rohrelement 205 | DA195: 205 | DB195: 0 | DC195: =$DA195*DB195 -> 0 | DD195: 1 | DE195: =$DA195*DD195 -> 205 | DF195: 0 | DG195: =$DA195*DF195 -> 0 | DH195: 1 | DI195: =$DA195*DH195 -> 205 | DJ195: 0 | DK195: =$DA195*DJ195 -> 0 | DL195: 1 | DM195: =$DA195*DL195 -> 205 | DN195: 0 | DO195: =$DA195*DN195 -> 0
A196: 3 | G196: 8 | I196: 9.07 | T196: SIH1814 | U196: SIH | V196: 1814 | W196: 36/64 cm | X196: Schiedel SIH | Y196: Dreischaliges Kaminsystem mit Keramik-Innenrohr | Z196: Nein | AA196: Geeignet für feste Brennstoffe (Abgastemeratur >= 160 °C) | AB196: flüssige u. gasf. Brennstoffe (ausgen. Brennwertgerätbetrieb). | AC196: N | AE196: 18 | AF196: 14 | AI196: 18 | AJ196: Ja | AK196: Ja | AL196: Typ SIH 1814 | AM196: Schiedel SIH 1814 | AN196: 62
A197: 3.33 | G197: 8.33 | I197: 9.4 | T197: SIH1816 | U197: SIH | V197: 1816 | W197: 36/64 cm | X197: Schiedel SIH | Y197: Dreischaliges Kaminsystem mit Keramik-Innenrohr | Z197: Nein | AA197: Geeignet für feste Brennstoffe (Abgastemeratur >= 160 °C) | AB197: flüssige u. gasf. Brennstoffe (ausgen. Brennwertgerätbetrieb). | AC197: N | AE197: 18 | AF197: 16 | AI197: 18 | AJ197: Ja | AK197: Ja | AL197: Typ SIH 1816 | AM197: Schiedel SIH 1816 | AN197: 62
A198: 3.66 | G198: 8.66 | I198: 9.73 | T198: SIH2014 | U198: SIH | V198: 2014 | W198: 36/64 cm | X198: Schiedel SIH | Y198: Dreischaliges Kaminsystem mit Keramik-Innenrohr | Z198: Nein | AA198: Geeignet für feste Brennstoffe (Abgastemeratur >= 160 °C) | AB198: flüssige u. gasf. Brennstoffe (ausgen. Brennwertgerätbetrieb). | AC198: N | AE198: 20 | AF198: 14 | AI198: 20 | AJ198: Ja | AK198: Ja | AL198: Typ SIH 2014 | AM198: Schiedel SIH 2014 | AN198: 62
A199: 4 | G199: 9 | I199: 10.07 | T199: SIH2016 | U199: SIH | V199: 2016 | W199: 36/64 cm | X199: Schiedel SIH | Y199: Dreischaliges Kaminsystem mit Keramik-Innenrohr | Z199: Nein | AA199: Geeignet für feste Brennstoffe (Abgastemeratur >= 160 °C) | AB199: flüssige u. gasf. Brennstoffe (ausgen. Brennwertgerätbetrieb). | AC199: N | AE199: 20 | AF199: 16 | AI199: 20 | AJ199: Ja | AK199: Ja | AL199: Typ SIH 2016 | AM199: Schiedel SIH 2016 | AN199: 62
A200: 4.33 | G200: 9.33 | I200: 10.4 | T200: SIH2018 | U200: SIH | V200: 2018 | W200: 36/67 cm | X200: Schiedel SIH | Y200: Dreischaliges Kaminsystem mit Keramik-Innenrohr | Z200: Nein | AA200: Geeignet für feste Brennstoffe (Abgastemeratur >= 160 °C) | AB200: flüssige u. gasf. Brennstoffe (ausgen. Brennwertgerätbetrieb). | AC200: N | AE200: 20 | AF200: 18 | AI200: 20 | AJ200: Ja | AK200: Ja | AL200: Typ SIH 2018 | AM200: Schiedel SIH 2018 | AN200: 62
A201: 4.66 | G201: 9.66 | I201: 10.73
... 836 more rows

Sheet Optional (hidden)
A1: AABSOLUT1814 | B1: ABSOLUT1814 | C1: ="A"&Daten!$U$48 -> AABSOLUT1814 | D1: =Daten!$U$48 -> ABSOLUT1814
C2: ="A"&Daten!$U$179 -> ASIH18 | D2: =Daten!$U$179 -> SIH18 | E2: =IF($E$8="","","Optional für"&" "&VLOOKUP($B$1,Daten!$T:$AC,5,0)& " " &VLOOKUP($B$1,Daten!$T:$AC,3,0)) -> Optional für Schiedel ABSOLUT, ABS 1814
C3: ="A"&Daten!$U$496 -> A | D3: =Daten!$U$496 -> 0
C4: ="A"&Daten!$U$508 -> A | D4: =Daten!$U$508 -> 0
C5: ="A"&Daten!$U$519 -> A | D5: =Daten!$U$519 -> 0
C6: ="A"&Daten!$U$47 -> AABSOLUT18TL | D6: =Daten!$U$47 -> ABSOLUT18TL
A7: Nr. | B7: Verkn. | C7: Rabatt- fähig | D7: Pos. | E7: Artikelnummer | F7: Artikelbezeichnung | G7: Gewicht
A8: 0 | B8: =$A$1&Optional!A8 -> AABSOLUT18140 | C8: =IF(E8="","",IF(E8="Sonder","J",VLOOKUP(E8,sanschie!B:K,10,0))) -> J | D8: =IF(ISNA(VLOOKUP($B8,Sortimente!D:G,2,0))=TRUE,"",VLOOKUP($B8,Sortimente!D:G,2,0)) -> P | E8: =IF($D$8="","",VLOOKUP($B8,Sortimente!$D:$G,4,0)) -> Absolut1814 | F8: =IF(E8="","",VLOOKUP(E8,sanschie!B:E,4,0)) -> Absolut-Kaminanlage Ø 1814 | G8: =IF(E8="","",IF(VLOOKUP(E8,sanschie!B:J,9,0)="","",VLOOKUP(E8,sanschie!B:J,9,0))) -> 
A9: 1 | B9: =$A$1&Optional!A9 -> AABSOLUT18141 | C9: =IF(E9="","",IF(E9="Sonder","J",VLOOKUP(E9,sanschie!B:K,10,0))) -> J | D9: =IF(ISNA(VLOOKUP($B9,Sortimente!D:G,2,0))=TRUE,"",VLOOKUP($B9,Sortimente!D:G,2,0)) -> 9 | E9: =IF(D9="","",VLOOKUP($B9,Sortimente!D:G,4,0)) -> 149789 | F9: =IF(E9="","",VLOOKUP(E9,sanschie!B:E,4,0)) -> ABSOLUT Thermotrennstein 12-18/12-18 monolithisch weiß | G9: =IF(E9="","",IF(VLOOKUP(E9,sanschie!B:J,8,0)=0,"",IF(VLOOKUP(E9,sanschie!B:J,8,0)="","",VLOOKUP(E9,sanschie!B:J,8,0)))) -> 24.8
A10: 2 | B10: =$A$1&Optional!A10 -> AABSOLUT18142 | C10: =IF(E10="","",IF(E10="Sonder","J",VLOOKUP(E10,sanschie!B:K,10,0))) -> J | D10: =IF(ISNA(VLOOKUP($B10,Sortimente!D:G,2,0))=TRUE,"",VLOOKUP($B10,Sortimente!D:G,2,0)) -> 0 | E10: =IF(D10="","",VLOOKUP($B10,Sortimente!D:G,4,0)) -> 100096 | F10: =IF(E10="","",VLOOKUP(E10,sanschie!B:E,4,0)) -> ABSOLUT Thermo-Fußplatte 12-18/12-18 | G10: =IF(E10="","",IF(VLOOKUP(E10,sanschie!B:J,8,0)=0,"",IF(VLOOKUP(E10,sanschie!B:J,8,0)="","",VLOOKUP(E10,sanschie!B:J,8,0)))) -> 5.16
A11: 3 | B11: =$A$1&Optional!A11 -> AABSOLUT18143 | C11: =IF(E11="","",IF(E11="Sonder","J",VLOOKUP(E11,sanschie!B:K,10,0))) -> J | D11: =IF(ISNA(VLOOKUP($B11,Sortimente!D:G,2,0))=TRUE,"",VLOOKUP($B11,Sortimente!D:G,2,0)) -> 0 | E11: =IF(D11="","",VLOOKUP($B11,Sortimente!D:G,4,0)) -> 108197 | F11: =IF(E11="","",VLOOKUP(E11,sanschie!B:E,4,0)) -> ABSOLUT Folienanschluss-Set Innen und Außen | G11: =IF(E11="","",IF(VLOOKUP(E11,sanschie!B:J,8,0)=0,"",IF(VLOOKUP(E11,sanschie!B:J,8,0)="","",VLOOKUP(E11,sanschie!B:J,8,0)))) -> 
A12: 4 | B12: =$A$1&Optional!A12 -> AABSOLUT18144 | C12: =IF(E12="","",IF(E12="Sonder","J",VLOOKUP(E12,sanschie!B:K,10,0))) -> J | D12: =IF(ISNA(VLOOKUP($B12,Sortimente!D:G,2,0))=TRUE,"",VLOOKUP($B12,Sortimente!D:G,2,0)) -> 0 | E12: =IF(D12="","",VLOOKUP($B12,Sortimente!D:G,4,0)) -> 100214 | F12: =IF(E12="","",VLOOKUP(E12,sanschie!B:E,4,0)) -> ABSOLUT Folienanschlusspaket innen | G12: =IF(E12="","",IF(VLOOKUP(E12,sanschie!B:J,8,0)=0,"",IF(VLOOKUP(E12,sanschie!B:J,8,0)="","",VLOOKUP(E12,sanschie!B:J,8,0)))) -> 1.04
A13: 5 | B13: =$A$1&Optional!A13 -> AABSOLUT18145 | C13: =IF(E13="","",IF(E13="Sonder","J",VLOOKUP(E13,sanschie!B:K,10,0))) -> J | D13: =IF(ISNA(VLOOKUP($B13,Sortimente!D:G,2,0))=TRUE,"",VLOOKUP($B13,Sortimente!D:G,2,0)) -> 0 | E13: =IF(D13="","",VLOOKUP($B13,Sortimente!D:G,4,0)) -> 100215 | F13: =IF(E13="","",VLOOKUP(E13,sanschie!B:E,4,0)) -> ABSOLUT Folienanschlusspaket außen | G13: =IF(E13="","",IF(VLOOKUP(E13,sanschie!B:J,8,0)=0,"",IF(VLOOKUP(E13,sanschie!B:J,8,0)="","",VLOOKUP(E13,sanschie!B:J,8,0)))) -> 0.5
A14: 6 | B14: =$A$1&Optional!A14 -> AABSOLUT18146 | C14: =IF(E14="","",IF(E14="Sonder","J",VLOOKUP(E14,sanschie!B:K,10,0))) -> J | D14: =IF(ISNA(VLOOKUP($B14,Sortimente!D:G,2,0))=TRUE,"",VLOOKUP($B14,Sortimente!D:G,2,0)) -> 0 | E14: =IF(D14="","",VLOOKUP($B14,Sortimente!D:G,4,0)) -> 100514 | F14: =IF(E14="","",VLOOKUP(E14,sanschie!B:E,4,0)) -> Kaminhalter Standard | G14: =IF(E14="","",IF(VLOOKUP(E14,sanschie!B:J,8,0)=0,"",IF(VLOOKUP(E14,sanschie!B:J,8,0)="","",VLOOKUP(E14,sanschie!B:J,8,0)))) -> 15.6
A15: 7 | B15: =$A$1&Optional!A15 -> AABSOLUT18147 | C15: =IF(E15="","",IF(E15="Sonder","J",VLOOKUP(E15,sanschie!B:K,10,0))) -> J | D15: =IF(ISNA(VLOOKUP($B15,Sortimente!D:G,2,0))=TRUE,"",VLOOKUP($B15,Sortimente!D:G,2,0)) -> 10 | E15: =IF(D15="","",VLOOKUP($B15,Sortimente!D:G,4,0)) -> 108333 | F15: =IF(E15="","",VLOOKUP(E15,sanschie!B:E,4,0)) -> Bewehrungsset 4x4m M12 inkl. Vergussmörtel | G15: =IF(E15="","",IF(VLOOKUP(E15,sanschie!B:J,8,0)=0,"",IF(VLOOKUP(E15,sanschie!B:J,8,0)="","",VLOOKUP(E15,sanschie!B:J,8,0)))) -> 
A16: 8 | B16: =$A$1&Optional!A16 -> AABSOLUT18148 | C16: =IF(E16="","",IF(E16="Sonder","J",VLOOKUP(E16,sanschie!B:K,10,0))) -> J | D16: =IF(ISNA(VLOOKUP($B16,Sortimente!D:G,2,0))=TRUE,"",VLOOKUP($B16,Sortimente!D:G,2,0)) ->  | E16: =IF(D16="","",VLOOKUP($B16,Sortimente!D:G,4,0)) -> 108334 | F16: =IF(E16="","",VLOOKUP(E16,sanschie!B:E,4,0)) -> Bewehrungsset 4x6m M12 inkl. Vergussmörtel | G16: =IF(E16="","",IF(VLOOKUP(E16,sanschie!B:J,8,0)=0,"",IF(VLOOKUP(E16,sanschie!B:J,8,0)="","",VLOOKUP(E16,sanschie!B:J,8,0)))) -> 
A17: 9 | B17: =$A$1&Optional!A17 -> AABSOLUT18149 | C17: =IF(E17="","",IF(E17="Sonder","J",VLOOKUP(E17,sanschie!B:K,10,0))) -> J | D17: =IF(ISNA(VLOOKUP($B17,Sortimente!D:G,2,0))=TRUE,"",VLOOKUP($B17,Sortimente!D:G,2,0)) -> 0 | E17: =IF(D17="","",VLOOKUP($B17,Sortimente!D:G,4,0)) -> 100016 | F17: =IF(E17="","",VLOOKUP(E17,sanschie!B:E,4,0)) -> Steck-Adapter 160/55 | G17: =IF(E17="","",IF(VLOOKUP(E17,sanschie!B:J,8,0)=0,"",IF(VLOOKUP(E17,sanschie!B:J,8,0)="","",VLOOKUP(E17,sanschie!B:J,8,0)))) -> 0.29
A18: 10 | B18: =$A$1&Optional!A18 -> AABSOLUT181410 | C18: =IF(E18="","",IF(E18="Sonder","J",VLOOKUP(E18,sanschie!B:K,10,0))) -> J | D18: =IF(ISNA(VLOOKUP($B18,Sortimente!D:G,2,0))=TRUE,"",VLOOKUP($B18,Sortimente!D:G,2,0)) -> 0 | E18: =IF(D18="","",VLOOKUP($B18,Sortimente!D:G,4,0)) -> 100018 | F18: =IF(E18="","",VLOOKUP(E18,sanschie!B:E,4,0)) -> Steck-Adapter Set 160/55-200/70 | G18: =IF(E18="","",IF(VLOOKUP(E18,sanschie!B:J,8,0)=0,"",IF(VLOOKUP(E18,sanschie!B:J,8,0)="","",VLOOKUP(E18,sanschie!B:J,8,0)))) -> 0.9
A19: 11 | B19: =$A$1&Optional!A19 -> AABSOLUT181411 | C19: =IF(E19="","",IF(E19="Sonder","J",VLOOKUP(E19,sanschie!B:K,10,0))) -> J | D19: =IF(ISNA(VLOOKUP($B19,Sortimente!D:G,2,0))=TRUE,"",VLOOKUP($B19,Sortimente!D:G,2,0)) -> 0 | E19: =IF(D19="","",VLOOKUP($B19,Sortimente!D:G,4,0)) -> 100200 | F19: =IF(E19="","",VLOOKUP(E19,sanschie!B:E,4,0)) -> Anschlussfutter + Dichtband 18/130 | G19: =IF(E19="","",IF(VLOOKUP(E19,sanschie!B:J,8,0)=0,"",IF(VLOOKUP(E19,sanschie!B:J,8,0)="","",VLOOKUP(E19,sanschie!B:J,8,0)))) -> 1
A20: 12 | B20: =$A$1&Optional!A20 -> AABSOLUT181412 | C20: =IF(E20="","",IF(E20="Sonder","J",VLOOKUP(E20,sanschie!B:K,10,0))) -> J | D20: =IF(ISNA(VLOOKUP($B20,Sortimente!D:G,2,0))=TRUE,"",VLOOKUP($B20,Sortimente!D:G,2,0)) -> 0 | E20: =IF(D20="","",VLOOKUP($B20,Sortimente!D:G,4,0)) -> 100201 | F20: =IF(E20="","",VLOOKUP(E20,sanschie!B:E,4,0)) -> Anschlussfutter + Dichtband 18/150 | G20: =IF(E20="","",IF(VLOOKUP(E20,sanschie!B:J,8,0)=0,"",IF(VLOOKUP(E20,sanschie!B:J,8,0)="","",VLOOKUP(E20,sanschie!B:J,8,0)))) -> 1
A21: 13 | B21: =$A$1&Optional!A21 -> AABSOLUT181413 | C21: =IF(E21="","",IF(E21="Sonder","J",VLOOKUP(E21,sanschie!B:K,10,0))) -> J | D21: =IF(ISNA(VLOOKUP($B21,Sortimente!D:G,2,0))=TRUE,"",VLOOKUP($B21,Sortimente!D:G,2,0)) -> 0 | E21: =IF(D21="","",VLOOKUP($B21,Sortimente!D:G,4,0)) -> 100196 | F21: =IF(E21="","",VLOOKUP(E21,sanschie!B:E,4,0)) -> Anschlussfutter + Dichtband 16/130 | G21: =IF(E21="","",IF(VLOOKUP(E21,sanschie!B:J,8,0)=0,"",IF(VLOOKUP(E21,sanschie!B:J,8,0)="","",VLOOKUP(E21,sanschie!B:J,8,0)))) -> 1
A22: 14 | B22: =$A$1&Optional!A22 -> AABSOLUT181414 | C22: =IF(E22="","",IF(E22="Sonder","J",VLOOKUP(E22,sanschie!B:K,10,0))) -> J | D22: =IF(ISNA(VLOOKUP($B22,Sortimente!D:G,2,0))=TRUE,"",VLOOKUP($B22,Sortimente!D:G,2,0)) -> 0 | E22: =IF(D22="","",VLOOKUP($B22,Sortimente!D:G,4,0)) -> 101832 | F22: =IF(E22="","",VLOOKUP(E22,sanschie!B:E,4,0)) -> Anschlußblende 15 | G22: =IF(E22="","",IF(VLOOKUP(E22,sanschie!B:J,8,0)=0,"",IF(VLOOKUP(E22,sanschie!B:J,8,0)="","",VLOOKUP(E22,sanschie!B:J,8,0)))) -> 0.4
A23: 15 | B23: =$A$1&Optional!A23 -> AABSOLUT181415 | C23: =IF(E23="","",IF(E23="Sonder","J",VLOOKUP(E23,sanschie!B:K,10,0))) -> J | D23: =IF(ISNA(VLOOKUP($B23,Sortimente!D:G,2,0))=TRUE,"",VLOOKUP($B23,Sortimente!D:G,2,0)) -> 0 | E23: =IF(D23="","",VLOOKUP($B23,Sortimente!D:G,4,0)) -> 101830 | F23: =IF(E23="","",VLOOKUP(E23,sanschie!B:E,4,0)) -> Anschlußblende 11 | G23: =IF(E23="","",IF(VLOOKUP(E23,sanschie!B:J,8,0)=0,"",IF(VLOOKUP(E23,sanschie!B:J,8,0)="","",VLOOKUP(E23,sanschie!B:J,8,0)))) -> 0.2
A24: 16 | B24: =$A$1&Optional!A24 -> AABSOLUT181416 | C24: =IF(E24="","",IF(E24="Sonder","J",VLOOKUP(E24,sanschie!B:K,10,0))) -> J | D24: =IF(ISNA(VLOOKUP($B24,Sortimente!D:G,2,0))=TRUE,"",VLOOKUP($B24,Sortimente!D:G,2,0)) -> 0 | E24: =IF(D24="","",VLOOKUP($B24,Sortimente!D:G,4,0)) -> 108188 | F24: =IF(E24="","",VLOOKUP(E24,sanschie!B:E,4,0)) -> Zugbegrenzer + Explosionsklappe + Adapter 18 | G24: =IF(E24="","",IF(VLOOKUP(E24,sanschie!B:J,8,0)=0,"",IF(VLOOKUP(E24,sanschie!B:J,8,0)="","",VLOOKUP(E24,sanschie!B:J,8,0)))) -> 
A25: 17 | B25: =$A$1&Optional!A25 -> AABSOLUT181417 | C25: =IF(E25="","",IF(E25="Sonder","J",VLOOKUP(E25,sanschie!B:K,10,0))) -> J | D25: =IF(ISNA(VLOOKUP($B25,Sortimente!D:G,2,0))=TRUE,"",VLOOKUP($B25,Sortimente!D:G,2,0)) -> 0 | E25: =IF(D25="","",VLOOKUP($B25,Sortimente!D:G,4,0)) -> 108187 | F25: =IF(E25="","",VLOOKUP(E25,sanschie!B:E,4,0)) -> Zugbegrenzer + Explosionsklappe + Adapter 16 | G25: =IF(E25="","",IF(VLOOKUP(E25,sanschie!B:J,8,0)=0,"",IF(VLOOKUP(E25,sanschie!B:J,8,0)="","",VLOOKUP(E25,sanschie!B:J,8,0)))) -> 
A26: 18 | B26: =$A$1&Optional!A26 -> AABSOLUT181418 | C26: =IF(E26="","",IF(E26="Sonder","J",VLOOKUP(E26,sanschie!B:K,10,0))) -> J | D26: =IF(ISNA(VLOOKUP($B26,Sortimente!D:G,2,0))=TRUE,"",VLOOKUP($B26,Sortimente!D:G,2,0)) -> 0 | E26: =IF(D26="","",VLOOKUP($B26,Sortimente!D:G,4,0)) -> 100234 | F26: =IF(E26="","",VLOOKUP(E26,sanschie!B:E,4,0)) -> Regenhaube "EAGLE" aufklappbar 12-18 | G26: =IF(E26="","",IF(VLOOKUP(E26,sanschie!B:J,8,0)=0,"",IF(VLOOKUP(E26,sanschie!B:J,8,0)="","",VLOOKUP(E26,sanschie!B:J,8,0)))) -> 1.05
A27: 19 | B27: =$A$1&Optional!A27 -> AABSOLUT181419 | C27: =IF(E27="","",IF(E27="Sonder","J",VLOOKUP(E27,sanschie!B:K,10,0))) -> J | D27: =IF(ISNA(VLOOKUP($B27,Sortimente!D:G,2,0))=TRUE,"",VLOOKUP($B27,Sortimente!D:G,2,0)) -> 0 | E27: =IF(D27="","",VLOOKUP($B27,Sortimente!D:G,4,0)) -> 101867 | F27: =IF(E27="","",VLOOKUP(E27,sanschie!B:E,4,0)) -> KERASTAR Ignis Protect 10 cm | G27: =IF(E27="","",IF(VLOOKUP(E27,sanschie!B:J,8,0)=0,"",IF(VLOOKUP(E27,sanschie!B:J,8,0)="","",VLOOKUP(E27,sanschie!B:J,8,0)))) -> 4.2
A28: 20 | B28: =$A$1&Optional!A28 -> AABSOLUT181420 | C28: =IF(E28="","",IF(E28="Sonder","J",VLOOKUP(E28,sanschie!B:K,10,0))) -> J | D28: =IF(ISNA(VLOOKUP($B28,Sortimente!D:G,2,0))=TRUE,"",VLOOKUP($B28,Sortimente!D:G,2,0)) -> 0 | E28: =IF(D28="","",VLOOKUP($B28,Sortimente!D:G,4,0)) -> 101854 | F28: =IF(E28="","",VLOOKUP(E28,sanschie!B:E,4,0)) -> KERASTAR IgnisProtect Wanddurchführung A 150 | G28: =IF(E28="","",IF(VLOOKUP(E28,sanschie!B:J,8,0)=0,"",IF(VLOOKUP(E28,sanschie!B:J,8,0)="","",VLOOKUP(E28,sanschie!B:J,8,0)))) -> 6
A29: 21 | B29: =$A$1&Optional!A29 -> AABSOLUT181421 | C29: =IF(E29="","",IF(E29="Sonder","J",VLOOKUP(E29,sanschie!B:K,10,0))) -> J | D29: =IF(ISNA(VLOOKUP($B29,Sortimente!D:G,2,0))=TRUE,"",VLOOKUP($B29,Sortimente!D:G,2,0)) -> 0 | E29: =IF(D29="","",VLOOKUP($B29,Sortimente!D:G,4,0)) -> 101855 | F29: =IF(E29="","",VLOOKUP(E29,sanschie!B:E,4,0)) -> KERASTAR IgnisProtect Wanddurchführung A 200 | G29: =IF(E29="","",IF(VLOOKUP(E29,sanschie!B:J,8,0)=0,"",IF(VLOOKUP(E29,sanschie!B:J,8,0)="","",VLOOKUP(E29,sanschie!B:J,8,0)))) -> 8.4
A30: 22 | B30: =$A$1&Optional!A30 -> AABSOLUT181422 | C30: =IF(E30="","",IF(E30="Sonder","J",VLOOKUP(E30,sanschie!B:K,10,0))) -> J | D30: =IF(ISNA(VLOOKUP($B30,Sortimente!D:G,2,0))=TRUE,"",VLOOKUP($B30,Sortimente!D:G,2,0)) -> 0 | E30: =IF(D30="","",VLOOKUP($B30,Sortimente!D:G,4,0)) -> 101856 | F30: =IF(E30="","",VLOOKUP(E30,sanschie!B:E,4,0)) -> KERASTAR IgnisProtect Wanddurchführung A 250 | G30: =IF(E30="","",IF(VLOOKUP(E30,sanschie!B:J,8,0)=0,"",IF(VLOOKUP(E30,sanschie!B:J,8,0)="","",VLOOKUP(E30,sanschie!B:J,8,0)))) -> 10.5
A31: 23 | B31: =$A$1&Optional!A31 -> AABSOLUT181423 | C31: =IF(E31="","",IF(E31="Sonder","J",VLOOKUP(E31,sanschie!B:K,10,0))) -> J | D31: =IF(ISNA(VLOOKUP($B31,Sortimente!D:G,2,0))=TRUE,"",VLOOKUP($B31,Sortimente!D:G,2,0)) -> 0 | E31: =IF(D31="","",VLOOKUP($B31,Sortimente!D:G,4,0)) -> 101857 | F31: =IF(E31="","",VLOOKUP(E31,sanschie!B:E,4,0)) -> KERASTAR IgnisProtect Wanddurchführung A 300 | G31: =IF(E31="","",IF(VLOOKUP(E31,sanschie!B:J,8,0)=0,"",IF(VLOOKUP(E31,sanschie!B:J,8,0)="","",VLOOKUP(E31,sanschie!B:J,8,0)))) -> 12.5
A32: 24 | B32: =$A$1&Optional!A32 -> AABSOLUT181424 | C32: =IF(E32="","",IF(E32="Sonder","J",VLOOKUP(E32,sanschie!B:K,10,0))) -> J | D32: =IF(ISNA(VLOOKUP($B32,Sortimente!D:G,2,0))=TRUE,"",VLOOKUP($B32,Sortimente!D:G,2,0)) -> 0 | E32: =IF(D32="","",VLOOKUP($B32,Sortimente!D:G,4,0)) -> 101858 | F32: =IF(E32="","",VLOOKUP(E32,sanschie!B:E,4,0)) -> KERASTAR IgnisProtect Wanddurchführung A 350 | G32: =IF(E32="","",IF(VLOOKUP(E32,sanschie!B:J,8,0)=0,"",IF(VLOOKUP(E32,sanschie!B:J,8,0)="","",VLOOKUP(E32,sanschie!B:J,8,0)))) -> 15
A33: 25 | B33: =$A$1&Optional!A33 -> AABSOLUT181425 | C33: =IF(E33="","",IF(E33="Sonder","J",VLOOKUP(E33,sanschie!B:K,10,0))) -> J | D33: =IF(ISNA(VLOOKUP($B33,Sortimente!D:G,2,0))=TRUE,"",VLOOKUP($B33,Sortimente!D:G,2,0)) -> 0 | E33: =IF(D33="","",VLOOKUP($B33,Sortimente!D:G,4,0)) -> 101859 | F33: =IF(E33="","",VLOOKUP(E33,sanschie!B:E,4,0)) -> KERASTAR IgnisProtect Wanddurchführung A 400 | G33: =IF(E33="","",IF(VLOOKUP(E33,sanschie!B:J,8,0)=0,"",IF(VLOOKUP(E33,sanschie!B:J,8,0)="","",VLOOKUP(E33,sanschie!B:J,8,0)))) -> 16.7
A34: 26 | B34: =$A$1&Optional!A34 -> AABSOLUT181426 | C34: =IF(E34="","",IF(E34="Sonder","J",VLOOKUP(E34,sanschie!B:K,10,0))) ->  | D34: =IF(ISNA(VLOOKUP($B34,Sortimente!D:G,2,0))=TRUE,"",VLOOKUP($B34,Sortimente!D:G,2,0)) ->  | E34: =IF(D34="","",VLOOKUP($B34,Sortimente!D:G,4,0)) ->  | F34: =IF(E34="","",VLOOKUP(E34,sanschie!B:E,4,0)) ->  | G34: =IF(E34="","",IF(VLOOKUP(E34,sanschie!B:J,8,0)=0,"",IF(VLOOKUP(E34,sanschie!B:J,8,0)="","",VLOOKUP(E34,sanschie!B:J,8,0)))) -> 
A35: 27 | B35: =$A$1&Optional!A35 -> AABSOLUT181427 | C35: =IF(E35="","",IF(E35="Sonder","J",VLOOKUP(E35,sanschie!B:K,10,0))) ->  | D35: =IF(ISNA(VLOOKUP($B35,Sortimente!D:G,2,0))=TRUE,"",VLOOKUP($B35,Sortimente!D:G,2,0)) ->  | E35: =IF(D35="","",VLOOKUP($B35,Sortimente!D:G,4,0)) ->  | F35: =IF(E35="","",VLOOKUP(E35,sanschie!B:E,4,0)) ->  | G35: =IF(E35="","",IF(VLOOKUP(E35,sanschie!B:J,8,0)=0,"",IF(VLOOKUP(E35,sanschie!B:J,8,0)="","",VLOOKUP(E35,sanschie!B:J,8,0)))) -> 
A36: 28 | B36: =$A$1&Optional!A36 -> AABSOLUT181428 | C36: =IF(E36="","",IF(E36="Sonder","J",VLOOKUP(E36,sanschie!B:K,10,0))) ->  | D36: =IF(ISNA(VLOOKUP($B36,Sortimente!D:G,2,0))=TRUE,"",VLOOKUP($B36,Sortimente!D:G,2,0)) ->  | E36: =IF(D36="","",VLOOKUP($B36,Sortimente!D:G,4,0)) ->  | F36: =IF(E36="","",VLOOKUP(E36,sanschie!B:E,4,0)) ->  | G36: =IF(E36="","",IF(VLOOKUP(E36,sanschie!B:J,8,0)=0,"",IF(VLOOKUP(E36,sanschie!B:J,8,0)="","",VLOOKUP(E36,sanschie!B:J,8,0)))) -> 
A37: 29 | B37: =$A$1&Optional!A37 -> AABSOLUT181429 | C37: =IF(E37="","",IF(E37="Sonder","J",VLOOKUP(E37,sanschie!B:K,10,0))) ->  | D37: =IF(ISNA(VLOOKUP($B37,Sortimente!D:G,2,0))=TRUE,"",VLOOKUP($B37,Sortimente!D:G,2,0)) ->  | E37: =IF(D37="","",VLOOKUP($B37,Sortimente!D:G,4,0)) ->  | F37: =IF(E37="","",VLOOKUP(E37,sanschie!B:E,4,0)) ->  | G37: =IF(E37="","",IF(VLOOKUP(E37,sanschie!B:J,8,0)=0,"",IF(VLOOKUP(E37,sanschie!B:J,8,0)="","",VLOOKUP(E37,sanschie!B:J,8,0)))) -> 
A38: 30 | B38: =$A$1&Optional!A38 -> AABSOLUT181430 | C38: =IF(E38="","",IF(E38="Sonder","J",VLOOKUP(E38,sanschie!B:K,10,0))) ->  | D38: =IF(ISNA(VLOOKUP($B38,Sortimente!D:G,2,0))=TRUE,"",VLOOKUP($B38,Sortimente!D:G,2,0)) ->  | E38: =IF(D38="","",VLOOKUP($B38,Sortimente!D:G,4,0)) ->  | F38: =IF(E38="","",VLOOKUP(E38,sanschie!B:E,4,0)) ->  | G38: =IF(E38="","",IF(VLOOKUP(E38,sanschie!B:J,8,0)=0,"",IF(VLOOKUP(E38,sanschie!B:J,8,0)="","",VLOOKUP(E38,sanschie!B:J,8,0)))) -> 
F78: Schiedel VL-PRIMA PLUS 0,6 Ø130 | H78: 1
F79: PPL T-Stk.f.An+Verschl.0,6/130 | G79: 283
F80: ZBE Revisionsverschl.FU 130
F81: PPL Revisionsverschl.NT 130
F82: ZBE Dichtring Silikon 130
F83: ZBE Dichtring Viton 130
F84: ZBE Kunstst.Gleitmittel 150ml
F85: PPL Rohrelement 1000 0,6/130 | G85: 950
F86: PPL Rohrelement 500 0,6/130 | G86: 450
F87: PPL Rohrelement 250 0,6/130 | G87: 200
F88: PPL Ausgleichselement 0,6/130
F89: ZBE Messstopfen
F90: PPL Klemmband 130
F91: ZBE Rohrschelle Edelstahl 13
F92: ZBE Gewinderohr 12mm 1m
E93: 267000402 | F93: ZBE Grundplatte M12
E94: 137034513 | F94: PPL Bogen 45 Gr.0,6/130
E95: 137038513 | F95: PPL Bogen 85 Gr.0,6/130
E96: 137038613 | F96: PPL Bogen 85 Gr.+Rev.0,6/130
E97: 137039013 | F97: PPL Bogen 90 Gr.0,6/130
E98: 137039113 | F98: PPL Bogen 90 Gr.+Rev.0,6/130
E99: 137032913 | F99: PPL Bogen 0-30 Gr.vari.0,6/130
E100: 137038913 | F100: PPL Bogen 0-90 Gr.vari.0,6/130
E101: 137039213 | F101: PPL Bogen 0-90 vari+RV 0,6/130
E102: 267000513 | F102: ZBE Dichtset NT 130
E103: 265820413 | F103: PPL Kesselanschluss 130
E104: 265000113 | F104: ZBE Körperschallabsorb.Gas 130
E105: 265000513 | F105: ZBE Körperschallabs.Festbr.130
E106: 137022513 | F106: PPL Rohr+Kondens.250 0,6/130 | G106: 200
E107: 255300001 | F107: ZBE Zugbegrenzer+Expl.Kl.Gr. I
E108: 265051311 | F108: ZBE Adapter f.Zugbegrenz.13/11
E109: 267300113 | F109: ASD Kompakt 580/130
E110: 267300313 | F110: ASD Verlängerung 360/080-130

Sheet IgnisProtect (hidden)
B56: Artikel-Nr. für | C56: Wandstärke | D56: Außenmaß | E56: Gewicht kg | F56: €/Stk.
B57: Außenwand | C57: mm | D57: mm | F57: mm
B58: 101840 | C58: 100 | D58: 565/700 | E58: =VLOOKUP(B58,sanschie!$B:$J,8,0) -> 4 | F58: =VLOOKUP(B58,sanschie!$B:$H,6,0) -> 215.7
B59: 101841 | C59: 150 | D59: 565/700 | E59: =VLOOKUP(B59,sanschie!$B:$J,8,0) -> 6 | F59: =VLOOKUP(B59,sanschie!$B:$H,6,0) -> 322.7
B60: 101842 | C60: 200 | D60: 565/700 | E60: =VLOOKUP(B60,sanschie!$B:$J,8,0) -> 8.4 | F60: =VLOOKUP(B60,sanschie!$B:$H,6,0) -> 405.1
B61: 101843 | C61: 250 | D61: 565/700 | E61: =VLOOKUP(B61,sanschie!$B:$J,8,0) -> 10.5 | F61: =VLOOKUP(B61,sanschie!$B:$H,6,0) -> 501
B62: 101844 | C62: 300 | D62: 565/700 | E62: =VLOOKUP(B62,sanschie!$B:$J,8,0) -> 12.5 | F62: =VLOOKUP(B62,sanschie!$B:$H,6,0) -> 554.3
B63: 101845 | C63: 350 | D63: 565/700 | E63: =VLOOKUP(B63,sanschie!$B:$J,8,0) -> 15 | F63: =VLOOKUP(B63,sanschie!$B:$H,6,0) -> 666.4
B64: 101846 | C64: 400 | D64: 565/700 | E64: =VLOOKUP(B64,sanschie!$B:$J,8,0) -> 16.7 | F64: =VLOOKUP(B64,sanschie!$B:$H,6,0) -> 742.8
B67: passend für alle Dimensionen | D67: Art-Nr. | E67: 131851 | F67: =VLOOKUP(E67,sanschie!$B:$H,6,0) -> 21.6

Sheet SIH PARAT (hidden)
F3: =VLOOKUP(Daten!$U$374,Daten!$T:$AL,19,0) -> Typ SIP 18 | Q3: =F3 -> Typ SIP 18
F5: Lichter Ø cm | H5: =IF(Daten!$T$374=46,"Freigabe durch CEO erforderlich ! ","") ->  | I5: ="Außenmaß: "&Daten!$Z$374 -> Außenmaß: 36/36 cm
F7: Anlagenhöhe in m
F9: PARAT-Set | G9: für Fußteil und Mündung
F11: Rauchrohranschluss | H11: =Vokabel!$B$33 -> (bei kombiniert, kleiner Ø)
F13: Verschlämmen der Oberfläche
F15: Innenputz glatt / grau
F17: Werkseitige Kopfverkleidung
F19: Abdeckplatte
F21: Schiedel Kaminkopf
F24: =Vokabel!$B$39 -> Zubehör
F25: Anschlussfutter | H25: mit Keramikdichtband
F27: zusätzlicher RA | H27: (bei kombiniert, großer Ø)
F29: Revisionstür | H29: für Lüftungszug
F31: Abluftgitter | H31: für Lüftungszug
F33: obere Putztür | H33: (bei zweizügigen, für beide Züge)
F35: Biegesteife Ausführung | I35: für optimale Standsicherheit
F37: =Vokabel!$B$51 -> Kaminhalter
F39: Versetzschlaufen | H39: (Set: 4 Stück, SRd 12)

Sheet AVANT PARAT (hidden)
F3: =VLOOKUP(Daten!$U$454,Daten!$T:$AL,19,0) -> Typ AVP 16 | Q3: =F3 -> Typ AVP 16
F5: =Vokabel!$B$26 -> Lichter Ø cm | R5: ="Außenmaß: "&Daten!$Z$454 -> Außenmaß: 36/36 cm
F7: =Vokabel!$B$28 -> Anlagenhöhe in m
F9: PARAT-Set | G9: für Fußteil und Mündung
F11: =Vokabel!$B$31 -> Rauchrohranschluss
F13: Verschlämmen der Oberfläche
F15: Innenputz glatt / grau
F17: Werkseitige Kopfverkleidung
F19: Zuluftkopfplatte
F21: Schiedel Kaminkopf
F24: =Vokabel!$B$39 -> Zubehör
F26: =Vokabel!$B$47 -> obere Putztür
F28: Biegesteife Ausführung | I28: für optimale Standsicherheit
F30: =Vokabel!$B$51 -> Kaminhalter
F32: Versetzschlaufen | H32: (Set: 4 Stück, SRd 12)

Sheet ICS (hidden)
F2: =VLOOKUP(Daten!$U$105,Daten!$T:$AL,19,0) -> Typ ICS 80 | P2: =VLOOKUP(Daten!$U$105,Daten!$T:$U,2,0)&VLOOKUP(Daten!$U$105,Daten!$T:$V,3,0) -> ICS80
F4: =Vokabel!$A$54 -> Lichter Ø mm
F6: =Vokabel!$A$55 -> Betriebsweise
F8: =Vokabel!$A$56 -> Brennstoff | M8: =Vokabel!$A$75 -> Anpassung der Anlagenhöhe
F10: =Vokabel!$A$28 -> Anlagenhöhe in m | J10: 10 | M10: =Vokabel!$A$76 -> tatsächliche Anlagenhöhe | Q10: =VLOOKUP(P2,Sortimente!G:P,10,0) -> 10.429
F12: =Vokabel!$A$57 -> Wand- o. Bodenmontage | M12: =Vokabel!$A$77 -> Differenz +/- | Q12: =Q10-J10 -> 0.429
F14: =Vokabel!$A$58 -> Putztüranschluss | M14: =Vokabel!$A$78 -> Anpassung durch Eingabe kürzerer Rohrelemente:
F16: =Vokabel!$A$59 -> Rauchrohranschluss RA
F18: =Vokabel!$A$60 -> RA-Höhe in m | M18: =Vokabel!$A$79 -> Rohr 455 mm | Q18: =Sortimente!$L$592 -> 
F20: =Vokabel!$A$61 -> RA-Verlängerung (ICS) | M20: =Vokabel!$A$80 -> Rohr 205 mm | Q20: =Sortimente!$L$593 -> 
F22: =Vokabel!$A$65 -> Anschlussrosette DW | H22: (schmal) | M22: Rohr 955 mm | Q22: =Sortimente!$L$591 -> 10
F24: =Vokabel!$A$66 -> Dachdurchführung
F26: =Vokabel!$A$68 -> Regenhaube
F28: =Vokabel!$A$69 -> Wandabstand (>50 mm)
F30: =Vokabel!$A$73 -> Statische Klemmbänder (2 Stk)
F32: Wanddurchführung (Ignis Protect)
F34: WDS
F37: =Vokabel!$A$74 -> Verbindungsleitung
A60: 1
A79: 1

Sheet HP5000 (hidden)
F2: =VLOOKUP(Daten!$U$1369,Daten!$T:$AL,19,0) -> HP 5000 DW 180 / 0,6 | P2: =VLOOKUP(Daten!$U$105,Daten!$T:$U,2,0)&VLOOKUP(Daten!$U$105,Daten!$T:$V,3,0) -> ICS80
F4: System - Lichter Ø mm
A60: 1
A79: 1

Sheet InfoDW (hidden)

Sheet InfoEW (hidden)

Sheet FBK (hidden)
B7: Die Kopflösung für BVH:
B9: =IF(Eingabe!$K$15="","",Eingabe!$K$15) -> 
B10: =IF(Eingabe!$K$17="","",Eingabe!$K$17&" "&Eingabe!$L$17&", "&Eingabe!$K$16) -> 
B45: =IF(Kalkulation!B15="","",Kalkulation!B15) -> Sehr geehrte(r) Herr Muster,
B47: ="Wir erlauben uns, Ihnen für das oben angeführte BVH "&B9 -> Wir erlauben uns, Ihnen für das oben angeführte BVH
B48: Schiedel Kaminköpfe zu einem besonderen Netto Pauschalpreis anzubieten.
B50: Pauschalpreis für 1 Stück | H50: =H54+H52 -> 1214.9 | I50: €
B52: Ersparnis durch Wegfall der Abdeckplatte | H52: =IF(ISNA(Daten!$J$269)=TRUE,0,Daten!$J$269) -> 360.8 | I52: €
B54: Der Aufpreis zur Kaminanlage (inkl. Abdeckplatte) beträgt NUR | H54: =Kalkulation!J160+Kalkulation!J161+Kalkulation!J163 -> 854.1 | I54: €
B56: =IF(C66=0,"","Aufpreis Gesamt für "&C66&" Stück") ->  | G56: =IF(C66=0,"",D66) -> 
I58: Man sagt Kamin und meint Schiedel
I59: www.schiedel.at
B66: =Kalkulation!A17 -> ABSOLUT | C66: =IF($B$66="Absolut",Absolut!$P$14,SIH!$O$14) -> 0 | D66: =H54*C66 -> 0

Sheet ABSOLUT PARAT (hidden)
F3: =VLOOKUP(Daten!$U$327,Daten!$T:$AL,19,0) -> Typ ASP 12 | Q3: =F3 -> Typ ASP 12
F5: =Vokabel!$B$26 -> Lichter Ø cm | I5: ="Außenmaß: "&Daten!$AI$327 -> Außenmaß: 36/36 cm
F7: =Vokabel!$B$28 -> Anlagenhöhe in m
F9: PARAT-Set | G9: für Fußteil und Mündung
F11: =Vokabel!$B$31 -> Rauchrohranschluss | H11: =Vokabel!$B$33 -> (bei kombiniert, kleiner Ø)
F13: Verschlämmen der Oberfläche
F15: Innenputz glatt / grau
F17: Werkseitige Kopfverkleidung
F19: Abdeckplatte
F21: Schiedel Kaminkopf
F24: =Vokabel!$B$39 -> Zubehör
F25: Absolut Thermokomponenten
F27: Folienanschluss
F29: =Vokabel!$B$40 -> Steck-Adapter | H29: für Ø 12 u. 14 cm
F31: Anschlussfutter | H31: mit Keramikdichtband
F33: zusätzlicher RA | H33: (bei kombiniert, großer Ø)
F35: =Vokabel!$B$44 -> LAS Zuluft-Adapter | H35: für Thermo-Luftzug
F37: Abluftgitter | H37: für Thermo-Luftzug
F39: =Vokabel!$B$47 -> obere Putztür | H39: (bei zweizügigen, für beide Züge)
F41: obere Revisionstür | H41: für Thermo-Luftzug
F43: Biegesteife Ausführung | H43: für optimale Standsicherheit
F45: =Vokabel!$B$51 -> Kaminhalter
F47: Versetzschlaufen | H47: (Set: 4 Stück, SRd 12)

Sheet Kingfire - INFO (hidden)

Sheet SIH (hidden)
F2: =IF(ISNA(VLOOKUP(Daten!$U$179,Daten!$T:$AL,19,0))=TRUE,"bitte Lichter Ø cm auswählen!",(VLOOKUP(Daten!$U$179,Daten!$T:$AL,19,0))) -> Typ SIH 18
F4: Lichter Ø cm
F6: Anlagenhöhe in m
F8: Fussausführung
F10: Rauchrohranschluss | I10: (bei kombiniert, kleiner Ø)
F12: zusätzlicher RA | I12: (bei kombiniert, großer Ø)
F14: Abdeckplatte
F16: Schiedel Kaminkopf
F20: Zubehör
F22: Zugregler
F24: Wanddurchführung | I24: (IgnisProtect)
F26: obere Revisionstür | I26: für Lüftungszug
F28: obere Putztür | H28: (bei zweizügigen, für beide Züge)
F30: Kaminhalter
F32: Bewehrungs-Set
F34: Regenhaube | H34: (bei zweizügigen, für beide Züge)

Sheet Absolut (hidden)
F2: =IF(ISNA(VLOOKUP(Daten!$U$48,Daten!$T:$AL,19,0))=TRUE,"bitte Lichter Ø cm auswählen!",(VLOOKUP(Daten!$U$48,Daten!$T:$AL,19,0))) -> Typ Absolut 1814
F4: Lichter Ø cm
F6: Anlagenhöhe in m
F8: Fussausführung
F10: Rauchrohranschluss | I10: (bei kombiniert, kleiner Ø)
F12: zusätzlicher RA | I12: (bei kombiniert, großer Ø)
F14: Abdeckplatte
F18: Schiedel Kaminkopf
F22: Absolut Thermokomponenten
F24: Folienanschluss
F28: Bewehrungs-Set
F30: Kaminhalter
F34: Anschlussadapter | I34: (nur für Ø14)
F36: Zugbegrenzer + Explosionsklappe
F38: Wanddurchführung | I38: (IgnisProtect)
F40: obere Putztür | H40: (bei zweizügigen, für beide Züge)
F42: Regenhaube | H42: (bei zweizügigen, für beide Züge)

Sheet Textangebot (hidden)
B1: =Kalkulation!B1 -> Name1
B2: =Kalkulation!B2 -> Name 2
B3: =Kalkulation!B3 -> PLZ und Ort
B4: =Kalkulation!B4 -> Tel. +43(0)
B5: =Kalkulation!B5 -> e-mail:
J6: Angebot
B7: =" "&Kalkulation!B7 -> Musterkunde
B8: =" "&Kalkulation!B8 ->  | G8: Datum : | J8: =Kalkulation!K8 -> 2023-11-02
B9: =" "&Kalkulation!B9 -> Musterstraße | G9: =Kalkulation!H9 ->  | J9: =Kalkulation!K9 -> 
B10: =" "&Kalkulation!B10 -> 4542 Nußbach | G10: Sachbearbeiter: | J10: =Kalkulation!K10 -> Sachbearbeiter
G11: Tel.Nr.: | J11: =Kalkulation!K11 -> 06.. …..
B13: =Kalkulation!B13 -> Ansprechpartner: Herr Muster | D13: =Kalkulation!E13 -> 0 | G13: =IF(J13="","","BV :") ->  | J13: =Kalkulation!K13 -> 
D14: =Kalkulation!E14 -> 0 | J14: =Kalkulation!K14 -> 
B15: =Kalkulation!B15 -> Sehr geehrte(r) Herr Muster, | J15: =Kalkulation!K15 -> 
B16: =Kalkulation!B16 -> wir bedanken uns für Ihre Anfrage und bieten Ihnen folgendes an:
A17: KERASTAR | B17: =Kalkulation!B17 -> Schiedel ABSOLUT, ABS 1814 | D17: =Kalkulation!E17 -> Zweischaliges Kaminsystem
B18: =Kalkulation!B18 -> Außenmaß: 36/65 cm | D18: =Kalkulation!E18 -> Compound-Mantelstein mit integrierter Wärmedämmung
D19: =Kalkulation!E19 -> und keramischem Profil-Innenrohr
B21: =Kalkulation!B21 ->  | C21: =Kalkulation!D21 ->  | D21: =Kalkulation!E21 -> Anlagenhöhe(m): | F21: =Kalkulation!G21 -> 10 | G21: =Kalkulation!H21 -> 
B22: =Kalkulation!B22 ->  | C22: =Kalkulation!D22 ->  | D22: =Kalkulation!E22 ->  | F22: =Kalkulation!G22 -> 0
B25: =Kalkulation!B244 -> Schiedel Absolut Anlage
B26: =Kalkulation!B245 -> Fangsystem für nasse und trockene Betriebsweise, Temperaturklasse T400,
B27: =Kalkulation!B246 -> MS.keram.Fangsys.T400/FU/BW kondensatdicht
B28: =Kalkulation!B247 -> Fangsystem für nasse und trockene Betriebsweise, Temperaturklasse T400,
B29: =Kalkulation!B248 -> feuchtigkeitsunempfindlich (FU), Brennwert geeignet (BW) bestehend aus
B30: =Kalkulation!B249 -> kondensatdichten isostatisch verpressten Innenrohren mit Muffenverbindung (k+d-
B31: =Kalkulation!B250 -> Wert </= 2,0 g/h/m2) und plan geschliffenen Compound Mantelstein mit integrierter
B32: =Kalkulation!B251 -> Wärmedämmung (Erfüllt die Dichtheitsanforderungen eines Passivhauses).
B33: =Kalkulation!B252 -> Fangsystem geeignet für den Anschluss einer Brennwertfeuerstätte in
B34: =Kalkulation!B253 -> raumluftunabh. Betriebsweise im Gegenstrombetrieb.
K37: 0
B38: =Kalkulation!B195 ->  | F38: Netto Gesamt | J38: =Kalkulation!K190 -> 0 | M38: =IF(K38=0,0,-I38*K38/100) -> 0
B39: =Kalkulation!B196 -> Angebot zzgl. Paletten und Palettenentladegebühr | F39: =Kalkulation!G196 -> 20 % MwSt. | J39: =Kalkulation!K196 -> 15
B40: =Kalkulation!B197 -> Das Angebot ist ab Erstellung 6 Monate gültig, spätestens bis 31.12.2024. | F40: Gesamtbetrag | J40: =Kalkulation!K197 -> 90
B41: =Kalkulation!B198 -> Angebotspreise sind Schiedel-Listenpreise.
B42: =Kalkulation!B232 -> 0
B43: =Kalkulation!B233 -> 0
B45: =Kalkulation!B234 -> Wir hoffen, dass Ihnen unser Angebot zusagt und freuen uns auf Ihren Auftrag.
B46: =Kalkulation!B235 -> Freundliche Grüße aus Nußbach
B47: =Kalkulation!B236 -> Sachbearbeiter

Sheet Kaminaufsatz (hidden)
D1: Typ Absolut 12 | M1: Absolut
D2: ="Edelstahl Kaminaufsatz für Kamin "&D1 -> Edelstahl Kaminaufsatz für Kamin Typ Absolut 12
D5: =IF(Daten!$B$1119="","für diesen Kamintyp gibt es keine Aufsätze","") -> 
D6: Anzahl | I6: 1
D8: Kaminaufsatz, wenn ja dann Bauhöhe in m
D10: Putztürelement
D12: Dachdurchführung
D14: Wandhalter (Berechnug 1Stk/3,5m)
D16: Wandabstand für Wandhalter
D18: Grundplatte (mit oder ohne Abkanntung)
D20: Seilabspannring

Sheet Paratbestellung (hidden)
B1: =IF($N$1="ABSOLUTPARAT","ABSOLUT-PARAT-Bestellung",IF($N$1="SIHPARAT","SIH-PARAT-Bestellung","")) ->  | N1: =Kalkulation!$A$17 -> ABSOLUT
B3: Bauvorhaben/Lieferanschrift: | F3: Baustoff-Fachhandel: | I3: Bauunternehmung:
B8: Typ: | F8: Bearbeitet: | I8: Biegesteife Ausführung
B9: Anlagen: | F9: Tel./Fax. BU.:
B11: =IF(N1="ABSOLUTPARAT","Abdeckplatte in Faserbeton",IF(N1="SIHPARAT","Abdeckplatte","")) -> 
C12: =IF($N$1="ABSOLUTPARAT","Handy-Abdeckplatte 8,5 cm Überstand",IF($N$1="SIHPARAT","Beton bündig, montiert","")) -> 
C13: =IF($N$1="ABSOLUTPARAT","Handy-Abdeckplatte 11,5 cm Überstand",IF($N$1="SIHPARAT","Beton 6,5 cm Überstand, montiert","")) ->  | H13: cm
C14: =IF($N$1="ABSOLUTPARAT","Handy-Abdeckplatte 19 cm Überstand",IF($N$1="SIHPARAT","Handy-Abdeckplatte 11,5 cm Überstand","")) -> 
B15: =IF(N1="ABSOLUTPARAT","Abdeckplatte in Edelstahl","") -> 
C16: =IF($N$1="ABSOLUTPARAT","Handy-Abdeckplatte 8,5 cm Überstand",IF($N$1="SIHPARAT","Handy-Abdeckplatte 15 cm Überstand","")) -> 
C17: =IF($N$1="ABSOLUTPARAT","Handy-Abdeckplatte 11,5 cm Überstand","") -> 
C18: =IF($N$1="ABSOLUTPARAT","Handy-Abdeckplatte 19 cm Überstand","") -> 

Sheet PERMETER (hidden)
F2: =VLOOKUP(Daten!$U$247,Daten!$T:$AL,19,0) -> Typ Permeter 180 | P2: =VLOOKUP(Daten!$U$247,Daten!$T:$U,2,0)&VLOOKUP(Daten!$U$247,Daten!$T:$V,3,0) -> Permeter180
F4: =Vokabel!$A$54 -> Lichter Ø mm
F6: Farbe
F8: =Vokabel!$A$56 -> Brennstoff | M8: =Vokabel!$A$75 -> Anpassung der Anlagenhöhe
F10: =Vokabel!$A$28 -> Anlagenhöhe in m | J10: 10 | M10: =Vokabel!$A$76 -> tatsächliche Anlagenhöhe | Q10: =VLOOKUP(P2,Sortimente!G:P,10,0) -> 9.95
F12: =Vokabel!$A$57 -> Wand- o. Bodenmontage | M12: =Vokabel!$A$77 -> Differenz +/- | Q12: =Q10-J10 -> -0.05
F14: =Vokabel!$A$58 -> Putztüranschluss | M14: =Vokabel!$A$78 -> Anpassung durch Eingabe kürzerer Rohrelemente:
F16: =Vokabel!$A$59 -> Rauchrohranschluss RA
F18: RA-Verlängerung (Permeter) | M18: =Vokabel!$A$79 -> Rohr 455 mm | Q18: =Sortimente!L17707 -> 
F20: Anschlussrosette DW (schmal) | M20: =Vokabel!$A$80 -> Rohr 205 mm | Q20: =Sortimente!L17708 -> 
F22: =Vokabel!$A$66 -> Dachdurchführung | M22: Rohr 955 mm | Q22: =Sortimente!L17706 -> 9
F24: Mündungsabschluss
F26: =Vokabel!$A$69 -> Wandabstand (>50 mm)
F28: Klemmband statisch
F30: WDS
F34: Verbindungsleitung (PrimaPlus)
A60: 1
A79: 1

Sheet PERMETER Smooth Air (hidden)
F2: =Daten!$U$260 -> Permeter_Smooth Air | P2: =VLOOKUP(Daten!$U$247,Daten!$T:$U,2,0)&VLOOKUP(Daten!$U$247,Daten!$T:$V,3,0) -> Permeter180
F4: =Vokabel!$A$54 -> Lichter Ø mm
F6: Sirius Ofen oder Modular
F10: Anlagenhöhe in m (inkl. Sirius) | J10: 0 | M10: =IF(Sortimente!$M$17968<=0,"",Sortimente!$M$17968) ->  | O10: =IF(M10="","","gerechnete Rohrsäle") -> 
F12: zusätzliche kleineres Rohrelement
F14: =Vokabel!$A$58 -> Putztüranschluss
F16: Mündungsabschluss
F18: Deckenblende
F20: Wandhalter mit Verlängerung
F22: =Vokabel!$A$66 -> Dachdurchführung
F25: Verbindungsleitung Ø 150 mm (Kamin 200) für Sirius und Sargas
F26: Ofenrohre 950 mm
F27: Ofenrohre 450 mm
F28: Ofenrohre 200 mm
F29: Rauchrohr 200 mm mit Drosselklappe
F30: Bogen 3-teilig 90°
F31: Bogen 3-teilig 90° mit Tür
F32: Rosette 50 mm
F33: Dichtschnur für Ofenanschluss
F34: Glasplatte für Einzelöfen
F35: Anschlussfutter Ofenrohr 150
A60: 1
A79: 1

Sheet Sortimente (hidden)
D1: =A1&C1&B1 ->  | F1: =IF(G1="","",VLOOKUP(G1,sanschie!A:E,5,0)) ->  | I1: =IF(G1="","",IF(VLOOKUP(G1,sanschie!B:J,9,)=0,"0",VLOOKUP(G1,sanschie!B:J,9,0))) -> 
A3: System | B3: Pos. | C3: DM | D3: Verkn. | E3: NR. | F3: Artikelbezeichnung | G3: Artikelnummer | H3: Var.Art.Nr. | I3: Baulänge in mm | J3: EH | K3: Anlagehöhe | L3: Menge für ca 10m | M3: Ber-Feld | N3: x | O3: ger.Höhe | P3: Höhen | W3: x | X3: x | Y3: x | Z3: Artikelnummer | AA3: filter
A4: ICS | B4: 0 | C4: 80 | D4: =A4&C4&B4 -> ICS800 | F4: Schiedel SK-ICS 80 | G4: ICS80 | I4: 0 | J4: Anlage | K4: =ICS!$J$10 -> 10 | L4: 1 | M4: =K4*1000 -> 10000 | O4: =ROUNDUP(P4,2) -> 10.43 | P4: =SUM(P5:P106)/1000 -> 10.429 | Z4: ICS80
A5: ICS | B5: =B4+1 -> 1 | C5: =C4 -> 80 | D5: =A5&C5&B5 -> ICS801 | E5: 1a | F5: ICS Grundplatte Boden + Ablauf seitlich 80 | G5: 101320 | I5: 90 | J5: STK | L5: =IF(Daten!$B$47=4,1,"") ->  | M5: =IF(L5="","0",L5*I5) -> 0 | P5: =IF(L5="","0",I5*L5) -> 0 | Z5: 101320
A6: ICS | B6: =B5+1 -> 2 | C6: =C5 -> 80 | D6: =A6&C6&B6 -> ICS802 | E6: 1b | F6: ICS Fußteil Bodenmontage + Ablauf 80 | G6: 101328 | I6: 1045 | J6: STK | L6: =IF(Daten!$B$47=1,1,"") ->  | M6: 0 | P6: =IF(L6="","0",I6*L6) -> 0 | Z6: 101328
A7: ICS | B7: =B6+1 -> 3 | C7: =C6 -> 80 | D7: =A7&C7&B7 -> ICS803 | E7: 1c | F7: ICS Fußteil kürzbar für Bodenmontage, Ablauf unten 80 | G7: 133197 | I7: 1045 | J7: STK | L7: =IF(Daten!$B$47=6,1,"") ->  | M7: 0 | P7: =IF(L7="","0",I7*L7) -> 0 | Z7: 133197
A8: ICS | B8: 4 | C8: 80 | D8: ICS804 | E8: 1d | F8: ICS Fußteil kürzbar für Bodenmontage, Ablauf unten mit Revisionsöffnung | G8: 133207 | I8: 1045 | J8: STK | L8: =IF(Daten!$B$47=5,1,"") ->  | M8: 0 | P8: =IF(L8="","0",I8*L8) -> 0 | Z8: 133207
A9: ICS | B9: 5 | C9: 80 | D9: ICS805 | E9: 1e | F9: ICS Grundplatte + Ablauf unten 80 | G9: 101014 | I9: 95 | J9: STK | L9: =IF(Daten!$B$47=2,1,IF(Daten!$B$47=3,1,"")) -> 1 | M9: 95 | P9: 95 | Z9: 101014
A10: ICS | B10: 6 | C10: 80 | D10: ICS806 | E10: 1f | F10: auf Anfrage! ICS Teleskopstütze 80 auf Anfrage | G10: 101056 | I10: 300 | J10: STK | L10: =IF(N10=0,"",N10) ->  | M10: 0 | N10: =IF(Daten!$B$47=3,1,0) -> 0 | P10: 0 | Z10: 101056
A11: ICS | B11: =B10+1 -> 7 | C11: =C10 -> 80 | D11: =A11&C11&B11 -> ICS807 | E11: 1g | F11: Montageschiene für Wandmontage T 325 glänzend | G11: 101742 | I11: 0 | J11: PAR | L11: =IF(M11=0,"",M11) -> 1 | M11: =IF(Daten!$B$47=1,0,IF(Daten!$B$47=3,0,IF(Daten!$B$47=4,0,IF(Daten!$B$24=2,1,N21))))+Q11 -> 1 | N11: 157 | O11: 100 | P11: =IF(M11="","0",I11*M11) -> 0 | Q11: =IF(Daten!$B$24=1,M21,IF(Daten!$B$24=2,M21,0)) -> 0 | Z11: 101742
A12: ICS | B12: 8 | C12: 80 | D12: ICS808 | E12: 1g | F12: Montageschiene für Wandmontage T 475 glänzend | G12: 101743 | I12: 0 | J12: PAR | M12: =IF(Daten!$B$47=1,0,IF(Daten!$B$47=3,0,IF(Daten!$B$47=4,0,IF(Daten!$B$24=3,1,0))))+Q12 -> 0 | N12: 307 | O12: 250 | P12: 0 | Q12: =IF(Daten!$B$24=3,M21,0) -> 0 | Z12: 101743
A13: ICS | B13: 9 | C13: 80 | D13: ICS809 | E13: 1g | F13: Montageschiene für Wandmontage T 570 glänzend | G13: 101744 | I13: 0 | J13: PAR | M13: =IF(Daten!$B$47=1,0,IF(Daten!$B$47=3,0,IF(Daten!$B$47=4,0,IF(Daten!$B$24=4,1,0))))+Q13 -> 0 | N13: 402 | P13: 0 | Q13: 0 | Z13: 101744
A14: ICS | B14: 10 | C14: 80 | D14: ICS8010 | E14: 1g | F14: Montageschiene für Wandmontage T 720 glänzend | G14: 101746 | I14: 0 | J14: PAR | M14: =IF(Daten!$B$47=1,0,IF(Daten!$B$47=3,0,IF(Daten!$B$47=4,0,IF(Daten!$B$24=5,1,0))))+Q14 -> 0 | N14: 552 | O14: 440/500 | P14: 0 | Q14: =IF(Daten!$B$24=4,M21,IF(Daten!$B$24=5,M21,0)) -> 0 | Z14: 101746
A15: ICS | B15: 11 | C15: 80 | D15: ICS8011 | E15: 1g | F15: Montageschiene für Wandmontage T 820 glänzend | G15: 101747 | I15: 0 | J15: PAR | N15: 652 | P15: 0 | Q15: 0 | Z15: 101747
A16: ICS | B16: 12 | C16: 80 | D16: ICS8012 | E16: 1g | F16: Montageschiene für Wandmontage T 1004 glänzend | G16: 101748 | I16: 0 | J16: PAR | M16: =IF(Daten!$B$47=1,0,IF(Daten!$B$47=3,0,IF(Daten!$B$47=4,0,IF(Daten!$B$24=6,1,0))))+Q16 -> 0 | N16: 836 | O16: 700 | P16: 0 | Q16: =IF(Daten!$B$24=6,M21,0) -> 0 | Z16: 101748
A17: ICS | B17: 13 | C17: 80 | D17: ICS8013 | E17: 1g | F17: Montageschiene für Wandmontage T 1120 glänzend | G17: 101749 | I17: 0 | J17: PAR | N17: 952 | P17: 0 | Z17: 101749
A18: ICS | B18: 14 | C18: 80 | D18: ICS8014 | E18: 1g | F18: Montageschiene für Wandmontage T 1304 glänzend | G18: 101750 | I18: 0 | J18: PAR | N18: 1136 | P18: 0 | Z18: 101750
A19: ICS | B19: 15 | C19: 80 | D19: ICS8015 | E19: 1g | F19: Montageschiene für Wandmontage T 1504 glänzend | G19: 101751 | I19: 0 | J19: PAR | N19: 1336 | P19: 0 | Z19: 101751
A20: ICS | B20: 16 | C20: 80 | D20: ICS8016 | E20: 1h | F20: Regenabdeckung für Montageschienen | G20: 101728 | I20: 0 | J20: STK | P20: 0 | Z20: 101728
